{"text_format":"1","workbook":"xlsx","n_sheets":7,"sheets":["Startside","Rapport 10","Rapport 11","Rapport 21","Kontroll","Hjelp","Innstillinger"],"not_rendered":{"charts":0,"images":7,"macros":1,"external_links":2,"defined_names":242,"comments":1,"pivot_tables":0},"unopened":[],"bounds":{"document_bytes":16777216,"sheet_cells":100000,"rows_first":2000,"rows_last":500,"rows_between":2000,"halvings":0,"cell_chars":16384,"cell_head_chars":4096},"cells_cut":0,"cells_raw":0,"read":"whole","date_system":"1900"}

{"sheet":"Startside","index":0,"n_rows":25,"n_cols":5,"rows_kept":25,"cut":false,"hidden":false,"merged":[[6,1,7,2],[15,1,15,6],[14,1,14,6],[11,4,11,6],[10,4,10,6],[13,1,13,6],[17,1,17,6],[16,1,16,6],[72,2,72,7],[70,2,70,7],[68,2,68,7],[22,1,22,6],[24,1,24,6],[21,1,21,5]]}
[]
[]
[]
[]
[]
[]
[]
[null,null,null,null,"Vennligst fyll inn orgnr. (9 siffer)"]
[null,"Forsikringsselskapenes offentlige regnskaps- og tilsynsrapportering (FORT)"]
[]
[null,null,null,null,"Veiledningsmateriale til FORT-rapporteringen"]
[null,"  Bruksanvisning for bruk av regnearksmalen",null,null,"Veiledning til Altinn"]
[]
[null,"OBS: Man må lagre tom regnearksmal før man begynner arbeidet, dette for at makoer i regnearket skal aktiveres. Man kan skjule rader i regnearket, men man skal ikke slette de. "]
[null,"Innrapporteringsskjemaet består av tre rapporter som bes fylles ut. En kan bevege seg mellom arkene ved å trykke på arkfanen nederst på skjermen, eller benytte knappene \"neste ark\" eller \"forrige ark\" som befinner seg øverst i den egendefinerte verktøylinjen. Hvis  Excel 2007 benyttes (eller Excel 2010) må en trykke på menyknappen \"Tillegg\" eller \"Add-Ins\" for å få frem den egendefinerte verktøylinjen.\n\nDenne regnearksmalen bruker makroer. Ved problemer med funksjonalitet i regnearksmalen etter nedlasting, sett makrosikkerheten til middels. For nærmere forklaring på hvordan dette gjøres, se \"Veiledning til regnearksmalen\". Om en feilmelding dukker opp i forbindelse med utfylling av skjemaet,  velg \"End\". Dersom regnearksmalen ikke fungerer normalt, velg lagre for deretter å avslutte regnearket. Når en da åpner regnearket på nytt vil utfylt data være intakt, og funksjonaliteten vil være tilbake. For en detaljert beskrivelse av regnearket og evt. feil som kan inntre, se \"Veiledning til regnearksmalen\". Ved gjentatte feil, vennligst kontakt SSB (epost: kreditt250@ssb.no, tlf: 21 09 44 50).\n"]
[null,"Gå gjennom ark for ark i regnearksmalen og fyll ut rapportene. For mer informasjon rundt dette, trykk på \"Hjelp til utfylling\" på verktøylinjen. Når alle tre rapporter er fylt ut, kjør avstemmingskontrollen øverst i den egendefinerte menylinjen. Vær oppmerksom på at alle kontrollene må kjøres til man får melding om at kontrollen er kjørt uten feil. De kontrollarket og rapportene må være feilfrie for å få klargjort filen for sending. Det er heller ikke mulig å klargjøre filen om aktiva - passiva ≠ 0 (avvik på 3 godtas) og inntekter - kostnader ≠ 0  (avvik på 3 godtas).  \n"]
[null,"Når alle tre rapportene er fullstendig utfylt skal regnearket lagres i dat-format. Denne dat-filen skal sendes til SSB. For å generere de utfylte dataene til dat-fil trykker en på knappen \"Klargjøring for sending\", som en finner øverst i den egendefinerte verktøylinjen. Da filen skal leses maskinelt må den være lagret i dat-format. Om ikke annet er avtalt på forhånd, vil alle XLS-filer vil bli avvist og returnert. Den endelige filen skal sendes til SSB via Altinn portalen. "]
[null,"Nærmere beskrivelse av fremgangsmåten for å sende filen via Altinn finner en ved å trykke på linken oppe til høyre på denne siden: ”Veiledning til Altinn”, for deretter å velge \"Altinn_Veiledning_FORT.pdf\" i menyen til venstre på SSB sine nettsider for forsikringsselskaper."]
[]
[]
[null,"Avstemmingen må kjøres og være feilfri før filen kan lagres i dat-format og sendes inn til SSB:"]
[]
[null,"\n1) Kontroll rapport 21: Sum inntekter skal være lik kostnader inkludert totalresultatet. Her godtas maksimalt et avvik på +3/-3.\n\n2) Kontroll rapport 10: Eiendeler i alt skal være lik gjeld og egenkapital i alt. Her godtas maksimalt et avvik på +3/-3.\n\n4) Avstemming: Kjøres etter at alle tre rapportene er fylt ut. Denne kontrollen sjekker at kontrollen rapport 10 og 21 stemmer. Samtidig sjekker den at kodene i som er listet ut i kontrollarket stemmer overens med hverandre. Øverst i kontrollarket står det ”Kontroll er kjørt uten feil”, når avstemmingen er kjørt og ingen feil er oppdaget så vil det komme JA her, hvis det er feil i balansen, resultatet eller kontrollarket vil NEI stå her. Det er ikke mulig å klargjøre filen for sending så lenge kontrollene viser feil. Det er viktig at en kjører kontrollen til en får melding i feillistevinduet om at ”Avstemming er kjørt uten feil”. Man er da klar for å klargjøre for sending.\n"]
[null,"Kontroller som er tilknyttet ”klargjøring for sending”"]
[null,"For å kunne klargjøre for sending så må avstemmingen være kjørt uten feil. Hvis det er feil i regnearket, vil prosessen stoppe opp. Feilene må rettes opp. Klargjøring for sending gjør regnearket om til en dat-fil og kan lagres hos brukeren. Det er denne flate filen som skal sendes inn til SSB via Altinn."]

{"sheet":"Rapport 10","index":1,"n_rows":1537,"n_cols":17,"rows_kept":1537,"cut":false,"hidden":false,"merged":[]}
["10. Kvartalsbalanse for skadeforsikring:"]
["Gyldig f.o.m. 4. kvartal 2021"]
["Datasentralnr. (3 siffer)",null,null,"047",null,null,null,null,null,null,"Kontroll av aktiva og passiva i alt:"]
["Organisasjonsnr. (9 siffer)",null,null,{"$f":"Startside!G8","v":0},null,null,null,null,null,null,"Eiendeler i alt:",{"$f":"SUM(L15:L1074)","v":0}]
["Rapport nr. (2 siffer)",null,null,10,null,null,null,null,null,null,"Gjeld og egenkapital i alt:",{"$f":"SUM(L1080:L1537)","v":0}]
["Periode (år; 6 siffer)  ",null,null,202112,null,null,null,null,null,null,"Differanse mellom aktiva og passiva:",{"$f":"L4-L5","v":0}]
[]
[]
["Tekst","Felt0","Plass","Objektskode","Sikkerhet","Portefølje:","Verdsetting:","Sektor: ","Næring:","Land:","Valuta: ","Beløp",null,null,null,"Oppstillings-"]
[null,null,"Art","Underobjekt","Risiko",null,null,null,null,null,null,"i 1000 kr",null,null,null,"plan kode"]
[null,null,null,"Løpetid ","Omeråde"]
["EIENDELER:",null,null," ",null,null,null," "," ",null," "]
[]
["1.1 - 1.2. Kontanter og innskudd"]
["Sedler og skillemynt, norske kroner",0,0,1150000,0,"000","00","00000",0,0,10,0,null,null,null,"05.2.0"]
["Sedler og skillemynt,Utenlandsk valuta i NOK omregnet til norske kroner",0,0,1150000,0,"000","00","00000",0,0,30,0,null,null,null,"05.2.0"]
[]
["Bankinnskudd, Driftskonto, Virkelig verdi med resultatføring, Norske banker ekskl. tilknyttede - og konsernbanker, norske kroner",0,0,1210010,0,"000",10,"01010",0,0,10,0,null,null,null,"05.2.0"]
["Bankinnskudd, Driftskonto, Virkelig verdi med resultatføring, Norske banker ekskl. tilknyttede - og konsernbanker, Utenlandsk valuta i NOK",0,0,1210010,0,"000",10,"01010",0,0,30,0,null,null,null,"05.2.0"]
["Bankinnskudd, Driftskonto, Virkelig verdi med resultatføring, Norske tilknyttede banker, norske kroner",0,0,1210010,0,"000",10,"01008",0,0,10,0,null,null,null,"05.2.0"]
["Bankinnskudd, Driftskonto, Virkelig verdi med resultatføring, Norske tilknyttede banker, Utenlandsk valuta i NOK",0,0,1210010,0,"000",10,"01008",0,0,30,0,null,null,null,"05.2.0"]
["Bankinnskudd, Driftskonto, Virkelig verdi med resultatføring, Norske konsernbanker, norske kroner",0,0,1210010,0,"000",10,"01009",0,0,10,0,null,null,null,"05.2.0"]
["Bankinnskudd, Driftskonto, Virkelig verdi med resultatføring, Norske konsernbanker, Utenlandsk valuta i NOK",0,0,1210010,0,"000",10,"01009",0,0,30,0,null,null,null,"05.2.0"]
["Bankinnskudd, Driftskonto, Virkelig verdi med resultatføring, Utlandske banker ekskl. tilknyttede - og konsernbanker, norske kroner",0,0,1210010,0,"000",10,90010,0,0,10,0,null,null,null,"05.2.0"]
["Bankinnskudd, Driftskonto, Virkelig verdi med resultatføring, Utlandske banker ekskl. tilknyttede - og konsernbanker, Utenlandsk valuta i NOK",0,0,1210010,0,"000",10,90010,0,0,30,0,null,null,null,"05.2.0"]
["Bankinnskudd, Driftskonto, Virkelig verdi med resultatføring, Utlandske tilknyttede banker, norske kroner",0,0,1210010,0,"000",10,90008,0,0,10,0,null,null,null,"05.2.0"]
["Bankinnskudd, Driftskonto, Virkelig verdi med resultatføring, Utlandske tilknyttede banker, Utenlandsk valuta i NOK",0,0,1210010,0,"000",10,90008,0,0,30,0,null,null,null,"05.2.0"]
["Bankinnskudd, Driftskonto, Virkelig verdi med resultatføring, Utlandske konsernbanker, norske kroner",0,0,1210010,0,"000",10,90009,0,0,10,0,null,null,null,"05.2.0"]
["Bankinnskudd, Driftskonto, Virkelig verdi med resultatføring, Utlandske konsernbanker, Utenlandsk valuta i NOK",0,0,1210010,0,"000",10,90009,0,0,30,0,null,null,null,"05.2.0"]
[]
["Bankinnskudd, Plasseringskonto, Virkelig verdi med resultatføring, Norske banker ekskl. tilknyttede - og konsernbanker, norske kroner",0,0,1210013,0,"000",10,"01010",0,0,10,0,null,null,null,"02.4.3"]
["Bankinnskudd, Plasseringskonto, Virkelig verdi med resultatføring, Norske banker ekskl. tilknyttede - og konsernbanker, Utenlandsk valuta i NOK",0,0,1210013,0,"000",10,"01010",0,0,30,0,null,null,null,"02.4.3"]
["Bankinnskudd, Plasseringskonto, Virkelig verdi med resultatføring, Norske tilknyttede banker, norske kroner",0,0,1210013,0,"000",10,"01008",0,0,10,0,null,null,null,"02.2.2"]
["Bankinnskudd, Plasseringskonto, Virkelig verdi med resultatføring, Norske tilknyttede banker, Utenlandsk valuta i NOK",0,0,1210013,0,"000",10,"01008",0,0,30,0,null,null,null,"02.2.2"]
["Bankinnskudd, Plasseringskonto, Virkelig verdi med resultatføring, Norske konsernbanker, norske kroner",0,0,1210013,0,"000",10,"01009",0,0,10,0,null,null,null,"02.2.2"]
["Bankinnskudd, Plasseringskonto, Virkelig verdi med resultatføring, Norske konsernbanker, Utenlandsk valuta i NOK",0,0,1210013,0,"000",10,"01009",0,0,30,0,null,null,null,"02.2.2"]
["Bankinnskudd, Plasseringskonto, Virkelig verdi med resultatføring, Utlandske banker ekskl. tilknyttede - og konsernbanker, norske kroner",0,0,1210013,0,"000",10,90010,0,0,10,0,null,null,null,"02.4.3"]
["Bankinnskudd, Plasseringskonto, Virkelig verdi med resultatføring, Utlandske banker ekskl. tilknyttede - og konsernbanker, Utenlandsk valuta i NOK",0,0,1210013,0,"000",10,90010,0,0,30,0,null,null,null,"02.4.3"]
["Bankinnskudd, Plasseringskonto, Virkelig verdi med resultatføring, Utlandske tilknyttede banker, norske kroner",0,0,1210013,0,"000",10,90008,0,0,10,0,null,null,null,"02.2.2"]
["Bankinnskudd, Plasseringskonto, Virkelig verdi med resultatføring, Utlandske tilknyttede banker, Utenlandsk valuta i NOK",0,0,1210013,0,"000",10,90008,0,0,30,0,null,null,null,"02.2.2"]
["Bankinnskudd, Plasseringskonto, Virkelig verdi med resultatføring, Utlandske konsernbanker, norske kroner",0,0,1210013,0,"000",10,90009,0,0,10,0,null,null,null,"02.2.2"]
["Bankinnskudd, Plasseringskonto, Virkelig verdi med resultatføring, Utlandske konsernbanker, Utenlandsk valuta i NOK",0,0,1210013,0,"000",10,90009,0,0,30,0,null,null,null,"02.2.2"]
[]
["Bankinnskudd, Plasseringskonto, Amortisert kost, Øvrige, Norske banker ekskl. tilnyttede og konsernbanker, norske kroner",0,0,1210013,0,"000",52,"01010",0,0,10,0,null,null,null,"02.3.2"]
["Bankinnskudd, Plasseringskonto, Amortisert kost, Øvrige, Norske banker ekskl. tilnyttede og konsernbanker, Utenlandsk valuta i NOK",0,0,1210013,0,"000",52,"01010",0,0,30,0,null,null,null,"02.3.2"]
["Bankinnskudd, Plasseringskonto, Amortisert kost, Øvrige, Norske tilknyttede banker, norske kroner",0,0,1210013,0,"000",52,"01008",0,0,10,0,null,null,null,"02.2.2"]
["Bankinnskudd, Plasseringskonto, Amortisert kost, Øvrige, Norske tilknyttede banker, Utenlandsk valuta i NOK",0,0,1210013,0,"000",52,"01008",0,0,30,0,null,null,null,"02.2.2"]
["Bankinnskudd, Plasseringskonto, Amortisert kost, Øvrige, Norske banker, Konsernbanker, norske kroner",0,0,1210013,0,"000",52,"01009",0,0,10,0,null,null,null,"02.2.2"]
["Bankinnskudd, Plasseringskonto, Amortisert kost, Øvrige, Konsernbanker, Utenlandsk valuta i NOK",0,0,1210013,0,"000",52,"01009",0,0,30,0,null,null,null,"02.2.2"]
["Bankinnskudd, Plasseringskonto, Amortisert kost, Øvrige, Utenlandske banker ekskl. tilnyttede og konsernbanker, norske kroner",0,0,1210013,0,"000",52,90010,0,0,10,0,null,null,null,"02.3.2"]
["Bankinnskudd, Plasseringskonto, Amortisert kost, Øvrige, Utenlandske banker ekskl. tilnyttede og konsernbanker, Utenlandsk valuta i NOK",0,0,1210013,0,"000",52,90010,0,0,30,0,null,null,null,"02.3.2"]
["Bankinnskudd, Plasseringskonto, Amortisert kost, Øvrige, Utlandske tilknyttede banker, norske kroner",0,0,1210013,0,"000",52,90008,0,0,10,0,null,null,null,"02.2.2"]
["Bankinnskudd, Plasseringskonto, Amortisert kost Øvrige, Utenlandske tilknyttede banker, Utenlandsk valuta i NOK",0,0,1210013,0,"000",52,90008,0,0,30,0,null,null,null,"02.2.2"]
["Bankinnskudd, Plasseringskonto, Amortisert kost, Øvrige, Utenlandske konsernbanker, norske kroner",0,0,1210013,0,"000",52,90009,0,0,10,0,null,null,null,"02.2.2"]
["Bankinnskudd, Plasseringskonto, Amortisert kost, Øvrige,Utenlandske konsernbanker, Utenlandsk valuta i NOK",0,0,1210013,0,"000",52,90009,0,0,30,0,null,null,null,"02.2.2"]
[]
["1.3 - 1.8. Verdipapirer"]
["Aksjer, ekskl. aksjer i eiendomsselskaper, Virkelig verdi med resultatføring, Statlig eide aksjeselskaper mv., norske kroner",0,0,"1362100",0,"000",10,11200,0,0,10,0,null,null,null,"02.4.1"]
["Aksjer, ekskl. aksjer i eiendomsselskaper, Virkelig verdi med resultatføring, Kommunale aksjeselskaper mv., norske kroner",0,0,"1362100",0,"000",10,15200,0,0,10,0,null,null,null,"02.4.1"]
["Aksjer, ekskl. aksjer i eiendomsselskaper, Virkelig verdi med resultatføring, Kommunale aksjeselskaper mv., Tilknyttet selskap, norske kroner",0,0,"1362100",0,"000",10,"15208",0,0,10,0,null,null,null,"02.2.1"]
["Aksjer, ekskl. aksjer i eiendomsselskaper, Virkelig verdi med resultatføring, Private aksjeselskaper mv., norske kroner",0,0,"1362100",0,"000",10,21000,0,0,10,0,null,null,null,"02.4.1"]
["Aksjer, ekskl. aksjer i eiendomsselskaper, Virkelig verdi med resultatføring, Private aksjeselskaper mv., tilknyttede selskaper, norske kroner",0,0,"1362100",0,"000",10,21008,0,0,10,0,null,null,null,"02.2.1"]
["Aksjer, ekskl. aksjer i eiendomsselskaper, Virkelig verdi med resultatføring, Private aksjeselskaper mv., konsernselskap, norske kroner",0,0,"1362100",0,"000",10,21009,0,0,10,0,null,null,null,"02.2.1"]
["Aksjer, ekskl. aksjer i eiendomsselskaper, Virkelig verdi med resultatføring, Personlige foretak, norske kroner",0,0,"1362100",0,"000",10,23000,0,0,10,0,null,null,null,"02.4.1"]
["Aksjer, ekskl. aksjer i eiendomsselskaper, Virkelig verdi med resultatføring, Banker, norske kroner",0,0,"1362100",0,"000",10,32000,0,0,10,0,null,null,null,"02.4.1"]
["Aksjer, ekskl. aksjer i eiendomsselskaper, Virkelig verdi med resultatføring, Banker, tilknyttede banker, norske kroner",0,0,"1362100",0,"000",10,32008,0,0,10,0,null,null,null,"02.2.1"]
["Aksjer, ekskl. aksjer i eiendomsselskaper, Virkelig verdi med resultatføring, Banker, Konsernbanker, norske kroner",0,0,"1362100",0,"000",10,32009,0,0,10,0,null,null,null,"02.2.1"]
["Aksjer, ekskl. aksjer i eiendomsselskaper, Virkelig verdi med resultatføring, Kredittforetak, norske kroner",0,0,"1362100",0,"000",10,35000,0,0,10,0,null,null,null,"02.4.1"]
["Aksjer, ekskl. aksjer i eiendomsselskaper, Virkelig verdi med resultatføring, Kredittforetak, tilknyttede selskaper, norske kroner",0,0,"1362100",0,"000",10,35008,0,0,10,0,null,null,null,"02.2.1"]
["Aksjer, ekskl. aksjer i eiendomsselskaper, Virkelig verdi med resultatføring, Kredittforetak, konsernselskap, norske kroner",0,0,"1362100",0,"000",10,35009,0,0,10,0,null,null,null,"02.2.1"]
["Aksjer, ekskl. aksjer i eiendomsselskaper, Virkelig verdi med resultatføring, Finansieringsselskaper, norske kroner",0,0,"1362100",0,"000",10,36000,0,0,10,0,null,null,null,"02.4.1"]
["Aksjer, ekskl. aksjer i eiendomsselskaper, Virkelig verdi med resultatføring, Finansieringsselskaper, tilknyttede selskaper, norske kroner",0,0,"1362100",0,"000",10,36008,0,0,10,0,null,null,null,"02.2.1"]
["Aksjer, ekskl. aksjer i eiendomsselskaper, Virkelig verdi med resultatføring, Finansieringsselskaper, konsernselskap, norske kroner",0,0,"1362100",0,"000",10,36009,0,0,10,0,null,null,null,"02.2.1"]
["Aksjer, ekskl. aksjer i eiendomsselskaper, Virkelig verdi med resultatføring, Statlige investeringsselskaper, norske kroner",0,0,"1362100",0,"000",10,"39000",0,0,10,0,null,null,null,"02.4.1"]
["Aksjer, ekskl. aksjer i eiendomsselskaper, Virkelig verdi med resultatføring, Finansielle holdingselskaper, norske kroner",0,0,"1362100",0,"000",10,41000,0,0,10,0,null,null,null,"02.4.1"]
["Aksjer, ekskl. aksjer i eiendomsselskaper, Virkelig verdi med resultatføring, Finansielle holdingselskaper, tilknyttede selskaper, norske kroner",0,0,"1362100",0,"000",10,41008,0,0,10,0,null,null,null,"02.2.1"]
["Aksjer, ekskl. aksjer i eiendomsselskaper, Virkelig verdi med resultatføring, Finansielle holdingselskaper, konsernselskap, norske kroner",0,0,"1362100",0,"000",10,41009,0,0,10,0,null,null,null,"02.2.1"]
["Aksjer, ekskl. aksjer i eiendomsselskaper, Virkelig verdi med resultatføring, Investeringsselskaper og aktive eierfond/PE-fond, norske kroner",0,0,"1362100",0,"000",10,45000,0,0,10,0,null,null,null,"02.4.1"]
["Aksjer, ekskl. aksjer i eiendomsselskaper, Virkelig verdi med resultatføring, Investeringsselskaper og aktive eierfond/PE-fond, tilknyttede selskaper, norske kroner",0,0,"1362100",0,"000",10,45008,0,0,10,0,null,null,null,"02.2.1"]
["Aksjer, ekskl. aksjer i eiendomsselskaper, Virkelig verdi med resultatføring, Investeringsselskaper og aktive eierfond/PE-fond, konsernselskap, norske kroner",0,0,"1362100",0,"000",10,45009,0,0,10,0,null,null,null,"02.2.1"]
["Aksjer, ekskl. aksjer i eiendomsselskaper, Virkelig verdi med resultatføring, Øvrige finansielle foretak unntatt forsikring, norske kroner",0,0,"1362100",0,"000",10,49000,0,0,10,0,null,null,null,"02.4.1"]
["Aksjer, ekskl. aksjer i eiendomsselskaper, Virkelig verdi med resultatføring, Øvrige finansielle foretak unntatt forsikring, tilknyttede selskaper, norske kroner",0,0,"1362100",0,"000",10,49008,0,0,10,0,null,null,null,"02.2.1"]
["Aksjer, ekskl. aksjer i eiendomsselskaper, Virkelig verdi med resultatføring, Øvrige finansielle foretak unntatt forsikring, konsernselskap, norske kroner",0,0,"1362100",0,"000",10,49009,0,0,10,0,null,null,null,"02.2.1"]
["Aksjer, ekskl. aksjer i eiendomsselskaper, Virkelig verdi med resultatføring, Livsforsikringsselskaper og pensjonskasser, norske kroner",0,0,"1362100",0,"000",10,55000,0,0,10,0,null,null,null,"02.4.1"]
["Aksjer, ekskl. aksjer i eiendomsselskaper, Virkelig verdi med resultatføring, Livsforsikringsselskaper og pensjonskasser, tilknyttede selskaper, norske kroner",0,0,"1362100",0,"000",10,55008,0,0,10,0,null,null,null,"02.2.1"]
["Aksjer, ekskl. aksjer i eiendomsselskaper, Virkelig verdi med resultatføring, Livsforsikringsselskaper og pensjonskasser, konsernselskap, norske kroner",0,0,"1362100",0,"000",10,55009,0,0,10,0,null,null,null,"02.2.1"]
["Aksjer, ekskl. aksjer i eiendomsselskaper, Virkelig verdi med resultatføring, Skadeforsikringsselskaper, norske kroner",0,0,"1362100",0,"000",10,57000,0,0,10,0,null,null,null,"02.4.1"]
["Aksjer, ekskl. aksjer i eiendomsselskaper, Virkelig verdi med resultatføring, Skadeforsikringsselskaper, tilknyttede selskaper, norske kroner",0,0,"1362100",0,"000",10,57008,0,0,10,0,null,null,null,"02.2.1"]
["Aksjer, ekskl. aksjer i eiendomsselskaper, Virkelig verdi med resultatføring, Skadeforsikringsselskaper, konsernselskap, norske kroner",0,0,"1362100",0,"000",10,57009,0,0,10,0,null,null,null,"02.2.1"]
["Aksjer, ekskl. aksjer i eiendomsselskaper, Virkelig verdi med resultatføring, Ufordelt sektor, norske kroner",0,0,"1362100",0,"000",10,"08000",0,0,10,0,null,null,null,"02.4.1"]
["Aksjer, ekskl. aksjer i eiendomsselskaper, Virkelig verdi med resultatføring, Utenlandske sektorer ekskl. tilknyttede og konsernselskap, norske kroner",0,0,"1362100",0,"000",10,90010,0,0,10,0,null,null,null,"02.4.1"]
["Aksjer, ekskl. aksjer i eiendomsselskaper, Virkelig verdi med resultatføring, Utenlandske sektorer ekskl. tilknyttede og konsernselskap, Utenlandsk valuta i NOK",0,0,"1362100",0,"000",10,90010,0,0,30,0,null,null,null,"02.4.1"]
["Aksjer, ekskl. aksjer i eiendomsselskaper, Virkelig verdi med resultatføring, Utlandet, tilknyttede selskaper, norske kroner",0,0,"1362100",0,"000",10,90008,0,0,10,0,null,null,null,"02.2.1"]
["Aksjer, ekskl. aksjer i eiendomsselskaper, Virkelig verdi med resultatføring, Utlandet, tilknyttede selskaper, Utenlandsk valuta i NOK",0,0,"1362100",0,"000",10,90008,0,0,30,0,null,null,null,"02.2.1"]
["Aksjer, ekskl. aksjer i eiendomsselskaper, Virkelig verdi med resultatføring, Utlandet, konsernselskap, norske kroner",0,0,"1362100",0,"000",10,90009,0,0,10,0,null,null,null,"02.2.1"]
["Aksjer, ekskl. aksjer i eiendomsselskaper, Virkelig verdi med resultatføring,Utlandet, konsernselskap, Utenlandsk valuta i NOK",0,0,"1362100",0,"000",10,90009,0,0,30,0,null,null,null,"02.2.1"]
[]
["Aksjer, ekskl. aksjer i eiendomsselskaper, Tilgjengelig for salg, Statlig eide aksjeselskaper mv., norske kroner",0,0,"1362100",0,"000",20,11200,0,0,10,0,null,null,null,"02.4.1"]
["Aksjer, ekskl. aksjer i eiendomsselskaper, Tilgjengelig for salg, Kommunale aksjeselskaper mv., norske kroner",0,0,"1362100",0,"000",20,15200,0,0,10,0,null,null,null,"02.4.1"]
["Aksjer, ekskl. aksjer i eiendomsselskaper, Tilgjengelig for salg, Kommunale aksjeselskaper mv., Tilknyttet selskap, norske kroner",0,0,"1362100",0,"000",20,"15208",0,0,10,0,null,null,null,"02.2.1"]
["Aksjer, ekskl. aksjer i eiendomsselskaper, Tilgjengelig for salg, Private aksjeselskaper mv., norske kroner",0,0,"1362100",0,"000",20,21000,0,0,10,0,null,null,null,"02.4.1"]
["Aksjer, ekskl. aksjer i eiendomsselskaper, Tilgjengelig for salg, Private aksjeselskaper mv., tilknyttede selskaper, norske kroner",0,0,"1362100",0,"000",20,21008,0,0,10,0,null,null,null,"02.2.1"]
["Aksjer, ekskl. aksjer i eiendomsselskaper, Tilgjengelig for salg, Private aksjeselskaper mv., konsernselskap, norske kroner",0,0,"1362100",0,"000",20,21009,0,0,10,0,null,null,null,"02.2.1"]
["Aksjer, ekskl. aksjer i eiendomsselskaper, Tilgjengelig for salg, Personlige foretak, norske kroner",0,0,"1362100",0,"000",20,23000,0,0,10,0,null,null,null,"02.4.1"]
["Aksjer, ekskl. aksjer i eiendomsselskaper, Tilgjengelig for salg, Banker, norske kroner",0,0,"1362100",0,"000",20,32000,0,0,10,0,null,null,null,"02.4.1"]
["Aksjer, ekskl. aksjer i eiendomsselskaper, Tilgjengelig for salg, Banker, tilknyttede banker, norske kroner",0,0,"1362100",0,"000",20,32008,0,0,10,0,null,null,null,"02.2.1"]
["Aksjer, ekskl. aksjer i eiendomsselskaper, Tilgjengelig for salg, Banker, Konsernbanker, norske kroner",0,0,"1362100",0,"000",20,32009,0,0,10,0,null,null,null,"02.2.1"]
["Aksjer, ekskl. aksjer i eiendomsselskaper, Tilgjengelig for salg, Kredittforetak, norske kroner",0,0,"1362100",0,"000",20,35000,0,0,10,0,null,null,null,"02.4.1"]
["Aksjer, ekskl. aksjer i eiendomsselskaper, Tilgjengelig for salg, Kredittforetak, tilknyttede selskaper, norske kroner",0,0,"1362100",0,"000",20,35008,0,0,10,0,null,null,null,"02.2.1"]
["Aksjer, ekskl. aksjer i eiendomsselskaper, Tilgjengelig for salg, Kredittforetak, konsernselskap, norske kroner",0,0,"1362100",0,"000",20,35009,0,0,10,0,null,null,null,"02.2.1"]
["Aksjer, ekskl. aksjer i eiendomsselskaper, Tilgjengelig for salg, Finansieringsselskaper, norske kroner",0,0,"1362100",0,"000",20,36000,0,0,10,0,null,null,null,"02.4.1"]
["Aksjer, ekskl. aksjer i eiendomsselskaper, Tilgjengelig for salg, Finansieringsselskaper, tilknyttede selskaper, norske kroner",0,0,"1362100",0,"000",20,36008,0,0,10,0,null,null,null,"02.2.1"]
["Aksjer, ekskl. aksjer i eiendomsselskaper, Tilgjengelig for salg, Finansieringsselskaper, konsernselskap, norske kroner",0,0,"1362100",0,"000",20,36009,0,0,10,0,null,null,null,"02.2.1"]
["Aksjer, ekskl. aksjer i eiendomsselskaper, Tilgjengelig for salg, Statlige investeringsselskaper, norske kroner",0,0,"1362100",0,"000",20,"39000",0,0,10,0,null,null,null,"02.4.1"]
["Aksjer, ekskl. aksjer i eiendomsselskaper, Tilgjengelig for salg, Finansielle holdingselskaper, norske kroner",0,0,"1362100",0,"000",20,41000,0,0,10,0,null,null,null,"02.4.1"]
["Aksjer, ekskl. aksjer i eiendomsselskaper, Tilgjengelig for salg, Finansielle holdingselskaper, tilknyttede selskaper, norske kroner",0,0,"1362100",0,"000",20,41008,0,0,10,0,null,null,null,"02.2.1"]
["Aksjer, ekskl. aksjer i eiendomsselskaper, Tilgjengelig for salg, Finansielle holdingselskaper, konsernselskap, norske kroner",0,0,"1362100",0,"000",20,41009,0,0,10,0,null,null,null,"02.2.1"]
["Aksjer, ekskl. aksjer i eiendomsselskaper, Tilgjengelig for salg, Investeringsselskaper og aktive eierfond/PE-fond, norske kroner",0,0,"1362100",0,"000",20,45000,0,0,10,0,null,null,null,"02.4.1"]
["Aksjer, ekskl. aksjer i eiendomsselskaper, Tilgjengelig for salg, Investeringsselskaper og aktive eierfond/PE-fond, tilknyttede selskaper, norske kroner",0,0,"1362100",0,"000",20,45008,0,0,10,0,null,null,null,"02.2.1"]
["Aksjer, ekskl. aksjer i eiendomsselskaper, Tilgjengelig for salg, Investeringsselskaper og aktive eierfond/PE-fond, konsernselskap, norske kroner",0,0,"1362100",0,"000",20,45009,0,0,10,0,null,null,null,"02.2.1"]
["Aksjer, ekskl. aksjer i eiendomsselskaper, Tilgjengelig for salg, Øvrige finansielle foretak unntatt forsikring, norske kroner",0,0,"1362100",0,"000",20,49000,0,0,10,0,null,null,null,"02.4.1"]
["Aksjer, ekskl. aksjer i eiendomsselskaper, Tilgjengelig for salg, Øvrige finansielle foretak unntatt forsikring, tilknyttede selskaper, norske kroner",0,0,"1362100",0,"000",20,49008,0,0,10,0,null,null,null,"02.2.1"]
["Aksjer, ekskl. aksjer i eiendomsselskaper, Tilgjengelig for salg, Øvrige finansielle foretak unntatt forsikring, konsernselskap, norske kroner",0,0,"1362100",0,"000",20,49009,0,0,10,0,null,null,null,"02.2.1"]
["Aksjer, ekskl. aksjer i eiendomsselskaper, Tilgjengelig for salg, Livsforsikringsselskaper og pensjonskasser, norske kroner",0,0,"1362100",0,"000",20,55000,0,0,10,0,null,null,null,"02.4.1"]
["Aksjer, ekskl. aksjer i eiendomsselskaper, Tilgjengelig for salg, Livsforsikringsselskaper og pensjonskasser, tilknyttede selskaper, norske kroner",0,0,"1362100",0,"000",20,55008,0,0,10,0,null,null,null,"02.2.1"]
["Aksjer, ekskl. aksjer i eiendomsselskaper, Tilgjengelig for salg, Livsforsikringsselskaper og pensjonskasser, konsernselskap, norske kroner",0,0,"1362100",0,"000",20,55009,0,0,10,0,null,null,null,"02.2.1"]
["Aksjer, ekskl. aksjer i eiendomsselskaper, Tilgjengelig for salg, Skadeforsikringsselskaper, norske kroner",0,0,"1362100",0,"000",20,57000,0,0,10,0,null,null,null,"02.4.1"]
["Aksjer, ekskl. aksjer i eiendomsselskaper, Tilgjengelig for salg, Skadeforsikringsselskaper, tilknyttede selskaper, norske kroner",0,0,"1362100",0,"000",20,57008,0,0,10,0,null,null,null,"02.2.1"]
["Aksjer, ekskl. aksjer i eiendomsselskaper, Tilgjengelig for salg, Skadeforsikringsselskaper, konsernselskap, norske kroner",0,0,"1362100",0,"000",20,57009,0,0,10,0,null,null,null,"02.2.1"]
["Aksjer, ekskl. aksjer i eiendomsselskaper, Tilgjengelig for salg, Ufordelt sektor, norske kroner",0,0,"1362100",0,"000",20,"08000",0,0,10,0,null,null,null,"02.4.1"]
["Aksjer, ekskl. aksjer i eiendomsselskaper, Tilgjengelig for salg, Utenlandske sektorer ekskl. tilknyttede og konsernselskap, norske kroner",0,0,"1362100",0,"000",20,90010,0,0,10,0,null,null,null,"02.4.1"]
["Aksjer, ekskl. aksjer i eiendomsselskaper, Tilgjengelig for salg, Utenlandske sektorer ekskl. tilknyttede og konsernselskap, Utenlandsk valuta i NOK",0,0,"1362100",0,"000",20,90010,0,0,30,0,null,null,null,"02.4.1"]
["Aksjer, ekskl. aksjer i eiendomsselskaper, Tilgjengelig for salg, Utlandet, tilknyttede selskaper, norske kroner",0,0,"1362100",0,"000",20,90008,0,0,10,0,null,null,null,"02.2.1"]
["Aksjer, ekskl. aksjer i eiendomsselskaper, Tilgjengelig for salg, Utlandet, tilknyttede selskaper, Utenlandsk valuta i NOK",0,0,"1362100",0,"000",20,90008,0,0,30,0,null,null,null,"02.2.1"]
["Aksjer, ekskl. aksjer i eiendomsselskaper, Tilgjengelig for salg, Utlandet, konsernselskap, norske kroner",0,0,"1362100",0,"000",20,90009,0,0,10,0,null,null,null,"02.2.1"]
["Aksjer, ekskl. aksjer i eiendomsselskaper, Tilgjengelig for salg, Utlandet, konsernselskap, Utenlandsk valuta i NOK",0,0,"1362100",0,"000",20,90009,0,0,30,0,null,null,null,"02.2.1"]
[]
["Aksjer, ekskl. aksjer i eiendomsselskaper, Anskaffelseskost, Statlig eide aksjeselskaper mv., norske kroner",0,0,"1362100",0,"000",60,11200,0,0,10,0,null,null,null,"02.4.1"]
["Aksjer, ekskl. aksjer i eiendomsselskaper, Anskaffelseskost, Kommunale aksjeselskaper mv., norske kroner",0,0,"1362100",0,"000",60,15200,0,0,10,0,null,null,null,"02.4.1"]
["Aksjer, ekskl. aksjer i eiendomsselskaper, Anskaffelseskost, Kommunale aksjeselskaper mv., Tilknyttet selskap, norske kroner",0,0,"1362100",0,"000",60,"15208",0,0,10,0,null,null,null,"02.2.1"]
["Aksjer, ekskl. aksjer i eiendomsselskaper, Anskaffelseskost, Private aksjeselskaper mv., norske kroner",0,0,"1362100",0,"000",60,21000,0,0,10,0,null,null,null,"02.4.1"]
["Aksjer, ekskl. aksjer i eiendomsselskaper, Anskaffelseskost, Private aksjeselskaper mv., tilknyttede selskaper, norske kroner",0,0,"1362100",0,"000",60,21008,0,0,10,0,null,null,null,"02.2.1"]
["Aksjer, ekskl. aksjer i eiendomsselskaper, Anskaffelseskost, Private aksjeselskaper mv., konsernselskap, norske kroner",0,0,"1362100",0,"000",60,21009,0,0,10,0,null,null,null,"02.2.1"]
["Aksjer, ekskl. aksjer i eiendomsselskaper, Anskaffelseskost, Personlige foretak, norske kroner",0,0,"1362100",0,"000",60,23000,0,0,10,0,null,null,null,"02.4.1"]
["Aksjer, ekskl. aksjer i eiendomsselskaper, Anskaffelseskost, Banker, norske kroner",0,0,"1362100",0,"000",60,32000,0,0,10,0,null,null,null,"02.4.1"]
["Aksjer, ekskl. aksjer i eiendomsselskaper, Anskaffelseskost, Banker, tilknyttede banker, norske kroner",0,0,"1362100",0,"000",60,32008,0,0,10,0,null,null,null,"02.2.1"]
["Aksjer, ekskl. aksjer i eiendomsselskaper, Anskaffelseskost, Banker, Konsernbanker, norske kroner",0,0,"1362100",0,"000",60,32009,0,0,10,0,null,null,null,"02.2.1"]
["Aksjer, ekskl. aksjer i eiendomsselskaper, Anskaffelseskost, Kredittforetak, norske kroner",0,0,"1362100",0,"000",60,35000,0,0,10,0,null,null,null,"02.4.1"]
["Aksjer, ekskl. aksjer i eiendomsselskaper, Anskaffelseskost, Kredittforetak, tilknyttede selskaper, norske kroner",0,0,"1362100",0,"000",60,35008,0,0,10,0,null,null,null,"02.2.1"]
["Aksjer, ekskl. aksjer i eiendomsselskaper, Anskaffelseskost, Kredittforetak, konsernselskap, norske kroner",0,0,"1362100",0,"000",60,35009,0,0,10,0,null,null,null,"02.2.1"]
["Aksjer, ekskl. aksjer i eiendomsselskaper, Anskaffelseskost, Finansieringsselskaper, norske kroner",0,0,"1362100",0,"000",60,36000,0,0,10,0,null,null,null,"02.4.1"]
["Aksjer, ekskl. aksjer i eiendomsselskaper, Anskaffelseskost, Finansieringsselskaper, tilknyttede selskaper, norske kroner",0,0,"1362100",0,"000",60,36008,0,0,10,0,null,null,null,"02.2.1"]
["Aksjer, ekskl. aksjer i eiendomsselskaper, Anskaffelseskost, Finansieringsselskaper, konsernselskap, norske kroner",0,0,"1362100",0,"000",60,36009,0,0,10,0,null,null,null,"02.2.1"]
["Aksjer, ekskl. aksjer i eiendomsselskaper, Anskaffelseskost, Statlige investeringsselskaper, norske kroner",0,0,"1362100",0,"000",60,"39000",0,0,10,0,null,null,null,"02.4.1"]
["Aksjer, ekskl. aksjer i eiendomsselskaper, Anskaffelseskost, Finansielle holdingselskaper, norske kroner",0,0,"1362100",0,"000",60,41000,0,0,10,0,null,null,null,"02.4.1"]
["Aksjer, ekskl. aksjer i eiendomsselskaper, Anskaffelseskost, Finansielle holdingselskaper, tilknyttede selskaper, norske kroner",0,0,"1362100",0,"000",60,41008,0,0,10,0,null,null,null,"02.2.1"]
["Aksjer, ekskl. aksjer i eiendomsselskaper, Anskaffelseskost, Finansielle holdingselskaper, konsernselskap, norske kroner",0,0,"1362100",0,"000",60,41009,0,0,10,0,null,null,null,"02.2.1"]
["Aksjer, ekskl. aksjer i eiendomsselskaper, Anskaffelseskost, Investeringsselskaper og aktive eierfond/PE-fond, norske kroner",0,0,"1362100",0,"000",60,45000,0,0,10,0,null,null,null,"02.4.1"]
["Aksjer, ekskl. aksjer i eiendomsselskaper, Anskaffelseskost, Investeringsselskaper og aktive eierfond/PE-fond, tilknyttede selskaper, norske kroner",0,0,"1362100",0,"000",60,45008,0,0,10,0,null,null,null,"02.2.1"]
["Aksjer, ekskl. aksjer i eiendomsselskaper, Anskaffelseskost, Investeringsselskaper og aktive eierfond/PE-fond, konsernselskap, norske kroner",0,0,"1362100",0,"000",60,45009,0,0,10,0,null,null,null,"02.2.1"]
["Aksjer, ekskl. aksjer i eiendomsselskaper, Anskaffelseskost, Øvrige finansielle foretak unntatt forsikring, norske kroner",0,0,"1362100",0,"000",60,49000,0,0,10,0,null,null,null,"02.4.1"]
["Aksjer, ekskl. aksjer i eiendomsselskaper, Anskaffelseskost, Øvrige finansielle foretak unntatt forsikring, tilknyttede selskaper, norske kroner",0,0,"1362100",0,"000",60,49008,0,0,10,0,null,null,null,"02.2.1"]
["Aksjer, ekskl. aksjer i eiendomsselskaper, Anskaffelseskost, Øvrige finansielle foretak unntatt forsikring, konsernselskap, norske kroner",0,0,"1362100",0,"000",60,49009,0,0,10,0,null,null,null,"02.2.1"]
["Aksjer, ekskl. aksjer i eiendomsselskaper, Anskaffelseskost, Livsforsikringsselskaper og pensjonskasser, norske kroner",0,0,"1362100",0,"000",60,55000,0,0,10,0,null,null,null,"02.4.1"]
["Aksjer, ekskl. aksjer i eiendomsselskaper, Anskaffelseskost, Livsforsikringsselskaper og pensjonskasser, tilknyttede selskaper, norske kroner",0,0,"1362100",0,"000",60,55008,0,0,10,0,null,null,null,"02.2.1"]
["Aksjer, ekskl. aksjer i eiendomsselskaper, Anskaffelseskost, Livsforsikringsselskaper og pensjonskasser, konsernselskap, norske kroner",0,0,"1362100",0,"000",60,55009,0,0,10,0,null,null,null,"02.2.1"]
["Aksjer, ekskl. aksjer i eiendomsselskaper, Anskaffelseskost, Skadeforsikringsselskaper, norske kroner",0,0,"1362100",0,"000",60,57000,0,0,10,0,null,null,null,"02.4.1"]
["Aksjer, ekskl. aksjer i eiendomsselskaper, Anskaffelseskost, Skadeforsikringsselskaper, tilknyttede selskaper, norske kroner",0,0,"1362100",0,"000",60,57008,0,0,10,0,null,null,null,"02.2.1"]
["Aksjer, ekskl. aksjer i eiendomsselskaper, Anskaffelseskost, Skadeforsikringsselskaper, konsernselskap, norske kroner",0,0,"1362100",0,"000",60,57009,0,0,10,0,null,null,null,"02.2.1"]
["Aksjer, ekskl. aksjer i eiendomsselskaper, Anskaffelseskost, Ufordelt sektor, norske kroner",0,0,"1362100",0,"000",60,"08000",0,0,10,0,null,null,null,"02.4.1"]
["Aksjer, ekskl. aksjer i eiendomsselskaper, Anskaffelseskost, Utenlandske sektorer ekskl. tilknyttede og konsernselskap, norske kroner",0,0,"1362100",0,"000",60,90010,0,0,10,0,null,null,null,"02.4.1"]
["Aksjer, ekskl. aksjer i eiendomsselskaper, Anskaffelseskost, Utenlandske sektorer ekskl. tilknyttede og konsernselskap, Utenlandsk valuta i NOK",0,0,"1362100",0,"000",60,90010,0,0,30,0,null,null,null,"02.4.1"]
["Aksjer, ekskl. aksjer i eiendomsselskaper, Anskaffelseskost, Utlandet, tilknyttede selskaper, norske kroner",0,0,"1362100",0,"000",60,90008,0,0,10,0,null,null,null,"02.2.1"]
["Aksjer, ekskl. aksjer i eiendomsselskaper, Anskaffelseskost, Utlandet, tilknyttede selskaper, Utenlandsk valuta i NOK",0,0,"1362100",0,"000",60,90008,0,0,30,0,null,null,null,"02.2.1"]
["Aksjer, ekskl. aksjer i eiendomsselskaper, Anskaffelseskost, Utlandet, konsernselskap, norske kroner",0,0,"1362100",0,"000",60,90009,0,0,10,0,null,null,null,"02.2.1"]
["Aksjer, ekskl. aksjer i eiendomsselskaper, Anskaffelseskost, Utlandet, konsernselskap, Utenlandsk valuta i NOK",0,0,"1362100",0,"000",60,90009,0,0,30,0,null,null,null,"02.2.1"]
[]
["Aksjer i eiendomsselskaper, Virkelig verdi med resultatføring, Statlig eide aksjeselskaper mv., norske kroner",0,0,"1362200",0,"000",10,11200,0,0,10,0,null,null,null,"02.4.1"]
["Aksjer i eiendomsselskaper, Virkelig verdi med resultatføring, Kommunale aksjeselskaper mv., norske kroner",0,0,"1362200",0,"000",10,15200,0,0,10,0,null,null,null,"02.4.1"]
["Aksjer i eiendomsselskaper, Virkelig verdi med resultatføring, Kommunale aksjeselskaper mv., tilknyttet foretak, norske kroner",0,0,"1362200",0,"000",10,"15208",0,0,10,0,null,null,null,"02.2.1"]
["Aksjer i eiendomsselskaper, Virkelig verdi med resultatføring, Private aksjeselskaper mv., norske kroner",0,0,"1362200",0,"000",10,21000,0,0,10,0,null,null,null,"02.4.1"]
["Aksjer i eiendomsselskaper, Virkelig verdi med resultatføring, Private aksjeselskaper mv., tilknyttede selskaper, norske kroner",0,0,"1362200",0,"000",10,21008,0,0,10,0,null,null,null,"02.2.1"]
["Aksjer i eiendomsselskaper, Virkelig verdi med resultatføring, Private aksjeselskaper mv., konsernselskap, norske kroner",0,0,"1362200",0,"000",10,21009,0,0,10,0,null,null,null,"02.2.1"]
["Aksjer i eiendomsselskaper, Virkelig verdi med resultatføring, Investeringsselskaper og aktive eierfond/PE-fond, norske kroner",0,0,"1362200",0,"000",10,45000,0,0,10,0,null,null,null,"02.4.1"]
["Aksjer i eiendomsselskaper, Virkelig verdi med resultatføring, Investeringsselskaper og aktive eierfond/PE-fond, tilknyttede selskaper, norske kroner",0,0,"1362200",0,"000",10,45008,0,0,10,0,null,null,null,"02.2.1"]
["Aksjer i eiendomsselskaper, Virkelig verdi med resultatføring, Investeringsselskaper og aktive eierfond/PE-fond, konsernselskap, norske kroner",0,0,"1362200",0,"000",10,45009,0,0,10,0,null,null,null,"02.2.1"]
["Aksjer i eiendomsselskaper, Virkelig verdi med resultatføring, Øvrige finansielle foretak unntatt forsikring, konsernselskap, norske kroner",0,0,"1362200",0,"000",10,"49000",0,0,10,0,null,null,null,"02.2.1"]
["Aksjer i eiendomsselskaper, Virkelig verdi med resultatføring, Utenlandske sektorer ekskl. tilknyttede og konsernselskap, norske kroner",0,0,"1362200",0,"000",10,90010,0,0,10,0,null,null,null,"02.4.1"]
["Aksjer i eiendomsselskaper, Virkelig verdi med resultatføring, Utenlandske sektorer ekskl. tilknyttede og konsernselskap, Utenlandsk valuta i NOK",0,0,"1362200",0,"000",10,90010,0,0,30,0,null,null,null,"02.4.1"]
["Aksjer i eiendomsselskaper, Virkelig verdi med resultatføring, Utlandet, tilknyttede selskaper, norske kroner",0,0,"1362200",0,"000",10,90008,0,0,10,0,null,null,null,"02.2.1"]
["Aksjer i eiendomsselskaper, Virkelig verdi med resultatføring, Utlandet, tilknyttede selskaper, Utenlandsk valuta i NOK",0,0,"1362200",0,"000",10,90008,0,0,30,0,null,null,null,"02.2.1"]
["Aksjer i eiendomsselskaper, Virkelig verdi med resultatføring, Utlandet, konsernselskap, norske kroner",0,0,"1362200",0,"000",10,90009,0,0,10,0,null,null,null,"02.2.1"]
["Aksjer i eiendomsselskaper, Virkelig verdi med resultatføring, Utlandet, konsernselskap, Utenlandsk valuta i NOK",0,0,"1362200",0,"000",10,90009,0,0,30,0,null,null,null,"02.2.1"]
[]
["Aksjer i eiendomsselskaper, Tilgjengelig for salg, Statlig eide aksjeselskaper mv., norske kroner",0,0,"1362200",0,"000",20,11200,0,0,10,0,null,null,null,"02.4.1"]
["Aksjer i eiendomsselskaper, Tilgjengelig for salg, Kommunale aksjeselskaper mv., norske kroner",0,0,"1362200",0,"000",20,15200,0,0,10,0,null,null,null,"02.4.1"]
["Aksjer i eiendomsselskaper, Tilgjengelig for salg, Kommunale aksjeselskaper mv., tilknyttet foretak, norske kroner",0,0,"1362200",0,"000",20,"15208",0,0,10,0,null,null,null,"02.2.1"]
["Aksjer i eiendomsselskaper, Tilgjengelig for salg, Private aksjeselskaper mv., norske kroner",0,0,"1362200",0,"000",20,21000,0,0,10,0,null,null,null,"02.4.1"]
["Aksjer i eiendomsselskaper, Tilgjengelig for salg, Private aksjeselskaper mv., tilknyttede selskaper, norske kroner",0,0,"1362200",0,"000",20,21008,0,0,10,0,null,null,null,"02.2.1"]
["Aksjer i eiendomsselskaper, Tilgjengelig for salg, Private aksjeselskaper mv., konsernselskap, norske kroner",0,0,"1362200",0,"000",20,21009,0,0,10,0,null,null,null,"02.2.1"]
["Aksjer i eiendomsselskaper, Tilgjengelig for salg, Investeringsselskaper og aktive eierfond/PE-fond, norske kroner",0,0,"1362200",0,"000",20,45000,0,0,10,0,null,null,null,"02.4.1"]
["Aksjer i eiendomsselskaper, Tilgjengelig for salg, Investeringsselskaper og aktive eierfond/PE-fond, tilknyttede selskaper, norske kroner",0,0,"1362200",0,"000",20,45008,0,0,10,0,null,null,null,"02.2.1"]
["Aksjer i eiendomsselskaper, Tilgjengelig for salg, Investeringsselskaper og aktive eierfond/PE-fond, konsernselskap, norske kroner",0,0,"1362200",0,"000",20,45009,0,0,10,0,null,null,null,"02.2.1"]
["Aksjer i eiendomsselskaper, Tilgjengelig for salg, Øvrige finansielle foretak unntatt forsikring, norske kroner",0,0,"1362200",0,"000",20,"49000",0,0,10,0,null,null,null,"02.2.1"]
["Aksjer i eiendomsselskaper, Tilgjengelig for salg, Utenlandske sektorer ekskl. tilknyttede og konsernselskap, norske kroner",0,0,"1362200",0,"000",20,90010,0,0,10,0,null,null,null,"02.4.1"]
["Aksjer i eiendomsselskaper, Tilgjengelig for salg, Utenlandske sektorer ekskl. tilknyttede og konsernselskap, Utenlandsk valuta i NOK",0,0,"1362200",0,"000",20,90010,0,0,30,0,null,null,null,"02.4.1"]
["Aksjer i eiendomsselskaper, Tilgjengelig for salg, Utlandet, tilknyttede selskaper, norske kroner",0,0,"1362200",0,"000",20,90008,0,0,10,0,null,null,null,"02.2.1"]
["Aksjer i eiendomsselskaper, Tilgjengelig for salg, Utlandet, tilknyttede selskaper, Utenlandsk valuta i NOK",0,0,"1362200",0,"000",20,90008,0,0,30,0,null,null,null,"02.2.1"]
["Aksjer i eiendomsselskaper, Tilgjengelig for salg, Utlandet, konsernselskap, norske kroner",0,0,"1362200",0,"000",20,90009,0,0,10,0,null,null,null,"02.2.1"]
["Aksjer i eiendomsselskaper, Tilgjengelig for salg, Utlandet, konsernselskap, Utenlandsk valuta i NOK",0,0,"1362200",0,"000",20,90009,0,0,30,0,null,null,null,"02.2.1"]
[]
["Aksjer i eiendomsselskaper, Anskaffelseskost, Statlig eide aksjeselskaper mv., norske kroner",0,0,"1362200",0,"000",60,11200,0,0,10,0,null,null,null,"02.4.1"]
["Aksjer i eiendomsselskaper, Anskaffelseskost, Kommunale aksjeselskaper mv., norske kroner",0,0,"1362200",0,"000",60,15200,0,0,10,0,null,null,null,"02.4.1"]
["Aksjer i eiendomsselskaper, Anskaffelseskost, Kommunale aksjeselskaper mv., tilknyttet foretak, norske kroner",0,0,"1362200",0,"000",60,"15208",0,0,10,0,null,null,null,"02.2.1"]
["Aksjer i eiendomsselskaper, Anskaffelseskost, Private aksjeselskaper mv., norske kroner",0,0,"1362200",0,"000",60,21000,0,0,10,0,null,null,null,"02.4.1"]
["Aksjer i eiendomsselskaper, Anskaffelseskost, Private aksjeselskaper mv., tilknyttede selskaper, norske kroner",0,0,"1362200",0,"000",60,21008,0,0,10,0,null,null,null,"02.2.1"]
["Aksjer i eiendomsselskaper, Anskaffelseskost, Private aksjeselskaper mv., konsernselskap, norske kroner",0,0,"1362200",0,"000",60,21009,0,0,10,0,null,null,null,"02.2.1"]
["Aksjer i eiendomsselskaper, Anskaffelseskost, Investeringsselskaper og aktive eierfond/PE-fond, norske kroner",0,0,"1362200",0,"000",60,45000,0,0,10,0,null,null,null,"02.4.1"]
["Aksjer i eiendomsselskaper, Anskaffelseskost, Investeringsselskaper og aktive eierfond/PE-fond, tilknyttede selskaper, norske kroner",0,0,"1362200",0,"000",60,45008,0,0,10,0,null,null,null,"02.2.1"]
["Aksjer i eiendomsselskaper, Anskaffelseskost, Investeringsselskaper og aktive eierfond/PE-fond, konsernselskap, norske kroner",0,0,"1362200",0,"000",60,45009,0,0,10,0,null,null,null,"02.2.1"]
["Aksjer i eiendomsselskaper, Anskaffelseskost, Øvrige finansielle foretak unntatt forsikring, norske kroner",0,0,"1362200",0,"000",60,"49000",0,0,10,0,null,null,null,"02.2.1"]
["Aksjer i eiendomsselskaper, Anskaffelseskost, Utenlandske sektorer ekskl. tilknyttede og konsernselskap, norske kroner",0,0,"1362200",0,"000",60,90010,0,0,10,0,null,null,null,"02.4.1"]
["Aksjer i eiendomsselskaper, Anskaffelseskost, Utenlandske sektorer ekskl. tilknyttede og konsernselskap, Utenlandsk valuta i NOK",0,0,"1362200",0,"000",60,90010,0,0,30,0,null,null,null,"02.4.1"]
["Aksjer i eiendomsselskaper, Anskaffelseskost, Utlandet, tilknyttede selskaper, norske kroner",0,0,"1362200",0,"000",60,90008,0,0,10,0,null,null,null,"02.2.1"]
["Aksjer i eiendomsselskaper, Anskaffelseskost, Utlandet, tilknyttede selskaper, Utenlandsk valuta i NOK",0,0,"1362200",0,"000",60,90008,0,0,30,0,null,null,null,"02.2.1"]
["Aksjer i eiendomsselskaper, Anskaffelseskost, Utlandet, konsernselskap, norske kroner",0,0,"1362200",0,"000",60,90009,0,0,10,0,null,null,null,"02.2.1"]
["Aksjer i eiendomsselskaper, Anskaffelseskost, Utlandet, konsernselskap, Utenlandsk valuta i NOK",0,0,"1362200",0,"000",60,90009,0,0,30,0,null,null,null,"02.2.1"]
[]
["Andeler i KS og ansvarlige selskaper, ekskl. andeler i eiendomsselskaper, Virkelig verdi med resultatføring, Statlig eide aksjeselskaper mv., norske kroner",0,0,"1363100",0,"000",10,11200,0,0,10,0,null,null,null,"02.4.1"]
["Andeler i KS og ansvarlige selskaper, ekskl. andeler i eiendomsselskaper, Virkelig verdi med resultatføring, Kommunale aksjeselskaper mv., norske kroner",0,0,"1363100",0,"000",10,15200,0,0,10,0,null,null,null,"02.4.1"]
["Andeler i KS og ansvarlige selskaper, ekskl. andeler i eiendomsselskaper, Virkelig verdi med resultatføring, Private aksjeselskaper mv., norske kroner",0,0,"1363100",0,"000",10,21000,0,0,10,0,null,null,null,"02.4.1"]
["Andeler i KS og ansvarlige selskaper, ekskl. andeler i eiendomsselskaper, Virkelig verdi med resultatføring, Private aksjeselskaper mv., tilknyttede selskaper, norske kroner",0,0,"1363100",0,"000",10,21008,0,0,10,0,null,null,null,"02.2.1"]
["Andeler i KS og ansvarlige selskaper, ekskl. andeler i eiendomsselskaper, Virkelig verdi med resultatføring, Private aksjeselskaper mv., konsernselskap, norske kroner",0,0,"1363100",0,"000",10,21009,0,0,10,0,null,null,null,"02.2.1"]
["Andeler i KS og ansvarlige selskaper, ekskl. andeler i eiendomsselskaper, Virkelig verdi med resultatføring, Personlige foretak, norske kroner",0,0,"1363100",0,"000",10,23000,0,0,10,0,null,null,null,"02.4.1"]
["Andeler i KS og ansvarlige selskaper, ekskl. andeler i eiendomsselskaper, Virkelig verdi med resultatføring, Investeringsselskaper og aktive eierfond/PE-fond, norske kroner",0,0,"1363100",0,"000",10,45000,0,0,10,0,null,null,null,"02.4.1"]
["Andeler i KS og ansvarlige selskaper, ekskl. andeler i eiendomsselskaper, Virkelig verdi med resultatføring, Investeringsselksaper og aktive eierfond/PE-fond, tilknyttede selskaper, norske kroner",0,0,"1363100",0,"000",10,45008,0,0,10,0,null,null,null,"02.2.1"]
["Andeler i KS og ansvarlige selskaper, ekskl. andeler i eiendomsselskaper, Virkelig verdi med resultatføring, Investeringsselskaper og aktive eierfond/PE-fond, konsernselskap, norske kroner",0,0,"1363100",0,"000",10,45009,0,0,10,0,null,null,null,"02.2.1"]
["Andeler i KS og ansvarlige selskaper, ekskl. andeler i eiendomsselskaper, Virkelig verdi med resultatføring, Øvrige finansielle foretak unntatt forsikring, norske kroner",0,0,"1363100",0,"000",10,49000,0,0,10,0,null,null,null,"02.4.1"]
["Andeler i KS og ansvarlige selskaper, ekskl. andeler i eiendomsselskaper, Virkelig verdi med resultatføring, Øvrige finansielle foretak unntatt forsikring, tilknyttede selskaper, norske kroner",0,0,"1363100",0,"000",10,49008,0,0,10,0,null,null,null,"02.2.1"]
["Andeler i KS og ansvarlige selskaper, ekskl. andeler i eiendomsselskaper, Virkelig verdi med resultatføring, Øvrige finansielle foretak unntatt forsikring, konsernselskap, norske kroner",0,0,"1363100",0,"000",10,49009,0,0,10,0,null,null,null,"02.2.1"]
["Andeler i KS og ansvarlige selskaper, ekskl. andeler i eiendomsselskaper, Virkelig verdi med resultatføring, Utenlandske sektorer , Utenlandsk valuta i NOK",0,0,"1363100",0,"000",10,90010,0,0,30,0,null,null,null,"02.4.1"]
[]
["Andeler i KS og ansvarlige selskaper, ekskl. andeler i eiendomsselskaper, Tilgjengelig for salg, Statlig eide aksjeselskaper mv., norske kroner",0,0,"1363100",0,"000",20,11200,0,0,10,0,null,null,null,"02.4.1"]
["Andeler i KS og ansvarlige selskaper, ekskl. andeler i eiendomsselskaper, Tilgjengelig for salg, Kommunale aksjeselskaper mv., norske kroner",0,0,"1363100",0,"000",20,15200,0,0,10,0,null,null,null,"02.4.1"]
["Andeler i KS og ansvarlige selskaper, ekskl. andeler i eiendomsselskaper, Tilgjengelig for salg, Private aksjeselskaper mv., norske kroner",0,0,"1363100",0,"000",20,21000,0,0,10,0,null,null,null,"02.4.1"]
["Andeler i KS og ansvarlige selskaper, ekskl. andeler i eiendomsselskaper, Tilgjengelig for salg, Private aksjeselskaper mv., tilknyttede selskaper, norske kroner",0,0,"1363100",0,"000",20,21008,0,0,10,0,null,null,null,"02.2.1"]
["Andeler i KS og ansvarlige selskaper, ekskl. andeler i eiendomsselskaper, Tilgjengelig for salg, Private aksjeselskaper mv., konsernselskap, norske kroner",0,0,"1363100",0,"000",20,21009,0,0,10,0,null,null,null,"02.2.1"]
["Andeler i KS og ansvarlige selskaper, ekskl. andeler i eiendomsselskaper, Tilgjengelig for salg, Personlige foretak, norske kroner",0,0,"1363100",0,"000",20,23000,0,0,10,0,null,null,null,"02.4.1"]
["Andeler i KS og ansvarlige selskaper, ekskl. andeler i eiendomsselskaper, Tilgjengelig for salg, Investeringsselskaper og aktive eierfond/PE-fond, norske kroner",0,0,"1363100",0,"000",20,45000,0,0,10,0,null,null,null,"02.4.1"]
["Andeler i KS og ansvarlige selskaper, ekskl. andeler i eiendomsselskaper, Tilgjengelig for salg, Investeringsselksaper og aktive eierfond/PE-fond, tilknyttede selskaper, norske kroner",0,0,"1363100",0,"000",20,45008,0,0,10,0,null,null,null,"02.2.1"]
["Andeler i KS og ansvarlige selskaper, ekskl. andeler i eiendomsselskaper, Tilgjengelig for salg, Investeringsselskaper og aktive eierfond/PE-fond, konsernselskap, norske kroner",0,0,"1363100",0,"000",20,45009,0,0,10,0,null,null,null,"02.2.1"]
["Andeler i KS og ansvarlige selskaper, ekskl. andeler i eiendomsselskaper, Tilgjengelig for salg, Øvrige finansielle foretak unntatt forsikring, norske kroner",0,0,"1363100",0,"000",20,49000,0,0,10,0,null,null,null,"02.4.1"]
["Andeler i KS og ansvarlige selskaper, ekskl. andeler i eiendomsselskaper, Tilgjengelig for salg, Øvrige finansielle foretak unntatt forsikring, tilknyttede selskaper, norske kroner",0,0,"1363100",0,"000",20,49008,0,0,10,0,null,null,null,"02.2.1"]
["Andeler i KS og ansvarlige selskaper, ekskl. andeler i eiendomsselskaper, Tilgjengelig for salg, Øvrige finansielle foretak unntatt forsikring, konsernselskap, norske kroner",0,0,"1363100",0,"000",20,49009,0,0,10,0,null,null,null,"02.2.1"]
["Andeler i KS og ansvarlige selskaper, ekskl. andeler i eiendomsselskaper, Tilgjengelig for salg, Utenlandske sektorer , Utenlandsk valuta i NOK",0,0,"1363100",0,"000",20,90010,0,0,30,0,null,null,null,"02.4.1"]
[]
["Andeler i KS og ansvarlige selskaper, ekskl. andeler i eiendomsselskaper, Anskaffelseskost, Statlig eide aksjeselskaper mv., norske kroner",0,0,"1363100",0,"000",60,11200,0,0,10,0,null,null,null,"02.4.1"]
["Andeler i KS og ansvarlige selskaper, ekskl. andeler i eiendomsselskaper, Anskaffelseskost, Kommunale aksjeselskaper mv., norske kroner",0,0,"1363100",0,"000",60,15200,0,0,10,0,null,null,null,"02.4.1"]
["Andeler i KS og ansvarlige selskaper, ekskl. andeler i eiendomsselskaper, Anskaffelseskost, Private aksjeselskaper mv., norske kroner",0,0,"1363100",0,"000",60,21000,0,0,10,0,null,null,null,"02.4.1"]
["Andeler i KS og ansvarlige selskaper, ekskl. andeler i eiendomsselskaper, Anskaffelseskost, Private aksjeselskaper mv., tilknyttede selskaper, norske kroner",0,0,"1363100",0,"000",60,21008,0,0,10,0,null,null,null,"02.2.1"]
["Andeler i KS og ansvarlige selskaper, ekskl. andeler i eiendomsselskaper, Anskaffelseskost, Private aksjeselskaper mv., konsernselskap, norske kroner",0,0,"1363100",0,"000",60,21009,0,0,10,0,null,null,null,"02.2.1"]
["Andeler i KS og ansvarlige selskaper, ekskl. andeler i eiendomsselskaper, Anskaffelseskost, Personlige foretak, norske kroner",0,0,"1363100",0,"000",60,23000,0,0,10,0,null,null,null,"02.4.1"]
["Andeler i KS og ansvarlige selskaper, ekskl. andeler i eiendomsselskaper, Anskaffelseskost, Investeringsselskaper og aktive eierfond/PE-fond, norske kroner",0,0,"1363100",0,"000",60,45000,0,0,10,0,null,null,null,"02.4.1"]
["Andeler i KS og ansvarlige selskaper, ekskl. andeler i eiendomsselskaper, Anskaffelseskost, Investeringsselksaper og aktive eierfond/PE-fond, tilknyttede selskaper, norske kroner",0,0,"1363100",0,"000",60,45008,0,0,10,0,null,null,null,"02.2.1"]
["Andeler i KS og ansvarlige selskaper, ekskl. andeler i eiendomsselskaper, Anskaffelseskost, Investeringsselskaper og aktive eierfond/PE-fond, konsernselskap, norske kroner",0,0,"1363100",0,"000",60,45009,0,0,10,0,null,null,null,"02.2.1"]
["Andeler i KS og ansvarlige selskaper, ekskl. andeler i eiendomsselskaper, Anskaffelseskost, Øvrige finansielle foretak unntatt forsikring, norske kroner",0,0,"1363100",0,"000",60,49000,0,0,10,0,null,null,null,"02.4.1"]
["Andeler i KS og ansvarlige selskaper, ekskl. andeler i eiendomsselskaper, Anskaffelseskost, Øvrige finansielle foretak unntatt forsikring, tilknyttede selskaper, norske kroner",0,0,"1363100",0,"000",60,49008,0,0,10,0,null,null,null,"02.2.1"]
["Andeler i KS og ansvarlige selskaper, ekskl. andeler i eiendomsselskaper, Anskaffelseskost, Øvrige finansielle foretak unntatt forsikring, konsernselskap, norske kroner",0,0,"1363100",0,"000",60,49009,0,0,10,0,null,null,null,"02.2.1"]
["Andeler i KS og ansvarlige selskaper, ekskl. andeler i eiendomsselskaper, Anskaffelseskost, Utenlandske sektorer , Utenlandsk valuta i NOK",0,0,"1363100",0,"000",60,90010,0,0,30,0,null,null,null,"02.4.1"]
[]
["Andeler i KS og ansvarlige eiendomsselskaper, Virkelig verdi med resultatføring, Statlig eide aksjeselskaper mv., norske kroner",0,0,"1363200",0,"000",10,11200,0,0,10,0,null,null,null,"02.4.1"]
["Andeler i KS og ansvarlige eiendomsselskaper, Virkelig verdi med resultatføring, Kommunale aksjeselskaper mv., norske kroner",0,0,"1363200",0,"000",10,15200,0,0,10,0,null,null,null,"02.4.1"]
["Andeler i KS og ansvarlige eiendomsselskaper, Virkelig verdi med resultatføring, Private aksjeselskaper mv., norske kroner",0,0,"1363200",0,"000",10,21000,0,0,10,0,null,null,null,"02.4.1"]
["Andeler i KS og ansvarlige eiendomsselskaper, Virkelig verdi med resultatføring, Private aksjeselskaper mv., tilknyttede selskaper, norske kroner",0,0,"1363200",0,"000",10,21008,0,0,10,0,null,null,null,"02.2.1"]
["Andeler i KS og ansvarlige eiendomsselskaper, Virkelig verdi med resultatføring, Private aksjeselskaper mv., konsernselskap, norske kroner",0,0,"1363200",0,"000",10,21009,0,0,10,0,null,null,null,"02.2.1"]
["Andeler i KS og ansvarlige eiendomsselskaper, Virkelig verdi med resultatføring, Personlige foretak, norske kroner",0,0,"1363200",0,"000","10","23000",0,0,10,0,null,null,null,"02.4.1"]
["Andeler i KS og ansvarlige eiendomsselskaper, Virkelig verdi med resultatføring, Investeringsselskaper og aktive eierfond/PE-fond, norske kroner",0,0,"1363200",0,"000",10,45000,0,0,10,0,null,null,null,"02.4.1"]
["Andeler i KS og ansvarlige eiendomsselskaper, Virkelig verdi med resultatføring, Investeringsselskaper og aktive eierfond/PE-fond, tilknyttede selskaper, norske kroner",0,0,"1363200",0,"000",10,45008,0,0,10,0,null,null,null,"02.2.1"]
["Andeler i KS og ansvarlige eiendomsselskaper, Virkelig verdi med resultatføring, Investeringsselskaper og aktive eierfond/PE-fond, konsernselskap, norske kroner",0,0,"1363200",0,"000",10,45009,0,0,10,0,null,null,null,"02.2.1"]
["Andeler i KS og ansvarlige eiendomsselskaper, Virkelig verdi med resultatføring, Øvrige finansielle foretak unntatt forsikring, norske kroner",0,0,"1363200",0,"000",10,49000,0,0,10,0,null,null,null,"02.4.1"]
["Andeler i KS og ansvarlige eiendomsselskaper, Virkelig verdi med resultatføring, Øvrige finansielle foretak unntatt forsikring, tilknyttede selskaper, norske kroner",0,0,"1363200",0,"000",10,49008,0,0,10,0,null,null,null,"02.2.1"]
["Andeler i KS og ansvarlige eiendomsselskaper, Virkelig verdi med resultatføring, Øvrige finansielle foretak unntatt forsikring, konsernselskap, norske kroner",0,0,"1363200",0,"000",10,49009,0,0,10,0,null,null,null,"02.2.1"]
["Andeler i KS og ansvarlige eiendomsselskaper, Virkelig verdi med resultatføring, Utenlandske sektorer , Utenlandsk valuta i NOK",0,0,"1363200",0,"000",10,90010,0,0,30,0,null,null,null,"02.4.1"]
[]
["Andeler i KS og ansvarlige eiendomsselskaper, Tilgjengelig for salg, Statlig eide aksjeselskaper mv., norske kroner",0,0,"1363200",0,"000",20,11200,0,0,10,0,null,null,null,"02.4.1"]
["Andeler i KS og ansvarlige eiendomsselskaper, Tilgjengelig for salg, Kommunale aksjeselskaper mv., norske kroner",0,0,"1363200",0,"000",20,15200,0,0,10,0,null,null,null,"02.4.1"]
["Andeler i KS og ansvarlige eiendomsselskaper, Tilgjengelig for salg, Private aksjeselskaper mv., norske kroner",0,0,"1363200",0,"000",20,21000,0,0,10,0,null,null,null,"02.4.1"]
["Andeler i KS og ansvarlige eiendomsselskaper, Tilgjengelig for salg, Private aksjeselskaper mv., tilknyttede selskaper, norske kroner",0,0,"1363200",0,"000",20,21008,0,0,10,0,null,null,null,"02.2.1"]
["Andeler i KS og ansvarlige eiendomsselskaper, Tilgjengelig for salg, Private aksjeselskaper mv., konsernselskap, norske kroner",0,0,"1363200",0,"000",20,21009,0,0,10,0,null,null,null,"02.2.1"]
["Andeler i KS og ansvarlige eiendomsselskaper, Tilgjengelig for salg, Personlige foretak, norske kroner",0,0,"1363200",0,"000","20","23000",0,0,10,0,null,null,null,"02.4.1"]
["Andeler i KS og ansvarlige eiendomsselskaper, Tilgjengelig for salg, Investeringsselskaper og aktive eierfond/PE-fond, norske kroner",0,0,"1363200",0,"000",20,45000,0,0,10,0,null,null,null,"02.4.1"]
["Andeler i KS og ansvarlige eiendomsselskaper, Tilgjengelig for salg, Investeringsselskaper og aktive eierfond/PE-fond, tilknyttede selskaper, norske kroner",0,0,"1363200",0,"000",20,45008,0,0,10,0,null,null,null,"02.2.1"]
["Andeler i KS og ansvarlige eiendomsselskaper, Tilgjengelig for salg, Investeringsselskaper og aktive eierfond/PE-fond, konsernselskap, norske kroner",0,0,"1363200",0,"000",20,45009,0,0,10,0,null,null,null,"02.2.1"]
["Andeler i KS og ansvarlige eiendomsselskaper, Tilgjengelig for salg, Øvrige finansielle foretak unntatt forsikring, norske kroner",0,0,"1363200",0,"000",20,49000,0,0,10,0,null,null,null,"02.4.1"]
["Andeler i KS og ansvarlige eiendomsselskaper, Tilgjengelig for salg, Øvrige finansielle foretak unntatt forsikring, tilknyttede selskaper, norske kroner",0,0,"1363200",0,"000",20,49008,0,0,10,0,null,null,null,"02.2.1"]
["Andeler i KS og ansvarlige eiendomsselskaper, Tilgjengelig for salg, Øvrige finansielle foretak unntatt forsikring, konsernselskap, norske kroner",0,0,"1363200",0,"000",20,49009,0,0,10,0,null,null,null,"02.2.1"]
["Andeler i KS og ansvarlige eiendomsselskaper, Tilgjengelig for salg, Utenlandske sektorer , Utenlandsk valuta i NOK",0,0,"1363200",0,"000",20,90010,0,0,30,0,null,null,null,"02.4.1"]
[]
["Andeler i KS og ansvarlige eiendomsselskaper, Anskaffelseskost, Statlig eide aksjeselskaper mv., norske kroner",0,0,"1363200",0,"000",60,11200,0,0,10,0,null,null,null,"02.4.1"]
["Andeler i KS og ansvarlige eiendomsselskaper, Anskaffelseskost, Kommunale aksjeselskaper mv., norske kroner",0,0,"1363200",0,"000",60,15200,0,0,10,0,null,null,null,"02.4.1"]
["Andeler i KS og ansvarlige eiendomsselskaper, Anskaffelseskost, Private aksjeselskaper mv., norske kroner",0,0,"1363200",0,"000",60,21000,0,0,10,0,null,null,null,"02.4.1"]
["Andeler i KS og ansvarlige eiendomsselskaper, Anskaffelseskost, Private aksjeselskaper mv., tilknyttede selskaper, norske kroner",0,0,"1363200",0,"000",60,21008,0,0,10,0,null,null,null,"02.2.1"]
["Andeler i KS og ansvarlige eiendomsselskaper, Anskaffelseskost, Private aksjeselskaper mv., konsernselskap, norske kroner",0,0,"1363200",0,"000",60,21009,0,0,10,0,null,null,null,"02.2.1"]
["Andeler i KS og ansvarlige eiendomsselskaper, Anskaffelseskost, Personlige foretak, norske kroner",0,0,"1363200",0,"000",60,"23000",0,0,10,0,null,null,null,"02.4.1"]
["Andeler i KS og ansvarlige eiendomsselskaper, Anskaffelseskost, Investeringsselskaper og aktive eierfond/PE-fond, norske kroner",0,0,"1363200",0,"000",60,45000,0,0,10,0,null,null,null,"02.4.1"]
["Andeler i KS og ansvarlige eiendomsselskaper, Anskaffelseskost, Investeringsselskaper og aktive eierfond/PE-fond, tilknyttede selskaper, norske kroner",0,0,"1363200",0,"000",60,45008,0,0,10,0,null,null,null,"02.2.1"]
["Andeler i KS og ansvarlige eiendomsselskaper, Anskaffelseskost, Investeringsselskaper og aktive eierfond/PE-fond, konsernselskap, norske kroner",0,0,"1363200",0,"000",60,45009,0,0,10,0,null,null,null,"02.2.1"]
["Andeler i KS og ansvarlige eiendomsselskaper, Anskaffelseskost, Øvrige finansielle foretak unntatt forsikring, norske kroner",0,0,"1363200",0,"000",60,49000,0,0,10,0,null,null,null,"02.4.1"]
["Andeler i KS og ansvarlige eiendomsselskaper, Anskaffelseskost, Øvrige finansielle foretak unntatt forsikring, tilknyttede selskaper, norske kroner",0,0,"1363200",0,"000",60,49008,0,0,10,0,null,null,null,"02.2.1"]
["Andeler i KS og ansvarlige eiendomsselskaper, Anskaffelseskost, Øvrige finansielle foretak unntatt forsikring, konsernselskap, norske kroner",0,0,"1363200",0,"000",60,49009,0,0,10,0,null,null,null,"02.2.1"]
["Andeler i KS og ansvarlige eiendomsselskaper, Anskaffelseskost, Utenlandske sektorer , Utenlandsk valuta i NOK",0,0,"1363200",0,"000",60,90010,0,0,30,0,null,null,null,"02.4.1"]
[]
["Andeler i indre eiendomsselskaper (IS), Virkelig verdi med resultatføring, Private aksjeselskaper mv., norske kroner",0,0,"1363300",0,"000","10","21000",0,0,10,0,null,null,null,"02.4.1"]
["Andeler i indre eiendomsselskaper (IS), Virkelig verdi med resultatføring, Statlige låneinstitutter og investeringsselskaper, norske kroner",0,0,"1363300",0,"000","10","39000",0,0,10,0,null,null,null,"02.4.1"]
["Andeler i indre eiendomsselskaper (IS), Virkelig verdi med resultatføring, Investeringsselskaper og aktive eierfond/PE-fond, norske kroner",0,0,"1363300",0,"000","10","45000",0,0,10,0,null,null,null,"02.4.1"]
["Andeler i indre eiendomsselskaper (IS), Virkelig verdi med resultatføring, Øvrige finansielle foretak unntatt forsikring, norske kroner",0,0,"1363300",0,"000","10","49000",0,0,10,0,null,null,null,"02.4.1"]
["Andeler i indre eiendomsselskaper (IS), Virkelig verdi med resultatføring, Øvrige finansielle foretak unntatt forsikring, tilknyttede selskaper,  norske kroner",0,0,"1363300",0,"000","10","49008",0,0,10,0,null,null,null,"02.2.2"]
["Andeler i indre eiendomsselskaper (IS), Virkelig verdi med resultatføring, Øvrige finansielle foretak unntatt forsikring, konsernselskap, norske kroner",0,0,"1363300",0,"000","10","49009",0,0,10,0,null,null,null,"02.2.2"]
[]
["Andeler i indre eiendomsselskaper (IS), Tilgjengelig for salg, Private aksjeselskaper mv., norske kroner",0,0,"1363300",0,"000","20","21000",0,0,10,0,null,null,null,"02.4.1"]
["Andeler i indre eiendomsselskaper (IS), Tilgjengelig for salg, Statlige låneinstitutter og investeringsselskaper, norske kroner",0,0,"1363300",0,"000","20","39000",0,0,10,0,null,null,null,"02.4.1"]
["Andeler i indre eiendomsselskaper (IS), Tilgjengelig for salg, Investeringsselskaper og aktive eierfond/PE-fond, norske kroner",0,0,"1363300",0,"000","20","45000",0,0,10,0,null,null,null,"02.4.1"]
["Andeler i indre eiendomsselskaper (IS), Tilgjengelig for salg, Øvrige finansielle foretak unntatt forsikring, norske kroner",0,0,"1363300",0,"000","20","49000",0,0,10,0,null,null,null,"02.4.1"]
["Andeler i indre eiendomsselskaper (IS), Tilgjengelig for salg, Øvrige finansielle foretak unntatt forsikring, tilknyttede selskaper, norske kroner",0,0,"1363300",0,"000","20","49008",0,0,10,0,null,null,null,"02.2.2"]
["Andeler i indre eiendomsselskaper (IS), Tilgjengelig for salg, Øvrige finansielle foretak unntatt forsikring, konsernselskap, norske kroner",0,0,"1363300",0,"000","20","49009",0,0,10,0,null,null,null,"02.2.2"]
[]
["Andeler i indre eiendomsselskaper (IS), Anskaffelseskost, Private aksjeselskaper mv., norske kroner",0,0,"1363300",0,"000","60","21000",0,0,10,0,null,null,null,"02.4.1"]
["Andeler i indre eiendomsselskaper (IS), Anskaffelseskost, Statlige låneinstitutter og investeringsselskaper, norske kroner",0,0,"1363300",0,"000","60","39000",0,0,10,0,null,null,null,"02.4.1"]
["Andeler i indre eiendomsselskaper (IS), Anskaffelseskost, Investeringsselskaper og aktive eierfond/PE-fond, norske kroner",0,0,"1363300",0,"000","60","45000",0,0,10,0,null,null,null,"02.4.1"]
["Andeler i indre eiendomsselskaper (IS), Anskaffelseskost, Øvrige finansielle foretak unntatt forsikring, norske kroner",0,0,"1363300",0,"000","60","49000",0,0,10,0,null,null,null,"02.4.1"]
["Andeler i indre eiendomsselskaper (IS), Anskaffelseskost, Øvrige finansielle foretak unntatt forsikring, tilknyttede selskaper,  norske kroner",0,0,"1363300",0,"000","60","49008",0,0,10,0,null,null,null,"02.2.2"]
["Andeler i indre eiendomsselskaper (IS), Anskaffelseskost, Øvrige finansielle foretak unntatt forsikring, konsernselskap, norske kroner",0,0,"1363300",0,"000","60","49009",0,0,10,0,null,null,null,"02.2.2"]
[]
["Andeler i andre indre selskaper, Virkelig verdi med resultatføring, Private aksjeselskaper mv., norske kroner, Kollektivporteføljen",0,0,"1363400",0,"000","10","21000",0,0,10,0,null,null,null,"02.4.1"]
["Andeler i andre indre selskaper, Virkelig verdi med resultatføring, Statlige låneinstitutter og investeringsselskaper, norske kroner, Kollektivporteføljen",0,0,"1363400",0,"000","10","39000",0,0,10,0,null,null,null,"02.4.1"]
["Andeler i andre indre selskaper, Virkelig verdi med resultatføring, Investeringsselskaper og aktive eierfond/PE-fond, norske kroner, Kollektivporteføljen",0,0,"1363400",0,"000","10","45000",0,0,10,0,null,null,null,"02.4.1"]
["Andeler i andre indre selskaper, Virkelig verdi med resultatføring, Øvrige finansielle foretak unntatt forsikring, norske kroner, Kollektivporteføljen",0,0,"1363400",0,"000","10","49000",0,0,10,0,null,null,null,"02.4.1"]
["Andeler i andre indre selskaper, Virkelig verdi med resultatføring, Øvrige finansielle foretak unntatt forsikring, tilknyttede selskaper, norske kroner, Kollektivporteføljen",0,0,"1363400",0,"000","10","49008",0,0,10,0,null,null,null,"02.2.2"]
["Andeler i andre indre selskaper, Virkelig verdi med resultatføring, Øvrige finansielle foretak unntatt forsikring, konsernselskap, norske kroner, Kollektivporteføljen",0,0,"1363400",0,"000","10","49009",0,0,10,0,null,null,null,"02.2.2"]
[]
["Andeler i andre indre selskaper, Tilgjengelig for salg, Private aksjeselskaper mv., norske kroner, Kollektivporteføljen",0,0,"1363400",0,"000","20","21000",0,0,10,0,null,null,null,"02.4.1"]
["Andeler i andre indre selskaper, Tilgjengelig for salg, Statlige låneinstitutter og investeringsselskaper, norske kroner, Kollektrivporteføljen",0,0,"1363400",0,"000","20","39000",0,0,10,0,null,null,null,"02.4.1"]
["Andeler i andre indre selskaper, Tilgjengelig for salg, Investeringsselskaper og aktive eierfond/PE-fond, norske kroner, Kollektivporteføljen",0,0,"1363400",0,"000","20","45000",0,0,10,0,null,null,null,"02.4.1"]
["Andeler i andre indre selskaper, Tilgjengelig for salg, Øvrige finansielle foretak unntatt forsikring, norske kroner, Kollektivporteføljen",0,0,"1363400",0,"000","20","49000",0,0,10,0,null,null,null,"02.4.1"]
["Andeler i andre indre selskaper, Tilgjengelig for salg, Øvrige finansielle foretak unntatt forsikring, tilknyttede selskaper, norske kroner, Kollektivporteføljen",0,0,"1363400",0,"000","20","49008",0,0,10,0,null,null,null,"02.2.2"]
["Andeler i andre indre selskaper, Tilgjengelig for salg, Øvrige finansielle foretak unntatt forsikring, konsernselskap, norske kroner, Kollektivporteføljen",0,0,"1363400",0,"000","20","49009",0,0,10,0,null,null,null,"02.2.2"]
[]
["Andeler i andre indre selskaper, Anskaffelseskost, Private aksjeselskaper mv., norske kroner, Kollektivporteføljen",0,0,"1363400",0,"000","60","21000",0,0,10,0,null,null,null,"02.4.1"]
["Andeler i andre indre selskaper, Anskaffelseskost, Statlige låneinstitutter og investeringsselskaper, norske kroner, Kollektivporteføljen",0,0,"1363400",0,"000","60","39000",0,0,10,0,null,null,null,"02.4.1"]
["Andeler i andre indre selskaper, Anskaffelseskost, Investeringsselskaper og aktive eierfond/PE-fond, norske kroner, Kollektivporteføljen",0,0,"1363400",0,"000","60","45000",0,0,10,0,null,null,null,"02.4.1"]
["Andeler i andre indre selskaper, Anskaffelseskost, Øvrige finansielle foretak unntatt forsikring, norske kroner, Kollektivporteføljen",0,0,"1363400",0,"000","60","49000",0,0,10,0,null,null,null,"02.4.1"]
["Andeler i andre indre selskaper, Anskaffelseskost, Øvrige finansielle foretak unntatt forsikring, tilknyttede selskaper, norske kroner, Kollektivporteføljen",0,0,"1363400",0,"000","60","49008",0,0,10,0,null,null,null,"02.2.2"]
["Andeler i andre indre selskaper, Anskaffelseskost, Øvrige finansielle foretak unntatt forsikring, konsernselskap, norske kroner, Kollektivporteføljen",0,0,"1363400",0,"000","60","49009",0,0,10,0,null,null,null,"02.2.2"]
[]
["Andeler i aksjefond, Virkelig verdi med resultatføring, norske kroner",0,0,"1368200",0,"000",10,43000,0,0,10,0,null,null,null,"02.4.1"]
["Andeler i aksjefond, Virkelig verdi med resultatføring, Utenlandsk valuta i NOK",0,0,"1368200",0,"000",10,43000,0,0,30,0,null,null,null,"02.4.1"]
["Andeler i aksjefond, Virkelig verdi med resultatføring, Utlandet, norske kroner",0,0,"1368200",0,"000",10,90000,0,0,10,0,null,null,null,"02.4.1"]
["Andeler i aksjefond, Virkelig verdi med resultatføring, Utlandet, Utenlandsk valuta i NOK",0,0,"1368200",0,"000",10,90000,0,0,30,0,null,null,null,"02.4.1"]
[]
["Andeler i obligasjonsfond, Virkelig verdi med resultatføring, norske kroner",0,0,"1368400",0,"000",10,43000,0,0,10,0,null,null,null,"02.4.2"]
["Andeler i obligasjonsfond, Virkelig verdi med resultatføring, Utenlandsk valuta i NOK",0,0,"1368400",0,"000",10,43000,0,0,30,0,null,null,null,"02.4.2"]
["Andeler i obligasjonsfond, Virkelig verdi med resultatføring, Utlandet, norske kroner",0,0,"1368400",0,"000",10,90000,0,0,10,0,null,null,null,"02.4.2"]
["Andeler i obligasjonsfond, Virkelig verdi med resultatføring, Utlandet, Utenlandsk valuta i NOK",0,0,"1368400",0,"000",10,90000,0,0,30,0,null,null,null,"02.4.2"]
[]
["Andeler i pengemarkedsfond, Virkelig verdi med resultatføring, norske kroner",0,0,"1368600",0,"000",10,43000,0,0,10,0,null,null,null,"02.4.2"]
["Andeler i pengemarkedsfond, Virkelig verdi med resultatføring, Utenlandsk valuta i NOK",0,0,"1368600",0,"000",10,43000,0,0,30,0,null,null,null,"02.4.2"]
["Andeler i pengemarkedsfond, Virkelig verdi med resultatføring, Utlandet, norske kroner",0,0,"1368600",0,"000",10,90000,0,0,10,0,null,null,null,"02.4.2"]
["Andeler i pengemarkedsfond, Virkelig verdi med resultatføring, Utlandet, Utenlandsk valuta i NOK",0,0,"1368600",0,"000",10,90000,0,0,30,0,null,null,null,"02.4.2"]
[]
["Andeler i kombinasjonsfond, Virkelig verdi med resultatføring, norske kroner",0,0,"1368800",0,"000",10,43000,0,0,10,0,null,null,null,"02.4.1"]
["Andeler i kombinasjonsfond, Virkelig verdi med resultatføring, Utenlandsk valuta i NOK",0,0,"1368800",0,"000",10,43000,0,0,30,0,null,null,null,"02.4.1"]
["Andeler i kombinasjonsfond, Virkelig verdi med resultatføring, Utlandet, norske kroner",0,0,"1368800",0,"000",10,90000,0,0,10,0,null,null,null,"02.4.1"]
["Andeler i kombinasjonsfond, Virkelig verdi med resultatføring, Utlandet, Utenlandsk valuta i NOK",0,0,"1368800",0,"000",10,90000,0,0,30,0,null,null,null,"02.4.1"]
[]
["Andeler i andre fond, Virkelig verdi med resultatføring, Verdipapirfond, norske kroner",0,0,"1368900",0,"000",10,43000,0,0,10,0,null,null,null,"02.4.1"]
["Andeler i andre fond, Virkelig verdi med resultatføring, Verdipapirfond, Utenlandsk valuta i NOK",0,0,"1368900",0,"000",10,43000,0,0,30,0,null,null,null,"02.4.1"]
["Andeler i andre fond, Virkelig verdi med resultatføring, Utlandet, norske kroner",0,0,"1368900",0,"000",10,90000,0,0,10,0,null,null,null,"02.4.1"]
["Andeler i andre fond, Virkelig verdi med resultatføring, Utlandet, Utenlandsk valuta i NOK",0,0,"1368900",0,"000",10,90000,0,0,30,0,null,null,null,"02.4.1"]
[]
["Eierandelskapital, Virkelig verdi med resultatføring, Banker, norske kroner",0,0,"1369000",0,"000",10,32000,0,0,10,0,null,null,null,"02.4.1"]
["Eierandelskapital, Virkelig verdi med resultatføring, Kredittforetak, norske kroner",0,0,"1369000",0,"000",10,35000,0,0,10,0,null,null,null,"02.4.1"]
["Eierandelskapital, Virkelig verdi med resultatføring, Livsforsikringsselskaper og pensjonskasser, norske kroner",0,0,"1369000",0,"000",10,55000,0,0,10,0,null,null,null,"02.4.1"]
["Eierandelskapital, Virkelig verdi med resultatføring, Skadeforsikringsselskaper, norske kroner",0,0,"1369000",0,"000",10,57000,0,0,10,0,null,null,null,"02.4.1"]
[]
["Egenkapitalbevis, Tilgjengelig for salg, Banker, norske kroner",0,0,"1369000",0,"000",20,32000,0,0,10,0,null,null,null,"02.4.1"]
["Egenkapitalbevis, Tilgjengelig for salg, Kredittforetak, norske kroner",0,0,"1369000",0,"000",20,35000,0,0,10,0,null,null,null,"02.4.1"]
["Egenkapitalbevis, Tilgjengelig for salg, Livsforsikringsselskaper og pensjonskasser, norske kroner",0,0,"1369000",0,"000",20,55000,0,0,10,0,null,null,null,"02.4.1"]
["Egenkapitalbevis, Tilgjengelig for salg, Skadeforsikringsselskaper, Utenlandsk valuta i NOK",0,0,"1369000",0,"000",20,57000,0,0,10,0,null,null,null,"02.4.1"]
[]
["Egenkapitalbevis, Anskaffelseskost, Banker, norske kroner",0,0,"1369000",0,"000",60,32000,0,0,10,0,null,null,null,"02.4.1"]
["Egenkapitalbevis, Anskaffelseskost, Kredittforetak, norske kroner",0,0,"1369000",0,"000",60,35000,0,0,10,0,null,null,null,"02.4.1"]
["Egenkapitalbevis, Anskaffelseskost, Livsforsikringsselskaper og pensjonskasser, norske kroner",0,0,"1369000",0,"000",60,55000,0,0,10,0,null,null,null,"02.4.1"]
["Egenkapitalbevis, Anskaffelseskost, Skadeforsikringsselskaper, Utenlandsk valuta i NOK",0,0,"1369000",0,"000",60,57000,0,0,10,0,null,null,null,"02.4.1"]
[]
["Rentebærende verdipapirer, Virkelig verdi med resultatføring, Statlig eide aksjeselskaper mv., norske kroner",0,0,1400000,0,"000",10,11200,0,0,10,0,null,null,null,"02.4.2"]
["Rentebærende verdipapirer, Virkelig verdi med resultatføring, Statlig eide aksjeselskaper mv., Utenlandsk valuta i NOK",0,0,1400000,0,"000",10,11200,0,0,30,0,null,null,null,"02.4.2"]
["Rentebærende verdipapirer, Virkelig verdi med resultatføring, Kommunale foretak med ubegrenset ansvar, norske kroner",0,0,1400000,0,"000",10,15100,0,0,10,0,null,null,null,"02.4.2"]
["Rentebærende verdipapirer, Virkelig verdi med resultatføring, Kommunale aksjeselskaper mv., norske kroner",0,0,1400000,0,"000",10,15200,0,0,10,0,null,null,null,"02.4.2"]
["Rentebærende verdipapirer, Virkelig verdi med resultatføring, Private aksjeselskaper mv., norske kroner",0,0,1400000,0,"000",10,21000,0,0,10,0,null,null,null,"02.4.2"]
["Rentebærende verdipapirer, Virkelig verdi med resultatføring, Private aksjeselskaper mv., Utenlandsk valuta i NOK",0,0,1400000,0,"000",10,21000,0,0,30,0,null,null,null,"02.4.2"]
["Rentebærende verdipapirer, Virkelig verdi med resultatføring, Personlige foretak, norske kroner",0,0,1400000,0,"000",10,23000,0,0,10,0,null,null,null,"02.4.2"]
["Rentebærende verdipapirer, Virkelig verdi med resultatføring, Banker, norske kroner",0,0,1400000,0,"000",10,32000,0,0,10,0,null,null,null,"02.4.2"]
["Rentebærende verdipapirer, Virkelig verdi med resultatføring, Banker, Utenlandsk valuta i NOK",0,0,1400000,0,"000",10,32000,0,0,30,0,null,null,null,"02.4.2"]
["Rentebærende verdipapirer, Virkelig verdi med resultatføring, Kredittforetak, norske kroner",0,0,1400000,0,"000",10,35000,0,0,10,0,null,null,null,"02.4.2"]
["Rentebærende verdipapirer, Virkelig verdi med resultatføring, Kredittforetak, Utenlandsk valuta i NOK",0,0,1400000,0,"000",10,35000,0,0,30,0,null,null,null,"02.4.2"]
["Rentebærende verdipapirer, Virkelig verdi med resultatføring, Finansieringsselskaper, norske kroner",0,0,1400000,0,"000",10,36000,0,0,10,0,null,null,null,"02.4.2"]
["Rentebærende verdipapirer, Virkelig verdi med resultatføring, Statlige låneinstitutter mv., norske kroner",0,0,1400000,0,"000",10,"39000",0,0,10,0,null,null,null,"02.4.2"]
["Rentebærende verdipapirer, Virkelig verdi med resultatføring, Finansielle holdingselskaper, norske kroner",0,0,1400000,0,"000",10,41000,0,0,10,0,null,null,null,"02.4.2"]
["Rentebærende verdipapirer, Virkelig verdi med resultatføring, Finansielle holdingselskaper, tilknyttede selskaper, norske kroner",0,0,1400000,0,"000",10,41008,0,0,10,0,null,null,null,"02.2.2"]
["Rentebærende verdipapirer, Virkelig verdi med resultatføring, Finansielle holdingselskaper, konsernselskaper, norske kroner",0,0,1400000,0,"000",10,41009,0,0,10,0,null,null,null,"02.2.2"]
["Rentebærende verdipapirer, Virkelig verdi med resultatføring, Investeringsselskaper og aktive eierfond/PE-fond, norske kroner",0,0,1400000,0,"000",10,45000,0,0,10,0,null,null,null,"02.4.2"]
["Rentebærende verdipapirer, Virkelig verdi med resultatføring, Øvrige finansielle foretak unntatt forsikring, norske kroner",0,0,1400000,0,"000",10,49000,0,0,10,0,null,null,null,"02.4.2"]
["Rentebærende verdipapirer, Virkelig verdi med resultatføring, Livsforsikringsselskaper og pensjonskasser, norske kroner",0,0,1400000,0,"000",10,55000,0,0,10,0,null,null,null,"02.4.2"]
["Rentebærende verdipapirer, Virkelig verdi med resultatføring, Livsforsikringsselskaper og pensjonskasser, utenlandsk valuta",0,0,1400000,0,"000",10,55000,0,0,30,0,null,null,null,"02.4.2"]
["Rentebærende verdipapirer, Virkelig verdi med resultatføring, Skadeforsikringsselskaper, norske kroner",0,0,1400000,0,"000",10,57000,0,0,10,0,null,null,null,"02.4.2"]
["Rentebærende verdipapirer, Virkelig verdi med resultatføring, Stats- og trygdeforvaltningen, norske kroner",0,0,1400000,0,"000",10,61000,0,0,10,0,null,null,null,"02.4.2"]
["Rentebærende verdipapirer, Virkelig verdi med resultatføring, Kommuneforvaltningen, norske kroner",0,0,1400000,0,"000",10,65000,0,0,10,0,null,null,null,"02.4.2"]
["Rentebærende verdipapirer, Virkelig verdi med resultatføring, Ufordelt sektor, norske kroner",0,0,1400000,0,"000",10,"08000",0,0,10,0,null,null,null,"02.4.2"]
["Rentebærende verdipapirer, Virkelig verdi med resultatføring, Utlandet, norske kroner",0,0,1400000,0,"000",10,90010,0,0,10,0,null,null,null,"02.4.2"]
["Rentebærende verdipapirer, Virkelig verdi med resultatføring, Utlandet, Utenlandsk valuta i NOK",0,0,1400000,0,"000",10,90010,0,0,30,0,null,null,null,"02.4.2"]
[]
["Rentebærende verdipapirer, Amortisert kost, holde til forfall, Statlig eide aksjeselskaper mv., norske kroner",0,0,1400000,0,"000",51,11200,0,0,10,0,null,null,null,"02.3.1"]
["Rentebærende verdipapirer, Amortisert kost, holde til forfall, Statlig eide aksjeselskaper mv., Utenlandsk valuta i NOK",0,0,1400000,0,"000",51,11200,0,0,30,0,null,null,null,"02.3.1"]
["Rentebærende verdipapirer, Amortisert kost, holde til forfall, Kommunale foretak med ubegrenset ansvar, norske kroner",0,0,1400000,0,"000",51,15100,0,0,10,0,null,null,null,"02.3.1"]
["Rentebærende verdipapirer, Amortisert kost, holde til forfall, Kommunale aksjeselskaper mv., norske kroner",0,0,1400000,0,"000",51,15200,0,0,10,0,null,null,null,"02.3.1"]
["Rentebærende verdipapirer, Amortisert kost, holde til forfall, Private aksjeselskaper mv., norske kroner",0,0,1400000,0,"000",51,21000,0,0,10,0,null,null,null,"02.3.1"]
["Rentebærende verdipapirer, Amortisert kost, holde til forfall, Private aksjeselskaper mv., Utenlandsk valuta i NOK",0,0,1400000,0,"000",51,21000,0,0,30,0,null,null,null,"02.3.1"]
["Rentebærende verdipapirer, Amortisert kost, holde til forfall, Personlige foretak, norske kroner",0,0,1400000,0,"000",51,23000,0,0,10,0,null,null,null,"02.3.1"]
["Rentebærende verdipapirer, Amortisert kost, holde til forfall, Banker, norske kroner",0,0,1400000,0,"000",51,32000,0,0,10,0,null,null,null,"02.3.1"]
["Rentebærende verdipapirer, Amortisert kost, holde til forfall, Banker, Utenlandsk valuta i NOK",0,0,1400000,0,"000",51,32000,0,0,30,0,null,null,null,"02.3.1"]
["Rentebærende verdipapirer, Amortisert kost, holde til forfall, Kredittforetak, norske kroner",0,0,1400000,0,"000",51,35000,0,0,10,0,null,null,null,"02.3.1"]
["Rentebærende verdipapirer, Amortisert kost, holde til forfall, Kredittforetak, Utenlandsk valuta i NOK",0,0,1400000,0,"000",51,35000,0,0,30,0,null,null,null,"02.3.1"]
["Rentebærende verdipapirer, Amortisert kost, holde til forfall, Finansieringsselskaper, norske kroner",0,0,1400000,0,"000",51,36000,0,0,10,0,null,null,null,"02.3.1"]
["Rentebærende verdipapirer, Amortisert kost, holde til forfall, Statlige låneinstitutter mv., norske kroner",0,0,1400000,0,"000",51,"39000",0,0,10,0,null,null,null,"02.3.1"]
["Rentebærende verdipapirer, Amortisert kost, holde til forfall, Finansielle holdingselskaper, norske kroner",0,0,1400000,0,"000",51,41000,0,0,10,0,null,null,null,"02.3.1"]
["Rentebærende verdipapirer, Amortisert kost, holde til forfall, Finansielle holdingselskaper, tilknyttede selskaper, norske kroner",0,0,1400000,0,"000",51,41008,0,0,10,0,null,null,null,"02.2.2"]
["Rentebærende verdipapirer, Amortisert kost, holde til forfall, Finansielle holdingselskaper, konsernselskaper, norske kroner",0,0,1400000,0,"000",51,41009,0,0,10,0,null,null,null,"02.2.2"]
["Rentebærende verdipapirer, Amortisert kost, holde til forfall, Investeringsselskaper og aktive eierfond/PE-fond, norske kroner",0,0,1400000,0,"000",51,45000,0,0,10,0,null,null,null,"02.3.1"]
["Rentebærende verdipapirer, Amortisert kost, holde til forfall, Øvrige finansielle foretak unntatt forsikring, norske kroner",0,0,1400000,0,"000",51,49000,0,0,10,0,null,null,null,"02.3.1"]
["Rentebærende verdipapirer, Amortisert kost, holde til forfall, Livsforsikringsselskaper og pensjonskasser, norske kroner",0,0,1400000,0,"000",51,55000,0,0,10,0,null,null,null,"02.3.1"]
["Rentebærende verdipapirer, Amortisert kost, holde til forfall, Livsforsikringsselskaper og pensjonskasser, utenlandsk valuta",0,0,1400000,0,"000",51,55000,0,0,30,0,null,null,null,"02.3.1"]
["Rentebærende verdipapirer, Amortisert kost, holde til forfall, Skadeforsikringsselskaper, norske kroner",0,0,1400000,0,"000",51,57000,0,0,10,0,null,null,null,"02.3.1"]
["Rentebærende verdipapirer, Amortisert kost, holde til forfall, Stats- og trygdeforvaltningen, norske kroner",0,0,1400000,0,"000",51,61000,0,0,10,0,null,null,null,"02.3.1"]
["Rentebærende verdipapirer, Amortisert kost, holde til forfall, Kommuneforvaltningen, norske kroner",0,0,1400000,0,"000",51,65000,0,0,10,0,null,null,null,"02.3.1"]
["Rentebærende verdipapirer, Amortisert kost, holde til forfall, Ufordelt sektor, norske kroner",0,0,1400000,0,"000",51,"08000",0,0,10,0,null,null,null,"02.3.1"]
["Rentebærende verdipapirer, Amortisert kost, holde til forfall, Utlandet, norske kroner",0,0,1400000,0,"000",51,90010,0,0,10,0,null,null,null,"02.3.1"]
["Rentebærende verdipapirer, Amortisert kost, holde til forfall, Utlandet, Utenlandsk valuta i NOK",0,0,1400000,0,"000",51,90010,0,0,30,0,null,null,null,"02.3.1"]
[]
["Rentebærende verdipapirer, Amortisert kost, øvrige, Statlig eide aksjeselskaper mv., norske kroner",0,0,1400000,0,"000",52,11200,0,0,10,0,null,null,null,"02.3.2"]
["Rentebærende verdipapirer, Amortisert kost, øvrige, Statlig eide aksjeselskaper mv., Utenlandsk valuta i NOK",0,0,1400000,0,"000",52,11200,0,0,30,0,null,null,null,"02.3.2"]
["Rentebærende verdipapirer, Amortisert kost, øvrige, Kommunale foretak med ubegrenset ansvar, norske kroner",0,0,1400000,0,"000",52,15100,0,0,10,0,null,null,null,"02.3.2"]
["Rentebærende verdipapirer, Amortisert kost, øvrige, Kommunale aksjeselskaper mv., norske kroner",0,0,1400000,0,"000",52,15200,0,0,10,0,null,null,null,"02.3.2"]
["Rentebærende verdipapirer, Amortisert kost, øvrige, Private aksjeselskaper mv., norske kroner",0,0,1400000,0,"000",52,21000,0,0,10,0,null,null,null,"02.3.2"]
["Rentebærende verdipapirer, Amortisert kost, øvrige, Private aksjeselskaper mv., Utenlandsk valuta i NOK",0,0,1400000,0,"000",52,21000,0,0,30,0,null,null,null,"02.3.2"]
["Rentebærende verdipapirer, Amortisert kost, øvrige, Personlige foretak, norske kroner",0,0,1400000,0,"000",52,23000,0,0,10,0,null,null,null,"02.3.2"]
["Rentebærende verdipapirer, Amortisert kost, øvrige, Banker, norske kroner",0,0,1400000,0,"000",52,32000,0,0,10,0,null,null,null,"02.3.2"]
["Rentebærende verdipapirer, Amortisert kost, øvrige, Banker, Utenlandsk valuta i NOK",0,0,1400000,0,"000",52,32000,0,0,30,0,null,null,null,"02.3.2"]
["Rentebærende verdipapirer, Amortisert kost, øvrige, Kredittforetak, norske kroner",0,0,1400000,0,"000",52,35000,0,0,10,0,null,null,null,"02.3.2"]
["Rentebærende verdipapirer, Amortisert kost, øvrige, Kredittforetak, Utenlandsk valuta i NOK",0,0,1400000,0,"000",52,35000,0,0,30,0,null,null,null,"02.3.2"]
["Rentebærende verdipapirer, Amortisert kost, øvrige, Finansieringsselskaper, norske kroner",0,0,1400000,0,"000",52,36000,0,0,10,0,null,null,null,"02.3.2"]
["Rentebærende verdipapirer, Amortisert kost, øvrige, Statlige låneinstitutter mv., norske kroner",0,0,1400000,0,"000",52,"39000",0,0,10,0,null,null,null,"02.3.2"]
["Rentebærende verdipapirer, Amortisert kost, øvrige, Finansielle holdingselskaper, norske kroner",0,0,1400000,0,"000",52,"41000",0,0,10,0,null,null,null,"02.3.2"]
["Rentebærende verdipapirer, Amortisert kost, øvrige, Finansielle holdingselskaper, tilknyttede selskaper, norske kroner",0,0,1400000,0,"000",52,"41008",0,0,10,0,null,null,null,"02.2.2"]
["Rentebærende verdipapirer, Amortisert kost, øvrige, Finansielle holdingselskaper, konsernselskaper, norske kroner",0,0,1400000,0,"000",52,"41009",0,0,10,0,null,null,null,"02.2.2"]
["Rentebærende verdipapirer, Amortisert kost, øvrige, Investeringsselskaper og aktive eierfond/PE-fond, norske kroner",0,0,1400000,0,"000",52,45000,0,0,10,0,null,null,null,"02.3.2"]
["Rentebærende verdipapirer, Amortisert kost, øvrige, Øvrige finansielle foretak unntatt forsikring, norske kroner",0,0,1400000,0,"000",52,49000,0,0,10,0,null,null,null,"02.3.2"]
["Rentebærende verdipapirer, Amortisert kost, øvrige, Livsforsikringsselskaper og pensjonskasser, norske kroner",0,0,1400000,0,"000",52,55000,0,0,10,0,null,null,null,"02.3.2"]
["Rentebærende verdipapirer, Amortisert kost, øvrige, Livsforsikringsselskaper og pensjonskasser, utenlandsk valuta",0,0,1400000,0,"000",52,55000,0,0,30,0,null,null,null,"02.3.2"]
["Rentebærende verdipapirer, Amortisert kost, øvrige, Skadeforsikringsselskaper, norske kroner",0,0,1400000,0,"000",52,57000,0,0,10,0,null,null,null,"02.3.2"]
["Rentebærende verdipapirer, Amortisert kost, øvrige, Stats- og trygdeforvaltningen, norske kroner",0,0,1400000,0,"000",52,61000,0,0,10,0,null,null,null,"02.3.2"]
["Rentebærende verdipapirer, Amortisert kost, øvrige, Kommuneforvaltningen, norske kroner",0,0,1400000,0,"000",52,65000,0,0,10,0,null,null,null,"02.3.2"]
["Rentebærende verdipapirer, Amortisert kost, øvrige, Ufordelt sektor, norske kroner",0,0,1400000,0,"000",52,"08000",0,0,10,0,null,null,null,"02.3.2"]
["Rentebærende verdipapirer, Amortisert kost, øvrige, Utlandet, norske kroner",0,0,1400000,0,"000",52,90010,0,0,10,0,null,null,null,"02.3.2"]
["Rentebærende verdipapirer, Amortisert kost, øvrige, Utlandet, Utenlandsk valuta i NOK",0,0,1400000,0,"000",52,90010,0,0,30,0,null,null,null,"02.3.2"]
[]
["Finansielle derivater, Virkelig verdi med resultatføring, Statlig eide aksjeselskaper mv., Norske kroner",0,0,1880000,0,"000",10,11200,0,0,10,0,null,null,null,"02.4.4"]
["Finansielle derivater, Virkelig verdi med resultatføring, Kommunale aksjeselskaper mv., Norske kroner",0,0,1880000,0,"000",10,15200,0,0,10,0,null,null,null,"02.4.4"]
["Finansielle derivater, Virkelig verdi med resultatføring, Private aksjeselskaper mv., Norske kroner",0,0,1880000,0,"000",10,21000,0,0,10,0,null,null,null,"02.4.4"]
["Finansielle derivater, Virkelig verdi med resultatføring, Private aksjeselskaper mv., Utenlandsk valuta i NOK",0,0,1880000,0,"000",10,21000,0,0,30,0,null,null,null,"02.4.4"]
["Finansielle derivater, Virkelig verdi med resultatføring, Private aksjeselskaper mv., tilknyttede selskaper, Norske kroner",0,0,1880000,0,"000",10,21008,0,0,10,0,null,null,null,"02.4.4"]
["Finansielle derivater, Virkelig verdi med resultatføring, Private aksjeselskaper mv., tilknyttede selskaper, Utenlandsk valuta i NOK",0,0,1880000,0,"000",10,21008,0,0,30,0,null,null,null,"02.4.4"]
["Finansielle derivater, Virkelig verdi med resultatføring, Private aksjeselskaper mv., konsernselskap, Norske kroner",0,0,1880000,0,"000",10,21009,0,0,10,0,null,null,null,"02.4.4"]
["Finansielle derivater, Virkelig verdi med resultatføring, Private aksjeselskaper mv., konsernselskap, Utenlandsk valuta i NOK",0,0,1880000,0,"000",10,21009,0,0,30,0,null,null,null,"02.4.4"]
["Finansielle derivater, Virkelig verdi med resultatføring, Personlige foretak, Norske kroner",0,0,1880000,0,"000",10,23000,0,0,10,0,null,null,null,"02.4.4"]
["Finansielle derivater, Virkelig verdi med resultatføring, Banker, Norske kroner",0,0,1880000,0,"000",10,32000,0,0,10,0,null,null,null,"02.4.4"]
["Finansielle derivater, Virkelig verdi med resultatføring, Banker, Utenlandsk valuta i NOK",0,0,1880000,0,"000",10,32000,0,0,30,0,null,null,null,"02.4.4"]
["Finansielle derivater, Virkelig verdi med resultatføring, Banker, tilknyttede banker,  Norske kroner",0,0,1880000,0,"000",10,32008,0,0,10,0,null,null,null,"02.4.4"]
["Finansielle derivater, Virkelig verdi med resultatføring, Banker, tilknyttede banker,  Utenlandsk valuta i NOK",0,0,1880000,0,"000",10,32008,0,0,30,0,null,null,null,"02.4.4"]
["Finansielle derivater, Virkelig verdi med resultatføring, Banker, konsernbanker, Norske kroner",0,0,1880000,0,"000",10,32009,0,0,10,0,null,null,null,"02.4.4"]
["Finansielle derivater, Virkelig verdi med resultatføring, Banker, konsernbanker, Utenlandsk valuta i NOK",0,0,1880000,0,"000",10,32009,0,0,30,0,null,null,null,"02.4.4"]
["Finansielle derivater, Virkelig verdi med resultatføring, Kredittforetak, Norske kroner",0,0,1880000,0,"000",10,35000,0,0,10,0,null,null,null,"02.4.4"]
["Finansielle derivater, Virkelig verdi med resultatføring, Kredittforetak, Utenlandsk valuta i NOK",0,0,1880000,0,"000",10,35000,0,0,30,0,null,null,null,"02.4.4"]
["Finansielle derivater, Virkelig verdi med resultatføring, Kredittforetak, tilknyttede selskaper, Norske kroner",0,0,1880000,0,"000",10,35008,0,0,10,0,null,null,null,"02.4.4"]
["Finansielle derivater, Virkelig verdi med resultatføring, Kredittforetak, konsernselskap, Norske kroner",0,0,1880000,0,"000",10,35009,0,0,10,0,null,null,null,"02.4.4"]
["Finansielle derivater, Virkelig verdi med resultatføring, Finansieringsselskaper, Norske kroner",0,0,1880000,0,"000",10,36000,0,0,10,0,null,null,null,"02.4.4"]
["Finansielle derivater, Virkelig verdi med resultatføring, Finansieringsselskaper, tilknyttede selskaper, Norske kroner",0,0,1880000,0,"000",10,36008,0,0,10,0,null,null,null,"02.4.4"]
["Finansielle derivater, Virkelig verdi med resultatføring, Finansieringsselskaper, konsernselskap, Norske kroner",0,0,1880000,0,"000",10,36009,0,0,10,0,null,null,null,"02.4.4"]
["Finansielle derivater, Virkelig verdi med resultatføring, Statlige låneinstitutter, Norske kroner",0,0,1880000,0,"000",10,39000,0,0,10,0,null,null,null,"02.4.4"]
["Finansielle derivater, Virkelig verdi med resultatføring, Investeringsselskaper og aktive eierfond/PE-fond, Norske kroner",0,0,1880000,0,"000",10,45000,0,0,10,0,null,null,null,"02.4.4"]
["Finansielle derivater, Virkelig verdi med resultatføring, Investeringsselskaper og aktive eierfond/PE-fond, Utenlandsk valuta i NOK",0,0,1880000,0,"000",10,45000,0,0,30,0,null,null,null,"02.4.4"]
["Finansielle derivater, Virkelig verdi med resultatføring, Investeringsselskaper og aktive eierfond/PE-fond, tilknyttet seksap, Norske kroner",0,0,1880000,0,"000",10,45008,0,0,10,0,null,null,null,"02.4.4"]
["Finansielle derivater, Virkelig verdi med resultatføring, Investeringsselskaper og aktive eierfond/PE-fond, tilknyttet seksap, Utenlandsk valuta i NOK",0,0,1880000,0,"000",10,45008,0,0,30,0,null,null,null,"02.4.4"]
["Finansielle derivater, Virkelig verdi med resultatføring, Investeringsselskaper og aktive eierfond/PE-fond, konsernselskap,Norske kroner",0,0,1880000,0,"000",10,45009,0,0,10,0,null,null,null,"02.4.4"]
["Finansielle derivater, Virkelig verdi med resultatføring, Investeringsselskaper og aktive eierfond/PE-fond, konsernselskap,Utenlandsk valuta i NOK",0,0,1880000,0,"000",10,45009,0,0,30,0,null,null,null,"02.4.4"]
["Finansielle derivater, Virkelig verdi med resultatføring, Øvrige finansielle foretak unntatt forsikring, Norske kroner",0,0,1880000,0,"000",10,49000,0,0,10,0,null,null,null,"02.4.4"]
["Finansielle derivater, Virkelig verdi med resultatføring, Øvrige finansielle foretak unntatt forsikring, Utenlandsk valuta i NOK",0,0,1880000,0,"000",10,49000,0,0,30,0,null,null,null,"02.4.4"]
["Finansielle derivater, Virkelig verdi med resultatføring, Øvrige finansielle foretak unntatt forsikring, tilknyttede selskaper, Norske kroner",0,0,1880000,0,"000",10,49008,0,0,10,0,null,null,null,"02.4.4"]
["Finansielle derivater, Virkelig verdi med resultatføring, Øvrige finansielle foretak unntatt forsikring, konsernselskap,Norske kroner",0,0,1880000,0,"000",10,49009,0,0,10,0,null,null,null,"02.4.4"]
["Finansielle derivater, Virkelig verdi med resultatføring, Livsforsikringsselskaper og pensjonskasser, Norske kroner",0,0,1880000,0,"000",10,55000,0,0,10,0,null,null,null,"02.4.4"]
["Finansielle derivater, Virkelig verdi med resultatføring, Livsforsikringsselskaper og pensjonskasser, Utenlandsk valuta i NOK",0,0,1880000,0,"000",10,55000,0,0,30,0,null,null,null,"02.4.4"]
["Finansielle derivater, Virkelig verdi med resultatføring, Livsforsikringsselskaper og pensjonskasser, tilknyttede selskaper, Norske kroner",0,0,1880000,0,"000",10,55008,0,0,10,0,null,null,null,"02.4.4"]
["Finansielle derivater, Virkelig verdi med resultatføring, Livsforsikringsselskaper og pensjonskasser, konsernselskap,Norske kroner",0,0,1880000,0,"000",10,55009,0,0,10,0,null,null,null,"02.4.4"]
["Finansielle derivater, Virkelig verdi med resultatføring, Skadeforsikringsselskaper, Norske kroner",0,0,1880000,0,"000",10,57000,0,0,10,0,null,null,null,"02.4.4"]
["Finansielle derivater, Virkelig verdi med resultatføring, Skadeforsikringsselskaper, Utenlandsk valuta i NOK",0,0,1880000,0,"000",10,57000,0,0,30,0,null,null,null,"02.4.4"]
["Finansielle derivater, Virkelig verdi med resultatføring, Skadeforsikringsselskaper, tilknyttede selskaper, Norske kroner",0,0,1880000,0,"000",10,57008,0,0,10,0,null,null,null,"02.4.4"]
["Finansielle derivater, Virkelig verdi med resultatføring, Skadeforsikringsselskaper, konsernselskap,Norske kroner",0,0,1880000,0,"000",10,57009,0,0,10,0,null,null,null,"02.4.4"]
["Finansielle derivater, Virkelig verdi med resultatføring, Personlig næringsdrivende, Norske kroner",0,0,1880000,0,"000",10,82000,0,0,10,0,null,null,null,"02.4.4"]
["Finansielle derivater, Virkelig verdi med resultatføring, Ufordelt sektor, Norske kroner",0,0,1880000,0,"000",10,"08000",0,0,10,0,null,null,null,"02.4.4"]
["Finansielle derivater, Virkelig verdi med resultatføring, Utlandet ekskl. tilknyttede - og konsernselskap, Norske kroner",0,0,1880000,0,"000",10,90010,0,0,10,0,null,null,null,"02.4.4"]
["Finansielle derivater, Virkelig verdi med resultatføring, Utlandet ekskl. tilknyttede - og konsernselskap, Utenlandsk valuta i NOK",0,0,1880000,0,"000",10,90010,0,0,30,0,null,null,null,"02.4.4"]
["Finansielle derivater, Virkelig verdi med resultatføring, Utlandet, tilknyttede selskaper, Norske kroner",0,0,1880000,0,"000",10,90008,0,0,10,0,null,null,null,"02.4.4"]
["Finansielle derivater, Virkelig verdi med resultatføring, Utlandet, tilknyttede selskaper, Utenlandsk valuta i NOK",0,0,1880000,0,"000",10,90008,0,0,30,0,null,null,null,"02.4.4"]
["Finansielle derivater, Virkelig verdi med resultatføring, Utlandet, konsernselskaper, Norske kroner",0,0,1880000,0,"000",10,90009,0,0,10,0,null,null,null,"02.4.4"]
["Finansielle derivater, Virkelig verdi med resultatføring, Utlandet, konsernselskap, Utenlandsk valuta i NOK",0,0,1880000,0,"000",10,90009,0,0,30,0,null,null,null,"02.4.4"]
[]
["Andre verdipapirer/finansielle eiendeler ekskl. utlån, Virkelig verdi med resultatføring, Statlig eide aksjeselskaper mv., Norske kroner",0,0,1899000,0,"000",10,11200,0,0,10,0,null,null,null,"02.4.5"]
["Andre verdipapirer/finansielle eiendeler ekskl. utlån, Virkelig verdi med resultatføring, Statlig eide aksjeselskaper mv., Utenlandsk valuta i NOK",0,0,1899000,0,"000",10,11200,0,0,30,0,null,null,null,"02.4.5"]
["Andre verdipapirer/finansielle eiendeler ekskl. utlån, Virkelig verdi med resultatføring, Kommunale aksjeselskaper mv., Norske kroner",0,0,1899000,0,"000",10,15200,0,0,10,0,null,null,null,"02.4.5"]
["Andre verdipapirer/finansielle eiendeler ekskl. utlån, Virkelig verdi med resultatføring, Private aksjeselskaper mv.,Norske kroner",0,0,1899000,0,"000",10,21000,0,0,10,0,null,null,null,"02.4.5"]
["Andre verdipapirer/finansielle eiendeler ekskl. utlån, Virkelig verdi med resultatføring, Private aksjeselskaper mv.,Utenlandsk valuta i NOK",0,0,1899000,0,"000",10,21000,0,0,30,0,null,null,null,"02.4.5"]
["Andre verdipapirer/finansielle eiendeler ekskl. utlån, Virkelig verdi med resultatføring, Private aksjeselskaper mv., tilknyttede selskaper, Norske kroner",0,0,1899000,0,"000",10,21008,0,0,10,0,null,null,null,"02.2.2"]
["Andre verdipapirer/finansielle eiendeler ekskl. utlån, Virkelig verdi med resultatføring, Private aksjeselskaper mv., konsernselskap, Norske kroner",0,0,1899000,0,"000",10,21009,0,0,10,0,null,null,null,"02.2.2"]
["Andre verdipapirer/finansielle eiendeler ekskl. utlån, Virkelig verdi med resultatføring, Personlige foretak, Norske kroner",0,0,1899000,0,"000",10,23000,0,0,10,0,null,null,null,"02.4.5"]
["Andre verdipapirer/finansielle eiendeler ekskl. utlån, Virkelig verdi med resultatføring, Banker, Norske kroner",0,0,1899000,0,"000",10,32000,0,0,10,0,null,null,null,"02.4.5"]
["Andre verdipapirer/finansielle eiendeler ekskl. utlån, Virkelig verdi med resultatføring, Banker, Utenlandsk valuta i NOK",0,0,1899000,0,"000",10,32000,0,0,30,0,null,null,null,"02.4.5"]
["Andre verdipapirer/finansielle eiendeler ekskl. utlån, Virkelig verdi med resultatføring, Banker, tilknyttede banker,  Norske kroner",0,0,1899000,0,"000",10,32008,0,0,10,0,null,null,null,"02.2.2"]
["Andre verdipapirer/finansielle eiendeler ekskl. utlån, Virkelig verdi med resultatføring, Banker, konsernbanker, Norske kroner",0,0,1899000,0,"000",10,32009,0,0,10,0,null,null,null,"02.2.2"]
["Andre verdipapirer/finansielle eiendeler ekskl. utlån, Virkelig verdi med resultatføring, Kredittforetak, Norske kroner",0,0,1899000,0,"000",10,35000,0,0,10,0,null,null,null,"02.4.5"]
["Andre verdipapirer/finansielle eiendeler ekskl. utlån, Virkelig verdi med resultatføring, Kredittforetak, Utenlandsk valuta i NOK",0,0,1899000,0,"000",10,35000,0,0,30,0,null,null,null,"02.4.5"]
["Andre verdipapirer/finansielle eiendeler ekskl. utlån, Virkelig verdi med resultatføring, Kredittforetak, tilknyttede selskaper, Norske kroner",0,0,1899000,0,"000",10,35008,0,0,10,0,null,null,null,"02.2.2"]
["Andre verdipapirer/finansielle eiendeler ekskl. utlån, Virkelig verdi med resultatføring, Kredittforetak, konsernselskap, Norske kroner",0,0,1899000,0,"000",10,35009,0,0,10,0,null,null,null,"02.2.2"]
["Andre verdipapirer/finansielle eiendeler ekskl. utlån, Virkelig verdi med resultatføring, Finansieringsselskaper, Norske kroner",0,0,1899000,0,"000",10,36000,0,0,10,0,null,null,null,"02.4.5"]
["Andre verdipapirer/finansielle eiendeler ekskl. utlån, Virkelig verdi med resultatføring, Finansieringsselskaper, tilknyttede selskaper, Norske kroner",0,0,1899000,0,"000",10,36008,0,0,10,0,null,null,null,"02.2.2"]
["Andre verdipapirer/finansielle eiendeler ekskl. utlån, Virkelig verdi med resultatføring, Finansieringsselskaper, konsernselskap, Norske kroner",0,0,1899000,0,"000",10,36009,0,0,10,0,null,null,null,"02.2.2"]
["Andre verdipapirer/finansielle eiendeler ekskl. utlån, Virkelig verdi med resultatføring, Investeringsselskaper og aktive eierfond/PE-selskaper, Norske kroner",0,0,1899000,0,"000",10,45000,0,0,10,0,null,null,null,"02.4.5"]
["Andre verdipapirer/finansielle eiendeler ekskl. utlån, Virkelig verdi med resultatføring, Investeringsselskaper og aktive eierfond/PE-selskaper, Utenlandsk valuta i NOK",0,0,1899000,0,"000",10,45000,0,0,30,0,null,null,null,"02.4.5"]
["Andre verdipapirer/finansielle eiendeler ekskl. utlån, Virkelig verdi med resultatføring, Investeringsselskaper og aktive eierfond/PE-selskaper, tilknyttede selskaper, Norske kroner",0,0,1899000,0,"000",10,45008,0,0,10,0,null,null,null,"02.2.2"]
["Andre verdipapirer/finansielle eiendeler ekskl. utlån, Virkelig verdi med resultatføring, Investeringsselskaper og aktive eierfond/PE-selskaper, konsernselskap, Norske kroner",0,0,1899000,0,"000",10,45009,0,0,10,0,null,null,null,"02.2.2"]
["Andre verdipapirer/finansielle eiendeler ekskl. utlån, Virkelig verdi med resultatføring, Øvrige finansielle foretak unntatt forsikring, Norske kroner",0,0,1899000,0,"000",10,49000,0,0,10,0,null,null,null,"02.4.5"]
["Andre verdipapirer/finansielle eiendeler ekskl. utlån, Virkelig verdi med resultatføring, Øvrige finansielle foretak unntatt forsikring, Utenlandsk valuta",0,0,1899000,0,"000",10,49000,0,0,30,0,null,null,null,"02.4.5"]
["Andre verdipapirer/finansielle eiendeler ekskl. utlån, Virkelig verdi med resultatføring, Øvrige finansielle foretak unntatt forsikring, tilknyttede selskaper, Norske kroner",0,0,1899000,0,"000",10,49008,0,0,10,0,null,null,null,"02.2.2"]
["Andre verdipapirer/finansielle eiendeler ekskl. utlån, Virkelig verdi med resultatføring, Øvrige finansielle foretak unntatt forsikring, konsernselskap, Norske kroner",0,0,1899000,0,"000",10,49009,0,0,10,0,null,null,null,"02.2.2"]
["Andre verdipapirer/finansielle eiendeler ekskl. utlån, Virkelig verdi med resultatføring, Livsforsikringsselskaper og pensjonskasser, Norske kroner",0,0,1899000,0,"000",10,55000,0,0,10,0,null,null,null,"02.4.5"]
["Andre verdipapirer/finansielle eiendeler ekskl. utlån, Virkelig verdi med resultatføring, Livsforsikringsselskaper og pensjonskasser, tilknyttede selskaper, Norske kroner",0,0,1899000,0,"000",10,55008,0,0,10,0,null,null,null,"02.2.2"]
["Andre verdipapirer/finansielle eiendeler ekskl. utlån, Virkelig verdi med resultatføring, Livsforsikringsselskaper og pensjonskasser, konsernselskap, Norske kroner",0,0,1899000,0,"000",10,55009,0,0,10,0,null,null,null,"02.2.2"]
["Andre verdipapirer/finansielle eiendeler ekskl. utlån, Virkelig verdi med resultatføring, Skadeforsikringsselskaper, Norske kroner",0,0,1899000,0,"000",10,57000,0,0,10,0,null,null,null,"02.4.5"]
["Andre verdipapirer/finansielle eiendeler ekskl. utlån, Virkelig verdi med resultatføring, Skadeforsikringsselskaper, tilknyttede selskaper, Utenlandsk valuta i NOK",0,0,1899000,0,"000",10,57008,0,0,10,0,null,null,null,"02.2.2"]
["Andre verdipapirer/finansielle eiendeler ekskl. utlån, Virkelig verdi med resultatføring, Skadeforsikringsselskaper, konsernselskap, Norske kroner",0,0,1899000,0,"000",10,57009,0,0,10,0,null,null,null,"02.2.2"]
["Andre verdipapirer/finansielle eiendeler ekskl. utlån, Virkelig verdi med resultatføring, Personlig næringsdrivende, Norske kroner",0,0,1899000,0,"000",10,82000,0,0,10,0,null,null,null,"02.4.5"]
["Andre verdipapirer/finansielle eiendeler ekskl. utlån, Virkelig verdi med resultatføring, Ufordelt sektor, Norske kroner",0,0,1899000,0,"000",10,"08000",0,0,10,0,null,null,null,"02.4.5"]
["Andre verdipapirer/finansielle eiendeler ekskl. utlån, Virkelig verdi med resultatføring, Utlandet ekskl. tilknyttede - og konsernselskap, Norske kroner",0,0,1899000,0,"000",10,90010,0,0,10,0,null,null,null,"02.4.5"]
["Andre verdipapirer/finansielle eiendeler ekskl. utlån, Virkelig verdi med resultatføring, Utlandet ekskl. tilknyttede - og konsernselskap, Utenlandsk valuta i NOK",0,0,1899000,0,"000",10,90010,0,0,30,0,null,null,null,"02.4.5"]
["Andre verdipapirer/finansielle eiendeler ekskl. utlån, Virkelig verdi med resultatføring, Utlandet, tilknyttede selskaper, Utenlandsk valuta i NOK",0,0,1899000,0,"000",10,90008,0,0,10,0,null,null,null,"02.2.2"]
["Andre verdipapirer/finansielle eiendeler ekskl. utlån, Virkelig verdi med resultatføring, Utlandet, tilknyttede selskaper, Utenlandsk valuta i NOK",0,0,1899000,0,"000",10,90008,0,0,30,0,null,null,null,"02.2.2"]
["Andre verdipapirer/finansielle eiendeler ekskl. utlån, Virkelig verdi med resultatføring, Utlandet, konsernselskaper Utenlandsk valuta i NOK",0,0,1899000,0,"000",10,90009,0,0,10,0,null,null,null,"02.2.2"]
["Andre verdipapirer/finansielle eiendeler ekskl. utlån, Virkelig verdi med resultatføring, Utlandet, konsernselskap, Utenlandsk valuta i NOK",0,0,1899000,0,"000",10,90009,0,0,30,0,null,null,null,"02.2.2"]
[]
["Andre verdipapirer/finansielle eiendeler ekskl. utlån, Tilgjengelig for salg, Statlig eide aksjeselskaper mv., Norske kroner",0,0,1899000,0,"000",20,11200,0,0,10,0,null,null,null,"02.4.5"]
["Andre verdipapirer/finansielle eiendeler ekskl. utlån, Tilgjengelig for salg, Statlig eide aksjeselskaper mv., Utenlandsk valuta i NOK",0,0,1899000,0,"000",20,11200,0,0,30,0,null,null,null,"02.4.5"]
["Andre verdipapirer/finansielle eiendeler ekskl. utlån, Tilgjengelig for salg, Kommunale aksjeselskaper mv., Norske kroner",0,0,1899000,0,"000",20,15200,0,0,10,0,null,null,null,"02.4.5"]
["Andre verdipapirer/finansielle eiendeler ekskl. utlån, Tilgjengelig for salg, Private aksjeselskaper mv.,Norske kroner",0,0,1899000,0,"000",20,21000,0,0,10,0,null,null,null,"02.4.5"]
["Andre verdipapirer/finansielle eiendeler ekskl. utlån, Tilgjengelig for salg, Private aksjeselskaper mv.,Utenlandsk valuta i NOK",0,0,1899000,0,"000",20,21000,0,0,30,0,null,null,null,"02.4.5"]
["Andre verdipapirer/finansielle eiendeler ekskl. utlån, Tilgjengelig for salg, Private aksjeselskaper mv., tilknyttede selskaper, Norske kroner",0,0,1899000,0,"000",20,21008,0,0,10,0,null,null,null,"02.2.2"]
["Andre verdipapirer/finansielle eiendeler ekskl. utlån, Tilgjengelig for salg, Private aksjeselskaper mv., konsernselskap, Norske kroner",0,0,1899000,0,"000",20,21009,0,0,10,0,null,null,null,"02.2.2"]
["Andre verdipapirer/finansielle eiendeler ekskl. utlån, Tilgjengelig for salg, Personlige foretak, Norske kroner",0,0,1899000,0,"000",20,23000,0,0,10,0,null,null,null,"02.4.5"]
["Andre verdipapirer/finansielle eiendeler ekskl. utlån, Tilgjengelig for salg, Banker, Norske kroner",0,0,1899000,0,"000",20,32000,0,0,10,0,null,null,null,"02.4.5"]
["Andre verdipapirer/finansielle eiendeler ekskl. utlån, Tilgjengelig for salg, Banker, Utenlandsk valuta i NOK",0,0,1899000,0,"000",20,32000,0,0,30,0,null,null,null,"02.4.5"]
["Andre verdipapirer/finansielle eiendeler ekskl. utlån, Tilgjengelig for salg, Banker, tilknyttede banker,  Norske kroner",0,0,1899000,0,"000",20,32008,0,0,10,0,null,null,null,"02.2.2"]
["Andre verdipapirer/finansielle eiendeler ekskl. utlån, Tilgjengelig for salg, Banker, konsernbanker, Norske kroner",0,0,1899000,0,"000",20,32009,0,0,10,0,null,null,null,"02.2.2"]
["Andre verdipapirer/finansielle eiendeler ekskl. utlån, Tilgjengelig for salg, Kredittforetak, Norske kroner",0,0,1899000,0,"000",20,35000,0,0,10,0,null,null,null,"02.4.5"]
["Andre verdipapirer/finansielle eiendeler ekskl. utlån, Tilgjengelig for salg, Kredittforetak, Utenlandsk valuta i NOK",0,0,1899000,0,"000",20,35000,0,0,30,0,null,null,null,"02.4.5"]
["Andre verdipapirer/finansielle eiendeler ekskl. utlån, Tilgjengelig for salg, Kredittforetak, tilknyttede selskaper, Norske kroner",0,0,1899000,0,"000",20,35008,0,0,10,0,null,null,null,"02.2.2"]
["Andre verdipapirer/finansielle eiendeler ekskl. utlån, Tilgjengelig for salg, Kredittforetak, konsernselskap, Norske kroner",0,0,1899000,0,"000",20,35009,0,0,10,0,null,null,null,"02.2.2"]
["Andre verdipapirer/finansielle eiendeler ekskl. utlån, Tilgjengelig for salg, Finansieringsselskaper, Norske kroner",0,0,1899000,0,"000",20,36000,0,0,10,0,null,null,null,"02.4.5"]
["Andre verdipapirer/finansielle eiendeler ekskl. utlån, Tilgjengelig for salg, Finansieringsselskaper, tilknyttede selskaper, Norske kroner",0,0,1899000,0,"000",20,36008,0,0,10,0,null,null,null,"02.2.2"]
["Andre verdipapirer/finansielle eiendeler ekskl. utlån, Tilgjengelig for salg, Finansieringsselskaper, konsernselskap, Norske kroner",0,0,1899000,0,"000",20,36009,0,0,10,0,null,null,null,"02.2.2"]
["Andre verdipapirer/finansielle eiendeler ekskl. utlån, Tilgjengelig for salg, Investeringsselskaper og aktive eierfond/PE-selskaper, Norske kroner",0,0,1899000,0,"000",20,45000,0,0,10,0,null,null,null,"02.4.5"]
["Andre verdipapirer/finansielle eiendeler ekskl. utlån, Tilgjengelig for salg, Investeringsselskaper og aktive eierfond/PE-selskaper, Utenlandsk valuta i NOK",0,0,1899000,0,"000",20,45000,0,0,30,0,null,null,null,"02.4.5"]
["Andre verdipapirer/finansielle eiendeler ekskl. utlån, Tilgjengelig for salg, Investeringsselskaper og aktive eierfond/PE-selskaper, tilknyttede selskaper, Norske kroner",0,0,1899000,0,"000",20,45008,0,0,10,0,null,null,null,"02.2.2"]
["Andre verdipapirer/finansielle eiendeler ekskl. utlån, Tilgjengelig for salg, Investeringsselskaper og aktive eierfond/PE-selskaper, konsernselskap, Norske kroner",0,0,1899000,0,"000",20,45009,0,0,10,0,null,null,null,"02.2.2"]
["Andre verdipapirer/finansielle eiendeler ekskl. utlån, Tilgjengelig for salg, Øvrige finansielle foretak unntatt forsikring, Norske kroner",0,0,1899000,0,"000",20,49000,0,0,10,0,null,null,null,"02.4.5"]
["Andre verdipapirer/finansielle eiendeler ekskl. utlån, Tilgjengelig for salg, Øvrige finansielle foretak unntatt forsikring, Utenlandsk valuta",0,0,1899000,0,"000",20,49000,0,0,30,0,null,null,null,"02.4.5"]
["Andre verdipapirer/finansielle eiendeler ekskl. utlån, Tilgjengelig for salg, Øvrige finansielle foretak unntatt forsikring, tilknyttede selskaper, Norske kroner",0,0,1899000,0,"000",20,49008,0,0,10,0,null,null,null,"02.2.2"]
["Andre verdipapirer/finansielle eiendeler ekskl. utlån, Tilgjengelig for salg, Øvrige finansielle foretak unntatt forsikring, konsernselskap, Norske kroner",0,0,1899000,0,"000",20,49009,0,0,10,0,null,null,null,"02.2.2"]
["Andre verdipapirer/finansielle eiendeler ekskl. utlån, Tilgjengelig for salg, Livsforsikringsselskaper og pensjonskasser, Norske kroner",0,0,1899000,0,"000",20,55000,0,0,10,0,null,null,null,"02.4.5"]
["Andre verdipapirer/finansielle eiendeler ekskl. utlån, Tilgjengelig for salg, Livsforsikringsselskaper og pensjonskasser, tilknyttede selskaper, Norske kroner",0,0,1899000,0,"000",20,55008,0,0,10,0,null,null,null,"02.2.2"]
["Andre verdipapirer/finansielle eiendeler ekskl. utlån, Tilgjengelig for salg, Livsforsikringsselskaper og pensjonskasser, konsernselskap, Norske kroner",0,0,1899000,0,"000",20,55009,0,0,10,0,null,null,null,"02.2.2"]
["Andre verdipapirer/finansielle eiendeler ekskl. utlån, Tilgjengelig for salg, Skadeforsikringsselskaper, Norske kroner",0,0,1899000,0,"000",20,57000,0,0,10,0,null,null,null,"02.4.5"]
["Andre verdipapirer/finansielle eiendeler ekskl. utlån, Tilgjengelig for salg, Skadeforsikringsselskaper, tilknyttede selskaper, Utenlandsk valuta i NOK",0,0,1899000,0,"000",20,57008,0,0,10,0,null,null,null,"02.2.2"]
["Andre verdipapirer/finansielle eiendeler ekskl. utlån, Tilgjengelig for salg, Skadeforsikringsselskaper, konsernselskap, Norske kroner",0,0,1899000,0,"000",20,57009,0,0,10,0,null,null,null,"02.2.2"]
["Andre verdipapirer/finansielle eiendeler ekskl. utlån, Tilgjengelig for salg, Personlig næringsdrivende, Norske kroner",0,0,1899000,0,"000",20,82000,0,0,10,0,null,null,null,"02.4.5"]
["Andre verdipapirer/finansielle eiendeler ekskl. utlån, Tilgjengelig for salg, Ufordelt sektor, Norske kroner",0,0,1899000,0,"000",20,"08000",0,0,10,0,null,null,null,"02.4.5"]
["Andre verdipapirer/finansielle eiendeler ekskl. utlån, Tilgjengelig for salg, Utlandet ekskl. tilknyttede - og konsernselskap, Norske kroner",0,0,1899000,0,"000",20,90010,0,0,10,0,null,null,null,"02.4.5"]
["Andre verdipapirer/finansielle eiendeler ekskl. utlån, Tilgjengelig for salg, Utlandet ekskl. tilknyttede - og konsernselskap, Utenlandsk valuta i NOK",0,0,1899000,0,"000",20,90010,0,0,30,0,null,null,null,"02.4.5"]
["Andre verdipapirer/finansielle eiendeler ekskl. utlån, Tilgjengelig for salg, Utlandet, tilknyttede selskaper, Utenlandsk valuta i NOK",0,0,1899000,0,"000",20,90008,0,0,10,0,null,null,null,"02.2.2"]
["Andre verdipapirer/finansielle eiendeler ekskl. utlån, Tilgjengelig for salg, Utlandet, tilknyttede selskaper, Utenlandsk valuta i NOK",0,0,1899000,0,"000",20,90008,0,0,30,0,null,null,null,"02.2.2"]
["Andre verdipapirer/finansielle eiendeler ekskl. utlån, Tilgjengelig for salg, Utlandet, konsernselskaper Utenlandsk valuta i NOK",0,0,1899000,0,"000",20,90009,0,0,10,0,null,null,null,"02.2.2"]
["Andre verdipapirer/finansielle eiendeler ekskl. utlån, Tilgjengelig for salg, Utlandet, konsernselskap, Utenlandsk valuta i NOK",0,0,1899000,0,"000",20,90009,0,0,30,0,null,null,null,"02.2.2"]
[]
["Andre verdipapirer/finansielle eiendeler ekskl. utlån, Anskaffelseskost, Statlig eide aksjeselskaper mv., Norske kroner",0,0,1899000,0,"000",60,11200,0,0,10,0,null,null,null,"02.4.5"]
["Andre verdipapirer/finansielle eiendeler ekskl. utlån, Anskaffelseskost, Statlig eide aksjeselskaper mv., Utenlandsk valuta i NOK",0,0,1899000,0,"000",60,11200,0,0,30,0,null,null,null,"02.4.5"]
["Andre verdipapirer/finansielle eiendeler ekskl. utlån, Anskaffelseskost, Kommunale aksjeselskaper mv., Norske kroner",0,0,1899000,0,"000",60,15200,0,0,10,0,null,null,null,"02.4.5"]
["Andre verdipapirer/finansielle eiendeler ekskl. utlån, Anskaffelseskost, Private aksjeselskaper mv.,Norske kroner",0,0,1899000,0,"000",60,21000,0,0,10,0,null,null,null,"02.4.5"]
["Andre verdipapirer/finansielle eiendeler ekskl. utlån, Anskaffelseskost, Private aksjeselskaper mv.,Utenlandsk valuta i NOK",0,0,1899000,0,"000",60,21000,0,0,30,0,null,null,null,"02.4.5"]
["Andre verdipapirer/finansielle eiendeler ekskl. utlån, Anskaffelseskost, Private aksjeselskaper mv., tilknyttede selskaper, Norske kroner",0,0,1899000,0,"000",60,21008,0,0,10,0,null,null,null,"02.2.2"]
["Andre verdipapirer/finansielle eiendeler ekskl. utlån, Anskaffelseskost, Private aksjeselskaper mv., konsernselskap, Norske kroner",0,0,1899000,0,"000",60,21009,0,0,10,0,null,null,null,"02.2.2"]
["Andre verdipapirer/finansielle eiendeler ekskl. utlån, Anskaffelseskost, Personlige foretak, Norske kroner",0,0,1899000,0,"000",60,23000,0,0,10,0,null,null,null,"02.4.5"]
["Andre verdipapirer/finansielle eiendeler ekskl. utlån, Anskaffelseskost, Banker, Norske kroner",0,0,1899000,0,"000",60,32000,0,0,10,0,null,null,null,"02.4.5"]
["Andre verdipapirer/finansielle eiendeler ekskl. utlån, Anskaffelseskost, Banker, Utenlandsk valuta i NOK",0,0,1899000,0,"000",60,32000,0,0,30,0,null,null,null,"02.4.5"]
["Andre verdipapirer/finansielle eiendeler ekskl. utlån, Anskaffelseskost, Banker, tilknyttede banker,  Norske kroner",0,0,1899000,0,"000",60,32008,0,0,10,0,null,null,null,"02.2.2"]
["Andre verdipapirer/finansielle eiendeler ekskl. utlån, Anskaffelseskost, Banker, konsernbanker, Norske kroner",0,0,1899000,0,"000",60,32009,0,0,10,0,null,null,null,"02.2.2"]
["Andre verdipapirer/finansielle eiendeler ekskl. utlån, Anskaffelseskost, Kredittforetak, Norske kroner",0,0,1899000,0,"000",60,35000,0,0,10,0,null,null,null,"02.4.5"]
["Andre verdipapirer/finansielle eiendeler ekskl. utlån, Anskaffelseskost, Kredittforetak, Utenlandsk valuta i NOK",0,0,1899000,0,"000",60,35000,0,0,30,0,null,null,null,"02.4.5"]
["Andre verdipapirer/finansielle eiendeler ekskl. utlån, Anskaffelseskost, Kredittforetak, tilknyttede selskaper, Norske kroner",0,0,1899000,0,"000",60,35008,0,0,10,0,null,null,null,"02.2.2"]
["Andre verdipapirer/finansielle eiendeler ekskl. utlån, Anskaffelseskost, Kredittforetak, konsernselskap, Norske kroner",0,0,1899000,0,"000",60,35009,0,0,10,0,null,null,null,"02.2.2"]
["Andre verdipapirer/finansielle eiendeler ekskl. utlån, Anskaffelseskost, Finansieringsselskaper, Norske kroner",0,0,1899000,0,"000",60,36000,0,0,10,0,null,null,null,"02.4.5"]
["Andre verdipapirer/finansielle eiendeler ekskl. utlån, Anskaffelseskost, Finansieringsselskaper, tilknyttede selskaper, Norske kroner",0,0,1899000,0,"000",60,36008,0,0,10,0,null,null,null,"02.2.2"]
["Andre verdipapirer/finansielle eiendeler ekskl. utlån, Anskaffelseskost, Finansieringsselskaper, konsernselskap, Norske kroner",0,0,1899000,0,"000",60,36009,0,0,10,0,null,null,null,"02.2.2"]
["Andre verdipapirer/finansielle eiendeler ekskl. utlån, Anskaffelseskost, Investeringsselskaper og aktive eierfond/PE-selskaper, Norske kroner",0,0,1899000,0,"000",60,45000,0,0,10,0,null,null,null,"02.4.5"]
["Andre verdipapirer/finansielle eiendeler ekskl. utlån, Anskaffelseskost, Investeringsselskaper og aktive eierfond/PE-selskaper, Utenlandsk valuta i NOK",0,0,1899000,0,"000",60,45000,0,0,30,0,null,null,null,"02.4.5"]
["Andre verdipapirer/finansielle eiendeler ekskl. utlån, Anskaffelseskost, Investeringsselskaper og aktive eierfond/PE-selskaper, tilknyttede selskaper, Norske kroner",0,0,1899000,0,"000",60,45008,0,0,10,0,null,null,null,"02.2.2"]
["Andre verdipapirer/finansielle eiendeler ekskl. utlån, Anskaffelseskost, Investeringsselskaper og aktive eierfond/PE-selskaper, konsernselskap, Norske kroner",0,0,1899000,0,"000",60,45009,0,0,10,0,null,null,null,"02.2.2"]
["Andre verdipapirer/finansielle eiendeler ekskl. utlån, Anskaffelseskost, Øvrige finansielle foretak unntatt forsikring, Norske kroner",0,0,1899000,0,"000",60,49000,0,0,10,0,null,null,null,"02.4.5"]
["Andre verdipapirer/finansielle eiendeler ekskl. utlån, Anskaffelseskost, Øvrige finansielle foretak unntatt forsikring, Utenlandsk valuta",0,0,1899000,0,"000",60,49000,0,0,30,0,null,null,null,"02.4.5"]
["Andre verdipapirer/finansielle eiendeler ekskl. utlån, Anskaffelseskost, Øvrige finansielle foretak unntatt forsikring, tilknyttede selskaper, Norske kroner",0,0,1899000,0,"000",60,49008,0,0,10,0,null,null,null,"02.2.2"]
["Andre verdipapirer/finansielle eiendeler ekskl. utlån, Anskaffelseskost, Øvrige finansielle foretak unntatt forsikring, konsernselskap, Norske kroner",0,0,1899000,0,"000",60,49009,0,0,10,0,null,null,null,"02.2.2"]
["Andre verdipapirer/finansielle eiendeler ekskl. utlån, Anskaffelseskost, Livsforsikringsselskaper og pensjonskasser, Norske kroner",0,0,1899000,0,"000",60,55000,0,0,10,0,null,null,null,"02.4.5"]
["Andre verdipapirer/finansielle eiendeler ekskl. utlån, Anskaffelseskost, Livsforsikringsselskaper og pensjonskasser, tilknyttede selskaper, Norske kroner",0,0,1899000,0,"000",60,55008,0,0,10,0,null,null,null,"02.2.2"]
["Andre verdipapirer/finansielle eiendeler ekskl. utlån, Anskaffelseskost, Livsforsikringsselskaper og pensjonskasser, konsernselskap, Norske kroner",0,0,1899000,0,"000",60,55009,0,0,10,0,null,null,null,"02.2.2"]
["Andre verdipapirer/finansielle eiendeler ekskl. utlån, Anskaffelseskost, Skadeforsikringsselskaper, Norske kroner",0,0,1899000,0,"000",60,57000,0,0,10,0,null,null,null,"02.4.5"]
["Andre verdipapirer/finansielle eiendeler ekskl. utlån, Anskaffelseskost, Skadeforsikringsselskaper, tilknyttede selskaper, Utenlandsk valuta i NOK",0,0,1899000,0,"000",60,57008,0,0,10,0,null,null,null,"02.2.2"]
["Andre verdipapirer/finansielle eiendeler ekskl. utlån, Anskaffelseskost, Skadeforsikringsselskaper, konsernselskap, Norske kroner",0,0,1899000,0,"000",60,57009,0,0,10,0,null,null,null,"02.2.2"]
["Andre verdipapirer/finansielle eiendeler ekskl. utlån, Anskaffelseskost, Personlig næringsdrivende, Norske kroner",0,0,1899000,0,"000",60,82000,0,0,10,0,null,null,null,"02.4.5"]
["Andre verdipapirer/finansielle eiendeler ekskl. utlån, Anskaffelseskost, Ufordelt sektor, Norske kroner",0,0,1899000,0,"000",60,"08000",0,0,10,0,null,null,null,"02.4.5"]
["Andre verdipapirer/finansielle eiendeler ekskl. utlån, Anskaffelseskost, Utlandet ekskl. tilknyttede - og konsernselskap, Norske kroner",0,0,1899000,0,"000",60,90010,0,0,10,0,null,null,null,"02.4.5"]
["Andre verdipapirer/finansielle eiendeler ekskl. utlån, Anskaffelseskost, Utlandet ekskl. tilknyttede - og konsernselskap, Utenlandsk valuta i NOK",0,0,1899000,0,"000",60,90010,0,0,30,0,null,null,null,"02.4.5"]
["Andre verdipapirer/finansielle eiendeler ekskl. utlån, Anskaffelseskost, Utlandet, tilknyttede selskaper, Utenlandsk valuta i NOK",0,0,1899000,0,"000",60,90008,0,0,10,0,null,null,null,"02.2.2"]
["Andre verdipapirer/finansielle eiendeler ekskl. utlån, Anskaffelseskost, Utlandet, tilknyttede selskaper, Utenlandsk valuta i NOK",0,0,1899000,0,"000",60,90008,0,0,30,0,null,null,null,"02.2.2"]
["Andre verdipapirer/finansielle eiendeler ekskl. utlån, Anskaffelseskost, Utlandet, konsernselskaper Utenlandsk valuta i NOK",0,0,1899000,0,"000",60,90009,0,0,10,0,null,null,null,"02.2.2"]
["Andre verdipapirer/finansielle eiendeler ekskl. utlån, Anskaffelseskost, Utlandet, konsernselskap, Utenlandsk valuta i NOK",0,0,1899000,0,"000",60,90009,0,0,30,0,null,null,null,"02.2.2"]
[]
["2. Utlån"]
["Utlån, Med pant i bolig, Virkelig verdi med resultatføring, Private aksjeselskaper mv., norske kroner",0,0,2553700,0,"000",10,21000,0,0,10,0,null,null,null,"02.4.3"]
["Utlån, Med pant i bolig, Virkelig verdi med resultatføring, Personlige foretak, norske kroner",0,0,2553700,0,"000",10,23000,0,0,10,0,null,null,null,"02.4.3"]
["Utlån, Med pant i bolig, Virkelig verdi med resultatføring, Personlig næringsdrivende, norske kroner",0,0,2553700,0,"000",10,82000,0,0,10,0,null,null,null,"02.4.3"]
["Utlån, Med pant i bolig, Virkelig verdi med resultatføring, Lønnstakere mv., norske kroner",0,0,2553700,0,"000",10,85000,0,0,10,0,null,null,null,"02.4.3"]
[]
["Utlån, Med pant i bolig, Amortisert kost, Øvrige, Private aksjeselskaper mv., norske kroner",0,0,2553700,0,"000",52,21000,0,0,10,0,null,null,null,"02.3.2"]
["Utlån, Med pant i bolig, Amortisert kost, Øvrige, Personlige foretak, norske kroner",0,0,2553700,0,"000",52,23000,0,0,10,0,null,null,null,"02.3.2"]
["Utlån, Med pant i bolig, Amortisert kost, Øvrige, Personlig næringsdrivende, norske kroner",0,0,2553700,0,"000",52,82000,0,0,10,0,null,null,null,"02.3.2"]
["Utlån, Med pant i bolig, Amortisert kost, Øvrige, Lønnstakere mv., norske kroner",0,0,2553700,0,"000",52,85000,0,0,10,0,null,null,null,"02.3.2"]
[]
["Utlån, Andre pantelån, Virkelig verdi med resultatføring, Private aksjeselskaper mv., norske kroner",0,0,2554200,0,"000",10,21000,0,0,10,0,null,null,null,"02.4.3"]
["Utlån, Andre pantelån, Virkelig verdi med resultatføring, Personlige foretak, norske kroner",0,0,2554200,0,"000",10,23000,0,0,10,0,null,null,null,"02.4.3"]
["Utlån, Andre pantelån, Virkelig verdi med resultatføring, Personlig næringsdrivende, norske kroner",0,0,2554200,0,"000",10,82000,0,0,10,0,null,null,null,"02.4.3"]
["Utlån, Andre pantelån, Virkelig verdi med resultatføring, Lønnstakere mv., norske kroner",0,0,2554200,0,"000",10,85000,0,0,10,0,null,null,null,"02.4.3"]
[]
["Utlån, Andre pantelån, Amortisert kost, Øvrige, Private aksjeselskaper mv., norske kroner",0,0,2554200,0,"000",52,21000,0,0,10,0,null,null,null,"02.3.2"]
["Utlån, Andre pantelån, Amortisert kost, Øvrige, Personlige foretak, norske kroner",0,0,2554200,0,"000",52,23000,0,0,10,0,null,null,null,"02.3.2"]
["Utlån, Andre pantelån, Amortisert kost, Øvrige, Personlig næringsdrivende, norske kroner",0,0,2554200,0,"000",52,82000,0,0,10,0,null,null,null,"02.3.2"]
["Utlån, Andre pantelån, Amortisert kost, Øvrige, Lønnstakere mv., norske kroner",0,0,2554200,0,"000",52,85000,0,0,10,0,null,null,null,"02.3.2"]
[]
["Utlån, Verdipapir -/ repolån, Virkelig verdi med resultatføring,  Private aksjeselskaper mv., norske kroner",0,0,2558800,0,0,10,21000,0,0,10,0,null,null,null,"02.4.3"]
["Utlån, Verdipapir -/ repolån, Virkelig verdi med resultatføring,  Private aksjeselskaper mv., Utenlandsk valuta i NOK",0,0,2558800,0,0,10,21000,0,0,30,0,null,null,null,"02.4.3"]
["Utlån, Verdipapir -/ repolån, Virkelig verdi med resultatføring,  Personlige foretak, norske kroner",0,0,2558800,0,0,10,23000,0,0,10,0,null,null,null,"02.4.3"]
["Utlån, Verdipapir -/ repolån, Virkelig verdi med resultatføring,  Banker, norske kroner",0,0,2558800,0,0,10,32000,0,0,10,0,null,null,null,"02.4.3"]
["Utlån, Verdipapir -/ repolån, Virkelig verdi med resultatføring,  Banker, Utenlandsk valuta i NOK",0,0,2558800,0,0,10,32000,0,0,30,0,null,null,null,"02.4.3"]
["Utlån, Verdipapir -/ repolån, Virkelig verdi med resultatføring,  Banker, tilknyttede banker, norske kroner",0,0,2558800,0,0,10,32008,0,0,10,0,null,null,null,"02.2.2"]
["Utlån, Verdipapir -/ repolån, Virkelig verdi med resultatføring,  Banker, konsernbank, norske kroner",0,0,2558800,0,0,10,32009,0,0,10,0,null,null,null,"02.2.2"]
["Utlån, Verdipapir -/ repolån, Virkelig verdi med resultatføring,  Kredittforetak, norske kroner",0,0,2558800,0,0,10,35000,0,0,10,0,null,null,null,"02.4.3"]
["Utlån, Verdipapir -/ repolån, Virkelig verdi med resultatføring,  Finansieringsselskaper, norske kroner",0,0,2558800,0,0,10,36000,0,0,10,0,null,null,null,"02.4.3"]
["Utlån, Verdipapir -/ repolån, Virkelig verdi med resultatføring,  Finansielle holdingselskaper, norske kroner",0,0,2558800,0,0,10,41000,0,0,10,0,null,null,null,"02.4.3"]
["Utlån, Verdipapir -/ repolån, Virkelig verdi med resultatføring,  Investeringsselskaper og aktive eierfond/PE-fond, norske kroner",0,0,2558800,0,0,10,45000,0,0,10,0,null,null,null,"02.4.3"]
["Utlån, Verdipapir -/ repolån, Virkelig verdi med resultatføring,  Investeringsselskaper og aktive eierfond/PE-fond, Utenlandsk valuta i NOK",0,0,2558800,0,0,10,45000,0,0,30,0,null,null,null,"02.4.3"]
["Utlån, Verdipapir -/ repolån, Virkelig verdi med resultatføring,  Øvrige finansielle foretak unntatt forsikring, norske kroner",0,0,2558800,0,0,10,49000,0,0,10,0,null,null,null,"02.4.3"]
["Utlån, Verdipapir -/ repolån, Virkelig verdi med resultatføring,  Livsforsikringsselskaper og pensjonskasser, norske kroner",0,0,2558800,0,0,10,55000,0,0,10,0,null,null,null,"02.4.3"]
["Utlån, Verdipapir -/ repolån, Virkelig verdi med resultatføring,  Skadeforsikringsselskaper, norske kroner",0,0,2558800,0,0,10,57000,0,0,10,0,null,null,null,"02.4.3"]
["Utlån, Verdipapir -/ repolån, Virkelig verdi med resultatføring,  Ufordelt sektor, norske kroner",0,0,2558800,0,0,10,"08000",0,0,10,0,null,null,null,"02.4.3"]
["Utlån, Verdipapir -/ repolån, Virkelig verdi med resultatføring,  Utlandet, Utenlandsk valuta i NOK",0,0,2558800,0,0,10,90000,0,0,30,0,null,null,null,"02.4.3"]
[]
["Utlån, Verdipapir -/ repolån, Amortisert kost, Øvrige,  Private aksjeselskaper mv., norske kroner",0,0,2558800,0,0,52,21000,0,0,10,0,null,null,null,"02.3.2"]
["Utlån, Verdipapir -/ repolån, Amortisert kost, Øvrige,  Private aksjeselskaper mv., Utenlandsk valuta i NOK",0,0,2558800,0,0,52,21000,0,0,30,0,null,null,null,"02.3.2"]
["Utlån, Verdipapir -/ repolån, Amortisert kost, Øvrige,  Personlige foretak, norske kroner",0,0,2558800,0,0,52,23000,0,0,10,0,null,null,null,"02.3.2"]
["Utlån, Verdipapir -/ repolån, Amortisert kost, Øvrige,  Banker, norske kroner",0,0,2558800,0,0,52,32000,0,0,10,0,null,null,null,"02.3.2"]
["Utlån, Verdipapir -/ repolån, Amortisert kost, Øvrige,  Banker, Utenlandsk valuta i NOK",0,0,2558800,0,0,52,32000,0,0,30,0,null,null,null,"02.3.2"]
["Utlån, Verdipapir -/ repolån, Amortisert kost, Øvrige,  Banker, tilknyttede banker, norske kroner",0,0,2558800,0,0,52,32008,0,0,10,0,null,null,null,"02.2.2"]
["Utlån, Verdipapir -/ repolån, Amortisert kost, Øvrige,  Banker, konsernbank, norske kroner",0,0,2558800,0,0,52,32009,0,0,10,0,null,null,null,"02.2.2"]
["Utlån, Verdipapir -/ repolån, Amortisert kost, Øvrige,  Kredittforetak, norske kroner",0,0,2558800,0,0,52,35000,0,0,10,0,null,null,null,"02.3.2"]
["Utlån, Verdipapir -/ repolån, Amortisert kost, Øvrige,  Finansieringsselskaper, norske kroner",0,0,2558800,0,0,52,36000,0,0,10,0,null,null,null,"02.3.2"]
["Utlån, Verdipapir -/ repolån, Amortisert kost, Øvrige,  Finansielle holdingselskaper, norske kroner",0,0,2558800,0,0,52,41000,0,0,10,0,null,null,null,"02.3.2"]
["Utlån, Verdipapir -/ repolån, Amortisert kost, Øvrige,  Investeringsselskaper og aktive eierfond/PE-fond, norske kroner",0,0,2558800,0,0,52,45000,0,0,10,0,null,null,null,"02.3.2"]
["Utlån, Verdipapir -/ repolån, Amortisert kost, Øvrige,  Investeringsselskaper og aktive eierfond/PE-fond, Utenlandsk valuta i NOK",0,0,2558800,0,0,52,45000,0,0,30,0,null,null,null,"02.3.2"]
["Utlån, Verdipapir -/ repolån, Amortisert kost, Øvrige,  Øvrige finansielle foretak unntatt forsikring, norske kroner",0,0,2558800,0,0,52,49000,0,0,10,0,null,null,null,"02.3.2"]
["Utlån, Verdipapir -/ repolån, Amortisert kost, Øvrige,  Livsforsikringsselskaper og pensjonskasser, norske kroner",0,0,2558800,0,0,52,55000,0,0,10,0,null,null,null,"02.3.2"]
["Utlån, Verdipapir -/ repolån, Amortisert kost, Øvrige,  Skadeforsikringsselskaper, norske kroner",0,0,2558800,0,0,52,57000,0,0,10,0,null,null,null,"02.3.2"]
["Utlån, Verdipapir -/ repolån, Amortisert kost, Øvrige,  Ufordelt sektor, norske kroner",0,0,2558800,0,0,52,"08000",0,0,10,0,null,null,null,"02.3.2"]
["Utlån, Verdipapir -/ repolån, Amortisert kost, Øvrige,  Utlandet, Utenlandsk valuta i NOK",0,0,2558800,0,0,52,90010,0,0,30,0,null,null,null,"02.3.2"]
[]
["Andre utlån, Virkelig verdi med resultatføring, Statlig eide aksjeselskaper mv., norske kroner",0,0,2559200,0,"000",10,11200,0,0,10,0,null,null,null,"02.4.3"]
["Andre utlån, Virkelig verdi med resultatføring, Statlig eide aksjeselskaper mv., Utenlandsk valuta i NOK",0,0,2559200,0,"000",10,11200,0,0,30,0,null,null,null,"02.4.3"]
["Andre utlån, Virkelig verdi med resultatføring, Kommunale foretak med ubegrenset ansvar, norske kroner",0,0,2559200,0,"000",10,15100,0,0,10,0,null,null,null,"02.4.3"]
["Andre utlån, Virkelig verdi med resultatføring, Kommunale foretak med ubegrenset ansvar, Utenlandsk valuta i NOK",0,0,2559200,0,"000",10,15100,0,0,30,0,null,null,null,"02.4.3"]
["Andre utlån, Virkelig verdi med resultatføring, Kommunale aksjeselskaper mv., norske kroner",0,0,2559200,0,"000",10,15200,0,0,10,0,null,null,null,"02.4.3"]
["Andre utlån, Virkelig verdi med resultatføring, Kommunale aksjeselskaper mv., Utenlandsk valuta i NOK",0,0,2559200,0,"000",10,15200,0,0,30,0,null,null,null,"02.4.3"]
["Andre utlån, Virkelig verdi med resultatføring, Private aksjeselskaper mv., norske kroner",0,0,2559200,0,"000",10,21000,0,0,10,0,null,null,null,"02.4.3"]
["Andre utlån, Virkelig verdi med resultatføring, Private aksjeselskaper mv., Utenlandsk valuta i NOK",0,0,2559200,0,"000",10,21000,0,0,30,0,null,null,null,"02.4.3"]
["Andre utlån, Virkelig verdi med resultatføring, Private aksjeselskaper mv., tilknyttede selskaper, norske kroner",0,0,2559200,0,"000",10,21008,0,0,10,0,null,null,null,"02.2.2"]
["Andre utlån, Virkelig verdi med resultatføring, Private aksjeselskaper mv., tilknyttede selskaper, Utenlandsk valuta i NOK",0,0,2559200,0,"000",10,21008,0,0,30,0,null,null,null,"02.2.2"]
["Andre utlån, Virkelig verdi med resultatføring, Private aksjeselskaper mv., konsernselskap,norske kroner",0,0,2559200,0,"000",10,21009,0,0,10,0,null,null,null,"02.2.2"]
["Andre utlån, Virkelig verdi med resultatføring, Private aksjeselskaper mv., konsernselskap,Utenlandsk valuta i NOK",0,0,2559200,0,"000",10,21009,0,0,30,0,null,null,null,"02.2.2"]
["Andre utlån, Virkelig verdi med resultatføring, Personlige foretak, norske kroner",0,0,2559200,0,"000",10,23000,0,0,10,0,null,null,null,"02.4.3"]
["Andre utlån, Virkelig verdi med resultatføring, Personlige foretak, Utenlandsk valuta i NOK",0,0,2559200,0,"000",10,23000,0,0,30,0,null,null,null,"02.4.3"]
["Andre utlån, Virkelig verdi med resultatføring, Personlige foretak, tilknyttede selskaper, norske kroner",0,0,2559200,0,"000",10,23008,0,0,10,0,null,null,null,"02.2.2"]
["Andre utlån, Virkelig verdi med resultatføring, Personlige foretak, tilknyttede selskaper, Utenlandsk valuta i NOK",0,0,2559200,0,"000",10,23008,0,0,30,0,null,null,null,"02.2.2"]
["Andre utlån, Virkelig verdi med resultatføring, Private produsentorienterte organisasjoner uten profittformål, norske kroner",0,0,2559200,0,"000",10,25000,0,0,10,0,null,null,null,"02.4.3"]
["Andre utlån, Virkelig verdi med resultatføring, Banker, norske kroner",0,0,2559200,0,"000",10,32000,0,0,10,0,null,null,null,"02.4.3"]
["Andre utlån, Virkelig verdi med resultatføring, Banker, Utenlandsk valuta i NOK",0,0,2559200,0,"000",10,32000,0,0,30,0,null,null,null,"02.4.3"]
["Andre utlån, Virkelig verdi med resultatføring, Banker, tilknyttede banker, norsk kroner",0,0,2559200,0,"000",10,32008,0,0,10,0,null,null,null,"02.2.2"]
["Andre utlån, Virkelig verdi med resultatføring, Banker, tilknyttede banker, Utenlandsk valuta i NOK",0,0,2559200,0,"000",10,32008,0,0,30,0,null,null,null,"02.2.2"]
["Andre utlån, Virkelig verdi med resultatføring, Banker, konsernbank, norske kroner",0,0,2559200,0,"000",10,32009,0,0,10,0,null,null,null,"02.2.2"]
["Andre utlån, Virkelig verdi med resultatføring, Banker, konsernbank, Utenlandsk valuta i NOK",0,0,2559200,0,"000",10,32009,0,0,30,0,null,null,null,"02.2.2"]
["Andre utlån, Virkelig verdi med resultatføring, Kredittforetak, norske kroner",0,0,2559200,0,"000",10,35000,0,0,10,0,null,null,null,"02.4.3"]
["Andre utlån, Virkelig verdi med resultatføring, Kredittforetak, Utenlandsk valuta i NOK",0,0,2559200,0,"000",10,35000,0,0,30,0,null,null,null,"02.4.3"]
["Andre utlån, Virkelig verdi med resultatføring, Kredittforetak, tilknyttet foretak, norske kroner",0,0,2559200,0,"000",10,35008,0,0,10,0,null,null,null,"02.2.2"]
["Andre utlån, Virkelig verdi med resultatføring, Kredittforetak, tilknyttet foretak, Utenlandsk valuta i NOK",0,0,2559200,0,"000",10,35008,0,0,30,0,null,null,null,"02.2.2"]
["Andre utlån, Virkelig verdi med resultatføring, Kredittforetak, konsernselskap,norske kroner",0,0,2559200,0,"000",10,35009,0,0,10,0,null,null,null,"02.2.2"]
["Andre utlån, Virkelig verdi med resultatføring, Kredittforetak, konsernselskap,Utenlandsk valuta i NOK",0,0,2559200,0,"000",10,35009,0,0,30,0,null,null,null,"02.2.2"]
["Andre utlån, Virkelig verdi med resultatføring, Finansieringsselskaper, norske kroner",0,0,2559200,0,"000",10,36000,0,0,10,0,null,null,null,"02.4.3"]
["Andre utlån, Virkelig verdi med resultatføring, Finansieringsselskaper, Utenlandsk valuta i NOK",0,0,2559200,0,"000",10,36000,0,0,30,0,null,null,null,"02.4.3"]
["Andre utlån, Virkelig verdi med resultatføring, Finansieringsselskaper, tilknyttede selskaper, norske kroner",0,0,2559200,0,"000",10,36008,0,0,10,0,null,null,null,"02.2.2"]
["Andre utlån, Virkelig verdi med resultatføring, Finansieringsselskaper, tilknyttede selskaper, Utenlandsk valuta i NOK",0,0,2559200,0,"000",10,36008,0,0,30,0,null,null,null,"02.2.2"]
["Andre utlån, Virkelig verdi med resultatføring, Finansieringsselskaper, konsernselskap,norske kroner",0,0,2559200,0,"000",10,36009,0,0,10,0,null,null,null,"02.2.2"]
["Andre utlån, Virkelig verdi med resultatføring, Finansieringsselskaper, konsernselskap,Utenlandsk valuta i NOK",0,0,2559200,0,"000",10,36009,0,0,30,0,null,null,null,"02.2.2"]
["Andre utlån, Virkelig verdi med resultatføring, Statlige låneinstitutter mv., norske kroner",0,0,2559200,0,"000",10,39000,0,0,10,0,null,null,null,"02.4.3"]
["Andre utlån, Virkelig verdi med resultatføring, Finansielle holdingselskaper, norske kroner",0,0,2559200,0,"000",10,41000,0,0,10,0,null,null,null,"02.4.3"]
["Andre utlån, Virkelig verdi med resultatføring, Finansielle holdingselskaper, Utenlandsk valuta i NOK",0,0,2559200,0,"000",10,41000,0,0,30,0,null,null,null,"02.4.3"]
["Andre utlån, Virkelig verdi med resultatføring, Finansielle holdingselskaper, tilknyttede selskaper, norske kroner",0,0,2559200,0,"000",10,41008,0,0,10,0,null,null,null,"02.2.2"]
["Andre utlån, Virkelig verdi med resultatføring, Finansielle holdingselskaper, tilknyttede selskaper, Utenlandsk valuta i NOK",0,0,2559200,0,"000",10,41008,0,0,30,0,null,null,null,"02.2.2"]
["Andre utlån, Virkelig verdi med resultatføring, Finansielle holdingselskaper, konsernselskap,norske kroner",0,0,2559200,0,"000",10,41009,0,0,10,0,null,null,null,"02.2.2"]
["Andre utlån, Virkelig verdi med resultatføring, Finansielle holdingselskaper, konsernselskap,Utenlandsk valuta i NOK",0,0,2559200,0,"000",10,41009,0,0,30,0,null,null,null,"02.2.2"]
["Andre utlån, Virkelig verdi med resultatføring, Investeringsselskaper og aktive eierfond/PE-fond, norske kroner",0,0,2559200,0,"000",10,45000,0,0,10,0,null,null,null,"02.4.3"]
["Andre utlån, Virkelig verdi med resultatføring, Investeringsselskaper og aktive eierfond/PE-fond, Utenlandsk valuta i NOK",0,0,2559200,0,"000",10,45000,0,0,30,0,null,null,null,"02.4.3"]
["Andre utlån, Virkelig verdi med resultatføring, Investeringsselskaper og aktive eierfond/PE-fond, tilknyttede selskaper, norske kroner",0,0,2559200,0,"000",10,45008,0,0,10,0,null,null,null,"02.2.2"]
["Andre utlån, Virkelig verdi med resultatføring, Investeringsselskaper og aktive eierfond/PE-fond, konsernselskap,norske kroner",0,0,2559200,0,"000",10,45009,0,0,10,0,null,null,null,"02.2.2"]
["Andre utlån, Virkelig verdi med resultatføring, Øvrige finansielle foretak unntatt forsikring, norske kroner",0,0,2559200,0,"000",10,49000,0,0,10,0,null,null,null,"02.4.3"]
["Andre utlån, Virkelig verdi med resultatføring, Øvrige finansielle foretak unntatt forsikring, Utenlandsk valuta i NOK",0,0,2559200,0,"000",10,49000,0,0,30,0,null,null,null,"02.4.3"]
["Andre utlån, Virkelig verdi med resultatføring, Øvrige finansielle foretak unntatt forsikring, tilknyttede selskaper, norske kroner",0,0,2559200,0,"000",10,49008,0,0,10,0,null,null,null,"02.2.2"]
["Andre utlån, Virkelig verdi med resultatføring, Øvrige finansielle foretak unntatt forsikring, tilknyttede selskaper, Utenlandsk valuta i NOK",0,0,2559200,0,"000",10,49008,0,0,30,0,null,null,null,"02.2.2"]
["Andre utlån, Virkelig verdi med resultatføring, Øvrige finansielle foretak unntatt forsikring, konsernselskap selskap, norske kroner",0,0,2559200,0,"000",10,49009,0,0,10,0,null,null,null,"02.2.2"]
["Andre utlån, Virkelig verdi med resultatføring, Øvrige finansielle foretak unntatt forsikring, konsernselskap,Utenlandsk valuta i NOK",0,0,2559200,0,"000",10,49009,0,0,30,0,null,null,null,"02.2.2"]
["Andre utlån, Virkelig verdi med resultatføring, Livsforsikringsselskaper og pensjonskasser, norske kroner",0,0,2559200,0,"000",10,55000,0,0,10,0,null,null,null,"02.4.3"]
["Andre utlån, Virkelig verdi med resultatføring, Livsforsikringsselskaper og pensjonskasser, Utenlandsk valuta i NOK",0,0,2559200,0,"000",10,55000,0,0,30,0,null,null,null,"02.4.3"]
["Andre utlån, Virkelig verdi med resultatføring, Livsforsikringsselskaper og pensjonskasser,  tilknyttede selskaper,  norske kroner",0,0,2559200,0,"000",10,"55008",0,0,10,0,null,null,null,"02.2.2"]
["Andre utlån, Virkelig verdi med resultatføring, Livsforsikringsselskaper og pensjonskasser,  tilknyttede selskaper,  Utenlandsk valuta i NOK",0,0,2559200,0,"000",10,"55008",0,0,30,0,null,null,null,"02.2.2"]
["Andre utlån, Virkelig verdi med resultatføring, Livsforsikringsselskaper og pensjonskasser,  konsernselskap, norske kroner",0,0,2559200,0,"000",10,"55009",0,0,10,0,null,null,null,"02.2.2"]
["Andre utlån, Virkelig verdi med resultatføring, Livsforsikringsselskaper og pensjonskasser,  konsernselskap, Utenlandsk valuta i NOK",0,0,2559200,0,"000",10,"55009",0,0,30,0,null,null,null,"02.2.2"]
["Andre utlån, Virkelig verdi med resultatføring, Skadeforsikringsselskaper, norske kroner",0,0,2559200,0,"000",10,57000,0,0,10,0,null,null,null,"02.4.3"]
["Andre utlån, Virkelig verdi med resultatføring, Skadeforsikringsselskaper, Utenlandsk valuta i NOK",0,0,2559200,0,"000",10,57000,0,0,30,0,null,null,null,"02.4.3"]
["Andre utlån, Virkelig verdi med resultatføring, Skadeforsikringsselskaper, tilknyttede selskaper, norske kroner",0,0,2559200,0,"000",10,57008,0,0,10,0,null,null,null,"02.2.2"]
["Andre utlån, Virkelig verdi med resultatføring, Skadeforsikringsselskaper, tilknyttede selskaper, Utenlandsk valuta i NOK",0,0,2559200,0,"000",10,57008,0,0,30,0,null,null,null,"02.2.2"]
["Andre utlån, Virkelig verdi med resultatføring, Skadeforsikringsselskaper, konsernselskap, norske kroner",0,0,2559200,0,"000",10,57009,0,0,10,0,null,null,null,"02.2.2"]
["Andre utlån, Virkelig verdi med resultatføring, Skadeforsikringsselskaper, konsernselskap, Utenlandsk valuta i NOK",0,0,2559200,0,"000",10,57009,0,0,30,0,null,null,null,"02.2.2"]
["Andre utlån, Virkelig verdi med resultatføring, Stats- og trygdeforvaltningen, norske kroner",0,0,2559200,0,"000",10,61000,0,0,10,0,null,null,null,"02.4.3"]
["Andre utlån, Virkelig verdi med resultatføring, Stats- og trygdeforvaltningen, Utenlandsk valuta i NOK",0,0,2559200,0,"000",10,61000,0,0,30,0,null,null,null,"02.4.3"]
["Andre utlån, Virkelig verdi med resultatføring, Kommuneforvaltningen, norske kroner",0,0,2559200,0,"000",10,65000,0,0,10,0,null,null,null,"02.4.3"]
["Andre utlån, Virkelig verdi med resultatføring, Kommuneforvaltningen, Utenlandsk valuta i NOK",0,0,2559200,0,"000",10,65000,0,0,30,0,null,null,null,"02.4.3"]
["Andre utlån, Virkelig verdi med resultatføring, Idelle organisasjoner, norske kroner",0,0,2559200,0,"000",10,70000,0,0,10,0,null,null,null,"02.4.3"]
["Andre utlån, Virkelig verdi med resultatføring, Personlig næringsdrivende, norske kroner",0,0,2559200,0,"000",10,82000,0,0,10,0,null,null,null,"02.4.3"]
["Andre utlån, Virkelig verdi med resultatføring, Borettslag o.l., norske kroner",0,0,2559200,0,"000",10,83000,0,0,10,0,null,null,null,"02.4.3"]
["Andre utlån, Virkelig verdi med resultatføring, Lønnstakere mv., norske kroner",0,0,2559200,0,"000",10,85000,0,0,10,0,null,null,null,"02.4.3"]
["Andre utlån, Virkelig verdi med resultatføring, Lønnstakere mv., Utenlandsk valuta i NOK",0,0,2559200,0,"000",10,85000,0,0,30,0,null,null,null,"02.4.3"]
["Andre utlån, Virkelig verdi med resultatføring, Ufordelt sektor, norske kroner",0,0,2559200,0,"000",10,"08000",0,0,10,0,null,null,null,"02.4.3"]
["Andre utlån, Virkelig verdi med resultatføring, Ufordelt sektor, Utenlandsk valuta i NOK",0,0,2559200,0,"000",10,"08000",0,0,30,0,null,null,null,"02.4.3"]
["Andre utlån, Virkelig verdi med resultatføring, Utlandet ekskl. tilknyttede - og konsernselskap, Norske kroner",0,0,2559200,0,"000",10,90010,0,0,10,0,null,null,null,"02.4.3"]
["Andre utlån, Virkelig verdi med resultatføring, Utlandet ekskl. tilknyttede - og konsernselskap, Utenlandsk valuta i NOK",0,0,2559200,0,"000",10,90010,0,0,30,0,null,null,null,"02.4.3"]
["Andre utlån, Virkelig verdi med resultatføring, Utlandet, tilknyttede selskaper, norske kroner",0,0,2559200,0,"000",10,90008,0,0,10,0,null,null,null,"02.2.2"]
["Andre utlån, Virkelig verdi med resultatføring, Utlandet, tilknyttede selskaper, Utenlandsk valuta i NOK ",0,0,2559200,0,"000",10,90008,0,0,30,0,null,null,null,"02.2.2"]
["Andre utlån, Virkelig verdi med resultatføring, Utlandet, konsernselskap,norske kroner",0,0,2559200,0,"000",10,90009,0,0,10,0,null,null,null,"02.2.2"]
["Andre utlån, Virkelig verdi med resultatføring, Utlandet, konsernselskap,Utenlandsk valuta i NOK",0,0,2559200,0,"000",10,90009,0,0,30,0,null,null,null,"02.2.2"]
[]
["Andre utlån, Amortisert kost, Øvrige, Statlig eide aksjeselskaper mv., norske kroner",0,0,2559200,0,"000",52,11200,0,0,10,0,null,null,null,"02.3.2"]
["Andre utlån, Amortisert kost, Øvrige, Statlig eide aksjeselskaper mv., Utenlandsk valuta i NOK",0,0,2559200,0,"000",52,11200,0,0,30,0,null,null,null,"02.3.2"]
["Andre utlån, Amortisert kost, Øvrige, Kommunale foretak med ubegrenset ansvar, norske kroner",0,0,2559200,0,"000",52,15100,0,0,10,0,null,null,null,"02.3.2"]
["Andre utlån, Amortisert kost, Øvrige, Kommunale foretak med ubegrenset ansvar, Utenlandsk valuta i NOK",0,0,2559200,0,"000",52,15100,0,0,30,0,null,null,null,"02.3.2"]
["Andre utlån, Amortisert kost, Øvrige, Kommunale aksjeselskaper mv., norske kroner",0,0,2559200,0,"000",52,15200,0,0,10,0,null,null,null,"02.3.2"]
["Andre utlån, Amortisert kost, Øvrige, Kommunale aksjeselskaper mv., Utenlandsk valuta i NOK",0,0,2559200,0,"000",52,15200,0,0,30,0,null,null,null,"02.3.2"]
["Andre utlån, Amortisert kost, Øvrige, Private aksjeselskaper mv., norske kroner",0,0,2559200,0,"000",52,21000,0,0,10,0,null,null,null,"02.3.2"]
["Andre utlån, Amortisert kost, Øvrige, Private aksjeselskaper mv., Utenlandsk valuta i NOK",0,0,2559200,0,"000",52,21000,0,0,30,0,null,null,null,"02.3.2"]
["Andre utlån, Amortisert kost, Øvrige, Private aksjeselskaper mv., tilknyttede selskaper, norske kroner",0,0,2559200,0,"000",52,21008,0,0,10,0,null,null,null,"02.2.2"]
["Andre utlån, Amortisert kost, Øvrige, Private aksjeselskaper mv., tilknyttede selskaper, Utenlandsk valuta i NOK",0,0,2559200,0,"000",52,21008,0,0,30,0,null,null,null,"02.2.2"]
["Andre utlån, Amortisert kost, Øvrige, Private aksjeselskaper mv., konsernselskap,norske kroner",0,0,2559200,0,"000",52,21009,0,0,10,0,null,null,null,"02.2.2"]
["Andre utlån, Amortisert kost, Øvrige, Private aksjeselskaper mv., konsernselskap,Utenlandsk valuta i NOK",0,0,2559200,0,"000",52,21009,0,0,30,0,null,null,null,"02.2.2"]
["Andre utlån, Amortisert kost, Øvrige, Personlige foretak, norske kroner",0,0,2559200,0,"000",52,23000,0,0,10,0,null,null,null,"02.3.2"]
["Andre utlån, Amortisert kost, Øvrige, Personlige foretak, Utenlandsk valuta i NOK",0,0,2559200,0,"000",52,23000,0,0,30,0,null,null,null,"02.3.2"]
["Andre utlån, Amortisert kost, Øvrige, Personlige foretak, tilknyttede selskaper, norske kroner",0,0,2559200,0,"000",52,23008,0,0,10,0,null,null,null,"02.2.2"]
["Andre utlån, Amortisert kost, Øvrige, Personlige foretak, tilknyttede selskaper, Utenlandsk valuta i NOK",0,0,2559200,0,"000",52,23008,0,0,30,0,null,null,null,"02.2.2"]
["Andre utlån, Amortisert kost, Øvrige, Private produsentorienterte organisasjoner uten profittformål, norske kroner",0,0,2559200,0,"000",52,25000,0,0,10,0,null,null,null,"02.3.2"]
["Andre utlån, Amortisert kost, Øvrige, Banker, norske kroner",0,0,2559200,0,"000",52,32000,0,0,10,0,null,null,null,"02.3.2"]
["Andre utlån, Amortisert kost, Øvrige, Banker, Utenlandsk valuta i NOK",0,0,2559200,0,"000",52,32000,0,0,30,0,null,null,null,"02.3.2"]
["Andre utlån, Amortisert kost, Øvrige, Banker, tilknyttede banker, norsk kroner",0,0,2559200,0,"000",52,32008,0,0,10,0,null,null,null,"02.2.2"]
["Andre utlån, Amortisert kost, Øvrige, Banker, tilknyttede banker, Utenlandsk valuta i NOK",0,0,2559200,0,"000",52,32008,0,0,30,0,null,null,null,"02.2.2"]
["Andre utlån, Amortisert kost, Øvrige, Banker, konsernbank, norske kroner",0,0,2559200,0,"000",52,32009,0,0,10,0,null,null,null,"02.2.2"]
["Andre utlån, Amortisert kost, Øvrige, Banker, konsernbank, Utenlandsk valuta i NOK",0,0,2559200,0,"000",52,32009,0,0,30,0,null,null,null,"02.2.2"]
["Andre utlån, Amortisert kost, Øvrige, Kredittforetak, norske kroner",0,0,2559200,0,"000",52,35000,0,0,10,0,null,null,null,"02.3.2"]
["Andre utlån, Amortisert kost, Øvrige, Kredittforetak, Utenlandsk valuta i NOK",0,0,2559200,0,"000",52,35000,0,0,30,0,null,null,null,"02.3.2"]
["Andre utlån, Amortisert kost, Øvrige, Kredittforetak, tilknyttet foretak, norske kroner",0,0,2559200,0,"000",52,35008,0,0,10,0,null,null,null,"02.2.2"]
["Andre utlån, Amortisert kost, Øvrige, Kredittforetak, tilknyttet foretak, Utenlandsk valuta i NOK",0,0,2559200,0,"000",52,35008,0,0,30,0,null,null,null,"02.2.2"]
["Andre utlån, Amortisert kost, Øvrige, Kredittforetak, konsernselskap,norske kroner",0,0,2559200,0,"000",52,35009,0,0,10,0,null,null,null,"02.2.2"]
["Andre utlån, Amortisert kost, Øvrige, Kredittforetak, konsernselskap,Utenlandsk valuta i NOK",0,0,2559200,0,"000",52,35009,0,0,30,0,null,null,null,"02.2.2"]
["Andre utlån, Amortisert kost, Øvrige, Finansieringsselskaper, norske kroner",0,0,2559200,0,"000",52,36000,0,0,10,0,null,null,null,"02.3.2"]
["Andre utlån, Amortisert kost, Øvrige, Finansieringsselskaper, Utenlandsk valuta i NOK",0,0,2559200,0,"000",52,36000,0,0,30,0,null,null,null,"02.3.2"]
["Andre utlån, Amortisert kost, Øvrige, Finansieringsselskaper, tilknyttede selskaper, norske kroner",0,0,2559200,0,"000",52,36008,0,0,10,0,null,null,null,"02.2.2"]
["Andre utlån, Amortisert kost, Øvrige, Finansieringsselskaper, tilknyttede selskaper, Utenlandsk valuta i NOK",0,0,2559200,0,"000",52,36008,0,0,30,0,null,null,null,"02.2.2"]
["Andre utlån, Amortisert kost, Øvrige, Finansieringsselskaper, konsernselskap,norske kroner",0,0,2559200,0,"000",52,36009,0,0,10,0,null,null,null,"02.2.2"]
["Andre utlån, Amortisert kost, Øvrige, Finansieringsselskaper, konsernselskap,Utenlandsk valuta i NOK",0,0,2559200,0,"000",52,36009,0,0,30,0,null,null,null,"02.2.2"]
["Andre utlån, Amortisert kost, Øvrige, Statlige låneinstitutter mv., norske kroner",0,0,2559200,0,"000",52,39000,0,0,10,0,null,null,null,"02.3.2"]
["Andre utlån, Amortisert kost, Øvrige, Finansielle holdingselskaper, norske kroner",0,0,2559200,0,"000",52,41000,0,0,10,0,null,null,null,"02.3.2"]
["Andre utlån, Amortisert kost, Øvrige, Finansielle holdingselskaper, Utenlandsk valuta i NOK",0,0,2559200,0,"000",52,41000,0,0,30,0,null,null,null,"02.3.2"]
["Andre utlån, Amortisert kost, Øvrige, Finansielle holdingselskaper, tilknyttede selskaper, norske kroner",0,0,2559200,0,"000",52,41008,0,0,10,0,null,null,null,"02.2.2"]
["Andre utlån, Amortisert kost, Øvrige, Finansielle holdingselskaper, tilknyttede selskaper, Utenlandsk valuta i NOK",0,0,2559200,0,"000",52,41008,0,0,30,0,null,null,null,"02.2.2"]
["Andre utlån, Amortisert kost, Øvrige, Finansielle holdingselskaper, konsernselskap,norske kroner",0,0,2559200,0,"000",52,41009,0,0,10,0,null,null,null,"02.2.2"]
["Andre utlån, Amortisert kost, Øvrige, Finansielle holdingselskaper, konsernselskap,Utenlandsk valuta i NOK",0,0,2559200,0,"000",52,41009,0,0,30,0,null,null,null,"02.2.2"]
["Andre utlån, Amortisert kost, Øvrige, Investeringsselskaper og aktive eierfond/PE-fond, norske kroner",0,0,2559200,0,"000",52,45000,0,0,10,0,null,null,null,"02.3.2"]
["Andre utlån, Amortisert kost, Øvrige, Investeringsselskaper og aktive eierfond/PE-fond, Utenlandsk valuta i NOK",0,0,2559200,0,"000",52,45000,0,0,30,0,null,null,null,"02.3.2"]
["Andre utlån, Amortisert kost, Øvrige, Investeringsselskaper og aktive eierfond/PE-fond, tilknyttede selskaper, norske kroner",0,0,2559200,0,"000",52,45008,0,0,10,0,null,null,null,"02.2.2"]
["Andre utlån, Amortisert kost, Øvrige, Investeringsselskaper og aktive eierfond/PE-fond, konsernselskap,norske kroner",0,0,2559200,0,"000",52,45009,0,0,10,0,null,null,null,"02.2.2"]
["Andre utlån, Amortisert kost, Øvrige, Øvrige finansielle foretak unntatt forsikring, norske kroner",0,0,2559200,0,"000",52,49000,0,0,10,0,null,null,null,"02.3.2"]
["Andre utlån, Amortisert kost, Øvrige, Øvrige finansielle foretak unntatt forsikring, Utenlandsk valuta i NOK",0,0,2559200,0,"000",52,49000,0,0,30,0,null,null,null,"02.3.2"]
["Andre utlån, Amortisert kost, Øvrige, Øvrige finansielle foretak unntatt forsikring, tilknyttede selskaper, norske kroner",0,0,2559200,0,"000",52,49008,0,0,10,0,null,null,null,"02.2.2"]
["Andre utlån, Amortisert kost, Øvrige, Øvrige finansielle foretak unntatt forsikring, tilknyttede selskaper, Utenlandsk valuta i NOK",0,0,2559200,0,"000",52,49008,0,0,30,0,null,null,null,"02.2.2"]
["Andre utlån, Amortisert kost, Øvrige, Øvrige finansielle foretak unntatt forsikring, konsernselskap selskap, norske kroner",0,0,2559200,0,"000",52,49009,0,0,10,0,null,null,null,"02.2.2"]
["Andre utlån, Amortisert kost, Øvrige, Øvrige finansielle foretak unntatt forsikring, konsernselskap,Utenlandsk valuta i NOK",0,0,2559200,0,"000",52,49009,0,0,30,0,null,null,null,"02.2.2"]
["Andre utlån, Amortisert kost, Øvrige, Livsforsikringsselskaper og pensjonskasser, norske kroner",0,0,2559200,0,"000",52,55000,0,0,10,0,null,null,null,"02.3.2"]
["Andre utlån, Amortisert kost, Øvrige, Livsforsikringsselskaper og pensjonskasser, Utenlandsk valuta i NOK",0,0,2559200,0,"000",52,55000,0,0,30,0,null,null,null,"02.3.2"]
["Andre utlån, Amortisert kost, Øvrige, Livsforsikringsselskaper og pensjonskasser, tilknyttede selskaper, norske kroner",0,0,2559200,0,"000",52,"55008",0,0,10,0,null,null,null,"02.2.2"]
["Andre utlån, Amortisert kost, Øvrige, Livsforsikringsselskaper og pensjonskasser, tilknyttede selskaper, Utenlandsk valuta i NOK",0,0,2559200,0,"000",52,"55008",0,0,30,0,null,null,null,"02.2.2"]
["Andre utlån, Amortisert kost, Øvrige, Livsforsikringsselskaper og pensjonskasser, konsernselskap, norske kroner",0,0,2559200,0,"000",52,"55009",0,0,10,0,null,null,null,"02.2.2"]
["Andre utlån, Amortisert kost, Øvrige, Livsforsikringsselskaper og pensjonskasser, konsernselskap, Utenlandsk valuta i NOK",0,0,2559200,0,"000",52,"55009",0,0,30,0,null,null,null,"02.2.2"]
["Andre utlån, Amortisert kost, Øvrige, Skadeforsikringsselskaper, norske kroner",0,0,2559200,0,"000",52,57000,0,0,10,0,null,null,null,"02.3.2"]
["Andre utlån, Amortisert kost, Øvrige, Skadeforsikringsselskaper, Utenlandsk valuta i NOK",0,0,2559200,0,"000",52,57000,0,0,30,0,null,null,null,"02.3.2"]
["Andre utlån, Amortisert kost, Øvrige, Skadeforsikringsselskaper, tilknyttede selskaper, norske kroner",0,0,2559200,0,"000",52,57008,0,0,10,0,null,null,null,"02.2.2"]
["Andre utlån, Amortisert kost, Øvrige, Skadeforsikringsselskaper, tilknyttede selskaper, Utenlandsk valuta i NOK",0,0,2559200,0,"000",52,57008,0,0,30,0,null,null,null,"02.2.2"]
["Andre utlån, Amortisert kost, Øvrige, Skadeforsikringsselskaper, konsernselskap, norske kroner",0,0,2559200,0,"000",52,57009,0,0,10,0,null,null,null,"02.2.2"]
["Andre utlån, Amortisert kost, Øvrige, Skadeforsikringsselskaper, konsernselskap, Utenlandsk valuta i NOK",0,0,2559200,0,"000",52,57009,0,0,30,0,null,null,null,"02.2.2"]
["Andre utlån, Amortisert kost, Øvrige, Stats- og trygdeforvaltningen, norske kroner",0,0,2559200,0,"000",52,61000,0,0,10,0,null,null,null,"02.3.2"]
["Andre utlån, Amortisert kost, Øvrige, Stats- og trygdeforvaltningen, Utenlandsk valuta i NOK",0,0,2559200,0,"000",52,61000,0,0,30,0,null,null,null,"02.3.2"]
["Andre utlån, Amortisert kost, Øvrige, Kommuneforvaltningen, norske kroner",0,0,2559200,0,"000",52,65000,0,0,10,0,null,null,null,"02.3.2"]
["Andre utlån, Amortisert kost, Øvrige, Kommuneforvaltningen, Utenlandsk valuta i NOK",0,0,2559200,0,"000",52,65000,0,0,30,0,null,null,null,"02.3.2"]
["Andre utlån, Amortisert kost, Øvrige, Idelle organisasjoner, norske kroner",0,0,2559200,0,"000",52,70000,0,0,10,0,null,null,null,"02.3.2"]
["Andre utlån, Amortisert kost, Øvrige, Personlig næringsdrivende, norske kroner",0,0,2559200,0,"000",52,82000,0,0,10,0,null,null,null,"02.3.2"]
["Andre utlån, Amortisert kost, Øvrige, Borettslag o.l., norske kroner",0,0,2559200,0,"000",52,83000,0,0,10,0,null,null,null,"02.3.2"]
["Andre utlån, Amortisert kost, Øvrige, Lønnstakere mv., norske kroner",0,0,2559200,0,"000",52,85000,0,0,10,0,null,null,null,"02.3.2"]
["Andre utlån, Amortisert kost, Øvrige, Lønnstakere mv., Utenlandsk valuta i NOK",0,0,2559200,0,"000",52,85000,0,0,30,0,null,null,null,"02.3.2"]
["Andre utlån, Amortisert kost, Øvrige, Ufordelt sektor, norske kroner",0,0,2559200,0,"000",52,"08000",0,0,10,0,null,null,null,"02.3.2"]
["Andre utlån, Amortisert kost, Øvrige, Ufordelt sektor, Utenlandsk valuta i NOK",0,0,2559200,0,"000",52,"08000",0,0,30,0,null,null,null,"02.3.2"]
["Andre utlån, Amortisert kost, Øvrige, Utlandet ekskl. tilknyttede - og konsernselskap, Norske kroner",0,0,2559200,0,"000",52,90010,0,0,10,0,null,null,null,"02.3.2"]
["Andre utlån, Amortisert kost, Øvrige, Utlandet ekskl. tilknyttede - og konsernselskap, Utenlandsk valuta i NOK",0,0,2559200,0,"000",52,90010,0,0,30,0,null,null,null,"02.3.2"]
["Andre utlån, Amortisert kost, Øvrige, Utlandet, tilknyttede selskaper, norske kroner",0,0,2559200,0,"000",52,90008,0,0,10,0,null,null,null,"02.2.2"]
["Andre utlån, Amortisert kost, Øvrige, Utlandet, tilknyttede selskaper, Utenlandsk valuta i NOK ",0,0,2559200,0,"000",52,90008,0,0,30,0,null,null,null,"02.2.2"]
["Andre utlån, Amortisert kost, Øvrige, Utlandet, konsernselskap,norske kroner",0,0,2559200,0,"000",52,90009,0,0,10,0,null,null,null,"02.2.2"]
["Andre utlån, Amortisert kost, Øvrige, Utlandet, konsernselskap,Utenlandsk valuta i NOK",0,0,2559200,0,"000",52,90009,0,0,30,0,null,null,null,"02.2.2"]
[]
["3.2 Gjenforsikringsandel av forsikringstekniske avsetninger i skadeforsikring "]
["Gjenforsikringsandel av ikke opptjent bruttopremie, Norske sektorer i alt, norske kroner",0,0,3260000,0,"000","00","01000",0,0,10,0,null,null,null,"03.1.0"]
["Gjenforsikringsandel av ikke opptjent bruttopremie, Norske sektorer i alt, Utenlandsk valuta i NOK",0,0,3260000,0,"000","00","01000",0,0,30,0,null,null,null,"03.1.0"]
["Gjenforsikringsandel av ikke opptjent bruttopremie, Utlandet, norske kroner",0,0,3260000,0,"000","00",90000,0,0,10,0,null,null,null,"03.1.0"]
["Gjenforsikringsandel av ikke opptjent bruttopremie, Utlandet, Utenlandsk valuta i NOK",0,0,3260000,0,"000","00",90000,0,0,30,0,null,null,null,"03.1.0"]
[]
["Gjenforsikringsandel av brutto erstatningsavsettning, Norske sektorer i alt, norske kroner",0,0,3270000,0,"000","00","01000",0,0,10,0,null,null,null,"03.2.0"]
["Gjenforsikringsandel av brutto erstatningsavsettning, Norske sektorer i alt, Utenlandsk valuta i NOK",0,0,3270000,0,"000","00","01000",0,0,30,0,null,null,null,"03.2.0"]
["Gjenforsikringsandel av brutto erstatningsavsettning, Utlandet, norske kroner",0,0,3270000,0,"000","00",90000,0,0,10,0,null,null,null,"03.2.0"]
["Gjenforsikringsandel av brutto erstatningsavsettning, Utlandet, Utenlandsk valuta i NOK",0,0,3270000,0,"000","00",90000,0,0,30,0,null,null,null,"03.2.0"]
[]
["3.6 - 3.8 Øvrige fordringer og eiendeler (finansielle, eksl. eiendommer)"]
["Opptjente, ikke-forfalte inntekter, Leieinntekter, Norske sektorer i alt, norske kroner",0,0,3627000,0,"000","00","01000",0,0,10,0,null,null,null,"06.1.0"]
["Opptjente, ikke-forfalte inntekter, Leieinntekter, Norske sektorer i alt, Utenlandsk valuta i NOK",0,0,3627000,0,"000","00","01000",0,0,30,0,null,null,null,"06.1.0"]
["Opptjente, ikke-forfalte inntekter, Leieinntekter, Utlandet, norske kroner",0,0,3627000,0,"000","00",90000,0,0,10,0,null,null,null,"06.1.0"]
["Opptjente, ikke-forfalte inntekter, Leieinntekter, Utlandet, Utenlandsk valuta i NOK",0,0,3627000,0,"000","00",90000,0,0,30,0,null,null,null,"06.1.0"]
[]
["Opptjente, ikke-forfalte inntekter, Andre inntekter, Norske sektorer i alt, norske kroner",0,0,3629000,0,"000","00","01000",0,0,10,0,null,null,null,"06.3.0"]
["Opptjente, ikke-forfalte inntekter, Andre inntekter, Norske sektorer i alt, Utenlandsk valuta i NOK",0,0,3629000,0,"000","00","01000",0,0,30,0,null,null,null,"06.3.0"]
["Opptjente, ikke-forfalte inntekter, Andre inntekter, Utlandet, norske kroner",0,0,3629000,0,"000","00",90000,0,0,10,0,null,null,null,"06.3.0"]
["Opptjente, ikke-forfalte inntekter, Andre inntekter, Utlandet, Utenlandsk valuta i NOK",0,0,3629000,0,"000","00",90000,0,0,30,0,null,null,null,"06.3.0"]
[]
["Forskuddsbetalte kostnader, Direkte salgskostnader, Norske sektorer i alt, norske kroner",0,0,3635000,0,"000","00","01000",0,0,10,0,null,null,null,"06.2.0"]
["Forskuddsbetalte kostnader, Direkte salgskostnader, Norske sektorer i alt, Utenlandsk valuta i NOK",0,0,3635000,0,"000","00","01000",0,0,30,0,null,null,null,"06.2.0"]
["Forskuddsbetalte kostnader, Direkte salgskostnader, Utlandet, norske kroner",0,0,3635000,0,"000","00",90000,0,0,10,0,null,null,null,"06.2.0"]
["Forskuddsbetalte kostnader, Direkte salgskostnader, Utlandet, Utenlandsk valuta i NOK",0,0,3635000,0,"000","00",90000,0,0,30,0,null,null,null,"06.2.0"]
[]
["Forskuddsbetalte kostnader, Andre kostnader, Norske sektorer i alt, norske kroner",0,0,3639000,0,"000","00","01000",0,0,10,0,null,null,null,"06.3.0"]
["Forskuddsbetalte kostnader, Andre kostnader, Norske sektorer i alt, Utenlandsk valuta i NOK",0,0,3639000,0,"000","00","01000",0,0,30,0,null,null,null,"06.3.0"]
["Forskuddsbetalte kostnader, Andre kostnader, Utlandet, norske kroner",0,0,3639000,0,"000","00",90000,0,0,10,0,null,null,null,"06.3.0"]
["Forskuddsbetalte kostnader, Andre kostnader, Utlandet, Utenlandsk valuta i NOK",0,0,3639000,0,"000","00",90000,0,0,30,0,null,null,null,"06.3.0"]
[]
["I regning med avdelingskontor/filial, Utlandet, norske kroner",0,0,3730000,0,"000","00",90009,0,0,10,0,null,null,null,"04.3.0"]
["I regning med avdelingskontor/filial. Utlandet, Utenlandsk valuta i NOK",0,0,3730000,0,"000","00",90009,0,0,30,0,null,null,null,"04.3.0"]
[]
["Andre fordringer - Tegnet, ikke innbetalt kapital - Norge - norske kroner",0,0,3751000,0,"000","00","01000",0,0,10,0,null,null,null,"04.3.0"]
["Andre fordringer - Tegnet, ikke innbetalt kapital - Utlandet - Utenlandsk valuta i NOK",0,0,3751000,0,"000","00",90000,0,0,30,0,null,null,null,"04.3.0"]
[]
["Andre fordringer, Vedrørende direkte forsikring, forsikringstakere, Norske sektorer ekskl. tilknyttede - og konsernselskap, norske kroner",0,0,3753100,0,"000","00","01010",0,0,10,0,null,null,null,"04.1.1"]
["Andre fordringer, Vedrørende direkte forsikring, forsikringstakere, Norske sektorer ekskl. tilknyttede - og konsernselskap, Utenlandsk valuta i NOK",0,0,3753100,0,"000","00","01010",0,0,30,0,null,null,null,"04.1.1"]
["Andre fordringer, Vedrørende direkte forsikring, forsikringstakere, Norske sektorer i alt, tilknyttede selskaper, norske kroner",0,0,3753100,0,"000","00","01008",0,0,10,0,null,null,null,"04.1.1"]
["Andre fordringer, Vedrørende direkte forsikring, forsikringstakere, Norske sektorer i alt, tilknytte selskap, utenlandsk avluta",0,0,3753100,0,"000","00","01008",0,0,30,0,null,null,null,"04.1.1"]
["Andre fordringer, Vedrørende direkte forsikring, forsikringstakere, Norske sektorer i alt, konsernselskap,norske kroner",0,0,3753100,0,"000","00","01009",0,0,10,0,null,null,null,"04.1.1"]
["Andre fordringer, Vedrørende direkte forsikring, forsikringstakere, Norske sektorer i alt, konsernselskap,Utenlandsk valuta i NOK",0,0,3753100,0,"000","00","01009",0,0,30,0,null,null,null,"04.1.1"]
["Andre fordringer, Vedrørende direkte forsikring, forsikringstakere, Utlandet ekskl. tilknyttede - og konsernselskap, norske kroner",0,0,3753100,0,"000","00",90010,0,0,10,0,null,null,null,"04.1.1"]
["Andre fordringer, Vedrørende direkte forsikring, forsikringstakere, Utlandet ekskl. tilknyttede - og konsernselskap, Utenlandsk valuta i NOK",0,0,3753100,0,"000","00",90010,0,0,30,0,null,null,null,"04.1.1"]
["Andre fordringer, Vedrørende direkte forsikring, forsikringstakere, Utlandet, tilknyttede selskaper, Utenlandsk valuta i NOK",0,0,3753100,0,"000","00","90008",0,0,10,0,null,null,null,"04.1.1"]
["Andre fordringer, Vedrørende direkte forsikring, forsikringstakere, Utlandet, tilknyttede selskaper, Utenlandsk valuta i NOK",0,0,3753100,0,"000","00","90008",0,0,30,0,null,null,null,"04.1.1"]
["Andre fordringer, Vedrørende direkte forsikring, forsikringstakere, Utlandet, konsernselskap,norske kroner",0,0,3753100,0,"000","00","90009",0,0,10,0,null,null,null,"04.1.1"]
["Andre fordringer, Vedrørende direkte forsikring, forsikringstakere, Utlandet, konsernselskap,Utenlandsk valuta i NOK",0,0,3753100,0,"000","00","90009",0,0,30,0,null,null,null,"04.1.1"]
[]
["Andre fordringer, Vedrørende direkte forsikring, mellommenn, Norske sektorer ekskl. tilknyttede - og konsernselskap, norske kroner",0,0,3753200,0,"000","00","01010",0,0,10,0,null,null,null,"04.1.2"]
["Andre fordringer, Vedrørende direkte forsikring, mellommenn, Norske sektorer ekskl. tilknyttede - og konsernselskap, Utenlandsk valuta i NOK",0,0,3753200,0,"000","00","01010",0,0,30,0,null,null,null,"04.1.2"]
["Andre fordringer, Vedrørende direkte forsikring, mellommenn, Norske sektorer i alt, tilknyttede selskaper, norske kroner",0,0,3753200,0,"000","00","01008",0,0,10,0,null,null,null,"04.1.2"]
["Andre fordringer, Vedrørende direkte forsikring, mellommenn, Norske sektorer i alt, tilknytte selskap, utenlandsk avluta",0,0,3753200,0,"000","00","01008",0,0,30,0,null,null,null,"04.1.2"]
["Andre fordringer, Vedrørende direkte forsikring, mellommenn, Norske sektorer i alt, konsernselskap,norske kroner",0,0,3753200,0,"000","00","01009",0,0,10,0,null,null,null,"04.1.2"]
["Andre fordringer, Vedrørende direkte forsikring, mellommenn, Norske sektorer i alt, konsernselskap,Utenlandsk valuta i NOK",0,0,3753200,0,"000","00","01009",0,0,30,0,null,null,null,"04.1.2"]
["Andre fordringer, Vedrørende direkte forsikring, mellommenn, Utlandet ekskl. tilknyttede - og konsernselskap, norske kroner",0,0,3753200,0,"000","00",90010,0,0,10,0,null,null,null,"04.1.2"]
["Andre fordringer, Vedrørende direkte forsikring, mellommenn, Utlandet ekskl. tilknyttede - og konsernselskap, Utenlandsk valuta i NOK",0,0,3753200,0,"000","00",90010,0,0,30,0,null,null,null,"04.1.2"]
["Andre fordringer, Vedrørende direkte forsikring, mellommenn, Utlandet, tilknyttede selskaper, norske kroner",0,0,3753200,0,"000","00","90008",0,0,10,0,null,null,null,"04.1.2"]
["Andre fordringer, Vedrørende direkte forsikring, mellommenn, Utlandet, tilknyttede selskaper, Utenlandsk valuta i NOK",0,0,3753200,0,"000","00","90008",0,0,30,0,null,null,null,"04.1.2"]
["Andre fordringer, Vedrørende direkte forsikring, mellommenn, Utlandet, konsernselskap,norske kroner",0,0,3753200,0,"000","00","90009",0,0,10,0,null,null,null,"04.1.2"]
["Andre fordringer, Vedrørende direkte forsikring, mellommenn, Utlandet, konsernselskap,Utenlandsk valuta i NOK",0,0,3753200,0,"000","00","90009",0,0,30,0,null,null,null,"04.1.2"]
[]
["Andre fordringer, Vedrørende gjenforsikring, Norske sektorer ekskl. tilknyttede - og konsernselskap, norske kroner",0,0,3754000,0,"000","00","01010",0,0,10,0,null,null,null,"04.2.0"]
["Andre fordringer, Vedrørende gjenforsikring, Norske sektorer ekskl. tilknyttede - og konsernselskap, Utenlandsk valuta i NOK",0,0,3754000,0,"000","00","01010",0,0,30,0,null,null,null,"04.2.0"]
["Andre fordringer, Vedrørende gjenforsikring, Norske sektorer i alt, tilknyttede selskaper, norske kroner",0,0,3754000,0,"000","00","01008",0,0,10,0,null,null,null,"04.2.0"]
["Andre fordringer, Vedrørende gjenforsikring, Norske sektorer i alt, tilknyttede selskaper, Utenlandsk valuta i NOK",0,0,3754000,0,"000","00","01008",0,0,30,0,null,null,null,"04.2.0"]
["Andre fordringer, Vedrørende gjenforsikring, Norske sektorer i alt, konsernselskap,norske kroner",0,0,3754000,0,"000","00","01009",0,0,10,0,null,null,null,"04.2.0"]
["Andre fordringer, Vedrørende gjenforsikring, Norske sektorer i alt, konsernselskap,Utenlandsk valuta i NOK",0,0,3754000,0,"000","00","01009",0,0,30,0,null,null,null,"04.2.0"]
["Andre fordringer, Vedrørende gjenforsikring, Utlandet ekskl. tilknyttede - og konsernselskap, norske kroner",0,0,3754000,0,"000","00",90010,0,0,10,0,null,null,null,"04.2.0"]
["Andre fordringer, Vedrørende gjenforsikring, Utlandet ekskl. tilknyttede - og konsernselskap, Utenlandsk valuta i NOK",0,0,3754000,0,"000","00",90010,0,0,30,0,null,null,null,"04.2.0"]
["Andre fordringer, Vedrørende gjenforsikring, Utlandet, tilknyttede selskaper, norske kroner",0,0,3754000,0,"000","00","90008",0,0,10,0,null,null,null,"04.2.0"]
["Andre fordringer, Vedrørende gjenforsikring, Utlandet, tilknyttede selskaper, Utenlandsk valuta i NOK",0,0,3754000,0,"000","00","90008",0,0,30,0,null,null,null,"04.2.0"]
["Andre fordringer, Vedrørende gjenforsikring, Utlandet, konsernselskap,norske kroner",0,0,3754000,0,"000","00","90009",0,0,10,0,null,null,null,"04.2.0"]
["Andre fordringer, Vedrørende gjenforsikring, Utlandet, konsernselskap,Utenlandsk valuta i NOK",0,0,3754000,0,"000","00","90009",0,0,30,0,null,null,null,"04.2.0"]
[]
["Andre fordringer ellers, Virkelig verdi, Statlig eide aksjeselskaper mv., Norske kroner.",0,0,3759000,0,"000","10",11200,0,0,10,0,null,null,null,"04.3.0"]
["Andre fordringer ellers, Virkelig verdi, Kommunale foretak med ubegrenset ansvar, Norske kroner.",0,0,3759000,0,"000","10",15100,0,0,10,0,null,null,null,"04.3.0"]
["Andre fordringer ellers, Virkelig verdi, Kommunalt eide aksjeselskaper mv., Norske kroner.",0,0,3759000,0,"000","10",15200,0,0,10,0,null,null,null,"04.3.0"]
["Andre fordringer ellers, Virkelig verdi, Private aksjeselskaper mv., Norske kroner.",0,0,3759000,0,"000","10",21000,0,0,10,0,null,null,null,"04.3.0"]
["Andre fordringer ellers, Virkelig verdi, Private aksjeselskaper mv., tilknyttede selskaper,Norske kroner.",0,0,3759000,0,"000","10",21008,0,0,10,0,null,null,null,"04.3.0"]
["Andre fordringer ellers, Virkelig verdi, Private aksjeselskaper mv., konsern selskap Norske kroner.",0,0,3759000,0,"000","10",21009,0,0,10,0,null,null,null,"04.3.0"]
["Andre fordringer ellers, Virkelig verdi, Personlige foretak, Norske kroner.",0,0,3759000,0,"000","10",23000,0,0,10,0,null,null,null,"04.3.0"]
["Andre fordringer ellers, Virkelig verdi, Private produsentorienterte organiasjoner uten profittformål, Norske kroner.",0,0,3759000,0,"000","10",25000,0,0,10,0,null,null,null,"04.3.0"]
["Andre fordringer ellers, Virkelig verdi, Banker, Norske kroner.",0,0,3759000,0,"000","10",32000,0,0,10,0,null,null,null,"04.3.0"]
["Andre fordringer ellers, Virkelig verdi, Kredittforetak, Norske kroner.",0,0,3759000,0,"000","10",35000,0,0,10,0,null,null,null,"04.3.0"]
["Andre fordringer ellers, Virkelig verdi, Finansieringsselskaper, Norske kroner.",0,0,3759000,0,"000","10",36000,0,0,10,0,null,null,null,"04.3.0"]
["Andre fordringer ellers, Virkelig verdi, Statlige låneinstitutter mv., Norske kroner.",0,0,3759000,0,"000","10",39000,0,0,10,0,null,null,null,"04.3.0"]
["Andre fordringer ellers, Virkelig verdi, Finansielle holdingselskaper, Norske kroner.",0,0,3759000,0,"000","10",41000,0,0,10,0,null,null,null,"04.3.0"]
["Andre fordringer ellers, Virkelig verdi, Finansielle holdingselskaper, tilknyttede selskaper, Norske kroner.",0,0,3759000,0,"000","10",41008,0,0,10,0,null,null,null,"04.3.0"]
["Andre fordringer ellers, Virkelig verdi, Finansielle holdingselskaper, konsernselskap, Norske kroner.",0,0,3759000,0,"000","10",41009,0,0,10,0,null,null,null,"04.3.0"]
["Andre fordringer ellers, Virkelig verdi, Verdipapirfond, Norske kroner.",0,0,3759000,0,"000","10",43000,0,0,10,0,null,null,null,"04.3.0"]
["Andre fordringer ellers, Virkelig verdi, Investeringsselskaper og aktive eierfond/PE-fond, Norske kroner.",0,0,3759000,0,"000","10",45000,0,0,10,0,null,null,null,"04.3.0"]
["Andre fordringer ellers, Virkelig verdi, Investeringsselskaper og aktive eierfond/PE-fond, tilknyttede selskaper, Norske kroner.",0,0,3759000,0,"000","10",45008,0,0,10,0,null,null,null,"04.3.0"]
["Andre fordringer ellers, Virkelig verdi, Investeringsselskaper og aktive eierfond/PE-fond, konsernselskap, Norske kroner.",0,0,3759000,0,"000","10",45009,0,0,10,0,null,null,null,"04.3.0"]
["Andre fordringer ellers, Virkelig verdi, Øvrige finansielle foretak unntatt forsikring, Norske kroner.",0,0,3759000,0,"000","10",49000,0,0,10,0,null,null,null,"04.3.0"]
["Andre fordringer ellers, Virkelig verdi, Øvrige finansielle foretak unntatt forsikring, tilknyttede selskaper, Norske kroner.",0,0,3759000,0,"000","10",49008,0,0,10,0,null,null,null,"04.3.0"]
["Andre fordringer ellers, Virkelig verdi, Øvrige finansielle foretak unntatt forsikring, konsernselskap, Norske kroner.",0,0,3759000,0,"000","10",49009,0,0,10,0,null,null,null,"04.3.0"]
["Andre fordringer ellers, Virkelig verdi, Livsforsikringsselskaper og pensjonskasser, Norske kroner.",0,0,3759000,0,"000","10",55000,0,0,10,0,null,null,null,"04.3.0"]
["Andre fordringer ellers, Virkelig verdi, Livsforsikringsselskaper og pensjonskasser, tilknyttede selskaper, Norske kroner.",0,0,3759000,0,"000","10",55008,0,0,10,0,null,null,null,"04.3.0"]
["Andre fordringer ellers, Virkelig verdi, Livsforsikringsselskaper og pensjonskasser, konsernselskapsselskaper og pensjonskasser, Norske kroner.",0,0,3759000,0,"000","10",55009,0,0,10,0,null,null,null,"04.3.0"]
["Andre fordringer ellers, Virkelig verdi, Skadeforsikringsselskaper, Norske kroner.",0,0,3759000,0,"000","10",57000,0,0,10,0,null,null,null,"04.3.0"]
["Andre fordringer ellers, Virkelig verdi, Skadeforsikringsselskaper, tilknyttede selskaper, Norske kroner.",0,0,3759000,0,"000","10",57008,0,0,10,0,null,null,null,"04.3.0"]
["Andre fordringer ellers, Virkelig verdi, Skadeforsikringsselskaper, konsernselskap, Norske kroner.",0,0,3759000,0,"000","10",57009,0,0,10,0,null,null,null,"04.3.0"]
["Andre fordringer ellers, Virkelig verdi, Statsforvaltningen, Norske kroner.",0,0,3759000,0,"000","10",61000,0,0,10,0,null,null,null,"04.3.0"]
["Andre fordringer ellers, Virkelig verdi, Kommuneforvaltningen, Norske kroner.",0,0,3759000,0,"000","10",65000,0,0,10,0,null,null,null,"04.3.0"]
["Andre fordringer ellers, Virkelig verdi, Idelle organisasjoner, Norske kroner.",0,0,3759000,0,"000","10",70000,0,0,10,0,null,null,null,"04.3.0"]
["Andre fordringer ellers, Virkelig verdi, Personlig næringsdrivende, Norske kroner.",0,0,3759000,0,"000","10",82000,0,0,10,0,null,null,null,"04.3.0"]
["Andre fordringer ellers, Virkelig verdi, Borettslag o.l., Norske kroner.",0,0,3759000,0,"000","10",83000,0,0,10,0,null,null,null,"04.3.0"]
["Andre fordringer ellers, Virkelig verdi, Lønnstakere, trygdede mv., Norske kroner.",0,0,3759000,0,"000","10",85000,0,0,10,0,null,null,null,"04.3.0"]
["Andre fordringer ellers, Virkelig verdi, Lønnstakere, trygdede mv., Utenlandsk valuta.",0,0,3759000,0,"000","10",85000,0,0,30,0,null,null,null,"04.3.0"]
["Andre fordringer ellers, Virkelig verdi, Ufordelt sektor, Norske kroner.",0,0,3759000,0,"000","10","08000",0,0,10,0,null,null,null,"04.3.0"]
["Andre fordringer ellers, Virkelig verdi, Utlandet, Norske kroner.",0,0,3759000,0,"000","10",90010,0,0,10,0,null,null,null,"04.3.0"]
["Andre fordringer ellers, Virkelig verdi, Utlandet, Utenlandsk valuta i NOK.",0,0,3759000,0,"000","10",90010,0,0,30,0,null,null,null,"04.3.0"]
["Andre fordringer ellers, Virkelig verdi, Utlandet, tilknyttede selskaper, Norske kroner.",0,0,3759000,0,"000","10","90008",0,0,10,0,null,null,null,"04.3.0"]
["Andre fordringer ellers, Virkelig verdi, Utlandet, tilknyttede selskaper, Utenlandsk valuta i NOK.",0,0,3759000,0,"000","10","90008",0,0,30,0,null,null,null,"04.3.0"]
["Andre fordringer ellers, Virkelig verdi, Utlandet, konsernselskap,Norske kroner.",0,0,3759000,0,"000","10","90009",0,0,10,0,null,null,null,"04.3.0"]
["Andre fordringer ellers, Virkelig verdi, Utlandet, konsernselskap,Utenlandsk valuta i NOK.",0,0,3759000,0,"000","10","90009",0,0,30,0,null,null,null,"04.3.0"]
[]
["Andre fordringer ellers, Amortisert kost, Øvrige, Statlig eide aksjeselskaper mv., Norske kroner.",0,0,3759000,0,"000","52",11200,0,0,10,0,null,null,null,"04.3.0"]
["Andre fordringer ellers, Amortisert kost, Øvrige,  Kommunale foretak med ubegrenset ansvar, Norske kroner.",0,0,3759000,0,"000","52",15100,0,0,10,0,null,null,null,"04.3.0"]
["Andre fordringer ellers, Amortisert kost, Øvrige,  Kommunalt eide aksjeselskaper mv., Norske kroner.",0,0,3759000,0,"000","52",15200,0,0,10,0,null,null,null,"04.3.0"]
["Andre fordringer ellers, Amortisert kost, Øvrige,  Private aksjeselskaper mv., Norske kroner.",0,0,3759000,0,"000","52",21000,0,0,10,0,null,null,null,"04.3.0"]
["Andre fordringer ellers, Amortisert kost, Øvrige,  Private aksjeselskaper mv., tilknyttede selskaper,Norske kroner.",0,0,3759000,0,"000","52",21008,0,0,10,0,null,null,null,"04.3.0"]
["Andre fordringer ellers, Amortisert kost, Øvrige,  Private aksjeselskaper mv., konsern selskap Norske kroner.",0,0,3759000,0,"000","52",21009,0,0,10,0,null,null,null,"04.3.0"]
["Andre fordringer ellers, Amortisert kost, Øvrige,  Personlige foretak, Norske kroner.",0,0,3759000,0,"000","52",23000,0,0,10,0,null,null,null,"04.3.0"]
["Andre fordringer ellers, Amortisert kost, Øvrige,  Private produsentorienterte organiasjoner uten profittformål, Norske kroner.",0,0,3759000,0,"000","52",25000,0,0,10,0,null,null,null,"04.3.0"]
["Andre fordringer ellers, Amortisert kost, Øvrige,  Banker, Norske kroner.",0,0,3759000,0,"000","52",32000,0,0,10,0,null,null,null,"04.3.0"]
["Andre fordringer ellers, Amortisert kost, Øvrige,  Kredittforetak, Norske kroner.",0,0,3759000,0,"000","52",35000,0,0,10,0,null,null,null,"04.3.0"]
["Andre fordringer ellers, Amortisert kost, Øvrige,  Finansieringsselskaper, Norske kroner.",0,0,3759000,0,"000","52",36000,0,0,10,0,null,null,null,"04.3.0"]
["Andre fordringer ellers, Amortisert kost, Øvrige,  Statlige låneinstitutter mv., Norske kroner.",0,0,3759000,0,"000","52",39000,0,0,10,0,null,null,null,"04.3.0"]
["Andre fordringer ellers, Amortisert kost, Øvrige,  Finansielle holdingselskaper, Norske kroner.",0,0,3759000,0,"000","52",41000,0,0,10,0,null,null,null,"04.3.0"]
["Andre fordringer ellers, Amortisert kost, Øvrige,  Finansielle holdingselskaper, tilknyttede selskaper, Norske kroner.",0,0,3759000,0,"000","52",41008,0,0,10,0,null,null,null,"04.3.0"]
["Andre fordringer ellers, Amortisert kost, Øvrige,  Finansielle holdingselskaper, konsernselskap, Norske kroner.",0,0,3759000,0,"000","52",41009,0,0,10,0,null,null,null,"04.3.0"]
["Andre fordringer ellers, Amortisert kost, Øvrige,  Verdipapirfond, Norske kroner.",0,0,3759000,0,"000","52",43000,0,0,10,0,null,null,null,"04.3.0"]
["Andre fordringer ellers, Amortisert kost, Øvrige,  Investeringsselskaper og aktive eierfond/PE-fond, Norske kroner.",0,0,3759000,0,"000","52",45000,0,0,10,0,null,null,null,"04.3.0"]
["Andre fordringer ellers, Amortisert kost, Øvrige,  Investeringsselskaper og aktive eierfond/PE-fond, tilknyttede selskaper, Norske kroner.",0,0,3759000,0,"000","52",45008,0,0,10,0,null,null,null,"04.3.0"]
["Andre fordringer ellers, Amortisert kost, Øvrige,  Investeringsselskaper og aktive eierfond/PE-fond, konsernselskap, Norske kroner.",0,0,3759000,0,"000","52",45009,0,0,10,0,null,null,null,"04.3.0"]
["Andre fordringer ellers, Amortisert kost, Øvrige,  Øvrige finansielle foretak unntatt forsikring, Norske kroner.",0,0,3759000,0,"000","52",49000,0,0,10,0,null,null,null,"04.3.0"]
["Andre fordringer ellers, Amortisert kost, Øvrige,  Øvrige finansielle foretak unntatt forsikring, tilknyttede selskaper, Norske kroner.",0,0,3759000,0,"000","52",49008,0,0,10,0,null,null,null,"04.3.0"]
["Andre fordringer ellers, Amortisert kost, Øvrige,  Øvrige finansielle foretak unntatt forsikring, konsernselskap, Norske kroner.",0,0,3759000,0,"000","52",49009,0,0,10,0,null,null,null,"04.3.0"]
["Andre fordringer ellers, Amortisert kost, Øvrige,  Livsforsikringsselskaper og pensjonskasser, Norske kroner.",0,0,3759000,0,"000","52",55000,0,0,10,0,null,null,null,"04.3.0"]
["Andre fordringer ellers, Amortisert kost, Øvrige,  Livsforsikringsselskaper og pensjonskasser, tilknyttede selskaper, Norske kroner.",0,0,3759000,0,"000","52",55008,0,0,10,0,null,null,null,"04.3.0"]
["Andre fordringer ellers, Amortisert kost, Øvrige,  Livsforsikringsselskaper og pensjonskasser, konsernselskapsselskaper og pensjonskasser, Norske kroner.",0,0,3759000,0,"000","52",55009,0,0,10,0,null,null,null,"04.3.0"]
["Andre fordringer ellers, Amortisert kost, Øvrige,  Skadeforsikringsselskaper, Norske kroner.",0,0,3759000,0,"000","52",57000,0,0,10,0,null,null,null,"04.3.0"]
["Andre fordringer ellers, Amortisert kost, Øvrige,  Skadeforsikringsselskaper, tilknyttede selskaper, Norske kroner.",0,0,3759000,0,"000","52",57008,0,0,10,0,null,null,null,"04.3.0"]
["Andre fordringer ellers, Amortisert kost, Øvrige,  Skadeforsikringsselskaper, konsernselskap, Norske kroner.",0,0,3759000,0,"000","52",57009,0,0,10,0,null,null,null,"04.3.0"]
["Andre fordringer ellers, Amortisert kost, Øvrige,  Statsforvaltningen, Norske kroner.",0,0,3759000,0,"000","52",61000,0,0,10,0,null,null,null,"04.3.0"]
["Andre fordringer ellers, Amortisert kost, Øvrige,  Kommuneforvaltningen, Norske kroner.",0,0,3759000,0,"000","52",65000,0,0,10,0,null,null,null,"04.3.0"]
["Andre fordringer ellers, Amortisert kost, Øvrige,  Idelle organisasjoner, Norske kroner.",0,0,3759000,0,"000","52",70000,0,0,10,0,null,null,null,"04.3.0"]
["Andre fordringer ellers, Amortisert kost, Øvrige,  Personlig næringsdrivende, Norske kroner.",0,0,3759000,0,"000","52",82000,0,0,10,0,null,null,null,"04.3.0"]
["Andre fordringer ellers, Amortisert kost, Øvrige,  Borettslag o.l., Norske kroner.",0,0,3759000,0,"000","52",83000,0,0,10,0,null,null,null,"04.3.0"]
["Andre fordringer ellers, Amortisert kost, Øvrige,  Lønnstakere, trygdede mv., Norske kroner.",0,0,3759000,0,"000","52",85000,0,0,10,0,null,null,null,"04.3.0"]
["Andre fordringer ellers, Amortisert kost, Øvrige,  Lønnstakere, trygdede mv., Utenlandsk valuta.",0,0,3759000,0,"000","52",85000,0,0,30,0,null,null,null,"04.3.0"]
["Andre fordringer ellers, Amortisert kost, Øvrige,  Ufordelt sektor, Norske kroner.",0,0,3759000,0,"000","52","08000",0,0,10,0,null,null,null,"04.3.0"]
["Andre fordringer ellers, Amortisert kost, Øvrige,  Utlandet, Norske kroner.",0,0,3759000,0,"000","52",90010,0,0,10,0,null,null,null,"04.3.0"]
["Andre fordringer ellers, Amortisert kost, Øvrige,  Utlandet, Utenlandsk valuta i NOK.",0,0,3759000,0,"000","52",90010,0,0,30,0,null,null,null,"04.3.0"]
["Andre fordringer ellers, Amortisert kost, Øvrige,  Utlandet, tilknyttede selskaper, Norske kroner.",0,0,3759000,0,"000","52","90008",0,0,10,0,null,null,null,"04.3.0"]
["Andre fordringer ellers, Amortisert kost, Øvrige,  Utlandet, tilknyttede selskaper, Utenlandsk valuta i NOK.",0,0,3759000,0,"000","52","90008",0,0,30,0,null,null,null,"04.3.0"]
["Andre fordringer ellers, Amortisert kost, Øvrige,  Utlandet, konsernselskap,Norske kroner.",0,0,3759000,0,"000","52","90009",0,0,10,0,null,null,null,"04.3.0"]
["Andre fordringer ellers, Amortisert kost, Øvrige,  Utlandet, konsernselskap,Utenlandsk valuta i NOK.",0,0,3759000,0,"000","52","90009",0,0,30,0,null,null,null,"04.3.0"]
[]
["Eiendeler ved skatt (utsatt skattefordel), Norske sektorer i alt, Ingen fordeling på valuta",0,0,3840000,0,"000","00","01000",0,0,90,0,null,null,null,"05.3.0"]
["Eiendeler ved skatt (utsatt skattefordel), Utlandet, Ingen fordeling på valuta",0,0,3840000,0,"000","00",90000,0,0,90,0,null,null,null,"05.3.0"]
[]
["Andre eiendeler, Gjenforsikringsdepoter, Norske sektorer i alt, Norske kroner",0,0,3895000,0,"000","00","01000",0,0,10,0,null,null,null,"02.5.0"]
["Andre eiendeler, Gjenforsikringsdepoter, Norske sektorer i alt, Utenlandsk valuta i NOK",0,0,3895000,0,"000","00","01000",0,0,30,0,null,null,null,"02.5.0"]
["Andre eiendeler, Gjenforsikringsdepoter, Utlandet, norske kroner",0,0,3895000,0,"000","00",90000,0,0,10,0,null,null,null,"02.5.0"]
["Andre eiendeler, Gjenforsikringsdepoter, Utlandet, Utenlandsk valuta i NOK",0,0,3895000,0,"000","00",90000,0,0,30,0,null,null,null,"02.5.0"]
[]
["Andre eiendeler, Øvrige, Norske sektorer i alt, Norske kroner",0,0,3899000,0,"000","00","01000",0,0,10,0,null,null,null,"05.4.0"]
["Andre eiendeler, Øvrige, Norske sektorer i alt, Utenlandsk valuta i NOK",0,0,3899000,0,"000","00","01000",0,0,30,0,null,null,null,"05.4.0"]
["Andre eiendeler, Øvrige, Utlandet, norske kroner",0,0,3899000,0,"000","00",90000,0,0,10,0,null,null,null,"05.4.0"]
["Andre eiendeler, Øvrige, Utlandet, Utenlandsk valuta i NOK",0,0,3899000,0,"000","00",90000,0,0,30,0,null,null,null,"05.4.0"]
[]
["4. Immatrielle eiendeler"]
["Goodwill, Norske sektorer i alt, norske kroner",0,0,4851100,0,"000","00","01000",0,0,10,0,null,null,null,"01.1.0"]
["Goodwill, Utlandet, Utenlandsk valuta i NOK",0,0,4851100,0,"000","00",90000,0,0,30,0,null,null,null,"01.1.0"]
[]
["Andre immaterielle eiendeler mv., Norske sektorer i alt, norske kroner",0,0,4859000,0,"000","00","01000",0,0,10,0,null,null,null,"01.2.0"]
["Andre immaterielle eiendeler mv., Utlandet, Utenlandsk valuta i NOK",0,0,4859000,0,"000","00",90000,0,0,30,0,null,null,null,"01.2.0"]
[]
["5. Realkapital"]
["Bygninger og annen fast eiendom, ekskl. aksjer i eiendomsselskaper, Investeringseindommer, Virkelig verdi med resultatføring, Norske sektorer i alt, Ingen fordeling på valuta",0,0,5861000,0,"000","10","01000",0,0,90,0,null,null,null,"02.1.1"]
["Bygninger og annen fast eiendom, ekskl. aksjer i eiendomsselskaper, Investeringseindommer, Virkelig verdi med resultatføring, Utlandet, Ingen fordeling på valuta",0,0,5861000,0,"000","10",90000,0,0,90,0,null,null,null,"02.1.1"]
[]
["Bygninger og annen fast eiendom, ekskl. aksjer i eiendomsselskaper, Investeringseindommer, Anskaffelseskost, Norske sektorer i alt, Ingen fordeling på valuta",0,0,5861000,0,"000","60","01000",0,0,90,0,null,null,null,"02.1.1"]
["Bygninger og annen fast eiendom, ekskl. aksjer i eiendomsselskaper, Investeringseindommer, Anskaffelseskost, Utlandet, Ingen fordeling på valuta",0,0,5861000,0,"000","60",90000,0,0,90,0,null,null,null,"02.1.1"]
[]
["Bygninger og annen fast eiendom, ekskl. aksjer i eiendomsselskaper, Eierbenyttet eiendom, Verdireguleringsmodellen, Norske sektorer i alt, Ingen fordeling på valuta",0,0,5862000,0,"000","40","01000",0,0,90,0,null,null,null,"02.1.2"]
["Bygninger og annen fast eiendom, ekskl. aksjer i eiendomsselskaper, Eierbenyttet eiendom, Verdireguleringsmodellen, Utlandet, Ingen fordeling på valuta",0,0,5862000,0,"000","40",90000,0,0,90,0,null,null,null,"02.1.2"]
[]
["Bygninger og annen fast eiendom, ekskl. aksjer i eiendomsselskaper, Eierbenyttet eiendom, Anskaffelseskost, Norske sektorer i alt, Ingen fordeling på valuta",0,0,5862000,0,"000","60","01000",0,0,90,0,null,null,null,"02.1.2"]
["Bygninger og annen fast eiendom, ekskl. aksjer i eiendomsselskaper, Eierbenyttet eiendom, Anskaffelseskost, Utlandet, Ingen fordeling på valuta",0,0,5862000,0,"000","60",90000,0,0,90,0,null,null,null,"02.1.2"]
[]
["Maskiner, inventar, transportmidler,Anskaffelseskost, Norske sektorer i alt, Ingen fordeling på valuta",0,0,5870000,0,"000","60","01000",0,0,90,0,null,null,null,"05.1.0"]
["Maskiner, inventar, transportmidler,Anskaffelseskost, Utlandet, Ingen fordeling på valuta",0,0,5870000,0,"000","60",90000,0,0,90,0,null,null,null,"05.1.0"]
[]
["Leierettigheter, Norske sektorer i alt",0,0,5960000,0,"000","00","01000",0,0,90,0,null,null,null,"05.9.0","\"Uoffisiell post "]
["Leierettigheter, Utenlandske sektorer i alt",0,0,5960000,0,"000","00","90000",0,0,90,0,null,null,null,"05.9.0","\"Uoffisiell post "]
[]
[]
[]
["GJELD OG EGENKAPITAL:"]
[]
["7. Gjeld og avsetninger (ekskl. forsikringsmessige/-tekniske avsetninger)"]
["Verdipapir -/ repolån, Statlige eide aksjeselskaper mv., norske kroner",0,0,7558800,0,"000","00",11200,0,0,10,0,null,null,null,"13.5.0"]
["Verdipapir -/ repolån, Private aksjeselskaper mv., norske kroner",0,0,7558800,0,"000","00",21000,0,0,10,0,null,null,null,"13.5.0"]
["Verdipapir -/ repolån, Private aksjeselskaper mv., Utenlandsk valuta i NOK",0,0,7558800,0,"000","00",21000,0,0,30,0,null,null,null,"13.5.0"]
["Verdipapir -/ repolån, Banker, norske kroner",0,0,7558800,0,"000","00",32000,0,0,10,0,null,null,null,"13.3.0"]
["Verdipapir -/ repolån, Banker, Utenlandsk valuta i NOK",0,0,7558800,0,"000","00",32000,0,0,30,0,null,null,null,"13.3.0"]
["Verdipapir -/ repolån, Banker, tilknyttede banker, norske kroner",0,0,7558800,0,"000","00",32008,0,0,10,0,null,null,null,"13.3.0"]
["Verdipapir -/ repolån, Banker, konsernbank, norske kroner",0,0,7558800,0,"000","00",32009,0,0,10,0,null,null,null,"13.3.0"]
["Verdipapir -/ repolån, Kredittforetak, norske kroner",0,0,7558800,0,"000","00",35000,0,0,10,0,null,null,null,"13.3.0"]
["Verdipapir -/ repolån, Finansieringsselskaper, norske kroner",0,0,7558800,0,"000","00",36000,0,0,10,0,null,null,null,"13.3.0"]
["Verdipapir -/ repolån, Statlige låneinstitutter mv. , norske kroner",0,0,7558800,0,"000","00",39000,0,0,10,0,null,null,null,"13.3.0"]
["Verdipapir -/ repolån, Investeringsselskaper og aktive eierfond/PE-fond, norske kroner",0,0,7558800,0,"000","00",45000,0,0,10,0,null,null,null,"13.5.0"]
["Verdipapir -/ repolån, Investeringsselskaper og aktive eierfond/PE-fond, Utenlandsk valuta i NOK",0,0,7558800,0,"000","00",45000,0,0,30,0,null,null,null,"13.5.0"]
["Verdipapir -/ repolån, Øvrige finansielle foretatt unntatt forsikring, norske kroner",0,0,7558800,0,"000","00",49000,0,0,10,0,null,null,null,"13.5.0"]
["Verdipapir -/ repolån, Livsforsikringsselskaper og pensjonskasser, norske kroner",0,0,7558800,0,"000","00",55000,0,0,10,0,null,null,null,"13.5.0"]
["Verdipapir -/ repolån, Livsforsikringsselskaper og pensjonskasser, Utenlandsk valuta i NOK",0,0,7558800,0,"000","00",55000,0,0,30,0,null,null,null,"13.5.0"]
["Verdipapir -/ repolån, Livsforsikringsselskaper og pensjonskasser, tilknyttede selskaper, norske kroner",0,0,7558800,0,"000","00",55008,0,0,10,0,null,null,null,"13.5.0"]
["Verdipapir -/ repolån, Livsforsikringsselskaper og pensjonskasser, konsernselskap, norske kroner",0,0,7558800,0,"000","00",55009,0,0,10,0,null,null,null,"13.5.0"]
["Verdipapir -/ repolån, Skadeforsikringsselskaper, norske kroner",0,0,7558800,0,"000","00",57000,0,0,10,0,null,null,null,"13.5.0"]
["Verdipapir -/ repolån, Skadeforsikringsselskaper, Utenlandsk valuta i NOK",0,0,7558800,0,"000","00",57000,0,0,30,0,null,null,null,"13.5.0"]
["Verdipapir -/ repolån, Skadeforsikringsselskaper, tilknyttede selskaper, norske kroner",0,0,7558800,0,"000","00",57008,0,0,10,0,null,null,null,"13.5.0"]
["Verdipapir -/ repolån, Skadeforsikringsselskaper, konsernselskap, norske kroner",0,0,7558800,0,"000","00",57009,0,0,10,0,null,null,null,"13.5.0"]
["Verdipapir -/ repolån, Utlandet, norske kroner",0,0,7558800,0,"000","00",90010,0,0,10,0,null,null,null,"13.3.0/13.5.0"]
["Verdipapir -/ repolån, Utlandet, Utenlandsk valuta i NOK",0,0,7558800,0,"000","00",90010,0,0,30,0,null,null,null,"13.3.0/13.5.0"]
[]
["Likviditetslån, Statlige eide aksjeselskaper mv. norske kroner",0,0,7559000,0,"000","00",11200,0,0,10,0,null,null,null,"13.5.0"]
["Likviditetslån, Private aksjeselskaper mv., norske kroner",0,0,7559000,0,"000","00",21000,0,0,10,0,null,null,null,"13.5.0"]
["Likviditetslån, Private aksjeselskaper mv., utalandsk valuta",0,0,7559000,0,"000","00",21000,0,0,30,0,null,null,null,"13.5.0"]
["Likviditetslån, Personlige foretak",0,0,7559000,0,"000","00",23000,0,0,10,0,null,null,null,"13.5.0"]
["Likviditetslån, Private produsentorienterte organisasjoner uten profittformål",0,0,7559000,0,"000","00",25000,0,0,10,0,null,null,null,"13.5.0"]
["Likviditetslån, Banker, norske kroner",0,0,7559000,0,"000","00",32000,0,0,10,0,null,null,null,"13.3.0"]
["Likviditetslån, Banker, Utenlandsk valuta i NOK",0,0,7559000,0,"000","00",32000,0,0,30,0,null,null,null,"13.3.0"]
["Likviditetslån, Banker, tilknyttede banker, norske kroner",0,0,7559000,0,"000","00",32008,0,0,10,0,null,null,null,"13.3.0"]
["Likviditetslån, Banker, konsernbank, norske kroner",0,0,7559000,0,"000","00",32009,0,0,10,0,null,null,null,"13.3.0"]
["Likviditetslån, Kredittforetak, norske kroner",0,0,7559000,0,"000","00",35000,0,0,10,0,null,null,null,"13.3.0"]
["Likviditetslån, Finansieringsselskaper, norske kroner",0,0,7559000,0,"000","00",36000,0,0,10,0,null,null,null,"13.3.0"]
["Likviditetslån, Statlige låneinstitutter mv., norske kroner",0,0,7559000,0,"000","00",39000,0,0,10,0,null,null,null,"13.3.0"]
["Likviditetslån, Investeringsselskaper og aktive eierfond/PE-fond, norske kroner",0,0,7559000,0,"000","00",45000,0,0,10,0,null,null,null,"13.5.0"]
["Likviditetslån, Investeringsselskaper og aktive eierfond/PE-fond, Utenlandsk valuta i NOK",0,0,7559000,0,"000","00",45000,0,0,30,0,null,null,null,"13.5.0"]
["Likviditetslån, Øvrige finansielle foretatt unntatt forsikring, norske kroner",0,0,7559000,0,"000","00",49000,0,0,10,0,null,null,null,"13.5.0"]
["Likviditetslån, Livsforsikringsselskaper og pensjonskasser, norske kroner",0,0,7559000,0,"000","00",55000,0,0,10,0,null,null,null,"13.5.0"]
["Likviditetslån, Livsforsikringsselskaper og pensjonskasser, Utenlandsk valuta i NOK",0,0,7559000,0,"000","00",55000,0,0,30,0,null,null,null,"13.5.0"]
["Likviditetslån, Livsforsikringsselskaper og pensjonskasser, tilknyttede selskaper, norske kroner",0,0,7559000,0,"000","00",55008,0,0,10,0,null,null,null,"13.5.0"]
["Likviditetslån, Livsforsikringsselskaper og pensjonskasser, konsernselskap, norske kroner",0,0,7559000,0,"000","00",55009,0,0,10,0,null,null,null,"13.5.0"]
["Likviditetslån, Skadeforsikringsselskaper, norske kroner",0,0,7559000,0,"000","00",57000,0,0,10,0,null,null,null,"13.5.0"]
["Likviditetslån, Skadeforsikringsselskaper, Utenlandsk valuta i NOK",0,0,7559000,0,"000","00",57000,0,0,30,0,null,null,null,"13.5.0"]
["Likviditetslån, Skadeforsikringsselskaper, tilknyttede selskaper, norske kroner",0,0,7559000,0,"000","00",57008,0,0,10,0,null,null,null,"13.5.0"]
["Likviditetslån, Skadeforsikringsselskaper, konsernselskap, norske kroner",0,0,7559000,0,"000","00",57009,0,0,10,0,null,null,null,"13.5.0"]
["Likviditetslån, Idelle organisaskoner, norske kroner",0,0,7559000,0,"000","00",70000,0,0,10,0,null,null,null,"13.5.0"]
["Likviditetslån, Personlig næringsdrivende, norske kroner",0,0,7559000,0,"000","00",82000,0,0,10,0,null,null,null,"13.5.0"]
["Likviditetslån, Lønnstakere mv., norske kroner",0,0,7559000,0,"000","00",85000,0,0,10,0,null,null,null,"13.5.0"]
["Likviditetslån, Utlandet, norske kroner",0,0,7559000,0,"000","00",90010,0,0,10,0,null,null,null,"13.3.0/13.5.0"]
["Likviditetslån, Utlandet, Utenlandsk valuta i NOK",0,0,7559000,0,"000","00",90010,0,0,30,0,null,null,null,"13.3.0/13.5.0"]
[]
["Påløpte, ikke-forfalte kostnader, Lønn, ferielønn, honorarer o.l., Norske sektorer i alt, norske kroner",0,0,7628000,0,"000","00","01000",0,0,10,0,null,null,null,"14.2.0"]
["Påløpte, ikke-forfalte kostnader, Lønn, ferielønn, honorarer o.l., Norske sektorer i alt, Utenlandsk valuta i NOK",0,0,7628000,0,"000","00","01000",0,0,30,0,null,null,null,"14.2.0"]
["Påløpte, ikke-forfalte kostnader, Lønn, ferielønn, honorarer o.l., Utlandet, norske kroner",0,0,7628000,0,"000","00",90000,0,0,10,0,null,null,null,"14.2.0"]
["Påløpte, ikke-forfalte kostnader, Lønn, ferielønn, honorarer o.l., Utlandet, Utenlandsk valuta i NOK",0,0,7628000,0,"000","00",90000,0,0,30,0,null,null,null,"14.2.0"]
[]
["Påløpte, ikke-forfalte kostnader, Andre kostnader, Norske sektorer i alt, norske kroner",0,0,7629000,0,"000","00","01000",0,0,10,0,null,null,null,"14.2.0"]
["Påløpte, ikke-forfalte kostnader, Andre kostnader, Norske sektorer i alt, Utenlandsk valuta i NOK",0,0,7629000,0,"000","00","01000",0,0,30,0,null,null,null,"14.2.0"]
["Påløpte, ikke-forfalte kostnader, Andre kostnader, Utlandet, norske kroner",0,0,7629000,0,"000","00",90000,0,0,10,0,null,null,null,"14.2.0"]
["Påløpte, ikke-forfalte kostnader, Andre kostnader, Utlandet, Utenlandsk valuta i NOK",0,0,7629000,0,"000","00",90000,0,0,30,0,null,null,null,"14.2.0"]
[]
["Mottatte ikke opptjente inntekter, Leieinntekter, Norske sektorer i alt, norske kroner",0,0,7637000,0,"000","00","01000",0,0,10,0,null,null,null,"14.1.0"]
["Mottatte ikke opptjente inntekter, Leieinntekter, Norske sektorer i alt, Utenlandsk valuta i NOK",0,0,7637000,0,"000","00","01000",0,0,30,0,null,null,null,"14.1.0"]
["Mottatte ikke opptjente inntekter, Leieinntekter, Utlandet, norske kroner",0,0,7637000,0,"000","00",90000,0,0,10,0,null,null,null,"14.1.0"]
["Mottatte ikke opptjente inntekter, Leieinntekter, Utlandet, Utenlandsk valuta i NOK",0,0,7637000,0,"000","00",90000,0,0,30,0,null,null,null,"14.1.0"]
[]
["Mottatte ikke opptjente inntekter, Andre inntekter, Norske sektorer i alt, norske kroner",0,0,7639000,0,"000","00","01000",0,0,10,0,null,null,null,"14.2.0"]
["Mottatte ikke opptjente inntekter, Andre inntekter, Norske sektorer i alt, Utenlandsk valuta i NOK",0,0,7639000,0,"000","00","01000",0,0,30,0,null,null,null,"14.2.0"]
["Mottatte ikke opptjente inntekter, Andre inntekter, Utlandet, norske kroner",0,0,7639000,0,"000","00",90000,0,0,10,0,null,null,null,"14.2.0"]
["Mottatte ikke opptjente inntekter, Andre inntekter, Utlandet, Utenlandsk valuta i NOK",0,0,7639000,0,"000","00",90000,0,0,30,0,null,null,null,"14.2.0"]
[]
["Utbytte, konsernbidrag o.l., Utbytte/egenkapitalbevisrenter siste år, Norske sektorer ekskl. tilknyttede - og konsernselskap, norske kroner",0,0,7711000,0,"000","00","01010",0,0,10,0,null,null,null,"13.5.0"]
["Utbytte, konsernbidrag o.l., Utbytte/egenkapitalbevisrenter siste år, Norske sektorer i alt, ekskl. tilknyttede og konsernselskap, norske kroner",0,0,7711000,0,"000","00","01008",0,0,10,0,null,null,null,"13.5.0"]
["Utbytte, konsernbidrag o.l., Utbytte/egenkapitalbevisrenter siste år, Norske sektorer i alt, konsernselskap,norske kroner",0,0,7711000,0,"000","00","01009",0,0,10,0,null,null,null,"13.5.0"]
["Utbytte, konsernbidrag o.l., Utbytte/egenkapitalbevisrenter siste år, Utlandet ekskl. tinknyttede og konsernselskap, norske kroner",0,0,7711000,0,"000","00",90010,0,0,10,0,null,null,null,"13.5.0"]
["Utbytte, konsernbidrag o.l., Utbytte/egenkapitalbevisrenter siste år, Utlandet, tilknyttede selskaper, norske kroner",0,0,7711000,0,"000","00",90008,0,0,10,0,null,null,null,"13.5.0"]
["Utbytte, konsernbidrag o.l., Utbytte/egenkapitalbevisrenter siste år, Utlandet, konsernselskap,norske kroner",0,0,7711000,0,"000","00",90009,0,0,10,0,null,null,null,"13.5.0"]
[]
["Utbytte, konsernbidrag o.l., Konsernbidrag for siste år, Norske sektorer i alt, norske kroner",0,0,7715000,0,"000","00","01000",0,0,10,0,null,null,null,"13.5.0"]
["Utbytte, konsernbidrag o.l., Konsernbidrag for siste år, Utlandet, norske kroner",0,0,7715000,0,"000","00",90000,0,0,10,0,null,null,null,"13.5.0"]
[]
["I regning med avdelingskontor/filial, Utlandet, norske kroner",0,0,7730000,0,"000","00",90009,0,0,10,0,null,null,null,"13.5.0"]
["I regning med avdelingskontor/filial, Utlandet, Utenlandsk valuta i NOK",0,0,7730000,0,"000","00",90009,0,0,30,0,null,null,null,"13.5.0"]
[]
["Annen gjeld, Vedrørende direkte forsikring, Norske sektorer ekskl. tilknyttede - og konsernselskap, Ingen fordeling på valuta",0,0,"7753000",0,"000","00","01010",0,0,90,0,null,null,null,"13.1.0"]
["Annen gjeld, Vedrørende direkte forsikring, Norske sektorer i alt, tilknyttede selskaper, Ingen fordeling på valuta",0,0,"7753000",0,"000","00","01008",0,0,90,0,null,null,null,"13.1.0"]
["Annen gjeld, Vedrørende direkte forsikring, Norske sektorer i alt, konsernselskap,Ingen fordeling på valuta",0,0,"7753000",0,"000","00","01009",0,0,90,0,null,null,null,"13.1.0"]
["Annen gjeld, Vedrørende direkte forsikring, Utlandet ekskl. tilknyttede - og konsernselskap, Ingen fordeling på valuta",0,0,"7753000",0,"000","00",90010,0,0,90,0,null,null,null,"13.1.0"]
["Annen gjeld, Vedrørende direkte forsikring, Utlandet, tilknyttede selskaper, Ingen fordeling på valuta",0,0,"7753000",0,"000","00",90008,0,0,90,0,null,null,null,"13.1.0"]
["Annen gjeld, Vedrørende direkte forsikring, Utlandet, konsernselskap,Ingen fordeling på valuta",0,0,"7753000",0,"000","00",90009,0,0,90,0,null,null,null,"13.1.0"]
[]
["Annen gjeld, Vedrørende gjenforsikring, Norske sektorer ekskl. tilknyttede - og konsernselskap, norske kroner",0,0,"7754000",0,"000","00","01010",0,0,10,0,null,null,null,"13.2.0"]
["Annen gjeld, Vedrørende gjenforsikring, Norske sektorer ekskl. tilknyttede - og konsernselskap, Utenlandsk valuta i NOK",0,0,"7754000",0,"000","00","01010",0,0,30,0,null,null,null,"13.2.0"]
["Annen gjeld, Vedrørende gjenforsikring, Norske sektorer i alt, tilknyttede selskaper, norske kroner",0,0,"7754000",0,"000","00","01008",0,0,10,0,null,null,null,"13.2.0"]
["Annen gjeld, Vedrørende gjenforsikring, Norske sektorer i alt, konsernselskap,norske kroner",0,0,"7754000",0,"000","00","01009",0,0,10,0,null,null,null,"13.2.0"]
["Annen gjeld, Vedrørende gjenforsikring, Utlandet ekskl. tilknyttede - og konsernselskap, norske kroner",0,0,"7754000",0,"000","00",90010,0,0,10,0,null,null,null,"13.2.0"]
["Annen gjeld, Vedrørende gjenforsikring, Utlandet ekskl. tilknyttede - og konsernselskap, Utenlandsk valuta i NOK",0,0,"7754000",0,"000","00",90010,0,0,30,0,null,null,null,"13.2.0"]
["Annen gjeld, Vedrørende gjenforsikring, Utlandet, tilknyttede selskaper, Utenlandsk valuta i NOK",0,0,"7754000",0,"000","00",90008,0,0,30,0,null,null,null,"13.2.0"]
["Annen gjeld, Vedrørende gjenforsikring, Utlandet, konsernselskap,Utenlandsk valuta i NOK",0,0,"7754000",0,"000","00",90009,0,0,30,0,null,null,null,"13.2.0"]
[]
["Annen gjeld, Premiedepot fra gjenforsikringsselskap, Norske sektorer i alt, norske kroner",0,0,"7755000",0,"000","00","01000",0,0,10,0,null,null,null,"12.0.0"]
["Annen gjeld, Premiedepot fra gjenforsikringsselskap, Utlandet, Utenlandsk valuta i NOK",0,0,"7755000",0,"000","00",90000,0,0,30,0,null,null,null,"12.0.0"]
[]
["Annen gjeld ellers, Statlig eide aksjeselskaper mv., norske kroner",0,0,7759000,0,"000","00",11200,0,0,10,0,null,null,null,"13.5.0"]
["Annen gjeld ellers, Kommunale foretak med ubegrenset ansvar, norske kroner",0,0,7759000,0,"000","00",15100,0,0,10,0,null,null,null,"13.5.0"]
["Annen gjeld ellers, Kommunale aksjeselskaper mv., norske kroner",0,0,7759000,0,"000","00",15200,0,0,10,0,null,null,null,"13.5.0"]
["Annen gjeld ellers, Private aksjeselskaper mv., norske kroner",0,0,7759000,0,"000","00",21000,0,0,10,0,null,null,null,"13.5.0"]
["Annen gjeld ellers, Private aksjeselskaper mv., tilknyttede selskaper,norske kroner",0,0,7759000,0,"000","00",21008,0,0,10,0,null,null,null,"13.5.0"]
["Annen gjeld ellers, Private aksjeselskaper mv., konsern selskap norske kroner",0,0,7759000,0,"000","00",21009,0,0,10,0,null,null,null,"13.5.0"]
["Annen gjeld ellers, Personlige foretak, norske kroner",0,0,7759000,0,"000","00",23000,0,0,10,0,null,null,null,"13.5.0"]
["Annen gjeld ellers, Private produsentorienterte organiasjoner uten profittformål, norske kroner",0,0,7759000,0,"000","00",25000,0,0,10,0,null,null,null,"13.5.0"]
["Annen gjeld ellers, Banker, norske kroner",0,0,7759000,0,"000","00",32000,0,0,10,0,null,null,null,"13.3.0"]
["Annen gjeld ellers, Kredittforetak, norske kroner",0,0,7759000,0,"000","00",35000,0,0,10,0,null,null,null,"13.3.0"]
["Annen gjeld ellers, Finansieringsselskaper, norske kroner",0,0,7759000,0,"000","00",36000,0,0,10,0,null,null,null,"13.3.0"]
["Annen gjeld ellers, Statlige låneinstitutter mv., norske kroner",0,0,7759000,0,"000","00",39000,0,0,10,0,null,null,null,"13.3.0"]
["Annen gjeld ellers, Finansielle holdingselskaper, norske kroner",0,0,7759000,0,"000","00",41000,0,0,10,0,null,null,null,"13.5.0"]
["Annen gjeld ellers, Finansielle holdingselskaper, tilknyttede selskaper, norske kroner",0,0,7759000,0,"000","00",41008,0,0,10,0,null,null,null,"13.5.0"]
["Annen gjeld ellers, Finansielle holdingselskaper, konsernselskap, norske kroner",0,0,7759000,0,"000","00",41009,0,0,10,0,null,null,null,"13.5.0"]
["Annen gjeld ellers, Verdipapirfond, norske kroner",0,0,7759000,0,"000","00",43000,0,0,10,0,null,null,null,"13.5.0"]
["Annen gjeld ellers, Investeringsselskaper og aktive eierfond/PE-fond, norske kroner",0,0,7759000,0,"000","00",45000,0,0,10,0,null,null,null,"13.5.0"]
["Annen gjeld ellers, Investeringsselskaper og aktive eierfond/PE-fond, tilknyttede selskaper, norske kroner",0,0,7759000,0,"000","00",45008,0,0,10,0,null,null,null,"13.5.0"]
["Annen gjeld ellers, Investeringsselskaper og aktive eierfond/PE-fond, konsernselskap, norske kroner",0,0,7759000,0,"000","00",45009,0,0,10,0,null,null,null,"13.5.0"]
["Annen gjeld ellers, Øvrige finansielle foretak unntatt forsikring, norske kroner",0,0,7759000,0,"000","00",49000,0,0,10,0,null,null,null,"13.5.0"]
["Annen gjeld ellers, Øvrige finansielle foretak unntatt forsikring, tilknyttede selskaper, norske kroner",0,0,7759000,0,"000","00",49008,0,0,10,0,null,null,null,"13.5.0"]
["Annen gjeld ellers, Øvrige finansielle foretak unntatt forsikring, konsernselskap, norske kroner",0,0,7759000,0,"000","00",49009,0,0,10,0,null,null,null,"13.5.0"]
["Annen gjeld ellers, Livsforsikringsselskaper og pensjonskasser, norske kroner",0,0,7759000,0,"000","00",55000,0,0,10,0,null,null,null,"13.5.0"]
["Annen gjeld ellers, Livsforsikringsselskaper og pensjonskasser, tilknyttede selskaper, norske kroner",0,0,7759000,0,"000","00",55008,0,0,10,0,null,null,null,"13.5.0"]
["Annen gjeld ellers, Livsforsikringsselskaper og pensjonskasser, konsernselskapsselskaper og pensjonskasser, norske kroner",0,0,7759000,0,"000","00",55009,0,0,10,0,null,null,null,"13.5.0"]
["Annen gjeld ellers, Skadeforsikringsselskaper, norske kroner",0,0,7759000,0,"000","00",57000,0,0,10,0,null,null,null,"13.5.0"]
["Annen gjeld ellers, Skadeforsikringsselskaper, tilknyttede selskaper, norske kroner",0,0,7759000,0,"000","00",57008,0,0,10,0,null,null,null,"13.5.0"]
["Annen gjeld ellers, Skadeforsikringsselskaper, konsernselskap, norske kroner",0,0,7759000,0,"000","00",57009,0,0,10,0,null,null,null,"13.5.0"]
["Annen gjeld ellers, Statsforvaltningen, norske kroner",0,0,7759000,0,"000","00",61000,0,0,10,0,null,null,null,"13.5.0"]
["Annen gjeld ellers, Kommuneforvaltningen, norske kroner",0,0,7759000,0,"000","00",65000,0,0,10,0,null,null,null,"13.5.0"]
["Annen gjeld ellers, Idelle organisasjoner, norske kroner",0,0,7759000,0,"000","00",70000,0,0,10,0,null,null,null,"13.5.0"]
["Annen gjeld ellers, Personlig næringsdrivende, norske kroner",0,0,7759000,0,"000","00",82000,0,0,10,0,null,null,null,"13.5.0"]
["Annen gjeld ellers, Boretteslag o.l., norske kroner",0,0,7759000,0,"000","00",83000,0,0,10,0,null,null,null,"13.5.0"]
["Annen gjeld ellers, Lønnstakere, trygdede mv., norske kroner",0,0,7759000,0,"000","00",85000,0,0,10,0,null,null,null,"13.5.0"]
["Annen gjeld ellers, Ufordelt sektor, norske kroner",0,0,7759000,0,"000","00","08000",0,0,10,0,null,null,null,"13.3.0/13.5.0"]
["Annen gjeld ellers, Utlandet, norske kroner",0,0,7759000,0,"000","00",90010,0,0,10,0,null,null,null,"13.3.0/13.5.0"]
["Annen gjeld ellers, Utlandet, Utenlandsk valuta i NOK",0,0,7759000,0,"000","00",90010,0,0,30,0,null,null,null,"13.3.0/13.5.0"]
["Annen gjeld ellers, Utlandet, tilknyttede selskaper, norske kroner",0,0,7759000,0,"000","00","90008",0,0,10,0,null,null,null,"13.3.0/13.5.0"]
["Annen gjeld ellers, Utlandet, tilknyttede selskaper, Utenlandsk valuta i NOK",0,0,7759000,0,"000","00","90008",0,0,30,0,null,null,null,"13.3.0/13.5.0"]
["Annen gjeld ellers, Utlandet, konsernselskap,norske kroner",0,0,7759000,0,"000","00","90009",0,0,10,0,null,null,null,"13.3.0/13.5.0"]
["Annen gjeld ellers, Utlandet, konsernselskap,Utenlandsk valuta i NOK",0,0,7759000,0,"000","00","90009",0,0,30,0,null,null,null,"13.3.0/13.5.0"]
[]
["Finansielle derivater, Virkelig verdi med resultatføring, Statlig eide aksjeselskaper mv., Norske kroner",0,0,7880000,0,"000",10,11200,0,0,10,0,null,null,null,"13.4.0"]
["Finansielle derivater, Virkelig verdi med resultatføring, Kommunale aksjeselskaper mv., Norske kroner",0,0,7880000,0,"000",10,15200,0,0,10,0,null,null,null,"13.4.0"]
["Finansielle derivater, Virkelig verdi med resultatføring, Private aksjeselskaper mv., Norske kroner",0,0,7880000,0,"000",10,21000,0,0,10,0,null,null,null,"13.4.0"]
["Finansielle derivater, Virkelig verdi med resultatføring, Private aksjeselskaper mv., Utenlandsk valuta i NOK",0,0,7880000,0,"000",10,21000,0,0,30,0,null,null,null,"13.4.0"]
["Finansielle derivater, Virkelig verdi med resultatføring, Private aksjeselskaper mv., tilknyttede selskaper, Norske kroner",0,0,7880000,0,"000",10,21008,0,0,10,0,null,null,null,"13.4.0"]
["Finansielle derivater, Virkelig verdi med resultatføring, Private aksjeselskaper mv., tilknyttede selskaper, Utenlandsk valuta i NOK",0,0,7880000,0,"000",10,21008,0,0,30,0,null,null,null,"13.4.0"]
["Finansielle derivater, Virkelig verdi med resultatføring, Private aksjeselskaper mv., konsernselskap, Norske kroner",0,0,7880000,0,"000",10,21009,0,0,10,0,null,null,null,"13.4.0"]
["Finansielle derivater, Virkelig verdi med resultatføring, Private aksjeselskaper mv., konsernselskap, Utenlandsk valuta i NOK",0,0,7880000,0,"000",10,21009,0,0,30,0,null,null,null,"13.4.0"]
["Finansielle derivater, Virkelig verdi med resultatføring, Personlige foretak, Norske kroner",0,0,7880000,0,"000",10,23000,0,0,10,0,null,null,null,"13.4.0"]
["Finansielle derivater, Virkelig verdi med resultatføring, Banker, Norske kroner",0,0,7880000,0,"000",10,32000,0,0,10,0,null,null,null,"13.4.0"]
["Finansielle derivater, Virkelig verdi med resultatføring, Banker, Utenlandsk valuta i NOK",0,0,7880000,0,"000",10,32000,0,0,30,0,null,null,null,"13.4.0"]
["Finansielle derivater, Virkelig verdi med resultatføring, Banker, tilknyttede banker,  Norske kroner",0,0,7880000,0,"000",10,32008,0,0,10,0,null,null,null,"13.4.0"]
["Finansielle derivater, Virkelig verdi med resultatføring, Banker, tilknyttede banker,  Utenlandsk valuta i NOK",0,0,7880000,0,"000",10,32008,0,0,30,0,null,null,null,"13.4.0"]
["Finansielle derivater, Virkelig verdi med resultatføring, Banker, konsernbanker, Norske kroner",0,0,7880000,0,"000",10,32009,0,0,10,0,null,null,null,"13.4.0"]
["Finansielle derivater, Virkelig verdi med resultatføring, Banker, konsernbanker, Utenlandsk valuta i NOK",0,0,7880000,0,"000",10,32009,0,0,30,0,null,null,null,"13.4.0"]
["Finansielle derivater, Virkelig verdi med resultatføring, Kredittforetak, Norske kroner",0,0,7880000,0,"000",10,35000,0,0,10,0,null,null,null,"13.4.0"]
["Finansielle derivater, Virkelig verdi med resultatføring, Kredittforetak, Utenlandsk valuta i NOK",0,0,7880000,0,"000",10,35000,0,0,30,0,null,null,null,"13.4.0"]
["Finansielle derivater, Virkelig verdi med resultatføring, Kredittforetak, tilknyttede selskaper, Norske kroner",0,0,7880000,0,"000",10,35008,0,0,10,0,null,null,null,"13.4.0"]
["Finansielle derivater, Virkelig verdi med resultatføring, Kredittforetak, konsernselskap, Norske kroner",0,0,7880000,0,"000",10,35009,0,0,10,0,null,null,null,"13.4.0"]
["Finansielle derivater, Virkelig verdi med resultatføring, Finansieringsselskaper, Norske kroner",0,0,7880000,0,"000",10,36000,0,0,10,0,null,null,null,"13.4.0"]
["Finansielle derivater, Virkelig verdi med resultatføring, Finansieringsselskaper, tilknyttede selskaper, Norske kroner",0,0,7880000,0,"000",10,36008,0,0,10,0,null,null,null,"13.4.0"]
["Finansielle derivater, Virkelig verdi med resultatføring, Finansieringsselskaper, konsernelskap, Norske kroner",0,0,7880000,0,"000",10,36009,0,0,10,0,null,null,null,"13.4.0"]
["Finansielle derivater, Virkelig verdi med resultatføring, Statlige låneinstitutter mv., Norske kroner",0,0,7880000,0,"000",10,39000,0,0,10,0,null,null,null,"13.4.0"]
["Finansielle derivater, Virkelig verdi med resultatføring, Investeringsselskaper og aktive eierfond/PE-fond, Norske kroner",0,0,7880000,0,"000",10,45000,0,0,10,0,null,null,null,"13.4.0"]
["Finansielle derivater, Virkelig verdi med resultatføring, Investeringsselskaper og aktive eierfond/PE-fond, Utenlandsk valuta i NOK",0,0,7880000,0,"000",10,45000,0,0,30,0,null,null,null,"13.4.0"]
["Finansielle derivater, Virkelig verdi med resultatføring, Investeringsselskaper og aktive eierfond/PE-fond, tilknyttet seksap, Norske kroner",0,0,7880000,0,"000",10,45008,0,0,10,0,null,null,null,"13.4.0"]
["Finansielle derivater, Virkelig verdi med resultatføring, Investeringsselskaper og aktive eierfond/PE-fond, tilknyttet seksap, Utenlandsk valuta i NOK",0,0,7880000,0,"000",10,45008,0,0,30,0,null,null,null,"13.4.0"]
["Finansielle derivater, Virkelig verdi med resultatføring, Investeringsselskaper og aktive eierfond/PE-fond, konsernselskap,Norske kroner",0,0,7880000,0,"000",10,45009,0,0,10,0,null,null,null,"13.4.0"]
["Finansielle derivater, Virkelig verdi med resultatføring, Investeringsselskaper og aktive eierfond/PE-fond, konsernselskap,Utenlandsk valuta i NOK",0,0,7880000,0,"000",10,45009,0,0,30,0,null,null,null,"13.4.0"]
["Finansielle derivater, Virkelig verdi med resultatføring, Finansielle holdingselskaper, Norske kroner",0,0,7880000,0,"000",10,41000,0,0,10,0,null,null,null,"13.4.0"]
["Finansielle derivater, Virkelig verdi med resultatføring, Øvrige finansielle foretak unntatt forsikring, Norske kroner",0,0,7880000,0,"000",10,49000,0,0,10,0,null,null,null,"13.4.0"]
["Finansielle derivater, Virkelig verdi med resultatføring, Øvrige finansielle foretak unntatt forsikring, Utenlandsk valuta i NOK",0,0,7880000,0,"000",10,49000,0,0,30,0,null,null,null,"13.4.0"]
["Finansielle derivater, Virkelig verdi med resultatføring, Øvrige finansielle foretak unntatt forsikring, tilknyttede selskaper, Norske kroner",0,0,7880000,0,"000",10,49008,0,0,10,0,null,null,null,"13.4.0"]
["Finansielle derivater, Virkelig verdi med resultatføring, Øvrige finansielle foretak unntatt forsikring, konsernselskap, Norske kroner",0,0,7880000,0,"000",10,49009,0,0,10,0,null,null,null,"13.4.0"]
["Finansielle derivater, Virkelig verdi med resultatføring, Øvrige finansielle foretak unntatt forsikring, konsernselskap, Utenlandsk valuta",0,0,7880000,0,"000",10,49009,0,0,30,0,null,null,null,"13.4.0"]
["Finansielle derivater, Virkelig verdi med resultatføring, Livsforsikringsselskaper og pensjonskasser, Norske kroner",0,0,7880000,0,"000",10,55000,0,0,10,0,null,null,null,"13.4.0"]
["Finansielle derivater, Virkelig verdi med resultatføring, Livsforsikringsselskaper og pensjonskasser, Utenalndsk valuta",0,0,7880000,0,"000",10,55000,0,0,30,0,null,null,null,"13.4.0"]
["Finansielle derivater, Virkelig verdi med resultatføring, Livsforsikringsselskaper og pensjonskasser, tilknyttede selskaper, Norske kroner",0,0,7880000,0,"000",10,55008,0,0,10,0,null,null,null,"13.4.0"]
["Finansielle derivater, Virkelig verdi med resultatføring, Livsforsikringsselskaper og pensjonskasser, konsernselskap,Norske kroner",0,0,7880000,0,"000",10,55009,0,0,10,0,null,null,null,"13.4.0"]
["Finansielle derivater, Virkelig verdi med resultatføring, Skadeforsikringsselskaper, Norske kroner",0,0,7880000,0,"000",10,57000,0,0,10,0,null,null,null,"13.4.0"]
["Finansielle derivater, Virkelig verdi med resultatføring, Skadeforsikringsselskaper, Utenlandsk valuta i NOK",0,0,7880000,0,"000",10,57000,0,0,30,0,null,null,null,"13.4.0"]
["Finansielle derivater, Virkelig verdi med resultatføring, Skadeforsikringsselskaper, tilknyttede selskaper, Norske kroner",0,0,7880000,0,"000",10,57008,0,0,10,0,null,null,null,"13.4.0"]
["Finansielle derivater, Virkelig verdi med resultatføring, Skadeforsikringsselskaper, konsernselskap,Norske kroner",0,0,7880000,0,"000",10,57009,0,0,10,0,null,null,null,"13.4.0"]
["Finansielle derivater, Virkelig verdi med resultatføring, Personlig næringsdrivende, Norske kroner",0,0,7880000,0,"000",10,82000,0,0,10,0,null,null,null,"13.4.0"]
["Finansielle derivater, Virkelig verdi med resultatføring, Ufordelt sektor, Norske kroner",0,0,7880000,0,"000",10,"08000",0,0,10,0,null,null,null,"13.4.0"]
["Finansielle derivater, Virkelig verdi med resultatføring, Utlandet ekskl. tilknyttede - og konsernselskap, Norske kroner",0,0,7880000,0,"000",10,90010,0,0,10,0,null,null,null,"13.4.0"]
["Finansielle derivater, Virkelig verdi med resultatføring, Utlandet ekskl. tilknyttede - og konsernselskap, Utenlandsk valuta i NOK",0,0,7880000,0,"000",10,90010,0,0,30,0,null,null,null,"13.4.0"]
["Finansielle derivater, Virkelig verdi med resultatføring, Utlandet, tilknyttede selskaper, Norske kroner",0,0,7880000,0,"000",10,90008,0,0,10,0,null,null,null,"13.4.0"]
["Finansielle derivater, Virkelig verdi med resultatføring, Utlandet, tilknyttede selskaper, Utenlandsk valuta i NOK",0,0,7880000,0,"000",10,90008,0,0,30,0,null,null,null,"13.4.0"]
["Finansielle derivater, Virkelig verdi med resultatføring, Utlandet, konsernselskaper, Norske kroner",0,0,7880000,0,"000",10,90009,0,0,10,0,null,null,null,"13.4.0"]
["Finansielle derivater, Virkelig verdi med resultatføring, Utlandet, konsernselskap, Utenlandsk valuta i NOK",0,0,7880000,0,"000",10,90009,0,0,30,0,null,null,null,"13.4.0"]
[]
["Forpliktelser knyttet til leierettigheter, Statlige aksjeselskaper, Norske kroner, ",0,0,7898000,0,"000","00",11200,0,0,10,0,null,null,null,"13.5.0"]
["Forpliktelser knyttet til leierettigheter, Kommunalt eide aksjeselskaper, Norske kroner, ",0,0,7898000,0,"000","00",15200,0,0,10,0,null,null,null,"13.5.0"]
["Forpliktelser knyttet til leierettigheter, Private aksjeselskaper, Norske kroner, ",0,0,7898000,0,"000","00",21000,0,0,10,0,null,null,null,"13.5.0"]
["Forpliktelser knyttet til leierettigheter, Private aksjeselskaper, Norske kroner, ",0,0,7898000,0,"000","00",21008,0,0,10,0,null,null,null,"13.5.0"]
["Forpliktelser knyttet til leierettigheter, Private aksjeselskaper, Norske kroner, ",0,0,7898000,0,"000","00",21009,0,0,10,0,null,null,null,"13.5.0"]
["Forpliktelser knyttet til leierettigheter, Personlige foretak, Norske kroner, ",0,0,7898000,0,"000","00",23000,0,0,10,0,null,null,null,"13.5.0"]
["Forpliktelser knyttet til leierettigheter, Banker, Norske kroner, ",0,0,7898000,0,"000","00",32000,0,0,10,0,null,null,null,"13.3.0"]
["Forpliktelser knyttet til leierettigheter, Banker, tilknyttede banker,  Norske kroner, ",0,0,7898000,0,"000","00",32008,0,0,10,0,null,null,null,"13.3.0"]
["Forpliktelser knyttet til leierettigheter, Banker, konsernbanker, Norske kroner, ",0,0,7898000,0,"000","00",32009,0,0,10,0,null,null,null,"13.3.0"]
["Forpliktelser knyttet til leierettigheter, Kredittforetak, Norske kroner, ",0,0,7898000,0,"000","00",35000,0,0,10,0,null,null,null,"13.3.0"]
["Forpliktelser knyttet til leierettigheter, Kredittforetak, tilknyttede selskaper, Norske kroner, ",0,0,7898000,0,"000","00",35008,0,0,10,0,null,null,null,"13.3.0"]
["Forpliktelser knyttet til leierettigheter, Kredittforetak, konsernselskaper, Norske kroner, ",0,0,7898000,0,"000","00",35009,0,0,10,0,null,null,null,"13.3.0"]
["Forpliktelser knyttet til leierettigheter, Finansieringsselskaper, Norske kroner, ",0,0,7898000,0,"000","00","36000",0,0,10,0,null,null,null,"13.3.0"]
["Forpliktelser knyttet til leierettigheter, Finansieringsselskaper, Norske kroner, ",0,0,7898000,0,"000","00","36008",0,0,10,0,null,null,null,"13.3.0"]
["Forpliktelser knyttet til leierettigheter, Finansieringsselskaper, Norske kroner, ",0,0,7898000,0,"000","00","36009",0,0,10,0,null,null,null,"13.3.0"]
["Forpliktelser knyttet til leierettigheter, Finansielle holdingselskaper, Norske kroner, ",0,0,7898000,0,"000","00",41000,0,0,10,0,null,null,null,"13.3.0"]
["Forpliktelser knyttet til leierettigheter, Andre finansielle foretak, Norske kroner, ",0,0,7898000,0,"000","00",45000,0,0,10,0,null,null,null,"13.5.0"]
["Forpliktelser knyttet til leierettigheter, Andre finansielle foretak, Norske kroner, ",0,0,7898000,0,"000","00",45008,0,0,10,0,null,null,null,"13.5.0"]
["Forpliktelser knyttet til leierettigheter, Andre finansielle foretak, Norske kroner, ",0,0,7898000,0,"000","00",45009,0,0,10,0,null,null,null,"13.5.0"]
["Forpliktelser knyttet til leierettigheter, Finansielle hjelpeforetak, Norske kroner, ",0,0,7898000,0,"000","00",49000,0,0,10,0,null,null,null,"13.5.0"]
["Forpliktelser knyttet til leierettigheter, Finansielle hjelpeforetak, Norske kroner, ",0,0,7898000,0,"000","00",49008,0,0,10,0,null,null,null,"13.5.0"]
["Forpliktelser knyttet til leierettigheter, Finansielle hjelpeforetak, Norske kroner, ",0,0,7898000,0,"000","00",49009,0,0,10,0,null,null,null,"13.5.0"]
["Forpliktelser knyttet til leierettigheter, Livsforsikringsselskaper og pensjonskasser, Norske kroner, ",0,0,7898000,0,"000","00",55000,0,0,10,0,null,null,null,"13.5.0"]
["Forpliktelser knyttet til leierettigheter, Livsforsikringsselskaper og pensjonskasser, Norske kroner, ",0,0,7898000,0,"000","00",55008,0,0,10,0,null,null,null,"13.5.0"]
["Forpliktelser knyttet til leierettigheter, Livsforsikringsselskaper og pensjonskasser, Norske kroner, ",0,0,7898000,0,"000","00",55009,0,0,10,0,null,null,null,"13.5.0"]
["Forpliktelser knyttet til leierettigheter, Skadeforsikringsselskaper, Norske kroner, ",0,0,7898000,0,"000","00",57000,0,0,10,0,null,null,null,"13.5.0"]
["Forpliktelser knyttet til leierettigheter, Skadeforsikringsselskaper, Norske kroner, ",0,0,7898000,0,"000","00",57008,0,0,10,0,null,null,null,"13.5.0"]
["Forpliktelser knyttet til leierettigheter, Skadeforsikringsselskaper, Norske kroner, ",0,0,7898000,0,"000","00",57009,0,0,10,0,null,null,null,"13.5.0"]
["Forpliktelser knyttet til leierettigheter, Personlig næringsdrivende, Norske kroner, ",0,0,7898000,0,"000","00",82000,0,0,10,0,null,null,null,"13.5.0"]
["Forpliktelser knyttet til leierettigheter, Ufordelt sektor, Norske kroner, ",0,0,7898000,0,"000","00","08000",0,0,10,0,null,null,null,"13.5.0"]
["Forpliktelser knyttet til leierettigheter, Utlandet, Norske kroner, ",0,0,7898000,0,"000","00",90010,0,0,10,0,null,null,null,"13.3.0/13.5.0"]
["Forpliktelser knyttet til leierettigheter, Utlandet, Tilknyttede selskaper, Norske kroner, ",0,0,7898000,0,"000","00",90008,0,0,10,0,null,null,null,"13.3.0/13.5.0"]
["Forpliktelser knyttet til leierettigheter, Utlandet, Konsernselskaper, Norske kroner, ",0,0,7898000,0,"000","00",90009,0,0,10,0,null,null,null,"13.3.0/13.5.0"]
[]
["Avsetninger og lignende, Periodeskatt, Norske sektorer i alt, norske kroner",0,0,7901100,0,"000","00","01000",0,0,10,0,null,null,null,"11.2.1"]
["Avsetninger og lignende, Periodeskatt, Utlandet, Utenlandsk valuta i NOK",0,0,7901100,0,"000","00",90000,0,0,30,0,null,null,null,"11.2.1"]
[]
["Avsetninger og lignende, Forpliktelse ved utsatt skatt knyttet til forsikringsemssige-/tekniske avsetninger under egenkapitalen, Norske sektorer i alt, norske kroner",0,0,7901300,0,0,"00","01000",0,0,10,0,null,null,null,"11.2.2"]
["Avsetninger og lignende, Forpliktelse ved utsatt skatt knyttet til forsikringsemssige-/tekniske avsetninger under egenkapitalen, Utlandet, Utenlandsk valuta i NOK",0,0,7901300,0,0,"00",90000,0,0,30,0,null,null,null,"11.2.2"]
[]
["Avsetninger og lignende, Andre forpliktelse ved utsatt skatt, Norske sektorer i alt, norske kroner",0,0,7901500,0,0,"00","01000",0,0,10,0,null,null,null,"11.2.2"]
["Avsetninger og lignende, Andre forpliktelse ved utsatt skatt, Utlandet, Utenlandsk valuta i NOK",0,0,7901500,0,0,"00",90000,0,0,30,0,null,null,null,"11.2.2"]
[]
["Avsetninger o.l., Pensjonsforpliktelser",0,0,7907000,0,"000","00","00000",0,0,10,0,null,null,null,"11.1.0"]
["Avsetninger o.l., Andre avsetninger",0,0,7909000,0,"000","00","00000",0,0,10,0,null,null,null,"11.3.0"]
[]
["8.2 Forsikringsmessige avsetninger i skadeforsikring",null,null,null,null,null,null," "]
["Avsetning for ikke opptjent bruttopremie, Norske sektorer i alt, Ingen fordeling på valuta",0,0,8261100,0,"000","00","01000",0,0,90,0,null,null,null,"10.1.0"]
["Avsetning for ikke opptjent bruttopremie, Utlandet, Ingen fordeling på valuta",0,0,8261100,0,"000","00",90000,0,0,90,0,null,null,null,"10.1.0"]
[" ",null,null," ",null,null,null," "," ",null," "]
["Brutto erstatningsavsetning, Norske sektorer i alt, Ingen fordeling på valuta",0,0,8271100,0,"000","00","01000",0,0,90,0,null,null,null,"10.3.0"]
["Brutto erstatningsavsetning, Utlandet, Ingen fordeling på valuta",0,0,8271100,0,"000","00",90000,0,0,90,0,null,null,null,"10.3.0"]
[]
["Avsetning for ikke avløpt risiko, Norske sektorer i alt, Ingen fordeling på valuta",0,0,8290000,0,"000","00","01000",0,0,90,0,null,null,null,"10.2.0"]
["Avsetning for ikke avløpt risiko, Utlandet, Ingen fordeling på valuta",0,0,8290000,0,"000","00",90000,0,0,90,0,null,null,null,"10.2.0"]
[]
["8.4 - 8.5 Ansvarlig lånekapital"]
["Ansvarlig lånekapital i form av rentebærende verdipapirer,  Evigvarende, Virkelig verdi med resultatføring, Norske sektorer i alt, norske kroner",0,0,8421100,0,"000",10,"01000",0,0,10,0,null,null,null,"09.1.0"]
["Ansvarlig lånekapital i form av rentebærende verdipapirer,  Evigvarende, Virkelig verdi med resultatføring, Norske sektorer i alt, Utenlandsk valuta i NOK",0,0,8421100,0,"000",10,"01000",0,0,30,0,null,null,null,"09.1.0"]
["Ansvarlig lånekapital i form av rentebærende verdipapirer,  Evigvarende, Virkelig verdi med resultatføring, Utlandet, norske kroner",0,0,8421100,0,"000",10,90000,0,0,10,0,null,null,null,"09.1.0"]
["Ansvarlig lånekapital i form av rentebærende verdipapirer,  Evigvarende, Virkelig verdi med resultatføring, Utlandet, Utenlandsk valuta i NOK",0,0,8421100,0,"000",10,90000,0,0,30,0,null,null,null,"09.1.0"]
[]
["Ansvarlig lånekapital i form av rentebærende verdipapirer,  Evigvarende, Amortisert kost, holde til forfall, Norske sektorer i alt, norske kroner",0,0,8421100,0,"000",52,"01000",0,0,10,0,null,null,null,"09.1.0"]
["Ansvarlig lånekapital i form av rentebærende verdipapirer,  Evigvarende, Amortisert kost, holde til forfall, Norske sektorer i alt, Utenlandsk valuta i NOK",0,0,8421100,0,"000",52,"01000",0,0,30,0,null,null,null,"09.1.0"]
["Ansvarlig lånekapital i form av rentebærende verdipapirer,  Evigvarende, Amortisert kost, holde til forfall, Utlandet, norske kroner",0,0,8421100,0,"000",52,90000,0,0,10,0,null,null,null,"09.1.0"]
["Ansvarlig lånekapital i form av rentebærende verdipapirer,  Evigvarende, Amortisert kost, holde til forfall, Utlandet, Utenlandsk valuta i NOK",0,0,8421100,0,"000",52,90000,0,0,30,0,null,null,null,"09.1.0"]
[]
["Ansvarlig lånekapital i form av rentebærende verdipapirer,  Ordinære ikke-konvertible, Virkelig verdi med resultatføring, Norske sektorer i alt, norske kroner",0,0,8422200,0,"000",10,"01000",0,0,10,0,null,null,null,"09.3.0"]
["Ansvarlig lånekapital i form av rentebærende verdipapirer,  Ordinære ikke-konvertible, Virkelig verdi med resultatføring, Norske sektorer i alt, Utenlandsk valuta i NOK",0,0,8422200,0,"000",10,"01000",0,0,30,0,null,null,null,"09.3.0"]
["Ansvarlig lånekapital i form av rentebærende verdipapirer,  Ordinære ikke-konvertible, Virkelig verdi med resultatføring, Utlandet, norske kroner",0,0,8422200,0,"000",10,90000,0,0,10,0,null,null,null,"09.3.0"]
["Ansvarlig lånekapital i form av rentebærende verdipapirer,  Ordinære ikke-konvertible, Virkelig verdi med resultatføring, Utlandet, Utenlandsk valuta i NOK",0,0,8422200,0,"000",10,90000,0,0,30,0,null,null,null,"09.3.0"]
[]
["Ansvarlig lånekapital i form av rentebærende verdipapirer,  Ordinære ikke-konvertible, Amortisert kost, holde til forfall, Norske sektorer i alt, norske kroner",0,0,8422200,0,"000",52,"01000",0,0,10,0,null,null,null,"09.3.0"]
["Ansvarlig lånekapital i form av rentebærende verdipapirer,  Ordinære ikke-konvertible, Amortisert kost, holde til forfall, Norske sektorer i alt, Utenlandsk valuta i NOK",0,0,8422200,0,"000",52,"01000",0,0,30,0,null,null,null,"09.3.0"]
["Ansvarlig lånekapital i form av rentebærende verdipapirer,  Ordinære ikke-konvertible, Amortisert kost, holde til forfall, Utlandet, norske kroner",0,0,8422200,0,"000",52,90000,0,0,10,0,null,null,null,"09.3.0"]
["Ansvarlig lånekapital i form av rentebærende verdipapirer,  Ordinære ikke-konvertible, Amortisert kost, holde til forfall, Utlandet, Utenlandsk valuta i NOK",0,0,8422200,0,"000",52,90000,0,0,30,0,null,null,null,"09.3.0"]
[]
["Ansvarlig lånekapital i form av rentebærende verdipapirer,  Konvertible, Virkelig verdi med resultatføring, Norske sektorer i alt, norske kroner",0,0,8422400,0,"000",10,"01000",0,0,10,0,null,null,null,"09.2.0"]
["Ansvarlig lånekapital i form av rentebærende verdipapirer,  Konvertible, Virkelig verdi med resultatføring, Norske sektorer i alt, Utenlandsk valuta i NOK",0,0,8422400,0,"000",10,"01000",0,0,30,0,null,null,null,"09.2.0"]
["Ansvarlig lånekapital i form av rentebærende verdipapirer,  Konvertible, Virkelig verdi med resultatføring, Utlandet, norske kroner",0,0,8422400,0,"000",10,90000,0,0,10,0,null,null,null,"09.2.0"]
["Ansvarlig lånekapital i form av rentebærende verdipapirer,  Konvertible, Virkelig verdi med resultatføring, Utlandet, Utenlandsk valuta i NOK",0,0,8422400,0,"000",10,90000,0,0,30,0,null,null,null,"09.2.0"]
[]
["Ansvarlig lånekapital i form av rentebærende verdipapirer,  Konvertible, Amortisert kost, holde til forfall, Norske sektorer i alt, norske kroner",0,0,8422400,0,"000",52,"01000",0,0,10,0,null,null,null,"09.2.0"]
["Ansvarlig lånekapital i form av rentebærende verdipapirer,  Konvertible, Amortisert kost, holde til forfall, Norske sektorer i alt, Utenlandsk valuta i NOK",0,0,8422400,0,"000",52,"01000",0,0,30,0,null,null,null,"09.2.0"]
["Ansvarlig lånekapital i form av rentebærende verdipapirer,  Konvertible, Amortisert kost, holde til forfall, Utlandet, norske kroner",0,0,8422400,0,"000",52,90000,0,0,10,0,null,null,null,"09.2.0"]
["Ansvarlig lånekapital i form av rentebærende verdipapirer,  Konvertible, Amortisert kost, holde til forfall, Utlandet, Utenlandsk valuta i NOK",0,0,8422400,0,"000",52,90000,0,0,30,0,null,null,null,"09.2.0"]
[]
["Fondsobligasjoner, Evigvarende, Virkelig verdi med resultatføring, Norske sektorer i alt, norske kroner",0,0,8491100,0,"000",10,"01000",0,0,10,0,null,null,null,"09.4.0"]
["Fondsobligasjoner, Evigvarende, Virkelig verdi med resultatføring, Norske sektorer i alt, Utenlandsk valuta i NOK",0,0,8491100,0,"000",10,"01000",0,0,30,0,null,null,null,"09.4.0"]
["Fondsobligasjoner, Evigvarende, Virkelig verdi med resultatføring, Utlandet, norske kroner",0,0,8491100,0,"000",10,90000,0,0,10,0,null,null,null,"09.4.0"]
["Fondsobligasjoner, Evigvarende, Virkelig verdi med resultatføring, Utlandet, Utenlandsk valuta i NOK",0,0,8491100,0,"000",10,90000,0,0,30,0,null,null,null,"09.4.0"]
[]
["Fondsobligasjoner, Evigvarende, Amortisert kost, holde til forfall, Norske sektorer i alt, norske kroner",0,0,8491100,0,"000",52,"01000",0,0,10,0,null,null,null,"09.4.0"]
["Fondsobligasjoner, Evigvarende, Amortisert kost, holde til forfall, Norske sektorer i alt, Utenlandsk valuta i NOK",0,0,8491100,0,"000",52,"01000",0,0,30,0,null,null,null,"09.4.0"]
["Fondsobligasjoner, Evigvarende, Amortisert kost, holde til forfall, Utlandet, norske kroner",0,0,8491100,0,"000",52,90000,0,0,10,0,null,null,null,"09.4.0"]
["Fondsobligasjoner, Evigvarende, Amortisert kost, holde til forfall, Utlandet, Utenlandsk valuta i NOK",0,0,8491100,0,"000",52,90000,0,0,30,0,null,null,null,"09.4.0"]
[]
["Andre ansvarlige lån, Evigvarende, Virkelig verdi med resultatføring, Banker, norske kroner",0,0,8551100,0,"000",10,32000,0,0,10,0,null,null,null,"09.1.0"]
["Andre ansvarlige lån, Evigvarende, Virkelig verdi med resultatføring, Banker, Utenlandsk valuta i NOK",0,0,8551100,0,"000",10,32000,0,0,30,0,null,null,null,"09.1.0"]
["Andre ansvarlige lån, Evigvarende, Virkelig verdi med resultatføring, Kredittforetak, norske kroner",0,0,8551100,0,"000",10,35000,0,0,10,0,null,null,null,"09.1.0"]
["Andre ansvarlige lån, Evigvarende, Virkelig verdi med resultatføring, Finansieringsselskaper, norske kroner",0,0,8551100,0,"000",10,36000,0,0,10,0,null,null,null,"09.1.0"]
["Andre ansvarlige lån, Evigvarende, Virkelig verdi med resultatføring, Finansielle holdingselskaper, norske kroner",0,0,8551100,0,"000",10,41000,0,0,10,0,null,null,null,"09.1.0"]
["Andre ansvarlige lån, Evigvarende, Virkelig verdi med resultatføring, Finansielle holdingselskaper, konsernselskap, norske kroner",0,0,8551100,0,"000",10,41009,0,0,10,0,null,null,null,"09.1.0"]
["Andre ansvarlige lån, Evigvarende, Virkelig verdi med resultatføring, Investeringsselskaper og aktive eierfond/PE-fond, norske kroner",0,0,8551100,0,"000",10,45000,0,0,10,0,null,null,null,"09.1.0"]
["Andre ansvarlige lån, Evigvarende, Virkelig verdi med resultatføring, Investeringsselskaper og aktive eierfond/PE-fond, Utenlandsk valuta i NOK",0,0,8551100,0,"000",10,45000,0,0,30,0,null,null,null,"09.1.0"]
["Andre ansvarlige lån, Evigvarende, Virkelig verdi med resultatføring, Øvrige finansielle foretatt unntatt forsikring, norske kroner",0,0,8551100,0,"000",10,49000,0,0,10,0,null,null,null,"09.1.0"]
["Andre ansvarlige lån, Evigvarende, Virkelig verdi med resultatføring, Øvrige finansielle foretatt unntatt forsikring, Utenlandsk valuta i NOK",0,0,8551100,0,"000",10,49000,0,0,30,0,null,null,null,"09.1.0"]
["Andre ansvarlige lån, Evigvarende, Virkelig verdi med resultatføring, Livsforsikringsselskaper og pensjonskasser, norske kroner",0,0,8551100,0,"000",10,55000,0,0,10,0,null,null,null,"09.1.0"]
["Andre ansvarlige lån, Evigvarende, Virkelig verdi med resultatføring, Livsforsikringsselskaper og pensjonskasser, tilknyttede selskaper, norske kroner",0,0,8551100,0,"000",10,55008,0,0,10,0,null,null,null,"09.1.0"]
["Andre ansvarlige lån, Evigvarende, Virkelig verdi med resultatføring, Livsforsikringsselskaper og pensjonskasser, konsernselskapsselskaper og pensjonskasser, norske kroner",0,0,8551100,0,"000",10,55009,0,0,10,0,null,null,null,"09.1.0"]
["Andre ansvarlige lån, Evigvarende, Virkelig verdi med resultatføring, Skadeforsikringsselskaper, norske kroner",0,0,8551100,0,"000",10,57000,0,0,10,0,null,null,null,"09.1.0"]
["Andre ansvarlige lån, Evigvarende, Virkelig verdi med resultatføring, Skadeforsikringsselskaper, tilknyttede selskaper, norske kroner",0,0,8551100,0,"000",10,57008,0,0,10,0,null,null,null,"09.1.0"]
["Andre ansvarlige lån, Evigvarende, Virkelig verdi med resultatføring, Skadeforsikringsselskaper, konsernselskap, norske kroner",0,0,8551100,0,"000",10,57009,0,0,10,0,null,null,null,"09.1.0"]
["Andre ansvarlige lån, Evigvarende, Virkelig verdi med resultatføring, Kommuneforvaltningen, norske kroner",0,0,8551100,0,"000",10,65000,0,0,10,0,null,null,null,"09.1.0"]
[]
["Andre ansvarlige lån, Evigvarende, Virkelig verdi med resultatføring, Utlandet  ekskl. tilknyttede og konsernselskap, norske kroner",0,0,8551100,0,"000",10,90010,0,0,10,0,null,null,null,"09.1.0"]
["Andre ansvarlige lån, Evigvarende, Virkelig verdi med resultatføring, Utlandet  ekskl. tilknyttede og konsernselskap, Utenlandsk valuta i NOK",0,0,8551100,0,"000",10,90010,0,0,30,0,null,null,null,"09.1.0"]
["Andre ansvarlige lån, Evigvarende, Virkelig verdi med resultatføring, Utlandet, tilknyttede selskaper, norske kroner",0,0,8551100,0,"000",10,90008,0,0,10,0,null,null,null,"09.1.0"]
["Andre ansvarlige lån, Evigvarende, Virkelig verdi med resultatføring, Utlandet, tilknyttede selskaper, Utenlandsk valuta i NOK",0,0,8551100,0,"000",10,90008,0,0,30,0,null,null,null,"09.1.0"]
["Andre ansvarlige lån, Evigvarende, Virkelig verdi med resultatføring, Utlandet, konsernselskap,norske kroner",0,0,8551100,0,"000",10,90009,0,0,10,0,null,null,null,"09.1.0"]
["Andre ansvarlige lån, Evigvarende, Virkelig verdi med resultatføring, Utlandet, konsernselskap,Utenlandsk valuta i NOK ",0,0,8551100,0,"000",10,90009,0,0,30,0,null,null,null,"09.1.0"]
[]
["Andre ansvarlige lån, Evigvarende, Amortisert kost, Øvrig, Banker, norske kroner",0,0,8551100,0,"000",52,32000,0,0,10,0,null,null,null,"09.1.0"]
["Andre ansvarlige lån, Evigvarende, Amortisert kost, Øvrig, Banker, Utenlandsk valuta i NOK",0,0,8551100,0,"000",52,32000,0,0,30,0,null,null,null,"09.1.0"]
["Andre ansvarlige lån, Evigvarende, Amortisert kost, Øvrig, Kredittforetak, norske kroner",0,0,8551100,0,"000",52,35000,0,0,10,0,null,null,null,"09.1.0"]
["Andre ansvarlige lån, Evigvarende, Amortisert kost, Øvrig, Finansieringsselskaper, norske kroner",0,0,8551100,0,"000",52,36000,0,0,10,0,null,null,null,"09.1.0"]
["Andre ansvarlige lån, Evigvarende, Amortisert kost, Øvrig, Finansielle holdingselskaper, norske kroner",0,0,8551100,0,"000",52,41000,0,0,10,0,null,null,null,"09.1.0"]
["Andre ansvarlige lån, Evigvarende, Amortisert kost, Øvrig, Finansielle holdingselskaper, konsernselskap, norske kroner",0,0,8551100,0,"000",52,41009,0,0,10,0,null,null,null,"09.1.0"]
["Andre ansvarlige lån, Evigvarende, Amortisert kost, Øvrig, Investeringsselskaper og aktive eierfond/PE-fond, norske kroner",0,0,8551100,0,"000",52,45000,0,0,10,0,null,null,null,"09.1.0"]
["Andre ansvarlige lån, Evigvarende, Amortisert kost, Øvrig, Investeringsselskaper og aktive eierfond/PE-fond, Utenlandsk valuta i NOK",0,0,8551100,0,"000",52,45000,0,0,30,0,null,null,null,"09.1.0"]
["Andre ansvarlige lån, Evigvarende, Amortisert kost, Øvrig, Øvrige finansielle foretatt unntatt forsikring, norske kroner",0,0,8551100,0,"000",52,49000,0,0,10,0,null,null,null,"09.1.0"]
["Andre ansvarlige lån, Evigvarende, Amortisert kost, Øvrig, Øvrige finansielle foretatt unntatt forsikring, Utenlandsk valuta i NOK",0,0,8551100,0,"000",52,49000,0,0,30,0,null,null,null,"09.1.0"]
["Andre ansvarlige lån, Evigvarende, Amortisert kost, Øvrig, Livsforsikringsselskaper og pensjonskasser, norske kroner",0,0,8551100,0,"000",52,55000,0,0,10,0,null,null,null,"09.1.0"]
["Andre ansvarlige lån, Evigvarende, Amortisert kost, Øvrig, Livsforsikringsselskaper og pensjonskasser, tilknyttede selskaper, norske kroner",0,0,8551100,0,"000",52,55008,0,0,10,0,null,null,null,"09.1.0"]
["Andre ansvarlige lån, Evigvarende, Amortisert kost, Øvrig, Livsforsikringsselskaper og pensjonskasser, konsernselskapsselskaper og pensjonskasser, norske kroner",0,0,8551100,0,"000",52,55009,0,0,10,0,null,null,null,"09.1.0"]
["Andre ansvarlige lån, Evigvarende, Amortisert kost, Øvrig, Skadeforsikringsselskaper, norske kroner",0,0,8551100,0,"000",52,57000,0,0,10,0,null,null,null,"09.1.0"]
["Andre ansvarlige lån, Evigvarende, Amortisert kost, Øvrig, Skadeforsikringsselskaper, tilknyttede selskaper, norske kroner",0,0,8551100,0,"000",52,57008,0,0,10,0,null,null,null,"09.1.0"]
["Andre ansvarlige lån, Evigvarende, Amortisert kost, Øvrig, Skadeforsikringsselskaper, konsernselskap, norske kroner",0,0,8551100,0,"000",52,57009,0,0,10,0,null,null,null,"09.1.0"]
["Andre ansvarlige lån, Evigvarende, Amortisert kost, Øvrig, Kommuneforvaltningen, norske kroner",0,0,8551100,0,"000",52,65000,0,0,10,0,null,null,null,"09.1.0"]
["Andre ansvarlige lån, Evigvarende, Amortisert kost, Øvrig, Ufordelt sektor , norske kroner",0,0,8551100,0,"000",52,"08000",0,0,10,0,null,null,null,"09.1.0"]
["Andre ansvarlige lån, Evigvarende, Amortisert kost, Øvrig, Utlandet  ekskl. tilknyttede og konsernselskap, norske kroner",0,0,8551100,0,"000",52,90010,0,0,10,0,null,null,null,"09.1.0"]
["Andre ansvarlige lån, Evigvarende, Amortisert kost, Øvrig, Utlandet  ekskl. tilknyttede og konsernselskap, Utenlandsk valuta i NOK",0,0,8551100,0,"000",52,90010,0,0,30,0,null,null,null,"09.1.0"]
["Andre ansvarlige lån, Evigvarende, Amortisert kost, Øvrig, Utlandet, tilknyttede selskaper, norske kroner",0,0,8551100,0,"000",52,90008,0,0,10,0,null,null,null,"09.1.0"]
["Andre ansvarlige lån, Evigvarende, Amortisert kost, Øvrig, Utlandet, tilknyttede selskaper, Utenlandsk valuta i NOK",0,0,8551100,0,"000",52,90008,0,0,30,0,null,null,null,"09.1.0"]
["Andre ansvarlige lån, Evigvarende, Amortisert kost, Øvrig, Utlandet, konsernselskap,norske kroner",0,0,8551100,0,"000",52,90009,0,0,10,0,null,null,null,"09.1.0"]
["Andre ansvarlige lån, Evigvarende, Amortisert kost, Øvrig, Utlandet, konsernselskap,Utenlandsk valuta i NOK ",0,0,8551100,0,"000",52,90009,0,0,30,0,null,null,null,"09.1.0"]
[]
["Andre ansvarlige lån, Andre, Virkelig verdi med resultatføring, Statlig eide aksjeselskaper mv., norske kroner",0,0,8552000,0,"000",10,11200,0,0,10,0,null,null,null,"09.3.0"]
["Andre ansvarlige lån, Andre, Virkelig verdi med resultatføring, Kommunale foretak med ubegrenset ansvar, norske kroner",0,0,8552000,0,"000",10,15100,0,0,10,0,null,null,null,"09.3.0"]
["Andre ansvarlige lån, Andre, Virkelig verdi med resultatføring, Kommunale aksjeselskaper mv., norske kroner",0,0,8552000,0,"000",10,15200,0,0,10,0,null,null,null,"09.3.0"]
["Andre ansvarlige lån, Andre, Virkelig verdi med resultatføring, Private aksjeselskaper mv., norske kroner",0,0,8552000,0,"000",10,21000,0,0,10,0,null,null,null,"09.3.0"]
["Andre ansvarlige lån, Andre, Virkelig verdi med resultatføring, Private aksjeselskaper mv., tilknyttede selskaper,norske kroner",0,0,8552000,0,"000",10,21008,0,0,10,0,null,null,null,"09.3.0"]
["Andre ansvarlige lån, Andre, Virkelig verdi med resultatføring, Private aksjeselskaper mv., konsern selskap norske kroner",0,0,8552000,0,"000",10,21009,0,0,10,0,null,null,null,"09.3.0"]
["Andre ansvarlige lån, Andre, Virkelig verdi med resultatføring, Personlige foretak, norske kroner",0,0,8552000,0,"000",10,23000,0,0,10,0,null,null,null,"09.3.0"]
["Andre ansvarlige lån, Andre, Virkelig verdi med resultatføring, Private produsentorienterte organiasjoner uten profittformål, norske kroner",0,0,8552000,0,"000",10,25000,0,0,10,0,null,null,null,"09.3.0"]
["Andre ansvarlige lån, Andre, Virkelig verdi med resultatføring, Banker, norske kroner",0,0,8552000,0,"000",10,32000,0,0,10,0,null,null,null,"09.3.0"]
["Andre ansvarlige lån, Andre, Virkelig verdi med resultatføring, Banker, konsernbank, norske kroner",0,0,8552000,0,"000",10,32009,0,0,10,0,null,null,null,"09.3.0"]
["Andre ansvarlige lån, Andre, Virkelig verdi med resultatføring, Kredittforetak, norske kroner",0,0,8552000,0,"000",10,35000,0,0,10,0,null,null,null,"09.3.0"]
["Andre ansvarlige lån, Andre, Virkelig verdi med resultatføring, Finansieringsselskaper, norske kroner",0,0,8552000,0,"000",10,36000,0,0,10,0,null,null,null,"09.3.0"]
["Andre ansvarlige lån, Andre, Virkelig verdi med resultatføring, Finansielle holdingselskaper, norske kroner",0,0,8552000,0,"000",10,41000,0,0,10,0,null,null,null,"09.3.0"]
["Andre ansvarlige lån, Andre, Virkelig verdi med resultatføring, Finansielle holdingselskaper, konsernselskap,norske kroner",0,0,8552000,0,"000",10,41009,0,0,10,0,null,null,null,"09.3.0"]
["Andre ansvarlige lån, Andre, Virkelig verdi med resultatføring, Investeringsselskaper og aktive eierfond/PE-selskaper, norske kroner",0,0,8552000,0,"000",10,45000,0,0,10,0,null,null,null,"09.3.0"]
["Andre ansvarlige lån, Andre, Virkelig verdi med resultatføring, Investeringsselskaper og aktive eierfond/PE-selskaper, Utenlandsk valuta i NOK",0,0,8552000,0,"000",10,45000,0,0,30,0,null,null,null,"09.3.0"]
["Andre ansvarlige lån, Andre, Virkelig verdi med resultatføring, Øvrige finansielle foretak unntatt forsikring, norske kroner",0,0,8552000,0,"000",10,49000,0,0,10,0,null,null,null,"09.3.0"]
["Andre ansvarlige lån, Andre, Virkelig verdi med resultatføring, Øvrige finansielle foretak unntatt forsikring, Utenlandsk valuta i NOK",0,0,8552000,0,"000",10,49000,0,0,30,0,null,null,null,"09.3.0"]
["Andre ansvarlige lån, Andre, Virkelig verdi med resultatføring, Livsforsikringsselskaper og pensjonskasser, norske kroner",0,0,8552000,0,"000",10,55000,0,0,10,0,null,null,null,"09.3.0"]
["Andre ansvarlige lån, Andre, Virkelig verdi med resultatføring, Livsforsikringsselskaper og pensjonskasser, tilknyttede selskaper, norske kroner",0,0,8552000,0,"000",10,55008,0,0,10,0,null,null,null,"09.3.0"]
["Andre ansvarlige lån, Andre, Virkelig verdi med resultatføring, Livsforsikringsselskaper og pensjonskasser, konsernselskapsselskaper og pensjonskasser, norske kroner",0,0,8552000,0,"000",10,55009,0,0,10,0,null,null,null,"09.3.0"]
["Andre ansvarlige lån, Andre, Virkelig verdi med resultatføring, Skadeforsikringsselskaper, norske kroner",0,0,8552000,0,"000",10,57000,0,0,10,0,null,null,null,"09.3.0"]
["Andre ansvarlige lån, Andre, Virkelig verdi med resultatføring, Skadeforsikringsselskaper, tilknyttede selskaper, norske kroner",0,0,8552000,0,"000",10,57008,0,0,10,0,null,null,null,"09.3.0"]
["Andre ansvarlige lån, Andre, Virkelig verdi med resultatføring, Skadeforsikringsselskaper, konsernselskap, norske kroner",0,0,8552000,0,"000",10,57009,0,0,10,0,null,null,null,"09.3.0"]
["Andre ansvarlige lån, Andre, Virkelig verdi med resultatføring, Statsforvaltningen, norske kroner",0,0,8552000,0,"000",10,61000,0,0,10,0,null,null,null,"09.3.0"]
["Andre ansvarlige lån, Andre, Virkelig verdi med resultatføring, Kommuneforvaltningen, norske kroner",0,0,8552000,0,"000",10,65000,0,0,10,0,null,null,null,"09.3.0"]
["Andre ansvarlige lån, Andre, Virkelig verdi med resultatføring, Idelle organisasjoner, norske kroner",0,0,8552000,0,"000",10,70000,0,0,10,0,null,null,null,"09.3.0"]
["Andre ansvarlige lån, Andre, Virkelig verdi med resultatføring, Personlig næringsdrivende, norske kroner",0,0,8552000,0,"000",10,82000,0,0,10,0,null,null,null,"09.3.0"]
["Andre ansvarlige lån, Andre, Virkelig verdi med resultatføring, Lønnstakere, trygdede mv., norske kroner",0,0,8552000,0,"000",10,85000,0,0,10,0,null,null,null,"09.3.0"]
["Andre ansvarlige lån, Andre, Virkelig verdi med resultatføring, Ufordelt sektor, norske kroner",0,0,8552000,0,"000",10,"08000",0,0,10,0,null,null,null,"09.3.0"]
["Andre ansvarlige lån, Andre, Virkelig verdi med resultatføring, Utlandet ekskl. tilknyttede - og konsernselskaper, Utenlandsk valuta i NOK",0,0,8552000,0,"000",10,90010,0,0,30,0,null,null,null,"09.3.0"]
["Andre ansvarlige lån, Andre, Virkelig verdi med resultatføring, Utlandet, tilknyttede selskaper, Utenlandsk valuta i NOK",0,0,8552000,0,"000",10,90008,0,0,30,0,null,null,null,"09.3.0"]
["Andre ansvarlige lån, Andre, Virkelig verdi med resultatføring, Utlandet, konsernselskap,Utenlandsk valuta i NOK ",0,0,8552000,0,"000",10,90009,0,0,30,0,null,null,null,"09.3.0"]
[]
["Andre ansvarlige lån, Andre, Amortisert kost, Øvrig, Statlig eide aksjeselskaper mv., norske kroner",0,0,8552000,0,"000",52,11200,0,0,10,0,null,null,null,"09.3.0"]
["Andre ansvarlige lån, Andre, Amortisert kost, Øvrig, Kommunale foretak med ubegrenset ansvar, norske kroner",0,0,8552000,0,"000",52,15100,0,0,10,0,null,null,null,"09.3.0"]
["Andre ansvarlige lån, Andre, Amortisert kost, Øvrig, Kommunale aksjeselskaper mv., norske kroner",0,0,8552000,0,"000",52,15200,0,0,10,0,null,null,null,"09.3.0"]
["Andre ansvarlige lån, Andre, Amortisert kost, Øvrig, Private aksjeselskaper mv., norske kroner",0,0,8552000,0,"000",52,21000,0,0,10,0,null,null,null,"09.3.0"]
["Andre ansvarlige lån, Andre, Amortisert kost, Øvrig, Private aksjeselskaper mv., tilknyttede selskaper,norske kroner",0,0,8552000,0,"000",52,21008,0,0,10,0,null,null,null,"09.3.0"]
["Andre ansvarlige lån, Andre, Amortisert kost, Øvrig, Private aksjeselskaper mv., konsern selskap norske kroner",0,0,8552000,0,"000",52,21009,0,0,10,0,null,null,null,"09.3.0"]
["Andre ansvarlige lån, Andre, Amortisert kost, Øvrig, Personlige foretak, norske kroner",0,0,8552000,0,"000",52,23000,0,0,10,0,null,null,null,"09.3.0"]
["Andre ansvarlige lån, Andre, Amortisert kost, Øvrig, Private produsentorienterte organiasjoner uten profittformål, norske kroner",0,0,8552000,0,"000",52,25000,0,0,10,0,null,null,null,"09.3.0"]
["Andre ansvarlige lån, Andre, Amortisert kost, Øvrig, Banker, norske kroner",0,0,8552000,0,"000",52,32000,0,0,10,0,null,null,null,"09.3.0"]
["Andre ansvarlige lån, Andre, Amortisert kost, Øvrig, Banker, konsernbank, norske kroner",0,0,8552000,0,"000",52,32009,0,0,10,0,null,null,null,"09.3.0"]
["Andre ansvarlige lån, Andre, Amortisert kost, Øvrig, Kredittforetak, norske kroner",0,0,8552000,0,"000",52,35000,0,0,10,0,null,null,null,"09.3.0"]
["Andre ansvarlige lån, Andre, Amortisert kost, Øvrig, Finansieringsselskaper, norske kroner",0,0,8552000,0,"000",52,36000,0,0,10,0,null,null,null,"09.3.0"]
["Andre ansvarlige lån, Andre, Amortisert kost, Øvrig, Finansielle holdingselskaper, norske kroner",0,0,8552000,0,"000",52,41000,0,0,10,0,null,null,null,"09.3.0"]
["Andre ansvarlige lån, Andre, Amortisert kost, Øvrig, Finansielle holdingselskaper, konsernselskap,norske kroner",0,0,8552000,0,"000",52,41009,0,0,10,0,null,null,null,"09.3.0"]
["Andre ansvarlige lån, Andre, Amortisert kost, Øvrig, Investeringsselskaper og aktive eierfond/PE-fond, norske kroner",0,0,8552000,0,"000",52,45000,0,0,10,0,null,null,null,"09.3.0"]
["Andre ansvarlige lån, Andre, Amortisert kost, Øvrig, Investeringsselskaper og aktive eierfond/PE-fond, Utenlandsk valuta i NOK",0,0,8552000,0,"000",52,45000,0,0,30,0,null,null,null,"09.3.0"]
["Andre ansvarlige lån, Andre, Amortisert kost, Øvrig, Øvrige finansielle foretak unntatt forsikring, norske kroner",0,0,8552000,0,"000",52,49000,0,0,10,0,null,null,null,"09.3.0"]
["Andre ansvarlige lån, Andre, Amortisert kost, Øvrig, Øvrige finansielle foretak unntatt forsikring, utenlandsk valtuta",0,0,8552000,0,"000",52,49000,0,0,30,0,null,null,null,"09.3.0"]
["Andre ansvarlige lån, Andre, Amortisert kost, Øvrig, Livsforsikringsselskaper og pensjonskasser, norske kroner",0,0,8552000,0,"000",52,55000,0,0,10,0,null,null,null,"09.3.0"]
["Andre ansvarlige lån, Andre, Amortisert kost, Øvrig, Livsforsikringsselskaper og pensjonskasser, tilknyttede selskaper, norske kroner",0,0,8552000,0,"000",52,55008,0,0,10,0,null,null,null,"09.3.0"]
["Andre ansvarlige lån, Andre, Amortisert kost, Øvrig, Livsforsikringsselskaper og pensjonskasser, konsernselskap, norske kroner",0,0,8552000,0,"000",52,55009,0,0,10,0,null,null,null,"09.3.0"]
["Andre ansvarlige lån, Andre, Amortisert kost, Øvrig, Skadeforsikringsselskaper, norske kroner",0,0,8552000,0,"000",52,57000,0,0,10,0,null,null,null,"09.3.0"]
["Andre ansvarlige lån, Andre, Amortisert kost, Øvrig, Skadeforsikringsselskaper, tilknyttede selskaper, norske kroner",0,0,8552000,0,"000",52,57008,0,0,10,0,null,null,null,"09.3.0"]
["Andre ansvarlige lån, Andre, Amortisert kost, Øvrig, Skadeforsikringsselskaper, konsernselskap, norske kroner",0,0,8552000,0,"000",52,57009,0,0,10,0,null,null,null,"09.3.0"]
["Andre ansvarlige lån, Andre, Amortisert kost, Øvrig, Statsforvaltningen, norske kroner",0,0,8552000,0,"000",52,61000,0,0,10,0,null,null,null,"09.3.0"]
["Andre ansvarlige lån, Andre, Amortisert kost, Øvrig, Kommuneforvaltningen, norske kroner",0,0,8552000,0,"000",52,65000,0,0,10,0,null,null,null,"09.3.0"]
["Andre ansvarlige lån, Andre, Amortisert kost, Øvrig, Idelle organisasjoner, norske kroner",0,0,8552000,0,"000",52,70000,0,0,10,0,null,null,null,"09.3.0"]
["Andre ansvarlige lån, Andre, Amortisert kost, Øvrig, Personlig næringsdrivende, norske kroner",0,0,8552000,0,"000",52,82000,0,0,10,0,null,null,null,"09.3.0"]
["Andre ansvarlige lån, Andre, Amortisert kost, Øvrig, Lønnstakere, trygdede mv., norske kroner",0,0,8552000,0,"000",52,85000,0,0,10,0,null,null,null,"09.3.0"]
["Andre ansvarlige lån, Andre, Amortisert kost, Øvrig, Ufordelt sektor, norske kroner",0,0,8552000,0,"000",52,"08000",0,0,10,0,null,null,null,"09.3.0"]
["Andre ansvarlige lån, Andre, Amortisert kost, Øvrig, Utlandet ekskl. tilknyttede- og konsernselskaper, Utenlandsk valuta i NOK",0,0,8552000,0,"000",52,90010,0,0,30,0,null,null,null,"09.3.0"]
["Andre ansvarlige lån, Andre, Amortisert kost, Øvrig, Utlandet, tilknyttede selskaper, Utenlandsk valuta i NOK",0,0,8552000,0,"000",52,90008,0,0,30,0,null,null,null,"09.3.0"]
["Andre ansvarlige lån, Andre, Amortisert kost, Øvrig, Utlandet, konsernselskap,Utenlandsk valuta i NOK ",0,0,8552000,0,"000",52,90009,0,0,30,0,null,null,null,"09.3.0"]
[]
["9. Egenkapital"]
["Selskapskapital, Aksjekapital, Norske sektorer ekskl. tilknyttede - og konsernselskaper",0,0,9921000,0,"000","00","01010",0,0,10,0,null,null,null,"07.1.1"]
["Selskapskapital, Aksjekapital, Norske sektorer i alt, tilknyttede selskaper",0,0,9921000,0,"000","00","01008",0,0,10,0,null,null,null,"07.1.1"]
["Selskapskapital, Aksjekapital, Norske sektorer i alt, konsernselskap",0,0,9921000,0,"000","00","01009",0,0,10,0,null,null,null,"07.1.1"]
["Selskapskapital, Aksjekapital, Utlandet ekskl. tilknyttede og konsernselskaper",0,0,9921000,0,"000","00",90010,0,0,10,0,null,null,null,"07.1.1"]
["Selskapskapital, Aksjekapital, Utlandet, tilknyttede selskaper",0,0,9921000,0,"000","00","90008",0,0,10,0,null,null,null,"07.1.1"]
["Selskapskapital, Aksjekapital, Utlandet, konsernselskap",0,0,9921000,0,"000","00","90009",0,0,10,0,null,null,null,"07.1.1"]
[]
["Selskapskapital, Eierandelskapital, Norge",0,0,9921200,0,"000","00","01000",0,0,10,0,null,null,null,"07.1.1"]
["Selskapskapital, Eierandelkapital, Utlandet",0,0,9921200,0,"000","00",90000,0,0,10,0,null,null,null,"07.1.1"]
[]
["Selskapskapital, Garantifond",0,0,9922000,0,"000","00","00000",0,0,10,0,null,null,null,"07.1.1"]
["Selskapskapital, Egne aksjer",0,0,9923000,0,"000","00","00000",0,0,10,0,null,null,null,"07.1.2"]
["Selskapskapital, Egne egenkapitalbevis",0,0,9923200,0,"000","00","00000",0,0,10,0,null,null,null,"07.1.2"]
[]
["Annen innskutt egenkapital, Overkursfond",0,0,9931000,0,"000","00","00000",0,0,10,0,null,null,null,"07.2.0"]
[]
["Annen innskutt egenkapital, Egenkapitalandel av sammensatte fin. instrumenter o.a. egenkapitalinstr., Norske sektorer ekskl. tilknyttede - og konsernselskaper",0,0,9932500,0,0,"00","01010",0,0,10,0,null,null,null,"07.3.0"]
["Annen innskutt egenkapital, Egenkapitalandel av sammensatte fin. instrumenter o.a. egenkapitalinstr., Norske sektorer i alt, tilknyttede selskaper",0,0,9932500,0,0,"00","01008",0,0,10,0,null,null,null,"07.3.0"]
["Annen innskutt egenkapital, Egenkapitalandel av sammensatte fin. instrumenter o.a. egenkapitalinstr., Norske sektorer i alt, konsernselskap",0,0,9932500,0,0,"00","01009",0,0,10,0,null,null,null,"07.3.0"]
["Annen innskutt egenkapital, Egenkapitalandel av sammensatte fin. instrumenter o.a. egenkapitalinstr., Utlandet ekskl. tilknyttede og konsernselskaper",0,0,9932500,0,0,"00",90010,0,0,10,0,null,null,null,"07.3.0"]
["Annen innskutt egenkapital, Egenkapitalandel av sammensatte fin. instrumenter o.a. egenkapitalinstr., Utlandet, tilknyttede selskaper",0,0,9932500,0,0,"00",90008,0,0,10,0,null,null,null,"07.3.0"]
["Annen innskutt egenkapital, Egenkapitalandel av sammensatte fin. instrumenter o.a. egenkapitalinstr., Utlandet, konsernselskap",0,0,9932500,0,0,"00",90009,0,0,10,0,null,null,null,"07.3.0"]
[]
["Annen innskutt egenkapital, Annen innskutt egenkapital, Norske sektorer ekskl. tilknyttede - og konsernselskaper",0,0,9933000,0,0,"00","01010",0,0,10,0,null,null,null,"07.4.0"]
["Annen innskutt egenkapital, Annen innskutt egenkapital, Norske sektorer i alt, tilknyttede selskaper",0,0,9933000,0,0,"00","01008",0,0,10,0,null,null,null,"07.4.0"]
["Annen innskutt egenkapital, Annen innskutt egenkapital, Norske sektorer i alt, konsernselskap",0,0,9933000,0,0,"00","01009",0,0,10,0,null,null,null,"07.4.0"]
["Annen innskutt egenkapital, Annen innskutt egenkapital, Utlandet ekskl. tilknyttede og konsernselskaper",0,0,9933000,0,0,"00",90010,0,0,10,0,null,null,null,"07.4.0"]
["Annen innskutt egenkapital, Annen innskutt egenkapital, Utlandet, tilknyttede selskaper",0,0,9933000,0,0,"00",90008,0,0,10,0,null,null,null,"07.4.0"]
["Annen innskutt egenkapital, Annen innskutt egenkapital, Utlandet, konsernselskap",0,0,9933000,0,0,"00",90009,0,0,10,0,null,null,null,"07.4.0"]
[]
["Annen innskutt egenkapital, Fondsobligasjonskapital, Norske sektorer ",0,0,9934900,0,0,"00","01000",0,0,10,0,null,null,null,"07.3.0"]
["Annen innskutt egenkapital, Fondsobligasjonskapital, Utlandet",0,0,9934900,0,0,"00","90000",0,0,10,0,null,null,null,"07.3.0"]
[]
["Fond mv., Fond for vurderingsforskjeller",0,0,9961000,0,"000","00","00000",0,0,10,0,null,null,null,"08.1.1"]
["Fond mv., Fond for urealiserte gevinster",0,0,9962000,0,"000","00","00000",0,0,10,0,null,null,null,"08.1.2"]
["Fond mv., Avsetning til naturskadefondet",0,0,9967000,0,"000","00","00000",0,0,10,0,null,null,null,"08.1.3"]
["Fond mv., Avsetning til garantiordningen",0,0,9968000,0,"000","00","00000",0,0,10,0,null,null,null,"08.1.4"]
[]
["Annen opptjent egenkapital, Utbytte/grunnfondsbev.renter siste år",0,0,9981000,0,"000","00","00000",0,0,10,0,null,null,null,"08.2.0"]
["Annen opptjent egenkapital, Renter på fondsobligasjoner siste år",0,0,9984200,0,"000","00","00000",0,0,10,0,null,null,null,"08.2.0"]
["Annen opptjent egenkapital, Konsernbidrag siste år",0,0,9985000,0,"000","00","00000",0,0,10,0,null,null,null,"08.2.0"]
["Annen opptjent egenkapital, Øvrig",0,0,9989000,0,"000","00","00000",0,0,10,0,null,null,null,"08.2.0"]
["Annen opptjent egenkapital, Ikke disponert resultat (netto) (kan være negativ)  - kun kvartal",0,0,9989900,0,"000","00","00000",0,0,10,0,null,null,null,"08.2.0"]

{"sheet":"Rapport 11","index":2,"n_rows":103,"n_cols":16,"rows_kept":103,"cut":false,"hidden":false,"merged":[]}
["11. Tilleggsspesifikasjoner til kvartalsrapporteringen for skadeforsikring:"]
[]
["Datasentralnr. (3 siffer)",null,null,"047"]
["Organisasjonsnr. (9 siffer)",null,null,{"$f":"'Rapport 10'!D4","v":0}]
["Rapport nr. (2 siffer)",null,null,11]
["Periode (år og måned; 6 siffer)",null,null,{"$f":"'Rapport 10'!D6","v":202112}]
[]
[]
["Tekst","Felt0","Tilleggsspesifika-","Objektskode","Sikkerhet","Portefølje","Verdsetting","Sektor","Næring","Land","Valuta","Beløp",null,null,null,"Oppstillings-"]
[null,"Plass","sjonens art","Underobjekt","Risiko",null,null,null,null,null,null,"i 1000 kr",null,null,null,"plan kode"]
[null,null,null,"Løpetid","Omeråde"]
[]
["40. Underspesifikasjoner av balanseposter",null,null,null,null,null,null,null,null,null,null,null," "]
["Rentebærende verdipapirer, Sertifikater. Opprinnelig løpetid: Under ett år, Statlig eide aksjeselskaper mv.. norske kroner",0,40,1400130,0,0,"00",11200,0,0,10,0,null,null,null,"00.0.0"]
["Rentebærende verdipapirer, Sertifikater. Opprinnelig løpetid: Under ett år, Statlig eide aksjeselskaper mv., Utenlandsk valuta i NOK",0,40,1400130,0,0,"00",11200,0,0,30,0,null,null,null,"00.0.0"]
["Rentebærende verdipapirer, Sertifikater. Opprinnelig løpetid: Under ett år, Kommunale foretak med ubegrenset ansvar, norske kroner",0,40,1400130,0,0,"00",15100,0,0,10,0,null,null,null,"00.0.0"]
["Rentebærende verdipapirer, Sertifikater. Opprinnelig løpetid: Under ett år, Kommunale aksjeselskaper mv. norske kroner",0,40,1400130,0,0,"00",15200,0,0,10,0,null,null,null,"00.0.0"]
["Rentebærende verdipapirer, Sertifikater. Opprinnelig løpetid: Under ett år, Private aksjeselskaper mv., norske kroner",0,40,1400130,0,0,"00",21000,0,0,10,0,null,null,null,"00.0.0"]
["Rentebærende verdipapirer, Sertifikater. Opprinnelig løpetid: Under ett år, Private aksjeselskaper mv., Utenlandsk valuta i NOK",0,40,1400130,0,0,"00",21000,0,0,30,0,null,null,null,"00.0.0"]
["Rentebærende verdipapirer, Sertifikater. Opprinnelig løpetid: Under ett år, Personlige foretak, norske kroner",0,40,1400130,0,0,"00",23000,0,0,10,0,null,null,null,"00.0.0"]
["Rentebærende verdipapirer, Sertifikater. Opprinnelig løpetid: Under ett år, Banker, norske kroner",0,40,1400130,0,0,"00",32000,0,0,10,0,null,null,null,"00.0.0"]
["Rentebærende verdipapirer, Sertifikater. Opprinnelig løpetid: Under ett år, Banker, Utenlandsk valuta i NOK",0,40,1400130,0,0,"00",32000,0,0,30,0,null,null,null,"00.0.0"]
["Rentebærende verdipapirer, Sertifikater. Opprinnelig løpetid: Under ett år, Banker, tilknyttet bank, norske kroner",0,40,1400130,0,0,"00",32008,0,0,10,0,null,null,null,"00.0.0"]
["Rentebærende verdipapirer, Sertifikater. Opprinnelig løpetid: Under ett år, Banker, konsernbank, norske kroner",0,40,1400130,0,0,"00",32009,0,0,10,0,null,null,null,"00.0.0"]
["Rentebærende verdipapirer, Sertifikater. Opprinnelig løpetid: Under ett år, Kredittforetak, norske kroner",0,40,1400130,0,0,"00",35000,0,0,10,0,null,null,null,"00.0.0"]
["Rentebærende verdipapirer, Sertifikater. Opprinnelig løpetid: Under ett år, Kredittforetak, Utenlandsk valuta i NOK",0,40,1400130,0,0,"00",35000,0,0,30,0,null,null,null,"00.0.0"]
["Rentebærende verdipapirer, Sertifikater. Opprinnelig løpetid: Under ett år, Finansieringsselskaper, norske kroner",0,40,1400130,0,0,"00",36000,0,0,10,0,null,null,null,"00.0.0"]
["Rentebærende verdipapirer, Sertifikater. Opprinnelig løpetid: Under ett år, Finansieringsselskaper, Utenlandsk valuta i NOK",0,40,1400130,0,0,"00",36000,0,0,30,0,null,null,null,"00.0.0"]
["Rentebærende verdipapirer, Sertifikater. Opprinnelig løpetid: Under ett år, Statlige låneinstitutter mv., norske kroner",0,40,1400130,0,0,"00",39000,0,0,10,0,null,null,null,"00.0.0"]
["Rentebærende verdipapirer, Sertifikater. Opprinnelig løpetid: Under ett år, Finansielle holdingselskaper, norske kroner",0,40,1400130,0,0,"00",41000,0,0,10,0,null,null,null,"00.0.0"]
["Rentebærende verdipapirer, Sertifikater. Opprinnelig løpetid: Under ett år, Finansielle holdingselskaper, tilknyttede selskaper,er, norske kroner",0,40,1400130,0,0,"00",41008,0,0,10,0,null,null,null,"00.0.0"]
["Rentebærende verdipapirer, Sertifikater. Opprinnelig løpetid: Under ett år, Finansielle holdingselskaper, konsernselskap, norske kroner",0,40,1400130,0,0,"00",41009,0,0,10,0,null,null,null,"00.0.0"]
["Rentebærende verdipapirer, Sertifikater. Opprinnelig løpetid: Under ett år, Investeringsselskaper og aktive eierfond/PE-fond, norske kroner",0,40,1400130,0,0,"00",45000,0,0,10,0,null,null,null,"00.0.0"]
["Rentebærende verdipapirer, Sertifikater. Opprinnelig løpetid: Under ett år, Investeringsselskaper og aktive eierfond/PE-fond, tilknyttede selskaper, norske kroner",0,40,1400130,0,0,"00",45008,0,0,10,0,null,null,null,"00.0.0"]
["Rentebærende verdipapirer, Sertifikater. Opprinnelig løpetid: Under ett år, Investeringsselskaper og aktive eierfond/PE-fond, konsernselskap, norske kroner",0,40,1400130,0,0,"00",45009,0,0,10,0,null,null,null,"00.0.0"]
["Rentebærende verdipapirer, Sertifikater. Opprinnelig løpetid: Under ett år, Øvrige finansielle foretatt unntatt forsikring, norske kroner",0,40,1400130,0,0,"00",49000,0,0,10,0,null,null,null,"00.0.0"]
["Rentebærende verdipapirer, Sertifikater. Opprinnelig løpetid: Under ett år, Øvrige finansielle foretatt unntatt forsikring, tilknyttede selskaper, norske kroner",0,40,1400130,0,0,"00",49008,0,0,10,0,null,null,null,"00.0.0"]
["Rentebærende verdipapirer, Sertifikater. Opprinnelig løpetid: Under ett år, Øvrige finansielle foretatt unntatt forsikring, konsernselskap, norske kroner",0,40,1400130,0,0,"00",49009,0,0,10,0,null,null,null,"00.0.0"]
["Rentebærende verdipapirer, Sertifikater. Opprinnelig løpetid: Under ett år, Livsforsikringsselskaper og pensjonskasser, norske kroner",0,40,1400130,0,0,"00",55000,0,0,10,0,null,null,null,"00.0.0"]
["Rentebærende verdipapirer, Sertifikater. Opprinnelig løpetid: Under ett år, Livsforsikringsselskaper og pensjonskasser, tilknyttet forsikringsselskap, norske kroner",0,40,1400130,0,0,"00",55008,0,0,10,0,null,null,null,"00.0.0"]
["Rentebærende verdipapirer, Sertifikater. Opprinnelig løpetid: Under ett år, Livsforsikringsselskaper og pensjonsaksse, konsernlivsforsikringsselskap, norske kroner",0,40,1400130,0,0,"00",55009,0,0,10,0,null,null,null,"00.0.0"]
["Rentebærende verdipapirer, Sertifikater. Opprinnelig løpetid: Under ett år, Skadeforsikringsselskaper, norske kroner",0,40,1400130,0,0,"00",57000,0,0,10,0,null,null,null,"00.0.0"]
["Rentebærende verdipapirer, Sertifikater. Opprinnelig løpetid: Under ett år, Skadeforsikringsselskaper, tilknyttet forsikringsselskap, norske kroner",0,40,1400130,0,0,"00",57008,0,0,10,0,null,null,null,"00.0.0"]
["Rentebærende verdipapirer, Sertifikater. Opprinnelig løpetid: Under ett år, Skadeforsikringsselskaper, konsernskadeselskap, norske kroner",0,40,1400130,0,0,"00",57009,0,0,10,0,null,null,null,"00.0.0"]
["Rentebærende verdipapirer, Sertifikater. Opprinnelig løpetid: Under ett år, Stats- og trygdeforvaltningen, norske kroner",0,40,1400130,0,0,"00",61000,0,0,10,0,null,null,null,"00.0.0"]
["Rentebærende verdipapirer, Sertifikater. Opprinnelig løpetid: Under ett år, Kommuneforvaltningen, norske kroner",0,40,1400130,0,0,"00",65000,0,0,10,0,null,null,null,"00.0.0"]
["Rentebærende verdipapirer, Sertifikater. Opprinnelig løpetid: Under ett år, Ufordelt sektor, norske kroner",0,40,1400130,0,0,"00","08000",0,0,10,0,null,null,null,"00.0.0"]
["Rentebærende verdipapirer, Sertifikater. Opprinnelig løpetid: Under ett år, Utlandet, norske kroner",0,40,1400130,0,0,"00",90000,0,0,10,0,null,null,null,"00.0.0"]
["Rentebærende verdipapirer, Sertifikater. Opprinnelig løpetid: Under ett år, Utlandet, Utenlandsk valuta i NOK",0,40,1400130,0,0,"00",90000,0,0,30,0,null,null,null,"00.0.0"]
[]
["Rentebærende verdipapirer,  Stats og statsgaranterte, Virkelig verdi med resultatføring, Norske sektorer i alt",0,40,1400300,0,0,"10","01000",0,0,90,0,null,null,null,"00.0.0"]
["Rentebærende verdipapirer,  Stats og statsgaranterte, Virkelig verdi med resultatføring, Utlandet",0,40,1400300,0,0,"10",90000,0,0,90,0,null,null,null,"00.0.0"]
[]
["Rentebærende verdipapirer,  Stats og statsgaranterte, Amortisert kost, holdes til forfall, Norske sektorer i alt",0,40,1400300,0,0,"51","01000",0,0,90,0,null,null,null,"00.0.0"]
["Rentebærende verdipapirer,  Stats og statsgaranterte, Amortisert kost, holdes til forfall, Utlandet",0,40,1400300,0,0,"51",90000,0,0,90,0,null,null,null,"00.0.0"]
[]
["Rentebærende verdipapirer,  Stats og statsgaranterte, Amortisert kost, øvrige, Norske sektorer i alt",0,40,1400300,0,0,"52","01000",0,0,90,0,null,null,null,"00.0.0"]
["Rentebærende verdipapirer,  Stats og statsgaranterte, Amortisert kost, øvrige, Utlandet",0,40,1400300,0,0,"52",90000,0,0,90,0,null,null,null,"00.0.0"]
[null,0]
["Finansielle derivater - Valutarelaterte kontrakter",0,40,1881000,0,0,"00","00000",0,0,90,0,null,null,null,"00.0.0"]
["Finansielle derivater - Renterelaterte kontrakter",0,40,1883000,0,0,"00","00000",0,0,90,0,null,null,null,"00.0.0"]
["Finansielle derivater - Egenkapitalrelaterte kontrakter",0,40,1885000,0,0,"00","00000",0,0,90,0,null,null,null,"00.0.0"]
["Finansielle derivater - Varerelaterte kontrakter",0,40,1887000,0,0,"00","00000",0,0,90,0,null,null,null,"00.0.0"]
["Finansielle derivater - Andre kontrakter",0,40,1889000,0,0,"00","00000",0,0,90,0,null,null,null,"00.0.0"]
[]
["Utlån - Tapsnedskrivinger,  Statlige eide aksjeselskaper mv., norske kroner",0,40,2556000,0,0,"00",11200,0,0,10,0,null,null,null,"00.0.0"]
["Utlån - Tapsnedskrivinger,  Kommunale foretak med ubegrenset ansvar, norske kroner",0,40,2556000,0,0,"00",15100,0,0,10,0,null,null,null,"00.0.0"]
["Utlån - Tapsnedskrivinger,  Kommunale aksjeselskaper mv., norske kroner",0,40,2556000,0,0,"00",15200,0,0,10,0,null,null,null,"00.0.0"]
["Utlån - Tapsnedskrivinger,  Private aksjeselskaper mv., norske kroner",0,40,2556000,0,0,"00",21000,0,0,10,0,null,null,null,"00.0.0"]
["Utlån - Tapsnedskrivinger,  Personlige foretak, norske kroner",0,40,2556000,0,0,"00",23000,0,0,10,0,null,null,null,"00.0.0"]
["Utlån - Tapsnedskrivinger,  Private produsentorienterte organisasjoner uten profittformål, norske kroner",0,40,2556000,0,0,"00",25000,0,0,10,0,null,null,null,"00.0.0"]
["Utlån - Tapsnedskrivinger,  Banker, norske kroner",0,40,2556000,0,0,"00",32000,0,0,10,0,null,null,null,"00.0.0"]
["Utlån - Tapsnedskrivinger,  Banker, konsernbank, norske kroner",0,40,2556000,0,0,"00",32009,0,0,10,0,null,null,null,"00.0.0"]
["Utlån - Tapsnedskrivinger,  Kredittforetak, norske kroner",0,40,2556000,0,0,"00",35000,0,0,10,0,null,null,null,"00.0.0"]
["Utlån - Tapsnedskrivinger,  Finansieringsselskap, norske kroner",0,40,2556000,0,0,"00",36000,0,0,10,0,null,null,null,"00.0.0"]
["Utlån - Tapsnedskrivinger,  Statlige låneinstitutter mv., norske kroner",0,40,2556000,0,0,"00",39000,0,0,10,0,null,null,null,"00.0.0"]
["Utlån - Tapsnedskrivinger,  Finansielle holdingselskaper, norske kroner",0,40,2556000,0,0,"00",41000,0,0,10,0,null,null,null,"00.0.0"]
["Utlån - Tapsnedskrivinger,  Finansielle holdingselskaper, konsernselskap, norske kroner",0,40,2556000,0,0,"00",41009,0,0,10,0,null,null,null,"00.0.0"]
["Utlån - Tapsnedskrivinger,  Investeringsselskaper og aktive eierfond/PE-fond, norske kroner",0,40,2556000,0,0,"00",45000,0,0,10,0,null,null,null,"00.0.0"]
["Utlån - Tapsnedskrivinger,  Andre finansielle foretak, konsernselskap, norske kroner",0,40,2556000,0,0,"00",45009,0,0,10,0,null,null,null,"00.0.0"]
["Utlån - Tapsnedskrivinger,  Øvrige finansielle foretak unntatt forsikring, norske kroner",0,40,2556000,0,0,"00",49000,0,0,10,0,null,null,null,"00.0.0"]
["Utlån - Tapsnedskrivinger,  Livsforsikringsselskaper og pensjonskasser, norske kroner",0,40,2556000,0,0,"00",55000,0,0,10,0,null,null,null,"00.0.0"]
["Utlån - Tapsnedskrivinger,  Skadeforsikringsselskaper, norske kroner",0,40,2556000,0,0,"00",57000,0,0,10,0,null,null,null,"00.0.0"]
["Utlån - Tapsnedskrivinger,  Stats- og trygdeforvaltningen, norske kroner",0,40,2556000,0,0,"00",61000,0,0,10,0,null,null,null,"00.0.0"]
["Utlån - Tapsnedskrivinger,  Kommuneforvaltningen, norske kroner",0,40,2556000,0,0,"00",65000,0,0,10,0,null,null,null,"00.0.0"]
["Utlån - Tapsnedskrivinger,  Ideelle organisasjoner, norske kroner",0,40,2556000,0,0,"00",70000,0,0,10,0,null,null,null,"00.0.0"]
["Utlån - Tapsnedskrivinger,  Personlig næringsdrivende, norske kroner",0,40,2556000,0,0,"00",82000,0,0,10,0,null,null,null,"00.0.0"]
["Utlån - Tapsnedskrivinger,  Lønnstakere mv., norske kroner",0,40,2556000,0,0,"00",85000,0,0,10,0,null,null,null,"00.0.0"]
["Utlån - Tapsnedskrivinger,  Ufordelt sektor, norske kroner",0,40,2556000,0,0,"00","08000",0,0,10,0,null,null,null,"00.0.0"]
["Utlån - Tapsnedskrivinger,  Utlandet, Utenlandsk valuta i NOK",0,40,2556000,0,0,"00",90000,0,0,30,0,null,null,null,"00.0.0"]
[]
["Finansielle derivater - Valutarelaterte kontrakter",0,40,7881000,0,0,"00","00000",0,0,90,0,null,null,null,"00.0.0"]
["Finansielle derivater - Renterelaterte kontrakter",0,40,7883000,0,0,"00","00000",0,0,90,0,null,null,null,"00.0.0"]
["Finansielle derivater - Egenkapitalrelaterte kontrakter",0,40,7885000,0,0,"00","00000",0,0,90,0,null,null,null,"00.0.0"]
["Finansielle derivater - Varerelaterte kontrakter",0,40,7887000,0,0,"00","00000",0,0,90,0,null,null,null,"00.0.0"]
["Finansielle derivater - Andre kontrakter",0,40,7889000,0,0,"00","00000",0,0,90,0,null,null,null,"00.0.0"]
[]
["91. Resultatposter i oppstillingsplanen for SKADEFORSIKRING"]
["Forsikringsrelaterte driftskostnader - Salgskostnader",0,91,"0061000",0,0,"00","00000",0,0,90,0,null,null,null,"04.1.0"]
["Forsikringsrelaterte driftskostnader - Endring i forskuddsbetalte direkte salgskostnader",0,91,"0062000",0,0,"00","00000",0,0,90,0,null,null,null,"04.2.0"]
["Forsikringsrelaterte driftskostnader - Forsikringsrelaterte administrasjonskostnader inkl. provisjoner for mottatt gjenforsikring",0,91,"0063000",0,0,"00","00000",0,0,90,0,null,null,null,"04.3.0"]
[]
["Adminsitrasjonskostnader knyttet til investeringer, herunder rentekostnader",0,91,"0116000",0,0,"00","00000",0,0,90,0,null,null,null,"08.6.0"]

{"sheet":"Rapport 21","index":3,"n_rows":297,"n_cols":16,"rows_kept":297,"cut":false,"hidden":false,"merged":[]}
["21. Kvartalsresultat for skadeforsikring:"]
[]
["Datasentralnr. (3 siffer)",null,null,"047",null,null,null,null,null,null,null,"Kontroll av sum inntekter og kostnader:"]
["Organisasjonsnr. (9 siffer)",null,null,{"$f":"'Rapport 11'!D4","v":0},null,null,null,null,null,null,null,"Sum inntekter og OCI:",{"$f":"SUM(L16:L201)+SUM(L281:L293)","v":0}]
["Rapport nr.(2 siffer)",null,null,21,null,null,null,null,null,null,null,"Sum kostnader og totalresultatet:",{"$f":"SUM(L206:L278)+SUM(L297)","v":0}]
["Periode (år; 6 siffer)",null,null,{"$f":"'Rapport 11'!D6","v":202112},null,null,null,null,null,null,null,"=Totalresultat (skal gå i 0):",{"$f":"M4-M5","v":0}]
[]
[]
["Tekst","Felt0","Inntektsart","Objektskode","Sikkerhet","Portefølje","Verdsetting","Sektor","Næring","Land","Valuta","Beløp",null,null,null,"Oppstillings-"]
[null,null,"Kostnadsart","Underobjekt","Risiko",null,null,null,null,null,null,"i 1000 kr",null,null,null,"plan kode"]
[null,null,null,"Løpetid","Omeråde"]
[]
["INNTEKTER:"]
[]
["1.0 Premieinntekter for SKADEFORSIKRINGSSELSKAPER"]
["Premieinntekter f.e.r., Forfalte bruttopremier, Norske sektorer i alt",0,105,"0100000","000000","000","00","01000",0,0,90,0,null,null,null,"01.1.0"]
["Premieinntekter f.e.r., Forfalte bruttopremier, Utlandet",0,105,"0100000","000000","000","00","90000",0,0,90,0,null,null,null,"01.1.0"]
["Premieinntekter f.e.r., Avgitte gjenforsikringspremier, (negativt fortegn hvis kostnad), Norske sektorer i alt",0,105,"0200000","000000","000","00","01000",0,0,90,0,null,null,null,"01.2.0"]
["Premieinntekter f.e.r., Avgitte gjenforsikringspremier, (negativt fortegn hvis kostnad), Utlandet",0,105,"0200000","000000","000","00","90000",0,0,90,0,null,null,null,"01.2.0"]
["Premieinntekter f.e.r., Endring i avsetning for ikke opptjent bruttopremie, (negativt fortegn hvis kostnad)",0,105,"0300000","000000","000","00","00000",0,0,90,0,null,null,null,"01.1.0"]
["Premieinntekter f.e.r., Endring i gjenforsikringsandel av ikke opptjent premie, (negativt fortegn hvis kostnad)",0,105,"0400000","000000","000","00","00000",0,0,90,0,null,null,null,"01.2.0"]
[]
["1.1 - 1.6 Renteinntekter, utbytte, verdiendringer og netto realisert gevinst/tap",null,null,null,null,null,null,null,null,null," "]
["Renteinntekter mv., Bankinnskudd, Driftskonti, Norske sektorer i alt ekskl. tilknyttede - og konsernselskap",0,110,1210010,"000000","000","00","01010",0,0,90,0,null,null,null,"09.0.0"]
["Renteinntekter mv., Bankinnskudd, Driftskonti, Norske sektorer i alt, Tilknyttede selskaper",0,110,1210010,"000000","000","00","01008",0,0,90,0,null,null,null,"09.0.0"]
["Renteinntekter mv., Bankinnskudd, Driftskonti, Norske sektorer i alt, Konsernselskap",0,110,1210010,"000000","000","00","01009",0,0,90,0,null,null,null,"09.0.0"]
["Renteinntekter mv., Bankinnskudd, Driftskonti, Utlandet, ",0,110,1210010,"000000","000","00",90010,0,0,90,0,null,null,null,"09.0.0"]
["Renteinntekter mv., Bankinnskudd, Driftskonti, Utlandet, Tilknyttede selskaper",0,110,1210010,"000000","000","00",90008,0,0,90,0,null,null,null,"09.0.0"]
["Renteinntekter mv., Bankinnskudd, Driftskonti, Utlandet, Konsernselskap",0,110,1210010,"000000","000","00",90009,0,0,90,0,null,null,null,"09.0.0"]
[]
["Renteinntekter mv., Bankinnskudd, Plasseringskonti, Norske sektorer i alt ekskl. tilknyttede - og konsernselskap",0,110,1210013,"000000","000","00","01010",0,0,90,0,null,null,null,"08.2.0"]
["Renteinntekter mv., Bankinnskudd, Plasseringskonti, Norske sektorer i alt, Tilknyttede selskaper",0,110,1210013,"000000","000","00","01008",0,0,90,0,null,null,null,"08.1.0"]
["Renteinntekter mv., Bankinnskudd, Plasseringskonti, Norske sektorer i alt, Konsernselskap",0,110,1210013,"000000","000","00","01009",0,0,90,0,null,null,null,"08.1.0"]
["Renteinntekter mv., Bankinnskudd, Plasseringskonti, Utlandet, ",0,110,1210013,"000000","000","00",90010,0,0,90,0,null,null,null,"08.2.0"]
["Renteinntekter mv., Bankinnskudd, Plasseringskonti, Utlandet, Tilknyttede selskaper",0,110,1210013,"000000","000","00",90008,0,0,90,0,null,null,null,"08.1.0"]
["Renteinntekter mv., Bankinnskudd, Plasseringskonti, Utlandet, Konsernselskap",0,110,1210013,"000000","000","00",90009,0,0,90,0,null,null,null,"08.1.0"]
[]
["Renteinntekter mv., Rentebærende verdipapirer, Norske sektorer i alt ekskl. tilknyttede - og konsernselskap",0,110,1400000,"000000","000","00","01010",0,0,90,0,null,null,null,"08.2.0"]
["Renteinntekter mv., Rentebærende verdipapirer, Norske sektorer i alt, Tilknyttede selskaper",0,110,1400000,"000000","000","00","01008",0,0,90,0,null,null,null,"08.1.0"]
["Renteinntekter mv., Rentebærende verdipapirer, Norske sektorer i alt, Konsernselskap",0,110,1400000,"000000","000","00","01009",0,0,90,0,null,null,null,"08.1.0"]
["Renteinntekter mv., Rentebærende verdipapirer, Utlandet",0,110,1400000,"000000","000","00",90010,0,0,90,0,null,null,null,"08.2.0"]
["Renteinntekter mv., Rentebærende verdipapirer, Utlandet, Tilknyttede selskaper",0,110,1400000,"000000","000","00",90008,0,0,90,0,null,null,null,"08.1.0"]
["Renteinntekter mv., Rentebærende verdipapirer, Utlandet, Konsernselskap",0,110,1400000,"000000","000","00",90009,0,0,90,0,null,null,null,"08.1.0"]
[]
["Renteinntekter mv., Utlån, Norske sektorer i alt ekskl. tilknyttede - og konsernselskap",0,110,2550000,"000000","000","00","01010",0,0,90,0,null,null,null,"08.2.0"]
["Renteinntekter mv., Utlån, Norske sektorer i alt, Tilknyttede selskaper",0,110,2550000,"000000","000","00","01008",0,0,90,0,null,null,null,"08.1.0"]
["Renteinntekter mv., Utlån, Norske sektorer i alt, Konsernselskap",0,110,2550000,"000000","000","00","01009",0,0,90,0,null,null,null,"08.1.0"]
["Renteinntekter mv., Utlån, Utlandet",0,110,2550000,"000000","000","00",90010,0,0,90,0,null,null,null,"08.2.0"]
["Renteinntekter mv., Utlån, Utlandet, Tilknyttede selskaper",0,110,2550000,"000000","000","00",90008,0,0,90,0,null,null,null,"08.1.0"]
["Renteinntekter mv, Utlån, Utlandet, Konsernselskap",0,110,2550000,"000000","000","00",90009,0,0,90,0,null,null,null,"08.1.0"]
[]
["Renteinntekter mv., Finansielle derivater, Norske sektorer i alt",0,110,"0880000","000000","000","00","01000",0,0,90,0,null,null,null,"08.2.0"]
["Renteinntekter mv., Finansielle derivater, Utlandet",0,110,"0880000","000000","000","00","90000",0,0,90,0,null,null,null,"08.2.0"]
[]
["Renteinntekter mv., Andre finansielle eiendeler, Norske sektorer i alt ekskl. tilknyttede - og konsernselskap",0,110,"0910000","000000","000","00","01010",0,0,90,0,null,null,null,"08.2.0"]
["Renteinntekter mv., Andre finansielle eiendeler, Norske sektorer i alt, Tilknyttede selskaper",0,110,"0910000","000000","000","00","01008",0,0,90,0,null,null,null,"08.1.0"]
["Renteinntekter mv., Andre finansielle eiendeler, Norske sektorer i alt, Konsernselskap",0,110,"0910000","000000","000","00","01009",0,0,90,0,null,null,null,"08.1.0"]
["Renteinntekter mv., Andre finansielle eiendeler, Utlandet",0,110,"0910000","000000","000","00",90010,0,0,90,0,null,null,null,"08.2.0"]
["Renteinntekter mv., Andre finansielle eiendeler, Utlandet, Tilknyttede selskaper",0,110,"0910000","000000","000","00",90008,0,0,90,0,null,null,null,"08.1.0"]
["Renteinntekter mv, Andre finansielle eiendeler, Utlandet, Konsernselskap",0,110,"0910000","000000","000","00",90009,0,0,90,0,null,null,null,"08.1.0"]
[]
["Renteinntekter mv., Forsikringsrelaterte renteinntekter, Norske sektorer i alt",0,110,"0940000","000000","000","00","01000",0,0,90,0,null,null,null,"09.0.0"]
["Renteinntekter mv., Forsikringsrelaterte renteinntekter, Utlandet",0,110,"0940000","000000","000","00","90000",0,0,90,0,null,null,null,"09.0.0"]
[]
["Utbytte og andel av over-/underskudd, Aksjer, andeler og egenkapitalbevis, Obligasjons- og pengemarkedsfond, renter av andeler, Norske sektorer i alt ekskl. tilknyttede - og konsernselskap",0,135,"1361000","000000","000","00","01010",0,0,90,0,null,null,null,"08.2.0"]
["Utbytte og andel av over-/underskudd, Aksjer, andeler og egenkapitalbevis, Obligasjons- og pengemarkedsfond, renter av andeler, Norske sektorer i alt, Tilknyttede selskaper",0,135,"1361000","000000","000","00","01008",0,0,90,0,null,null,null,"08.1.0"]
["Utbytte og andel av over-/underskudd, Aksjer, andeler og egenkapitalbevis, Obligasjons- og pengemarkedsfond, renter av andeler, Norske sektorer i alt, Konsernselskap",0,135,"1361000","000000","000","00","01009",0,0,90,0,null,null,null,"08.1.0"]
["Utbytte og andel av over-/underskudd, Aksjer, andeler og egenkapitalbevis, Obligasjons- og pengemarkedsfond, renter av andeler, Utlandet",0,135,"1361000","000000","000","00",90010,0,0,90,0,null,null,null,"08.2.0"]
["Utbytte og andel av over-/underskudd, Aksjer, andeler og egenkapitalbevis, Obligasjons- og pengemarkedsfond, renter av andeler, Utlandet, Tilknyttede selskaper",0,135,"1361000","000000","000","00",90008,0,0,90,0,null,null,null,"08.1.0"]
["Utbytte og andel av over-/underskudd, Aksjer, andeler og egenkapitalbevis, Obligasjons- og pengemarkedsfond, renter av andeler, egenkapitalbevis, Utlandet, Konsernselskap",0,135,"1361000","000000","000","00",90009,0,0,90,0,null,null,null,"08.1.0"]
[]
["Utbytte og andel av over-/underskudd, Aksjer, andeler og egenkapitalbevis, Eiendomsselskaper, utbytte og konsernbidrag, Norske sektorer i alt ekskl. tilknyttede - og konsernselskap",0,135,"1362000","000000","000","00","01010",0,0,90,0,null,null,null,"08.2.0"]
["Utbytte og andel av over-/underskudd, Aksjer, andeler og egenkapitalbevis, Eiendomsselskaper, utbytte og konsernbidrag, Norske sektorer i alt, Tilknyttede selskaper",0,135,"1362000","000000","000","00","01008",0,0,90,0,null,null,null,"08.1.0"]
["Utbytte og andel av over-/underskudd, Aksjer, andeler og egenkapitalbevis, Eiendomsselskaper, utbytte og konsernbidrag, Norske sektorer i alt, Konsernselskap",0,135,"1362000","000000","000","00","01009",0,0,90,0,null,null,null,"08.1.0"]
["Utbytte og andel av over-/underskudd, Aksjer, andeler og egenkapitalbevis, Eiendomsselskaper, utbytte og konsernbidrag, Utlandet",0,135,"1362000","000000","000","00",90010,0,0,90,0,null,null,null,"08.2.0"]
["Utbytte og andel av over-/underskudd, Aksjer, andeler og egenkapitalbevis, Eiendomsselskaper, utbytte og konsernbidrag, Utlandet, Tilknyttede selskaper",0,135,"1362000","000000","000","00",90008,0,0,90,0,null,null,null,"08.1.0"]
["Utbytte og andel av over-/underskudd, Aksjer, andeler og egenkapitalbevis, Eiendomsselskaper, utbytte og konsernbidrag, Utlandet, Konsernselskap",0,135,"1362000","000000","000","00",90009,0,0,90,0,null,null,null,"08.1.0"]
[]
["Utbytte og andel av over-/underskudd, Aksjer, andeler og egenkapitalbevis, Resultatandel, egenkap.met. (kan være negativ), Norske sektorer i alt ekskl. tilknyttede - og konsernselskap",0,135,"1367000","000000","000","00","01010",0,0,90,0,null,null,null,"08.1.0"]
["Utbytte og andel av over-/underskudd, Aksjer, andeler og egenkapitalbevis, Resultatandel, egenkap.met. (kan være negativ), Norske sektorer i alt, Tilknyttede selskaper",0,135,"1367000","000000","000","00","01008",0,0,90,0,null,null,null,"08.1.0"]
["Utbytte og andel av over-/underskudd, Aksjer, andeler og egenkapitalbevis, Resultatandel, egenkap.met. (kan være negativ), Norske sektorer i alt, Konsernselskap",0,135,"1367000","000000","000","00","01009",0,0,90,0,null,null,null,"08.1.0"]
["Utbytte og andel av over-/underskudd, Aksjer, andeler og egenkapitalbevis, Resultatandel, egenkap.met. (kan være negativ), Utlandet",0,135,"1367000","000000","000","00",90010,0,0,90,0,null,null,null,"08.1.0"]
["Utbytte og andel av over-/underskudd, Aksjer, andeler og egenkapitalbevis, Resultatandel, egenkap.met. (kan være negativ), Utlandet, Tilknyttede selskaper",0,135,"1367000","000000","000","00",90008,0,0,90,0,null,null,null,"08.1.0"]
["Utbytte og andel av over-/underskudd, Aksjer, andeler og egenkapitalbevis, Resultatandel, egenkap.met. (kan være negativ), Utlandet, Konsernselskap",0,135,"1367000","000000","000","00",90009,0,0,90,0,null,null,null,"08.1.0"]
[]
["Utbytte og andel av over-/underskudd, Aksjer, andeler og egenkapitalbevis, Andre aksjer, utbytte og konsernbidrag, Norske sektorer i alt ekskl. tilknyttede - og konsernselskap",0,135,"1369000","000000","000","00","01010",0,0,90,0,null,null,null,"08.2.0"]
["Utbytte og andel av over-/underskudd, Aksjer, andeler og egenkapitalbevis, Andre aksjer, utbytte og konsernbidrag, Norske sektorer i alt, Tilknyttede selskaper",0,135,"1369000","000000","000","00","01008",0,0,90,0,null,null,null,"08.1.0"]
["Utbytte og andel av over-/underskudd, Aksjer, andeler og egenkapitalbevis, Andre aksjer, utbytte og konsernbidrag, Norske sektorer i alt, Konsernselskap",0,135,"1369000","000000","000","00","01009",0,0,90,0,null,null,null,"08.1.0"]
["Utbytte og andel av over-/underskudd, Aksjer, andeler og egenkapitalbevis, Andre aksjer, utbytte og konsernbidrag, Utlandet",0,135,"1369000","000000","000","00",90010,0,0,90,0,null,null,null,"08.2.0"]
["Utbytte og andel av over-/underskudd, Aksjer, andeler og egenkapitalbevis, Andre aksjer, utbytte og konsernbidrag, Utlandet, Tilknyttede selskaper",0,135,"1369000","000000","000","00",90008,0,0,90,0,null,null,null,"08.1.0"]
["Utbytte og andel av over-/underskudd, Aksjer, andeler og egenkapitalbevis, Andre aksjer, utbytte og konsernbidrag, Utlandet, Konsernselskap",0,135,"1369000","000000","000","00",90009,0,0,90,0,null,null,null,"08.1.0"]
[]
["Utbytte og andel av over-/underskudd, Andre verdipapirer, Norske sektorer i alt ekskl. tilknyttede - og konsernselskap",0,135,"1890000","000000","000","00","01010",0,0,90,0,null,null,null,"08.2.0"]
["Utbytte og andel av over-/underskudd, Andre verdipapirer, Norske sektorer i alt, Tilknyttede selskaper",0,135,"1890000","000000","000","00","01008",0,0,90,0,null,null,null,"08.2.0"]
["Utbytte og andel av over-/underskudd, Andre verdipapirer, Norske sektorer i alt, Konsernselskap",0,135,"1890000","000000","000","00","01009",0,0,90,0,null,null,null,"08.2.0"]
["Utbytte og andel av over-/underskudd, Andre verdipapirer, Utlandet",0,135,"1890000","000000","000","00",90010,0,0,90,0,null,null,null,"08.2.0"]
["Utbytte og andel av over-/underskudd, Andre verdipapirer, Utlandet, Tilknyttede selskaper",0,135,"1890000","000000","000","00",90008,0,0,90,0,null,null,null,"08.2.0"]
["Utbytte og andel av over-/underskudd, Andre verdipapirer, Utlandet, Konsernselskap",0,135,"1890000","000000","000","00",90009,0,0,90,0,null,null,null,"08.2.0"]
[]
["Netto verdiendringer, Aksjer, andeler og egenkapitalbevis, Obligasjons-/pengemarkedsfond, verdiendringer, Norske sektorer i alt",0,160,"1361000","000000","000","00","01000",0,0,90,0,null,null,null,"08.4.0"]
["Netto verdiendringer, Aksjer, andeler og egenkapitalbevis, Obligasjons-/pengemarkedsfond, verdiendringer, Utlandet",0,160,"1361000","000000","000","00",90000,0,0,90,0,null,null,null,"08.4.0"]
[]
["Netto verdiendringer, Aksjer, andeler og egenkapitalbevis, Eiendomsselskaper/-fond, verdiendringer i aksjer og andeler, Tilknyttede selskaper, Norge i alt",0,160,"1362000","000000","000","00","01008",0,0,90,0,null,null,null,"08.1.0"]
["Netto verdiendringer, Aksjer, andeler og egenkapitalbevis, Eiendomsselskaper/-fond, verdiendringer i aksjer og andeler, Konsernselskaper, Norge i alt",0,160,"1362000","000000","000","00","01009",0,0,90,0,null,null,null,"08.1.0"]
["Netto verdiendringer, Aksjer, andeler og egenkapitalbevis, Eiendomsselskaper/-fond, verdiendringer i aksjer og andeler, Andre sektorer, Norge i alt",0,160,"1362000","000000","000","00","01010",0,0,90,0,null,null,null,"08.4.0"]
["Netto verdiendringer, Aksjer, andeler og egenkapitalbevis, Eiendomsselskaper/-fond, verdiendringer i aksjer og andeler, Tilknyttede selskaper, Utlandet i altUtlandet",0,160,"1362000","000000","000","00","90008",0,0,90,0,null,null,null,"08.1.0"]
["Netto verdiendringer, Aksjer, andeler og egenkapitalbevis, Eiendomsselskaper/-fond, verdiendringer i aksjer og andeler, Konsernselskaper, Utlandet i alt",0,160,"1362000","000000","000","00","90009",0,0,90,0,null,null,null,"08.1.0"]
["Netto verdiendringer, Aksjer, andeler og egenkapitalbevis, Eiendomsselskaper/-fond, verdiendringer i aksjer og andeler, Andre sektorer, Utlandet i alt",0,160,"1362000","000000","000","00","90010",0,0,90,0,null,null,null,"08.4.0"]
[]
["Netto verdiendringer, Aksjer, andeler og egenkapitalbevis, Andre aksjer og fond,verdiendringer, Tilknyttede selskaper, Norge i alt",0,160,"1369000","000000","000","00","01008",0,0,90,0,null,null,null,"08.1.0"]
["Netto verdiendringer, Aksjer, andeler og egenkapitalbevis, Andre aksjer og fond,verdiendringer, Konsernselskaper, Norge i alt",0,160,"1369000","000000","000","00","01009",0,0,90,0,null,null,null,"08.1.0"]
["Netto verdiendringer, Aksjer, andeler og egenkapitalbevis, Andre aksjer og fond,verdiendringer, Andre sektorer, Norge i alt",0,160,"1369000","000000","000","00","01010",0,0,90,0,null,null,null,"08.4.0"]
["Netto verdiendringer, Aksjer, andeler og egenkapitalbevis, Andre aksjer og fond,verdiendringer, Tilknyttede selskaper, Utlandet i altUtlandet",0,160,"1369000","000000","000","00","90008",0,0,90,0,null,null,null,"08.1.0"]
["Netto verdiendringer, Aksjer, andeler og egenkapitalbevis, Andre aksjer og fond,verdiendringer, Konsernselskaper, Utlandet i alt",0,160,"1369000","000000","000","00","90009",0,0,90,0,null,null,null,"08.1.0"]
["Netto verdiendringer, Aksjer, andeler og egenkapitalbevis, Andre aksjer og fond,verdiendringer, Andre sektorer, Utlandet i alt",0,160,"1369000","000000","000","00","90010",0,0,90,0,null,null,null,"08.4.0"]
[]
["Netto verdiendringer, Rentebærende verdipapirer, Norske sektorer i alt",0,160,"1400000","000000","000","00","01000",0,0,90,0,null,null,null,"08.4.0"]
["Netto verdiendringer, Rentebærende verdipapirer, Utlandet",0,160,"1400000","000000","000","00",90000,0,0,90,0,null,null,null,"08.4.0"]
[]
["Netto verdiendringer, Utlån, Norske sektorer i alt",0,160,2550000,"000000","000","00","01000",0,0,90,0,null,null,null,"08.4.0"]
["Netto verdiendringer, Utlån, Utlandet",0,160,2550000,"000000","000","00",90000,0,0,90,0,null,null,null,"08.4.0"]
[]
["Netto verdiendringer, Immatrielle eiendeler, Positive verdiendringer, Norske sektorer i alt",0,160,4851000,"000000","000","00","01000",0,0,90,0,null,null,null,"09.0.0"]
["Netto verdiendringer, Immatrielle eiendeler, Positive verdiendringer, Utlandet",0,160,4851000,"000000","000","00",90000,0,0,90,0,null,null,null,"09.0.0"]
[]
["Netto verdiendringer, Immatrielle eiendeler, Negative verdiendringer, Norske sektorer i alt",0,160,4852000,"000000","000","00","01000",0,0,90,0,null,null,null,"10.0.0"]
["Netto verdiendringer, Immatrielle eiendeler, Negative verdiendringer, Utlandet",0,160,4852000,"000000","000","00",90000,0,0,90,0,null,null,null,"10.0.0"]
[]
["Netto verdiendringer, Bygninger og annen fast eiendom, Norske sektorer i alt",0,160,5860000,"000000","000","00","01000",0,0,90,0,null,null,null,"08.4.0"]
["Netto verdiendringer, Bygninger og annen fast eiendom, Utlandet",0,160,5860000,"000000","000","00",90000,0,0,90,0,null,null,null,"08.4.0"]
[]
["Netto verdiendringer, Maskiner, inventar og transportmidler, Norske sektorer i alt",0,160,5870000,"000000","000","00","01000",0,0,90,0,null,null,null,"00.0.0"]
["Netto verdiendringer, Maskiner, inventar og transportmidler, Utlandet",0,160,5870000,"000000","000","00",90000,0,0,90,0,null,null,null,"00.0.0"]
[]
["Netto verdiendringer, Leierettigheter, Norske sektorer i alt",0,160,"5960000","000000","000","00","01000",0,0,90,0,null,null,null,"08.4.0"]
["Netto verdiendringer, Leierettigheter, Utlandet",0,160,"5960000","000000","000","00",90000,0,0,90,0,null,null,null,"08.4.0"]
[]
["Netto verdiendringer, Finansielle derivater, Norske sektorer i alt",0,160,"0880000","000000","000","00","01000",0,0,90,0,null,null,null,"08.4.0"]
["Netto verdiendringer, Finansielle derivater, Utlandet",0,160,"0880000","000000","000","00",90000,0,0,90,0,null,null,null,"08.4.0"]
[]
["Netto verdiendringer, Andre finansielle eiendeler/gjeld, Norske sektorer i alt",0,160,"0910000","000000","000","00","01000",0,0,90,0,null,null,null,"08.4.0"]
["Netto verdiendringer, Andre finansielle eiendeler/gjeld, Utlandet",0,160,"0910000","000000","000","00",90000,0,0,90,0,null,null,null,"08.4.0"]
[]
["Netto verdiendringer, Forsikringsrelaterte verdiendringer, Positive verdiendringer, Norske sektorer i alt",0,160,"0941000","000000","000","00","01000",0,0,90,0,null,null,null,"09.0.0"]
["Netto verdiendringer, Forsikringsrelaterte verdiendringer, Positive verdiendringer, Utlandet",0,160,"0941000","000000","000","00",90000,0,0,90,0,null,null,null,"09.0.0"]
[]
["Netto verdiendringer, Forsikringsrelaterte verdiendringer, Negative verdiendringer, Norske sektorer i alt",0,160,"0942000","000000","000","00","01000",0,0,90,0,null,null,null,"10.0.0"]
["Netto verdiendringer, Forsikringsrelaterte verdiendringer, Negative verdiendringer, Utlandet",0,160,"0942000","000000","000","00",90000,0,0,90,0,null,null,null,"10.0.0"]
[]
["Netto realisert gevinst/tap, Aksjer, andeler og egenkapitalbevis, Obligasjons/-pengemarkedsfond, realisert gevinst/tap, Norske sektorer i alt ",0,170,"1361000","000000","000","00","01000",0,0,90,0,null,null,null,"08.5.0"]
["Netto realisert gevinst/tap, Aksjer, andeler og egenkapitalbevis, Obligasjons/-pengemarkedsfond, realisert gevinst/tap, Utlandet ",0,170,"1361000","000000","000","00",90000,0,0,90,0,null,null,null,"08.5.0"]
[]
["Netto realisert gevinst/tap, Aksjer, andeler og egenkapitalbevis, Eiendomsselskaper/-fond, realisert gevinst/tap, Tilknyttede selskaper, Norge i alt",0,170,"1362000","000000","000","00","01008",0,0,90,0,null,null,null,"08.1.0"]
["Netto realisert gevinst/tap, Aksjer, andeler og egenkapitalbevis, Eiendomsselskaper/-fond, realisert gevinst/tap, Konsernselskaper, Norge i alt",0,170,"1362000","000000","000","00","01009",0,0,90,0,null,null,null,"08.1.0"]
["Netto realisert gevinst/tap, Aksjer, andeler og egenkapitalbevis, Eiendomsselskaper/-fond, realisert gevinst/tap, Andre sektorer, Norge i alt",0,170,"1362000","000000","000","00","01010",0,0,90,0,null,null,null,"08.5.0"]
["Netto realisert gevinst/tap, Aksjer, andeler og egenkapitalbevis, Eiendomsselskaper/-fond, realisert gevinst/tap, Tilknyttede selskaper, Utlandet i altUtlandet",0,170,"1362000","000000","000","00","90008",0,0,90,0,null,null,null,"08.1.0"]
["Netto realisert gevinst/tap, Aksjer, andeler og egenkapitalbevis, Eiendomsselskaper/-fond, realisert gevinst/tap, Konsernselskaper, Utlandet i alt",0,170,"1362000","000000","000","00","90009",0,0,90,0,null,null,null,"08.1.0"]
["Netto realisert gevinst/tap, Aksjer, andeler og egenkapitalbevis, Eiendomsselskaper/-fond, realisert gevinst/tap, Andre sektorer, Utlandet i alt",0,170,"1362000","000000","000","00","90010",0,0,90,0,null,null,null,"08.5.0"]
[]
["Netto realisert gevinst/tap, Aksjer, andeler og egenkapitalbevis, Andre aksjer og fond, realisert gevinst/tap, Tilknyttede selskaper, Norge i alt",0,170,"1369000","000000","000","00","01008",0,0,90,0,null,null,null,"08.1.0"]
["Netto realisert gevinst/tap, Aksjer, andeler og egenkapitalbevis, Andre aksjer og fond, realisert gevinst/tap, Konsernselskaper, Norge i alt",0,170,"1369000","000000","000","00","01009",0,0,90,0,null,null,null,"08.1.0"]
["Netto realisert gevinst/tap, Aksjer, andeler og egenkapitalbevis, Andre aksjer og fond, realisert gevinst/tap, Andre sektorer, Norge i alt",0,170,"1369000","000000","000","00","01010",0,0,90,0,null,null,null,"08.5.0"]
["Netto realisert gevinst/tap, Aksjer, andeler og egenkapitalbevis, Andre aksjer og fond,  gevinst/tap, Tilknyttede selskaper, Utlandet i altUtlandet",0,170,"1369000","000000","000","00","90008",0,0,90,0,null,null,null,"08.1.0"]
["Netto realisert gevinst/tap, Aksjer, andeler og egenkapitalbevis, Andre aksjer og fond, realisert gevinst/tap, Konsernselskaper, Utlandet i alt",0,170,"1369000","000000","000","00","90009",0,0,90,0,null,null,null,"08.1.0"]
["Netto realisert gevinst/tap, Aksjer, andeler og egenkapitalbevis, Andre aksjer og fond, realisert gevinst/tap, Andre sektorer, Utlandet i alt",0,170,"1369000","000000","000","00","90010",0,0,90,0,null,null,null,"08.5.0"]
[]
["Netto realisert gevinst/tap, Rentebærende verdipapirer, Norske sektorer i alt",0,170,"1400000","000000","000","00","01000",0,0,90,0,null,null,null,"08.5.0"]
["Netto realisert gevinst/tap, Rentebærende verdipapirer, Utlandet",0,170,"1400000","000000","000","00",90000,0,0,90,0,null,null,null,"08.5.0"]
[]
["Netto realisert gevinst/tap, Immatrielle eiendeler, Realisert gevinst, Norske sektorer i alt",0,170,4851000,"000000","000","00","01000",0,0,90,0,null,null,null,"09.0.0"]
["Netto realisert gevinst/tap, Immatrielle eiendeler, Realisert gevinst, Utlandet",0,170,4851000,"000000","000","00",90000,0,0,90,0,null,null,null,"09.0.0"]
[]
["Netto realisert gevinst/tap, Immatrielle eiendeler, Realisert tap, Norske sektorer i alt",0,170,4852000,"000000","000","00","01000",0,0,90,0,null,null,null,"10.0.0"]
["Netto realisert gevinst/tap, Immatrielle eiendeler, Realisert tap, Utlandet",0,170,4852000,"000000","000","00",90000,0,0,90,0,null,null,null,"10.0.0"]
[]
["Netto realisert gevinst/tap, Bygninger og annen fast eiendom, Norske sektorer i alt",0,170,5860000,"000000","000","00","01000",0,0,90,0,null,null,null,"08.5.0"]
["Netto realisert gevinst/tap, Bygninger og annen fast eiendom, Utlandet",0,170,5860000,"000000","000","00",90000,0,0,90,0,null,null,null,"08.5.0"]
[]
["Netto realisert gevinst/tap, Maskiner, inventar og transportmidler, Norske sektorer i alt",0,170,5870000,"000000","000","00","01000",0,0,90,0,null,null,null,"00.0.0"]
["Netto realisert gevinst/tap, Maskiner, inventar og transportmidler, Utlandet",0,170,5870000,"000000","000","00",90000,0,0,90,0,null,null,null,"00.0.0"]
[]
["Netto realisert gevinst/tap, Leierettigheter, Norske sektorer i alt",0,170,"5960000","000000","000","00","01000",0,0,90,0,null,null,null,"08.5.0"]
["Netto realisert gevinst/tap, Leierettigheter, Utlandet",0,170,"5960000","000000","000","00",90000,0,0,90,0,null,null,null,"08.5.0"]
[]
["Netto realisert gevinst/tap, Finansielle derivater, Norske sektorer i alt",0,170,"0880000","000000","000","00","01000",0,0,90,0,null,null,null,"08.5.0"]
["Netto realisert gevinst/tap, Finansielle derivater, Utlandet",0,170,"0880000","000000","000","00",90000,0,0,90,0,null,null,null,"08.5.0"]
[]
["Netto realisert gevinst/tap, Andre finansielle eiendeler/gjeld, Norske sektorer i alt",0,170,"0910000","000000","000","00","01000",0,0,90,0,null,null,null,"08.5.0"]
["Netto realisert gevinst/tap, Andre finansielle eiendeler/gjeld, Utlandet",0,170,"0910000","000000","000","00",90000,0,0,90,0,null,null,null,"08.5.0"]
[]
["2. Andre driftsinntekter"]
["Provisjoner og administrasjonsgebyrer, Forsikringsagentprovisjoner og administrasjonsgebyrer",0,245,"0830000","000000","000","00","00000",0,0,90,0,null,null,null,"02.0.0"]
["Provisjoner og administrasjonsgebyrer, Provisjoner av finansielle tjenester (fulltegningsgarantiprovisjoner mv.) ",0,245,"0880000","000000","000","00","00000",0,0,90,0,null,null,null,"08.2.0"]
[]
["Driftsinntekter faste eiendommer, Norske sektorer i alt",0,255,"0000000","000000","000","00","01000",0,0,90,0,null,null,null,"08.3.0"]
["Driftsinntekter faste eiendommer, Utlandet",0,255,"0000000","000000","000","00",90000,0,0,90,0,null,null,null,"08.3.0"]
[]
["Øvrige forsikringsrelaterte driftsinntekter",0,265,"0000000","000000","000","00","00000",0,0,90,0,null,null,null,"02.0.0"]
[]
["3. Øvrige inntekter"," ",null,null," "," "," "," "," "," "]
["Rente på skatt og andre inntekter i ikke-teknisk regnskap",0,365,"0000000","000000","000","00","00000",0,0,90,0,null,null,null,"09.0.0"]
[]
["KOSTNADER:"]
[]
["4.0 Erstatningskostnader, endring i forsikringstekniske avsetninger mv.  i SKADEFORSIKRING"]
["Erstatningskostnader, Betalte erstatninger brutto, Norske sektorer i alt",0,405,"0100000","000000","000","00","01000",0,0,90,0,null,null,null,"03.1.0"]
["Erstatningskostnader, Betalte erstatninger brutto, Utlandet",0,405,"0100000","000000","000","00",90000,0,0,90,0,null,null,null,"03.1.0"]
[]
["Erstatningskostnader, Gjenforsikringsandel av betalte brutto erstatninger, Norske sektorer i alt (negativt fortegn hvis inntekt)",0,405,"0200000","000000","000","00","01000",0,0,90,0,null,null,null,"03.2.0"]
["Erstatningskostnader, Gjenforsikringsandel av betalte brutto erstatninger, Utlandet (negativt fortegn hvis inntekt)",0,405,"0200000","000000","000","00",90000,0,0,90,0,null,null,null,"03.2.0"]
[]
["Erstatningskostnader, Endring brutto erstatningsavsetning (negativt fortegn hvis inntekt)",0,405,"0300000","000000","000","00","00000",0,0,90,0,null,null,null,"03.1.0"]
["Erstatningskostnader, Gjenforsikringsandel av endring i brutto erstatningsavsetning (negativt fortegn hvis inntekt)",0,405,"0400000","000000","000","00","00000",0,0,90,0,null,null,null,"03.2.0"]
[null,null,null,null,"000000","000","00"]
["Endring i øvrige forsikringstekniske avsetninger, Avsetning for ikke avløpt risiko (negativt fortegn hvis inntekt)",0,408,"8290000","000000","000","00","00000",0,0,90,0,null,null,null,"06.0.0"]
[]
["4.1 Rentekostnader"]
["Rentekostnader, Ansvarlig lånekapital, Norske sektorer i alt ekskl. tilknyttede - og konsernselskap",0,410,8000000,"000000","000","00","01010",0,0,90,0,null,null,null,"10.0.0"]
["Rentekostnader, Ansvarlig lånekapital, Norske sektorer i alt, Tilknyttede selskaper",0,410,8000000,"000000","000","00","01008",0,0,90,0,null,null,null,"10.0.0"]
["Rentekostnader, Ansvarlig lånekapital, Norske sektorer i alt, Konsernselskaper",0,410,8000000,"000000","000","00","01009",0,0,90,0,null,null,null,"10.0.0"]
["Rentekostnader, Ansvarlig lånekapital, Utlandet",0,410,8000000,"000000","000","00",90010,0,0,90,0,null,null,null,"10.0.0"]
["Rentekostnader, Ansvarlig lånekapital, Utlandet, Tilknyttede selskaper",0,410,8000000,"000000","000","00",90008,0,0,90,0,null,null,null,"10.0.0"]
["Rentekostnader, Ansvarlig lånekapital, Utlandet, Konsernselskaper",0,410,8000000,"000000","000","00",90009,0,0,90,0,null,null,null,"10.0.0"]
[]
["Rentekostnader, Finansielle derivater, Norske sektorer i alt",0,410,"0880000","000000","000","00","01000",0,0,90,0,null,null,null,"00.0.0"]
["Rentekostnader, Finansielle derivater, Utlandet",0,410,"0880000","000000","000","00",90000,0,0,90,0,null,null,null,"00.0.0"]
[]
["Rentekostnader, Andre finansielle forpliktelser, Norske sektorer i alt ekskl. tilknyttede - og konsernselskap",0,410,"0910000","000000","000","00","01010",0,0,90,0,null,null,null,"00.0.0"]
["Rentekostnader, Andre finansielle forpliktelser, Norske sektorer i alt, Tilknyttede selskaper",0,410,"0910000","000000","000","00","01008",0,0,90,0,null,null,null,"00.0.0"]
["Rentekostnader, Andre finansielle forpliktelser, Norske sektorer i alt, Konsernselskaper",0,410,"0910000","000000","000","00","01009",0,0,90,0,null,null,null,"00.0.0"]
["Rentekostnader, Andre finansielle forpliktelser, Utlandet",0,410,"0910000","000000","000","00",90010,0,0,90,0,null,null,null,"00.0.0"]
["Rentekostnader, Andre finansielle forpliktelser, Utlandet, Tilknyttede selskaper",0,410,"0910000","000000","000","00",90008,0,0,90,0,null,null,null,"00.0.0"]
["Rentekostnader, Andre finansielle forpliktelser, Utlandet, Konsernselskaper",0,410,"0910000","000000","000","00",90009,0,0,90,0,null,null,null,"00.0.0"]
[]
["Rentekostnader, Forsikringsrelaterte rentekostnader, Norske sektorer i alt",0,410,"0940000","000000","000","00","01000",0,0,90,0,null,null,null,"10.0.0"]
["Rentekostnader, Forsikringsrelaterte rentekostnader, Utlandet",0,410,"0940000","000000","000","00",90000,0,0,90,0,null,null,null,"10.0.0"]
[]
["5. Andre driftskostnader",null,null,null,null,null,null," "]
["Provisjoner, kurtasje mv., Provisjoner til agenter mv.",0,545,"0100000","000000","000","00","00000",0,0,90,0,null,null,null,"00.0.0"]
["Provisjoner, kurtasje mv., Avgitt provisjoner for mottatt gjenforsikring (negativt fortegn hvis inntekt)",0,545,"0200000","000000","000","00","00000",0,0,90,0,null,null,null,"00.0.0"]
["Provisjoner, kurtasje mv., Mottatte provisjoner for avgitt gjenforsikring og gevinstandeler (negativt fortegn hvis inntekt)",0,545,"0300000","000000","000","00","00000",0,0,90,0,null,null,null,"04.4.0"]
["Provisjoner, kurtasje mv., Avgitt provisjon for mottatt koassuranse (negativt fortegn hvis inntekt)",0,545,"0400000","000000","000","00","00000",0,0,90,0,null,null,null,"00.0.0"]
["Provisjoner, kurtasje mv., Mottatt provisjon for avgitt koassuranse (negativt fortegn hvis inntekt)",0,545,"0500000","000000","000","00","00000",0,0,90,0,null,null,null,"00.0.0"]
["Provisjoner, kurtasje mv., Kurtasje mv.",0,545,"0880000","000000","000","00","00000",0,0,90,0,null,null,null,"00.0.0"]
[]
["Lønns- og personalkostnader, Lønn og feriepenger til ansatte",0,550,"0050000","000000","000","00","00000",0,0,90,0,null,null,null,"00.0.0"]
["Lønns- og personalkostnader, Arbeidsgiveravgift",0,550,"0210000","000000","000","00","00000",0,0,90,0,null,null,null,"00.0.0"]
["Lønns- og personalkostnader, Pensjonskostnader",0,550,"0280000","000000","000","00","00000",0,0,90,0,null,null,null,"00.0.0"]
["Lønns- og personalkostnader, Andre personalkostnader",0,550,"0500000","000000","000","00","00000",0,0,90,0,null,null,null,"00.0.0"]
[]
["Honorarer",0,552,"0000000","000000","000","00","00000",0,0,90,0,null,null,null,"00.0.0"]
[]
["Driftskostnader faste eiendomer, Norske sektorer i alt",0,555,"0000000","000000","000","00","01000",0,0,90,0,null,null,null,"08.3.0"]
["Driftskostnader faste eiendomer, Utlandet",0,555,"0000000","000000","000","00",90000,0,0,90,0,null,null,null,"08.3.0"]
[]
["Andre ordinære driftskostnader, Leie og driftskostnader vedr. lokaler og maskiner mv.",0,565,"0100000","000000","000","00","00000",0,0,90,0,null,null,null,"00.0.0"]
["Andre ordinære driftskostnader, Andre forsikringsrelaterte driftskostnader og kostnader i tilknytning til finansielle eiendeler",0,565,"0880000","000000","000","00","00000",0,0,90,0,null,null,null,"00.0.0"]
["Andre ordinære driftskostnader, Andre forsikringsrelaterte kostnader",0,565,"0890000","000000","000","00","00000",0,0,90,0,null,null,null,"05.0.0"]
[]
["Avskrivninger, Immaterielle eiendeler mv., Norske sektorer i alt",0,571,4850000,"000000","000","00","01000",0,0,90,0,null,null,null,"00.0.0"]
["Avskrivninger, Immaterielle eiendeler mv., Utlandet",0,571,4850000,"000000","000","00",90000,0,0,90,0,null,null,null,"00.0.0"]
[]
["Avskrivninger, Bygninger og annen fast eiendom, Norske sektorer i alt",0,571,5860000,"000000","000","00","01000",0,0,90,0,null,null,null,"08.3.0"]
["Avskrivninger, Bygninger og annen fast eiendom, Utlandet",0,571,5860000,"000000","000","00",90000,0,0,90,0,null,null,null,"08.3.0"]
[]
["Avskrivninger, Maskiner, inventar og transportmidler, Norske sektorer i alt",0,571,5870000,"000000","000","00","01000",0,0,90,0,null,null,null,"00.0.0"]
["Avskrivninger, Maskiner, inventar og transportmidler, Utlandet",0,571,5870000,"000000","000","00",90000,0,0,90,0,null,null,null,"00.0.0"]
[]
["Avskrivninger, Leierettigheter, Norske sektorer i alt",0,571,"5960000","000000","000","00","01000",0,0,90,0,null,null,null,"00.0.0"]
["Avskrivninger, Leierettigheter, Utlandet",0,571,"5960000","000000","000","00",90000,0,0,90,0,null,null,null,"00.0.0"]
[]
["6. Øvrige kostnader "," ",null,null," "," "," "," "," "," "]
["Emisjonskostnader, rente på skatt og andre kostnader i ikke-teknisk regnskap",0,665,"0000000","000000","000","00","00000",0,0,90,0,null,null,null,"10.0.0"]
[]
["8.0 Skattekostnader"]
["Skattekostnader, Periodeskatt",0,805,"0050000","000000","000","00","00000",0,0,90,0,null,null,null,"13.0.0"]
["Skattekostnader, For lite/mye(-) avsatt skatt  tidligere år (kan være negativ)",0,805,"0110000","000000","000","00","00000",0,0,90,0,null,null,null,"13.0.0"]
["Skattekostnader, Øvrig endring i forpliktelse ved utsatt skatt",0,805,"0926000","000000","000","00","00000",0,0,90,0,null,null,null,"13.0.0"]
[]
["8.9.x Andre inntekter og kostnader (OCI) (negativ hvis kostnad/tap), jfr. §4-4"]
["Andre inntekter og kostnader som ikke blir omklassifisert til resultat, Estimatendringer knyttet til ytelsesbaserte pensjonsordninger",0,891,"0300000","000000","000","00","00000",0,0,90,0,null,null,null,"15.1.2"]
["Andre inntekter og kostnader som ikke blir omklassifisert til resultat, Fra finansielle eiendeler og forpliktelser",0,891,"0600000","000000","000","00","00000",0,0,90,0,null,null,null,"15.1.3"]
["Andre inntekter og kostnader som ikke blir omklassifisert til resultat, Verdireguleringer - eiendom, anlegg og utsyr",0,891,"0710000","000000","000","00","00000",0,0,90,0,null,null,null,"15.1.1"]
["Andre inntekter og kostnader som ikke blir omklassifisert til resultat, Fra andre ikke-finansielle eiendeler",0,891,"0720000","000000","000","00","00000",0,0,90,0,null,null,null,"15.1.3"]
["Andre inntekter og kostnader som ikke blir omklassifisert til resultat, Skatt på andre inntekter og kostnader som ikke blir omklassifisert til resultatet",0,891,"7890000","000000","000","00","00000",0,0,90,0,null,null,null,"15.1.4"]
["Andre inntekter og kostnader som ikke blir omklassifisert til resultat, Samlepost delårsregnskap. Omfatter ikke objektspost 080 eller 789",0,891,"0990000","000000","000","00","00000",0,0,90,0,null,null,null,"15.1"]
[]
["Andre inntekter og kostnader som kan bli omklassifisert til resultatet, Andre inntekter og kostnader knyttet til investeringer i rentebærende verdipapirer - kun skadeforsikring som følger IFRS 9",0,892,"0200000","000000","000","00","00000",0,0,90,0,null,null,null,"15.2.1"]
["Andre inntekter og kostnader som kan bli omklassifisert til resultatet, Effektiv andel av gevinister og tap på sikringsinstrumenter i kontantstrømsikring",0,892,"0400000","000000","000","00","00000",0,0,90,0,null,null,null,"15.2.2"]
["Andre inntekter og kostnader som kan bli omklassifisert til resultatet, Fra andre finansielle eiendeler og forpliktelser",0,892,"0600000","000000","000","00","00000",0,0,90,0,null,null,null,"15.2.3"]
["Andre inntekter og kostnader som kan bli omklassifisert til resultatet, Fra ikke-finansielle eiendeler",0,892,"0700000","000000","000","00","00000",0,0,90,0,null,null,null,"15.2.3"]
["Andre inntekter og kostnader som kan bli omklassifisert til resultatet, Skatt på andre inntekter og ksotander som kaln bli omklassifisert til resultatet",0,892,"7890000","000000","000","00","00000",0,0,90,0,null,null,null,"15.2.4"]
["Andre inntekter og kostnader som kan bli omklassifisert til resultatet, Samlepost delårsregnskap. Omfatter ikke objektspost 080 eller 789",0,892,"0990000","000000","000","00","00000",0,0,90,0,null,null,null,"15.2"]
[]
[]
["9. Totalresultat hitill i år. MÅ FYLLES UT"]
["Totalresultat hitill i år",0,901,9989900,"000000","000","00","00000",0,0,90,0,null,null,null,"16.0.0"]

{"sheet":"Kontroll","index":4,"n_rows":39,"n_cols":6,"rows_kept":39,"cut":false,"hidden":false,"merged":[[0,0,0,1]]}
["Kontroll er kjørt uten feil:",null,"JA"]
[]
["Avstemming mellom poster i rapport 11 og 21"]
[]
["Rapport","Post","Kode","Beløp","Sum","Avvik"]
[]
[21,"Netto verdiendringer ,Maskiner, inventar og transportmidler","- 160 587 00",{"$f":"-('Rapport 21'!L132+'Rapport 21'!L133)","v":0}]
[21,"Netto realisert gevinst/tap, Maskiner, inventar og transportmidler","- 170 587 00",{"$f":"-('Rapport 21'!L179+'Rapport 21'!L180)","v":0}]
[21,"Rentekostnader, Finansielle derivater","410 088 00",{"$f":"'Rapport 21'!L225+'Rapport 21'!L226","v":0}]
[21,"Rentekostnader, Andre finansielle forpliktelser","410 091 00",{"$f":"SUM('Rapport 21'!L228:L233)","v":0}]
[21,"Provisjoner, kurtasje mv., Provisjoner til agenter mv.","545 010 00",{"$f":"'Rapport 21'!L239","v":0}]
[21,"Provisjoner, kurtasje mv., Avgitt provisjon for mottatt gjenforsikring","545 020 00",{"$f":"'Rapport 21'!L240","v":0}]
[21,"Provisjoner, kurtasje mv., Avgitt provisjon for mottatt koassuranse","545 040 00",{"$f":"'Rapport 21'!L242","v":0}]
[21,"Provisjoner, kurtasje mv., Mottatt provisjon for avgitt koassuranse","545 050 00",{"$f":"'Rapport 21'!L243","v":0}]
[21,"Provisjoner, kurtasje mv., Kurtasje mv.","545 088 00",{"$f":"'Rapport 21'!L244","v":0}]
[21,"Lønns- og personalkostnader, Lønn og feriepenger til ansatte","550 005 00 ",{"$f":"'Rapport 21'!L246","v":0}]
[21,"Lønns- og personalkostnader, Arbeidsgiveravgift","550 021 00",{"$f":"'Rapport 21'!L247","v":0}]
[21,"Lønns- og personalkostnader, Pensjonskostnader","550 028 00",{"$f":"'Rapport 21'!L248","v":0}]
[21,"Lønns- og personalkostnader, Personalkostnader","550 050 00",{"$f":"'Rapport 21'!L249","v":0}]
[21,"Honorarer","552 000 00",{"$f":"'Rapport 21'!L251","v":0}]
[21,"Andre ordinære driftskostnader, Leie og driftskostnader vedr. lokaler og maskiner mv.","565 010 00",{"$f":"'Rapport 21'!L256","v":0}]
[21,"Andre ordinære driftskostnader, Andre forsikringsrelaterte driftskostnader og kostnader knyttet til finansielle eiendeler","565 088 00",{"$f":"'Rapport 21'!L257","v":0}]
[21,"Avskrivninger, Immaterielle eiendeler","571 485 00",{"$f":"SUM('Rapport 21'!L260:L261)","v":0}]
[21,"Avskrivninger, Maskiner, inventar og transportmidler","571 587 00",{"$f":"'Rapport 21'!L266+'Rapport 21'!L267+'Rapport 21'!L269+'Rapport 21'!L270","v":0},{"$f":"SUM(D7:D24)","v":0}]
[]
[11,"Forsikringsrelaterte driftskostnader - Salgskostnader","91 0 06 10",{"$f":"'Rapport 11'!L99","v":0}]
[11,"Forsikringsrelaterte driftskostnader - Endring i forskuddsbetalte direkte salgskostnader","91 0 06 20",{"$f":"'Rapport 11'!L100","v":0}]
[11,"Forsikringsrelaterte driftskostnader - Forsikringsrelaterte administrasjonskostnader inkl. provisjoner for mottatt gjenforsikring","91 0 06 30",{"$f":"'Rapport 11'!L101","v":0}]
[11,"Administrasjonskostnader knyttet til investeringer, herunder rentekostnader","91 0 11 60",{"$f":"'Rapport 11'!L103","v":0},{"$f":"SUM(D26:D29)","v":0},{"$f":"E24-E29","v":0}]
[]
[]
[]
["Avstemming mellom poster i rapport 10 og 11."]
["Rapport","Post","Kode","Beløp",null,"Avvik"]
[10,"Finansielle derivater","1 88",{"$f":"SUM('Rapport 10'!L476:L524)","v":0}]
[11,"Finansielle derivater","40 1 88",{"$f":"SUM('Rapport 11'!L60:L64)","v":0},null,{"$f":"D35-D36","v":0}]
[]
[10,"Finansielle derivater","7 88",{"$f":"SUM('Rapport 10'!L1227:L1277)","v":0}]
[11,"Finansielle derivater","40 7 88",{"$f":"SUM('Rapport 11'!L92:L96)","v":0},null,{"$f":"D38-D39","v":0}]

{"sheet":"Hjelp","index":5,"n_rows":51,"n_cols":2,"rows_kept":51,"cut":false,"hidden":false,"merged":[[50,1,50,7],[15,1,15,7],[26,1,26,7],[36,1,36,7],[35,1,35,7],[39,1,39,7],[41,1,41,7],[48,1,48,7],[1,1,1,7],[6,1,6,7],[8,1,8,7],[44,1,44,7],[11,1,11,7]]}
[]
[null,"Dette arket gir en innføring i hvordan man fyller ut regnearksmalen som benyttes for å rapportere FORT. For nærmere informasjon om prosedyrer for oversendelse av data til SSB se: www.ssb.no/innrapportering/naeringsliv/fort, til høyre er en liste over dokumenter som er til hjelp ved rapportering. "]
[]
[null,"Hjelp til utfylling av regnearksmalen"]
[]
[null,"1 Generell informasjon"]
[null,"Når du har fylt ut regnearksmalen skal du sende en fil som kun innholder de utfylte dataene til Statistisk sentralbyrå og ikke hele Excel dokumentet (dersom dette ikke er avtalt på forhånd). For å generere de utfylte dataene til en fil for oversending trykker du på knappen \"Klargjøring for sending\", som du finner øverst i regnearksmalen. Du får beskjed om å lagre filen på et ønsket område, slik at den lett kan hentes frem for overføring. "]
[]
[null,"For innsending av data til SSB benyttes Altinn portalen. Altinn portalen gir en sikker dataoverføing. Nærmere informasjon om prosedyrer for innsending av data til SSB se www.ssb.no/innrapportering/naeringsliv/fort, i høyre marg vil dere finne Altinn_Veiledning_FORT.pdf."]
[]
[null,"2 Utfylling av regnearksmalen"]
[null,"Rapport 10 (kvartalsbalansen) brukt som eksempel. De samme utfyllingsprinsippene gjelder for rapport 21 og 11."]
[]
[null,"2.1 Generelt"]
[]
[null,"Det første du bør fylle ut er å lagre filen. Fyll deretter ut organisasjonsnummer (9 siffer) på startsiden, se bilde under."]
[]
[]
[]
[]
[]
[]
[]
[]
[]
[]
[null,"Regnearket er bygd opp av et utvalg av gyldige koder. Man fyller ut beløp i beløpskolonnen L. Det er viktig for strukturen i regnearket at man ikke sletter linjer, de linjene man ikke ønsker å benytte seg av kan man skjule. "]
[null,"2.4 Registrering av data"]
[null,"Nedenfor følger gangen i registrering av en kode:"]
[]
[]
[]
[]
[]
[]
[null,"Ved å trykke  på  \"Avstemming\"- knappen kan man finne ut om de forskjellige kontrollene som er innlagt  i regnearket stemmer. Dette er de samme kontrollene brukerne er kjent med fra før."]
[null,"Ved evt. feil i for eksempelt akviva minus passiva vil man ikke kunne benytte seg av \"Klargjøring for sending\"- knappen. Differansen vil bli merket med rødt og man får beskjed om å rette opp. Se boks under."]
[]
[null,"Rett opp i eventuelle feil som påpekes og kjør kontrollen på nytt."]
[null,"Vær oppmerksom på at  kontrollen må kjøres en gang til etter at siste feil er rettet opp slik at det blir registrert at rapporten er feilfri."]
[]
[null,"Rapportene kan ikke klargjøres for sending om de ikke er feilfrie. Det er også en kontroll mellom Eiendeler - egenkapital og gjeld (inntekter - kostnader i rapport 21). Om ikke denne kontrollen står tilnærmet lik , vil det ikke være mulig å klargjøre rapportene for innsending til SSB. "]
[]
[null,"2.5 Flat fil"]
[null,"Etter at regnearket er ferdig utfylt og kontrollene er kjørt uten feil kan man lagre filen. Denne vil automatisk lagre seg som .dat. Denne filen inneholder en styringslinje og rapport 10, 21 og 11. Det er denne filen som skal sendes inn via Altinn-portalen.Etter at regnearket er ferdig utfylt og kontrollene er kjørt uten feil kan man lagre filen. Denne vil automatisk lagre seg som .dat. Denne filen inneholder en styringslinje og rapport 10, 21 og 11. Det er denne filen som skal sendes inn via Altinn-portalen. Under er et eksempel på en flat fil. Her er det org.nr. 999 999 999 som har sendt inn rapport 10 i 4. kvartal 2010."]
[]
[null,"3 Spørsmål"]
[]
[null,"For spørsmål angående rapporteringen ta kontakt med Statistisk sentralbyrå (SSB) på telefon 21 09 00 00 eller send e-post til Kreditt250@ssb.no, evt. ta kontakt med Finanstilsynet på telefon 22 93 98 00."]
[]
[null,"For spørsmål om innsending via Altinn se www.altinnn.no eller kontakt Altinns supporttjeneste på e-post adresse support@altinn.no eller 23 14 52 22"]

{"sheet":"Innstillinger","index":6,"n_rows":10,"n_cols":15,"rows_kept":10,"cut":false,"hidden":true,"merged":[]}
[null,null,null,null,null,null,null,null,null,null,null,"Valgt Måned","Valgt år",null,"Versjonsnummer"]
[null,"Verktøylinjer","Beskrivelse","Innstillinger","Beskrivelse","Kommentarer","Ark som skal valideres","Celler som skal valideres","Celle beskrivelse","Måned","År","Måned","År",null,"05"]
[null,"Reviewing","SSB Meny","SSB UT_1_1_1_1_1_1_1_1_1_1_1_1_1_1_1_1_1_1_1_1_1_1_1_1_1_1_1_1_1_1_1_1_1_1_1_1_1_1_2_1_1_1_1_1_1_1_1_1_1_1_1_1_1_1_1_1_1_1_1_1_2_1_2_1_1_1_1_1_1_1_1_1_1_1_1_1_1_1_1_1_1_1_1_1_1_1_1_1_1_1_1_1_1_1_1_1_1_1_1_1_1_1_1_1_1_1_1_1_1_1_1_1_1_1_1_1_1_1_1_1_1_1_1","Dette er navnet på menyen",null,"Balanseposter","orgnr","Org.nummer","Januar",2008]
[null,"Formula Auditing","Aktivt Ark","Startside","Dette er aktivt ark",null,null,null,null,"Februar",2009]
[null,"Drawing",null,"2010-12-31","Hvor lenge denne boken er gyldig",null,null,null,null,"April"]
[null,null,null,null,null,null,null,null,null,"Mai"]
[null,null,null,null,null,null,null,null,null,"Juli"]
[null,null,null,null,null,null,null,null,null,"August"]
[null,null,null,null,null,"halla",null,null,null,"Oktober"]
[null,null,null,null,null,null,null,null,null,"November"]